{"text_format":"1","workbook":"xlsx","n_sheets":3,"sheets":["Конструктив","Спецификация","Склад ДКС"],"not_rendered":{"charts":0,"images":0,"macros":1,"external_links":2,"defined_names":83,"comments":0,"pivot_tables":0},"unopened":[],"bounds":{"document_bytes":16777216,"sheet_cells":100000,"rows_first":2000,"rows_last":500,"rows_between":2000,"halvings":0,"cell_chars":16384,"cell_head_chars":4096},"cells_cut":0,"cells_raw":0,"read":"whole","date_system":"1900"}

{"sheet":"Конструктив","index":0,"n_rows":140,"n_cols":44,"rows_kept":140,"cut":false,"hidden":false,"merged":[[5,10,7,12]]}
[]
[]
[]
[]
[]
[null,null,null,null,null,null,null,"Параметры шкафа",null,"CQE",{"$f":"C50&CHAR(10)","v":"\n"}]
[null,null,null,null,null,null,null,"Ширина","Глубина","Высота"]
[null,null,null,null,null,null,null,800,600,2000]
[]
[null,"Комплект, крыша и основание, для шкафов CQE",{"$f":"VLOOKUP(\"R5KTB\"&Ширина/100&Глубина/100,Код,1,0)","v":"R5KTB86"},1,null,null,null,"Назначение",null,null,"Наименование","Код","Кол-во"]
[null,"Комплект, дно и крыша, для шкафов DAE",{"$f":"VLOOKUP(\"R5DTB\"&Ширина/100&Глубина/100,Код,1,0)","v":"R5DTB86"},1,null,null,null,"Крыша и дно",null,null,{"$f":"IF(J6=\"CQE\",B10,B11)","v":"Комплект, крыша и основание, для шкафов CQE"},{"$f":"IFERROR(VLOOKUP(K11,B3:C28,2,FALSE),\"-\")","v":"R5KTB86"},1]
[null,"Стойки вертикальные, 1 упаковка - 4шт.",{"$f":"VLOOKUP(\"R5KMN\"&Высота/100,Код,1,0)","v":"R5KMN20"},1,null,null,null,"Несущие вертикальные элементы",null,null,{"$f":"IF(J6=\"CQE\",B12,B13)","v":"Стойки вертикальные, 1 упаковка - 4шт."},{"$f":"IFERROR(VLOOKUP(K12,B4:C29,2,FALSE),\"-\")","v":"R5KMN20"},{"$f":"M11","v":1}]
[null,"Комплект боковых панелей",{"$f":"VLOOKUP(\"R5DL\"&Высота/100&Глубина/10,Код,1,0)","v":"R5DL2060"},1,null,null,null,"Рым-болты",null,null,"Нет",{"$f":"IF(K13=\"Нет\",\"-\",IF(J6=\"CQE\",\"R5A33\",\"R5A33\"))","v":"-"},{"$f":"M11","v":1}]
[null,"Панель глухая, для шкафов DAE/CQE",{"$f":"VLOOKUP(\"R5CRE\"&Высота/100&Ширина/10,Код,1,0)","v":"R5CRE2080"},1,null,null,null,"Боковые элементы",null,null,"Нет",{"$f":"IFERROR(VLOOKUP(K14,B6:C31,2,FALSE),\"-\")","v":"-"},{"$f":"M11","v":1}]
[null,"Дверь сплошная ",{"$f":"VLOOKUP(\"R5CPE\"&Высота/100&Ширина/10,Код,1,0)","v":"R5CPE2080"},1,null,null,null,"Задняя плоскость",null,null,"Панель глухая, для шкафов DAE/CQE",{"$f":"IFERROR(VLOOKUP(K15,B8:C33,2,FALSE),\"-\")","v":"R5CRE2080"},{"$f":"M11","v":1}]
[null,"Дверь прозрачная",{"$f":"VLOOKUP(\"R5CPTE\"&Высота/100&Ширина/10,Код,1,0)","v":"R5CPTE2080"},1,null,null,null,"Передняя плоскость",null,null,"Дверь сплошная ",{"$f":"IFERROR(VLOOKUP(K16,B9:C38,2,FALSE),\"-\")","v":"R5CPE2080"},{"$f":"M11","v":1}]
[null,null,null,null,null,null,null,"Монтажная плата",null,null,"Монтажная плата, для шкафов DAE/CQE",{"$f":"IFERROR(VLOOKUP(K17,B10:C40,2,FALSE),\"-\")","v":"R5PCE2080"},{"$f":"M11","v":1}]
[null,null,null,null,null,null,null,"Опорные элементы",null,null,"Цоколь 100 мм",{"$f":"IFERROR(VLOOKUP(K18,B10:C33,2,FALSE),\"-\")","v":"R5BP01"},{"$f":"M11","v":1}]
[null,"Дверь сплошная двустворчатая",{"$f":"VLOOKUP(R52,R53:S69,2,FALSE)","v":"R5CPE2081"},1,null,null,null,null,null,null,{"$f":"B25","v":"Панели цоколя фронтальные"},{"$f":"IFERROR(VLOOKUP(K19,B11:C34,2,FALSE),\"-\")","v":"R5NFP80"},{"$f":"M11","v":1}]
[null,null,null,null,null,null,null,null,null,null,{"$f":"B26","v":"Панели цоколя боковые"},{"$f":"IFERROR(VLOOKUP(K20,B12:C35,2,FALSE),\"-\")","v":"R5NFP60"},{"$f":"$M$11","v":1}]
[null,"Нет","-",null,null,null,null,"Фиксаторы к полу",null,null,"Да",{"$f":"IF(AND(K21=\"Да\",LEFT(K18,3)=\"Цок\"),\"R5KFP03\",\"-\")","v":"R5KFP03"},{"$f":"$M$11","v":1}]
[null,"Цоколь 100 мм","R5BP01",1,null,null,null,"Караман для документации",null,null,"Нет",{"$f":"IFERROR(VLOOKUP(K22,B16:C40,2,FALSE),\"-\")","v":"-"},{"$f":"$M$11","v":1}]
[null,"Цоколь 200 мм","R5BP02",1,null,null,null,"Вентиляцонные спейсеры",null,null,"Нет",{"$f":"IFERROR(VLOOKUP(K23,B16:C46,2,FALSE),\"-\")","v":"-"},{"$f":"$M$11","v":1}]
[null,"Нет","-"]
[null,{"$f":"IF(L18=\"-\",\"\",\"Панели цоколя фронтальные\")","v":"Панели цоколя фронтальные"},{"$f":"IF(L18=\"R5BP01\",VLOOKUP(\"R5NFP\"&Ширина/10,Код,1,0),IF(L18=\"R5BP02\",VLOOKUP(\"R5NFP\"&Ширина/100&2,Код,1,0),\"-\"))","v":"R5NFP80"},1]
[null,{"$f":"IF(L18=\"-\",\"\",\"Панели цоколя боковые\")","v":"Панели цоколя боковые"},{"$f":"IF(L18=\"R5BP01\",\"R5NFP\"&Глубина/10,IF(L18=\"R5BP02\",\"R5NFP\"&Глубина/100&2,\"-\"))","v":"R5NFP60"},1]
[null,null,"-"]
[null,{"$f":"IF(J6=\"DAE\",\"Нет\",\"Боковые панели 2 шт\")","v":"Боковые панели 2 шт"},{"$f":"VLOOKUP(\"R5LE\"&Высота/100&Глубина/100&2,Код,1,0)","v":"R5LE2062"},null,null,null,null,null,null,null,null,"Дополнительно",":"]
[null,{"$f":"IF(J6=\"DAE\",\"Нет\",\"Компл. для объединения шкафов\")","v":"Компл. для объединения шкафов"},"R5KE65",null,null,null,null,null,null,null,null,{"$f":"VLOOKUP(\"R5PDL\"&Глубина,Код,1,0)","v":"R5PDL600"},1]
[null,"Нет","-",null,null,null,null,null,null,null,null,{"$f":"VLOOKUP(\"R5TLE\"&Глубина,Код,1,0)","v":"R5TLE600"},1]
[null,"Профили для установки роликов",{"$f":"IFERROR(VLOOKUP(I8,C100:D103,2,FALSE),\"-\")","v":"R5A48"},1,null,null,null,null,null,null,null,{"$f":"VLOOKUP(\"R5PLE\"&Глубина,Код,1,0)","v":"R5PLE600"},1]
[null,"Комплект роликов",{"$f":"IFERROR(VLOOKUP(I8,C100:E103,3,FALSE),\"-\")","v":"R5A41"},1,null,null,null,null,null,null,null,{"$f":"VLOOKUP(\"R5PDF\"&Ширина,Код,1,0)","v":"R5PDF800"},1]
[null,"Монтажная плата, для шкафов DAE/CQE",{"$f":"VLOOKUP(\"R5PCE\"&Высота/100&Ширина/10,Код,1,0)","v":"R5PCE2080"},null,null,null,null,null,null,null,null,{"$f":"VLOOKUP(\"R5TFE\"&Ширина,Код,1,0)","v":"R5TFE800"},1]
[null,"Монтажная плата с боковой загрузкой",{"$f":"VLOOKUP(\"R5PCSE\"&Высота/100&Ширина/10,Код,1,0)","v":"R5PCSE2080"},null,null,null,null,null,null,null,null,{"$f":"VLOOKUP(\"R5TTE\"&Ширина,Код,1,0)","v":"R5TTE800"},1]
[null,"Нет","-",null,null,null,null,null,null,null,null,{"$f":"VLOOKUP(\"R5PAC\"&Ширина/10,Код,1,0)","v":"R5PAC80"},1]
[null,"Карман для документов стальной",{"$f":"VLOOKUP(\"R5NTE\"&Ширина/10,Код,1,0)","v":"R5NTE80"},null,null,null,null,null,null,null,null,{"$f":"VLOOKUP(\"R5PDV\"&Высота/100,Код,1,0)","v":"R5PDV20"},1]
[null,"Карман для документов пластиковый","R5A32",null,null,null,null,null,null,null,null,{"$f":"VLOOKUP(\"R5MVE\"&Высота/100,Код,1,0)","v":"R5MVE20"},1]
[null,"Нет","-",null,null,null,null,null,null,null,null,{"$f":"VLOOKUP(\"R5FPC\"&Ширина,Код,1,0)","v":"R5FPC800"},1]
[null,"Комплект для организации кабельного ввода",{"$f":"VLOOKUP(I125,I126:J133,2,FALSE)","v":"R5PFI2060"},null,null,null,null,null,null,null,null,{"$f":"VLOOKUP(\"R5FUC\"&Ширина/100&Глубина/100,Код,1,0)","v":"R5FUC86"},1]
[null,"Нет","-"]
[null,"Да"]
[null,"Нет"]
[]
[null,"Спейсер для крыши 20мм","R5SPA01"]
[null,"Спейсер для крыши 50мм","R5SPA02"]
[null,"Нет","-"]
[null,"DAE"]
[null,"CQE"]
[null,null,"Колонка ошибок"]
[null,null,{"$f":"IF(L11=\"-\",\"Без крыши и дна сборка шкафа невозможна!\",\"\")","v":""}]
[]
[null,null,{"$f":"H8&I8","v":"800600"},null,null,{"$f":"J8","v":2000},null,null,{"$f":"J8&H8","v":"2000800"},null,null,{"$f":"J8&H8","v":"2000800"},null,null,{"$f":"J8&H8","v":"2000800"},null,null,{"$f":"J8&H8","v":"2000800"},null,null,{"$f":"H8&I8","v":"800600"},null,null,{"$f":"H8&I8","v":"800600"},null,null,{"$f":"J8&H8","v":"2000800"},null,null,null,null,null,null,null,null,1000,600,{"$f":"AJ52&AK52","v":"1000600"},{"$f":"\"R5CPTE\"&AJ52/100&AK52/10","v":"R5CPTE1060"},null,1600,600,{"$f":"AO52&AP52","v":"1600600"},{"$f":"\"R5CPTED\"&AO52/100&AP52/10","v":"R5CPTED1660"}]
[null,null,"300400","R5KTB34",null,1400,"R5KMN14",null,"1000600","R5CRE1060",null,"1000600","R5PCE1060",null,"1000600","R5CPE1060",null,"1400800","R5CPE1481",null,"200500","R5ZE251",null,"200500","R5ZE252",null,"1000600","R5CPTE1060",null,300,"R5FP30",null,null,null,null,1000,800,"1000800",{"$f":"\"R5CPTE\"&AJ53/100&AK53/10","v":"R5CPTE1080"},null,1600,800,{"$f":"AO53&AP53","v":"1600800"},"R5CPTED1680"]
[null,null,"300500","R5KTB35",null,1600,"R5KMN16",null,"1000800","R5CRE1080",null,"1000800","R5PCE1080",null,"1000800","R5CPE1080",null,"14001200","R5CPE14120",null,"200600","R5ZE261",null,"200600","R5ZE262",null,"1000800","R5CPTE1080",null,400,"R5FP40",null,null,null,null,1000,1000,"10001000","R5CPTE10100",null,1800,600,"1800600","R5CPTED1860"]
[null,null,"300600","R5KTB36",null,1800,"R5KMN18",null,"10001000","R5CRE10100",null,"10001000","R5PCE10100",null,"10001000","R5CPE10100",null,"14001600","R5CPE14160",null,"200800","R5ZE281",null,"200800","R5ZE282",null,"10001000","R5CPTE10100",null,600,"R5FP60",null,null,null,null,1200,600,"1200600","R5CPTE1260",null,1800,800,"1800800","R5CPTED1880"]
[null,null,"300800","R5KTB38",null,2000,"R5KMN20",null,"1200600","R5CRE1260",null,"1200600","R5PCE1260",null,"1200600","R5CPE1260",null,"1600800","R5CPE1681",null,"300400","R5BP01",null,"300400","R5ZE342",null,"1200600","R5CPTE1260",null,800,"R5FP80",null,null,null,null,1200,800,"1200800","R5CPTE1280",null,2000,600,"2000600","R5CPTED2060"]
[null,null,"3001000","R5KTB310",null,2200,"R5KMN22",null,"1200800","R5CRE1280",null,"1200800","R5PCE1280",null,"1200800","R5CPE1280",null,"16001000","R5CPE16101",null,"300500","R5ZE351",null,"300500","R5ZE352",null,"1200800","R5CPTE1280",null,1000,"R5FP100",null,null,null,null,1200,1000,"12001000","R5CPTE12100",null,2000,800,"2000800","R5CPTED2080"]
[null,null,"400400","R5KTB44",null,null,null,null,"12001000","R5CRE12100",null,"12001000","R5PCE12100",null,"12001000","R5CPE12100",null,"16001200","R5CPE16120",null,"300600","R5BP01",null,"300600","R5ZE362",null,"12001000","R5CPTE12100",null,1200,"R5FP120",null,null,null,null,1400,600,"1400600","R5CPTE1460",null,2200,600,"2200600","R5CPTED2260"]
[null,null,"400500","R5KTB45",null,null,null,null,"1400600","R5CRE1460",null,"1400600","R5PCE1460",null,"1400600","R5CPE1460",null,"1800800","R5CPE1881",null,"300800","R5BP01",null,"300800","R5ZE382",null,"1400600","R5CPTE1460",null,null,null,null,null,null,null,1400,800,"1400800","R5CPTE1480",null,2200,800,"2200800","R5CPTED2280"]
[null,null,"400600","R5KTB46",null,300,null,null,"1400800","R5CRE1480",null,"1400800","R5PCE1480",null,"1400800","R5CPE1480",null,"18001000","R5CPE18101",null,"400400","R5BP01",null,"400400","R5ZE442",null,"1400800","R5CPTE1480",null,null,null,null,null,null,null,1600,400,"1600400","R5CPTE1640"]
[null,null,"400800","R5KTB48",null,400,null,null,"14001200","R5CRE14120",null,"14001200","R5PCE14120",null,"1600400","R5CPE1640",null,"18001200","R5CPE18120",null,"400500","R5ZE451",null,"400500","R5ZE452",null,"1600400","R5CPTE1640",null,null,null,null,null,null,null,1600,600,"1600600","R5CPTE1660"]
[null,null,"4001000","R5KTB410",null,500,null,null,"14001600","R5CRE14160",null,"14001600","R5PCE14160",null,"1600600","R5CPE1660",null,"2000800","R5CPE2081",null,"400600","R5BP01",null,"400600","R5ZE642",null,"1600600","R5CPTE1660",null,null,null,null,null,null,null,1600,800,"1600800","R5CPTE1680"]
[null,null,"4001200","R5KTB412",null,600,null,null,"1600400","R5CRE1640",null,"1600400","R5PCE1640",null,"1600800","R5CPE1680",null,"20001000","R5CPE20101",null,"400800","R5BP01",null,"400800","R5ZE842",null,"1600800","R5CPTE1680",null,null,null,null,null,null,null,1600,1000,"16001000","R5CPTE16100"]
[null,null,"600400","R5KTB64",null,800,null,null,"1600600","R5CRE1660",null,"1600600","R5PCE1660",null,"16001000","R5CPE16100",null,"20001200","R5CPE20120",null,"4001000","R5BP01",null,"4001000","R5ZE1042",null,"16001000","R5CPTE16100",null,null,null,null,null,null,null,1800,300,"1800300","R5CPTE1830"]
[null,null,"600500","R5KTB65",null,1000,null,null,"1600800","R5CRE1680",null,"1600800","R5PCE1680",null,"1800300","R5CPE1830",null,"20001400","R5CPE20140",null,"4001200","R5BP01",null,"4001200","R5ZE1242",null,"1800300","R5CPTE1830",null,null,null,null,null,null,null,1800,400,"1800400","R5CPTE1840"]
[null,null,"600600","R5KTB66",null,1200,null,null,"16001000","R5CRE16100",null,"16001000","R5PCE16100",null,"1800400","R5CPE1840",null,"20001600","R5CPE20160",null,"600300","R5BP01",null,"600300","R5ZE632",null,"1800400","R5CPTE1840",null,null,null,null,null,null,null,1800,600,"1800600","R5CPTE1860"]
[null,null,"600800","R5KTB68",null,null,null,null,"16001200","R5CRE16120",null,"16001200","R5PCE16120",null,"1800600","R5CPE1860",null,"2200800","R5CPE2281",null,"600400","R5BP01",null,"600400","R5ZE642",null,"1800600","R5CPTE1860",null,null,null,null,null,null,null,1800,800,"1800800","R5CPTE1880"]
[null,null,"6001000","R5KTB610",null,300,null,null,"1800300","R5CRE1830",null,"1800300","R5PCE1830",null,"1800800","R5CPE1880",null,"22001000","R5CPE22101",null,"600500","R5ZE651",null,"600500","R5ZE652",null,"1800800","R5CPTE1880",null,null,null,null,null,null,null,1800,1000,"18001000","R5CPTE18100"]
[null,null,"6001200","R5KTB612",null,400,null,null,"1800400","R5CRE1840",null,"1800400","R5PCE1840",null,"18001000","R5CPE18100",null,"22001200","R5CPE22120",null,"600600","R5BP01",null,"600600","R5ZE662",null,"18001000","R5CPTE18100",null,null,null,null,null,null,null,2000,300,"2000300","R5CPTE2030"]
[null,null,"800400","R5KTB84",null,600,null,null,"1800600","R5CRE1860",null,"1800600","R5PCE1860",null,"2000300","R5CPE2030",null,null,null,null,"600800","R5BP01",null,"600800","R5ZE862",null,"2000300","R5CPTE2030",null,null,null,null,null,null,null,2000,400,"2000400","R5CPTE2040"]
[null,null,"800500","R5KTB85",null,800,null,null,"1800800","R5CRE1880",null,"1800800","R5PCE1880",null,"2000400","R5CPE2040",null,null,null,null,"6001000","R5BP01",null,"6001000","R5ZE1062",null,"2000400","R5CPTE2040",null,null,null,null,null,null,null,2000,600,"2000600","R5CPTE2060"]
[null,null,"800600","R5KTB86",null,1000,null,null,"18001000","R5CRE18100",null,"18001000","R5PCE18100",null,"2000600","R5CPE2060",null,null,null,null,"6001200","R5BP01",null,"6001200","R5ZE1262",null,"2000600","R5CPTE2060",null,null,null,null,null,null,null,2000,800,"2000800","R5CPTE2080"]
[null,null,"800800","R5KTB88",null,1200,null,null,"18001200","R5CRE18120",null,"18001200","R5PCE18120",null,"2000800","R5CPE2080",null,null,null,null,"800300","R5BP01",null,"800300","R5ZE832",null,"2000800","R5CPTE2080",null,null,null,null,null,null,null,2000,1000,"20001000","R5CPTE20100"]
[null,null,"8001000","R5KTB810",null,1400,null,null,"2000300","R5CRE2030",null,"2000300","R5PCE2030",null,"20001000","R5CPE20100",null,null,null,null,"800400","R5BP01",null,"800400","R5ZE842",null,"20001000","R5CPTE20100",null,null,null,null,null,null,null,2200,300,"2200300","R5CPTE2230"]
[null,null,"8001200","R5KTB812",null,1600,null,null,"2000400","R5CRE2040",null,"2000400","R5PCE2040",null,"2200300","R5CPE2230",null,null,null,null,"800500","R5ZE851",null,"800500","R5ZE852",null,"2200300","R5CPTE2230",null,null,null,null,null,null,null,2200,400,"2200400","R5CPTE2240"]
[null,null,"1000400","R5KTB104",null,null,null,null,"2000600","R5CRE2060",null,"2000600","R5PCE2060",null,"2200400","R5CPE2240",null,null,null,null,"800600","R5BP01",null,"800600","R5ZE862",null,"2200400","R5CPTE2240",null,null,null,null,null,null,null,2200,600,"2200600","R5CPTE2260"]
[null,null,"1000500","R5KTB105",null,null,null,null,"2000800","R5CRE2080",null,"2000800","R5PCE2080",null,"2200600","R5CPE2260",null,null,null,null,"800800","R5BP01",null,"800800","R5ZE882",null,"2200600","R5CPTE2260",null,null,null,null,null,null,null,2200,800,"2200800","R5CPTE2280"]
[null,null,"1000600","R5KTB106",null,null,null,null,"20001000","R5CRE20100",null,"20001000","R5PCE20100",null,"2200800","R5CPE2280",null,null,null,null,"8001000","R5BP01",null,"8001000","R5ZE1082",null,"2200800","R5CPTE2280",null,null,null,null,null,null,null,2200,1000,"22001000","R5CPTE22100"]
[null,null,"1000800","R5KTB108",null,1000,null,null,"20001200","R5CRE20120",null,"20001200","R5PCE20120",null,"22001000","R5CPE22100",null,null,null,null,"8001200","R5BP01",null,"8001200","R5ZE1282",null,"22001000","R5CPTE22100"]
[null,null,"10001000","R5KTB1010",null,1200,null,null,"20001400","R5CRE20140",null,"20001400","R5PCE20140",null,null,null,null,null,null,null,"1000300","R5BP01",null,"1000300","R5ZE1032"]
[null,null,"10001200","R5KTB1012",null,1400,null,null,"20001600","R5CRE20160",null,"20001600","R5PCE20160",null,null,null,null,null,null,null,"1000400","R5BP01",null,"1000400","R5ZE1042"]
[null,null,"1200400","R5KTB124",null,1600,null,null,"2200300","R5CRE2230",null,"2200300","R5PCE2230",null,null,null,null,null,null,null,"1000500","R5ZE1051",null,"1000500","R5ZE1052"]
[null,null,"1200500","R5KTB125",null,1800,null,null,"2200400","R5CRE2240",null,"2200400","R5PCE2240",null,null,null,null,null,null,null,"1000600","R5BP01",null,"1000600","R5ZE1062"]
[null,null,"1200600","R5KTB126",null,2000,null,null,"2200600","R5CRE2260",null,"2200600","R5PCE2260",null,null,null,null,null,null,null,"1000800","R5BP01",null,"1000800","R5ZE1082"]
[null,null,"1200800","R5KTB128",null,2200,null,null,"2200800","R5CRE2280",null,"2200800","R5PCE2280",null,null,null,null,null,null,null,"10001000","R5BP01",null,"10001000","R5ZE10102"]
[null,null,"12001000","R5KTB1210",null,null,null,null,"22001000","R5CRE22100",null,"22001000","R5PCE22100",null,null,null,null,null,null,null,"10001200","R5BP01",null,"10001200","R5ZE12102"]
[null,null,"12001200","R5KTB1212",null,null,null,null,"22001200","R5CRE22120",null,"22001200","R5PCE22120",null,null,null,null,null,null,null,"1200400","R5BP01",null,"1200400","R5ZE1242"]
[null,null,"1400400","R5KTB144",null,null,null,null,null,null,null,null,null,null,null,null,null,null,null,null,"1200500","R5ZE1251",null,"1200500","R5ZE1252"]
[null,null,"1400500","R5KTB145",null,null,null,null,null,null,null,"1600600","R5PCSE1660",null,null,null,null,null,null,null,"1200600","R5BP01",null,"1200600","R5ZE1262"]
[null,null,"1400600","R5KTB146",null,null,null,null,null,null,null,"1600800","R5PCSE1680",null,null,null,null,null,null,null,"1200800","R5BP01",null,"1200800","R5ZE1282"]
[null,null,"1400800","R5KTB148",null,null,null,null,null,null,null,"16001000","R5PCSE16100",null,null,null,null,null,null,null,"12001000","R5BP01",null,"12001000","R5ZE12102"]
[null,null,"1600400","R5KTB164",null,null,null,null,null,null,null,"16001200","R5PCSE16120",null,null,null,null,null,null,null,"1400400","R5ZE1441",null,"1400400","R5ZE1442"]
[null,null,"1600500","R5KTB165",null,null,null,null,null,null,null,"1800600","R5PCSE1860",null,null,null,null,null,null,null,"1400500","R5ZE1451",null,"1400500","R5ZE1452"]
[null,null,"1600600","R5KTB166",null,null,null,null,null,null,null,"1800800","R5PCSE1880",null,null,null,null,null,null,null,"1400600","R5ZE1461",null,"1400600","R5ZE1462",null,null,null,null,null,null,null,null,null,null,1400,1200,{"$f":"AJ94&AK94","v":"14001200"},{"$f":"\"R5CRE\"&AJ94/100&AK94/10","v":"R5CRE14120"}]
[null,null,"1600800","R5KTB168",null,null,null,null,"1400400","R5LE1442",null,"18001000","R5PCSE18100",null,null,null,null,null,null,null,"1400800","R5ZE1481",null,"1400800","R5ZE1482",null,null,null,null,null,null,null,null,null,null,1400,1600,"14001600","R5CRE14160"]
[null,null,null,null,null,null,null,null,"1400500","R5LE1452",null,"18001200","R5PCSE18120",null,null,null,null,null,null,null,"1600400","R5ZE1641",null,"1600400","R5ZE1642",null,null,null,null,null,null,null,null,null,null,1600,1200,"16001200","R5CRE16120"]
[null,null,null,null,null,null,null,null,"1600400","R5LE1642",null,"2000600","R5PCSE2060",null,null,null,null,null,null,null,"1600500","R5ZE1651",null,"1600500","R5ZE1652",null,null,null,null,null,null,null,null,null,null,1800,1200,"18001200","R5CRE18120"]
[null,null,null,null,null,null,null,null,"1600500","R5LE1652",null,"2000800","R5PCSE2080",null,null,null,null,null,null,null,"1600600","R5ZE1661",null,"1600600","R5ZE1662",null,null,null,null,null,null,null,null,null,null,2000,1200,"20001200","R5CRE20120"]
[null,null,null,null,null,null,null,null,"1600600","R5LE1662",null,"20001000","R5PCSE20100",null,null,null,null,null,null,null,"1600800","R5ZE1681",null,"1600800","R5ZE1682",null,null,null,null,null,null,null,null,null,null,2000,1400,"20001400","R5CRE20140"]
[null,null,400,"R5A46","R5A41",null,null,null,"1800400","R5LE1842",null,"20001200","R5PCSE20120",null,null,null,null,null,null,null,null,null,null,null,null,null,null,null,null,null,null,null,null,null,null,2000,1600,"20001600","R5CRE20160"]
[null,null,500,"R5A47","R5A41",null,null,null,"1800500","R5LE1852",null,"20001400","R5PCSE20140",null,null,null,null,null,null,null,null,null,null,null,null,null,null,null,null,null,null,null,null,null,null,2200,1200,"22001200","R5CRE22120"]
[null,null,600,"R5A48","R5A41",null,null,null,"1800600","R5LE1862",null,"20001600","R5PCSE20160"]
[null,null,800,"R5A49","R5A41",null,null,null,"1800800","R5LE1882",null,"2200600","R5PCSE2260"]
[null,null,null,null,null,null,null,null,"18001000","R5LE18102",null,"2200800","R5PCSE2280"]
[null,null,null,null,null,null,null,null,"18001200","R5LE18122",null,"22001000","R5PCSE22100"]
[null,null,"600300","R5DTB63",null,null,null,null,"2000400","R5LE2042",null,"22001200","R5PCSE22120"]
[null,null,"600400","R5DTB64",null,null,null,null,"2000500","R5LE2052"]
[null,null,"600500","R5DTB65",null,null,null,null,"2000600","R5LE2062"]
[null,null,"600600","R5DTB66",null,null,null,null,"2000800","R5LE2082"]
[null,null,"800300","R5DTB83",null,null,null,null,"20001000","R5LE20102"]
[null,null,"800400","R5DTB84",null,null,null,null,"20001200","R5LE20122"]
[null,null,"800500","R5DTB85",null,null,null,null,"2200500","R5LE2252",null,null,null,null,null,null,null,null,null,null,null,null,null,1400,400,{"$f":"X112&Y112","v":"1400400"},{"$f":"\"R5LE\"&X112/100&Y112/100&\"2\"","v":"R5LE1442"}]
[null,null,"800600","R5DTB86",null,null,null,null,"2200600","R5LE2262",null,null,null,null,null,null,null,null,null,null,null,null,null,1400,500,{"$f":"X113&Y113","v":"1400500"},{"$f":"\"R5LE\"&X113/100&Y113/100&\"2\"","v":"R5LE1452"}]
[null,null,"1000300","R5DTB103",null,null,null,null,"2200800","R5LE2282",null,null,null,null,null,null,null,null,null,null,null,null,null,1600,400,"1600400","R5LE1642"]
[null,null,"1000400","R5DTB104",null,null,null,null,"22001000","R5LE22102",null,null,null,null,null,null,null,null,null,null,null,null,null,1600,500,"1600500","R5LE1652"]
[null,null,"1000500","R5DTB105",null,null,null,null,"22001200","R5LE22122",null,null,null,null,null,null,null,null,null,null,null,null,null,1600,600,"1600600","R5LE1662"]
[null,null,"1000600","R5DTB106",null,null,null,null,null,null,null,null,null,null,null,null,null,null,null,null,null,null,null,1800,400,"1800400","R5LE1842"]
[null,null,"1200400","R5DTB124",null,null,null,null,null,null,null,null,null,null,null,null,null,null,null,null,null,null,null,1800,500,"1800500","R5LE1852"]
[null,null,"1200500","R5DTB125",null,null,null,null,500,"R5TE50",null,null,null,null,null,null,null,null,null,null,null,null,null,1800,600,"1800600","R5LE1862"]
[null,null,"1200600","R5DTB126",null,null,null,null,600,"R5TE60",null,null,null,null,null,null,null,null,null,null,null,null,null,1800,800,"1800800","R5LE1882"]
[null,null,null,null,null,null,null,null,700,"R5TE70",null,null,null,null,null,null,null,null,null,null,null,null,null,1800,1000,"18001000","R5LE18102"]
[null,null,null,null,null,null,null,null,800,"R5TE80",null,null,null,null,null,null,null,null,null,null,null,null,null,1800,1200,"18001200","R5LE18122"]
[null,null,null,null,null,null,null,null,1000,"R5TE100",null,null,null,null,null,null,null,null,null,null,null,null,null,2000,400,"2000400","R5LE2042"]
[null,null,null,null,null,null,null,null,null,null,null,null,null,null,null,null,null,null,null,null,null,null,null,2000,500,"2000500","R5LE2052"]
[null,null,"1000300","R5DL1030",null,null,null,null,{"$f":"Высота&Глубина","v":"2000600"},null,null,null,null,null,null,null,null,null,null,null,null,null,null,2000,600,"2000600","R5LE2062"]
[null,null,"1000400","R5DL1040",null,null,null,null,"1800400","R5PFI1840",null,null,null,null,null,null,null,null,null,null,null,null,null,2000,800,"2000800","R5LE2082"]
[null,null,"1200300","R5DL1230",null,null,null,null,"1800500","R5PFI1850",null,null,null,null,null,null,null,null,null,null,null,null,null,2000,1000,"20001000","R5LE20102"]
[null,null,"1200400","R5DL1240",null,null,null,null,"1800600","R5PFI1860",null,null,null,null,null,null,null,null,null,null,null,null,null,2000,1200,"20001200","R5LE20122"]
[null,null,"1400300","R5DL1430",null,null,null,null,"1800800","R5PFI1880",null,null,null,null,null,null,null,null,null,null,null,null,null,2200,500,"2200500","R5LE2252"]
[null,null,"1400400","R5DL1440",null,null,null,null,"2000400","R5PFI2040",null,null,null,null,null,null,null,null,null,null,null,null,null,2200,600,"2200600","R5LE2262"]
[null,null,"1600300","R5DL1630",null,null,null,null,"2000500","R5PFI2050",null,null,null,null,null,null,null,null,null,null,null,null,null,2200,800,"2200800","R5LE2282"]
[null,null,"1600400","R5DL1640",null,null,null,null,"2000600","R5PFI2060",null,null,null,null,null,null,null,null,null,null,null,null,null,2200,1000,"22001000","R5LE22102"]
[null,null,"1800300","R5DL1830",null,null,null,null,"2000800","R5PFI2080",null,null,null,null,null,null,null,null,null,null,null,null,null,2200,1200,"22001200","R5LE22122"]
[null,null,"1800400","R5DL1840"]
[null,null,"1800500","R5DL1850"]
[null,null,"1800600","R5DL1860"]
[null,null,"2000300","R5DL2030"]
[null,null,"2000400","R5DL2040"]
[null,null,"2000500","R5DL2050"]
[null,null,"2000600","R5DL2060"]

{"sheet":"Спецификация","index":1,"n_rows":748,"n_cols":6,"rows_kept":748,"cut":false,"hidden":false,"merged":[]}
[]
[null,"Код","Колич.","Б.ЕдИзм","Код.Ед. Измер","Описание"]
[null,"R5KTB86",1,{"$f":"IFERROR(VLOOKUP(B3,'Склад ДКС'!A:C,3,0),\"\")","v":"Штука"},null,{"$f":"IFERROR(VLOOKUP(B3,'Склад ДКС'!A:C,2,0),\"\")","v":"Комплект, крыша и основание, для шкафов CQE, 800 x 600 мм"}]
[null,"R5KMN20",1,{"$f":"IFERROR(VLOOKUP(B4,'Склад ДКС'!A:C,3,0),\"\")","v":"Упаковка"},null,{"$f":"IFERROR(VLOOKUP(B4,'Склад ДКС'!A:C,2,0),\"\")","v":"Стойки вертикальные, В=2000мм, без дополнительных креплений, 4шт RAL7035"}]
[null,"R5CRE2080",1,{"$f":"IFERROR(VLOOKUP(B5,'Склад ДКС'!A:C,3,0),\"\")","v":"Штука"},null,{"$f":"IFERROR(VLOOKUP(B5,'Склад ДКС'!A:C,2,0),\"\")","v":"Панель задняя, для шкафов DAE/CQE, 2000 x 800 мм"}]
[null,"R5CPE2080",1,{"$f":"IFERROR(VLOOKUP(B6,'Склад ДКС'!A:C,3,0),\"\")","v":"Штука"},null,{"$f":"IFERROR(VLOOKUP(B6,'Склад ДКС'!A:C,2,0),\"\")","v":"Дверь сплошная для шкафов CQE/DAE ВхШ 2000х800 мм"}]
[null,"R5PCE2080",1,{"$f":"IFERROR(VLOOKUP(B7,'Склад ДКС'!A:C,3,0),\"\")","v":"Штука"},null,{"$f":"IFERROR(VLOOKUP(B7,'Склад ДКС'!A:C,2,0),\"\")","v":"Монтажная плата, для шкафов DAE/CQE 2000 x 800 мм"}]
[null,"R5BP01",1,{"$f":"IFERROR(VLOOKUP(B8,'Склад ДКС'!A:C,3,0),\"\")","v":"Комплект"},null,{"$f":"IFERROR(VLOOKUP(B8,'Склад ДКС'!A:C,2,0),\"\")","v":"Комплект угловых элементов с пластиковыми заглушками, В =100 мм, 1 кмп =4 шт."}]
[null,"R5NFP80",1,{"$f":"IFERROR(VLOOKUP(B9,'Склад ДКС'!A:C,3,0),\"\")","v":"Комплект"},null,{"$f":"IFERROR(VLOOKUP(B9,'Склад ДКС'!A:C,2,0),\"\")","v":"Комплект панелей цоколя, Ш/Г=800 мм, В=100 мм, 1 кмп = 2 шт."}]
[null,"R5NFP60",1,{"$f":"IFERROR(VLOOKUP(B10,'Склад ДКС'!A:C,3,0),\"\")","v":"Комплект"},null,{"$f":"IFERROR(VLOOKUP(B10,'Склад ДКС'!A:C,2,0),\"\")","v":"Комплект панелей цоколя, Ш/Г=600 мм, В=100 мм, 1 кмп = 2 шт."}]
[null,"R5KFP03",1,{"$f":"IFERROR(VLOOKUP(B11,'Склад ДКС'!A:C,3,0),\"\")","v":"Комплект"},null,{"$f":"IFERROR(VLOOKUP(B11,'Склад ДКС'!A:C,2,0),\"\")","v":"Фиксаторы для цоколя 200 мм, 1 комплект - 4 шт."}]
[null,"Дополнительно",":",{"$f":"IFERROR(VLOOKUP(B12,'Склад ДКС'!A:C,3,0),\"\")","v":""},null,{"$f":"IFERROR(VLOOKUP(B12,'Склад ДКС'!A:C,2,0),\"\")","v":""}]
[null,"R5PDL600",1,{"$f":"IFERROR(VLOOKUP(B13,'Склад ДКС'!A:C,3,0),\"\")","v":"Упаковка"},null,{"$f":"IFERROR(VLOOKUP(B13,'Склад ДКС'!A:C,2,0),\"\")","v":"Рейка боковая, широкая, для шкафов CQE глубиной 600 мм, 1 упаковка -4шт."}]
[null,"R5TLE600",1,{"$f":"IFERROR(VLOOKUP(B14,'Склад ДКС'!A:C,3,0),\"\")","v":"Упаковка"},null,{"$f":"IFERROR(VLOOKUP(B14,'Склад ДКС'!A:C,2,0),\"\")","v":"Рейки боковые, для шкафов CQE глубиной 600мм, 1 упаковка - 4шт."}]
[null,"R5PLE600",1,{"$f":"IFERROR(VLOOKUP(B15,'Склад ДКС'!A:C,3,0),\"\")","v":"Упаковка"},null,{"$f":"IFERROR(VLOOKUP(B15,'Склад ДКС'!A:C,2,0),\"\")","v":"Рейки боковые, специальная, для шкафов CQE глубиной 600мм, 1 упаковка - 4шт."}]
[null,"R5PDF800",1,{"$f":"IFERROR(VLOOKUP(B16,'Склад ДКС'!A:C,3,0),\"\")","v":"Упаковка"},null,{"$f":"IFERROR(VLOOKUP(B16,'Склад ДКС'!A:C,2,0),\"\")","v":"Рейки поперечные, широкая, для шкафов CQE Ш=800мм, 1 упаковка - 4шт."}]
[null,"R5TFE800",1,{"$f":"IFERROR(VLOOKUP(B17,'Склад ДКС'!A:C,3,0),\"\")","v":"Упаковка"},null,{"$f":"IFERROR(VLOOKUP(B17,'Склад ДКС'!A:C,2,0),\"\")","v":"Рейки поперечные, для шкафов CQE Ш=800мм, 1 упаковка - 4шт."}]
[null,"R5TTE800",1,{"$f":"IFERROR(VLOOKUP(B18,'Склад ДКС'!A:C,3,0),\"\")","v":"Упаковка"},null,{"$f":"IFERROR(VLOOKUP(B18,'Склад ДКС'!A:C,2,0),\"\")","v":"Рейки усиленная, для тяжёлого оборудования Ш=800мм, 1 упаковка - 2шт."}]
[null,"R5PAC80",1,{"$f":"IFERROR(VLOOKUP(B19,'Склад ДКС'!A:C,3,0),\"\")","v":"Упаковка"},null,{"$f":"IFERROR(VLOOKUP(B19,'Склад ДКС'!A:C,2,0),\"\")","v":"Рейки для фиксации кабеля, для шкафов DAE/CQE Ш=800мм, 1 упаковка - 2шт."}]
[null,"R5PDV20",1,{"$f":"IFERROR(VLOOKUP(B20,'Склад ДКС'!A:C,3,0),\"\")","v":"Упаковка"},null,{"$f":"IFERROR(VLOOKUP(B20,'Склад ДКС'!A:C,2,0),\"\")","v":"Рейки вертикальные, широкая, для шкафов CQE В=2000мм, 1 упаковка - 2шт."}]
[null,"R5MVE20",1,{"$f":"IFERROR(VLOOKUP(B21,'Склад ДКС'!A:C,3,0),\"\")","v":"Упаковка"},null,{"$f":"IFERROR(VLOOKUP(B21,'Склад ДКС'!A:C,2,0),\"\")","v":"Стойки вертикальные, для поддержки разделителей, В=2000мм, 1 упаковка - 2шт."}]
[null,"R5FPC800",1,{"$f":"IFERROR(VLOOKUP(B22,'Склад ДКС'!A:C,3,0),\"\")","v":"Штука"},null,{"$f":"IFERROR(VLOOKUP(B22,'Склад ДКС'!A:C,2,0),\"\")","v":"Уплотнитель для ввода кабеля, для шкафов DAE/CQE шириной 800 мм"}]
[null,"R5FUC86",1,{"$f":"IFERROR(VLOOKUP(B23,'Склад ДКС'!A:C,3,0),\"\")","v":"Штука"},null,{"$f":"IFERROR(VLOOKUP(B23,'Склад ДКС'!A:C,2,0),\"\")","v":"Дно сплошное, для шкафов DAE/CQE 800 x 600 мм"}]
[null,null,null,{"$f":"IFERROR(VLOOKUP(B24,'Склад ДКС'!A:C,3,0),\"\")","v":""},null,{"$f":"IFERROR(VLOOKUP(B24,'Склад ДКС'!A:C,2,0),\"\")","v":""}]
[null,null,null,{"$f":"IFERROR(VLOOKUP(B25,'Склад ДКС'!A:C,3,0),\"\")","v":""},null,{"$f":"IFERROR(VLOOKUP(B25,'Склад ДКС'!A:C,2,0),\"\")","v":""}]
[null,null,null,{"$f":"IFERROR(VLOOKUP(B26,'Склад ДКС'!A:C,3,0),\"\")","v":""},null,{"$f":"IFERROR(VLOOKUP(B26,'Склад ДКС'!A:C,2,0),\"\")","v":""}]
[null,null,null,{"$f":"IFERROR(VLOOKUP(B27,'Склад ДКС'!A:C,3,0),\"\")","v":""},null,{"$f":"IFERROR(VLOOKUP(B27,'Склад ДКС'!A:C,2,0),\"\")","v":""}]
[null,null,null,{"$f":"IFERROR(VLOOKUP(B28,'Склад ДКС'!A:C,3,0),\"\")","v":""},null,{"$f":"IFERROR(VLOOKUP(B28,'Склад ДКС'!A:C,2,0),\"\")","v":""}]
[null,null,null,{"$f":"IFERROR(VLOOKUP(B29,'Склад ДКС'!A:C,3,0),\"\")","v":""},null,{"$f":"IFERROR(VLOOKUP(B29,'Склад ДКС'!A:C,2,0),\"\")","v":""}]
[null,null,null,{"$f":"IFERROR(VLOOKUP(B30,'Склад ДКС'!A:C,3,0),\"\")","v":""},null,{"$f":"IFERROR(VLOOKUP(B30,'Склад ДКС'!A:C,2,0),\"\")","v":""}]
[null,null,null,{"$f":"IFERROR(VLOOKUP(B31,'Склад ДКС'!A:C,3,0),\"\")","v":""},null,{"$f":"IFERROR(VLOOKUP(B31,'Склад ДКС'!A:C,2,0),\"\")","v":""}]
[null,null,null,{"$f":"IFERROR(VLOOKUP(B32,'Склад ДКС'!A:C,3,0),\"\")","v":""},null,{"$f":"IFERROR(VLOOKUP(B32,'Склад ДКС'!A:C,2,0),\"\")","v":""}]
[null,null,null,{"$f":"IFERROR(VLOOKUP(B33,'Склад ДКС'!A:C,3,0),\"\")","v":""},null,{"$f":"IFERROR(VLOOKUP(B33,'Склад ДКС'!A:C,2,0),\"\")","v":""}]
[null,null,null,{"$f":"IFERROR(VLOOKUP(B34,'Склад ДКС'!A:C,3,0),\"\")","v":""},null,{"$f":"IFERROR(VLOOKUP(B34,'Склад ДКС'!A:C,2,0),\"\")","v":""}]
[null,null,null,{"$f":"IFERROR(VLOOKUP(B35,'Склад ДКС'!A:C,3,0),\"\")","v":""},null,{"$f":"IFERROR(VLOOKUP(B35,'Склад ДКС'!A:C,2,0),\"\")","v":""}]
[null,null,null,{"$f":"IFERROR(VLOOKUP(B36,'Склад ДКС'!A:C,3,0),\"\")","v":""},null,{"$f":"IFERROR(VLOOKUP(B36,'Склад ДКС'!A:C,2,0),\"\")","v":""}]
[null,null,null,{"$f":"IFERROR(VLOOKUP(B37,'Склад ДКС'!A:C,3,0),\"\")","v":""},null,{"$f":"IFERROR(VLOOKUP(B37,'Склад ДКС'!A:C,2,0),\"\")","v":""}]
[null,null,null,{"$f":"IFERROR(VLOOKUP(B38,'Склад ДКС'!A:C,3,0),\"\")","v":""},null,{"$f":"IFERROR(VLOOKUP(B38,'Склад ДКС'!A:C,2,0),\"\")","v":""}]
[null,null,null,{"$f":"IFERROR(VLOOKUP(B39,'Склад ДКС'!A:C,3,0),\"\")","v":""},null,{"$f":"IFERROR(VLOOKUP(B39,'Склад ДКС'!A:C,2,0),\"\")","v":""}]
[null,null,null,{"$f":"IFERROR(VLOOKUP(B40,'Склад ДКС'!A:C,3,0),\"\")","v":""},null,{"$f":"IFERROR(VLOOKUP(B40,'Склад ДКС'!A:C,2,0),\"\")","v":""}]
[null,null,null,{"$f":"IFERROR(VLOOKUP(B41,'Склад ДКС'!A:C,3,0),\"\")","v":""},null,{"$f":"IFERROR(VLOOKUP(B41,'Склад ДКС'!A:C,2,0),\"\")","v":""}]
[null,null,null,{"$f":"IFERROR(VLOOKUP(B42,'Склад ДКС'!A:C,3,0),\"\")","v":""},null,{"$f":"IFERROR(VLOOKUP(B42,'Склад ДКС'!A:C,2,0),\"\")","v":""}]
[null,null,null,{"$f":"IFERROR(VLOOKUP(B43,'Склад ДКС'!A:C,3,0),\"\")","v":""},null,{"$f":"IFERROR(VLOOKUP(B43,'Склад ДКС'!A:C,2,0),\"\")","v":""}]
[null,null,null,{"$f":"IFERROR(VLOOKUP(B44,'Склад ДКС'!A:C,3,0),\"\")","v":""},null,{"$f":"IFERROR(VLOOKUP(B44,'Склад ДКС'!A:C,2,0),\"\")","v":""}]
[null,null,null,{"$f":"IFERROR(VLOOKUP(B45,'Склад ДКС'!A:C,3,0),\"\")","v":""},null,{"$f":"IFERROR(VLOOKUP(B45,'Склад ДКС'!A:C,2,0),\"\")","v":""}]
[null,null,null,{"$f":"IFERROR(VLOOKUP(B46,'Склад ДКС'!A:C,3,0),\"\")","v":""},null,{"$f":"IFERROR(VLOOKUP(B46,'Склад ДКС'!A:C,2,0),\"\")","v":""}]
[null,null,null,{"$f":"IFERROR(VLOOKUP(B47,'Склад ДКС'!A:C,3,0),\"\")","v":""},null,{"$f":"IFERROR(VLOOKUP(B47,'Склад ДКС'!A:C,2,0),\"\")","v":""}]
[null,null,null,{"$f":"IFERROR(VLOOKUP(B48,'Склад ДКС'!A:C,3,0),\"\")","v":""},null,{"$f":"IFERROR(VLOOKUP(B48,'Склад ДКС'!A:C,2,0),\"\")","v":""}]
[null,null,null,{"$f":"IFERROR(VLOOKUP(B49,'Склад ДКС'!A:C,3,0),\"\")","v":""},null,{"$f":"IFERROR(VLOOKUP(B49,'Склад ДКС'!A:C,2,0),\"\")","v":""}]
[null,null,null,{"$f":"IFERROR(VLOOKUP(B50,'Склад ДКС'!A:C,3,0),\"\")","v":""},null,{"$f":"IFERROR(VLOOKUP(B50,'Склад ДКС'!A:C,2,0),\"\")","v":""}]
[null,null,null,{"$f":"IFERROR(VLOOKUP(B51,'Склад ДКС'!A:C,3,0),\"\")","v":""},null,{"$f":"IFERROR(VLOOKUP(B51,'Склад ДКС'!A:C,2,0),\"\")","v":""}]
[null,null,null,{"$f":"IFERROR(VLOOKUP(B52,'Склад ДКС'!A:C,3,0),\"\")","v":""},null,{"$f":"IFERROR(VLOOKUP(B52,'Склад ДКС'!A:C,2,0),\"\")","v":""}]
[null,null,null,{"$f":"IFERROR(VLOOKUP(B53,'Склад ДКС'!A:C,3,0),\"\")","v":""},null,{"$f":"IFERROR(VLOOKUP(B53,'Склад ДКС'!A:C,2,0),\"\")","v":""}]
[null,null,null,{"$f":"IFERROR(VLOOKUP(B54,'Склад ДКС'!A:C,3,0),\"\")","v":""},null,{"$f":"IFERROR(VLOOKUP(B54,'Склад ДКС'!A:C,2,0),\"\")","v":""}]
[null,null,null,{"$f":"IFERROR(VLOOKUP(B55,'Склад ДКС'!A:C,3,0),\"\")","v":""},null,{"$f":"IFERROR(VLOOKUP(B55,'Склад ДКС'!A:C,2,0),\"\")","v":""}]
[null,null,null,{"$f":"IFERROR(VLOOKUP(B56,'Склад ДКС'!A:C,3,0),\"\")","v":""},null,{"$f":"IFERROR(VLOOKUP(B56,'Склад ДКС'!A:C,2,0),\"\")","v":""}]
[null,null,null,{"$f":"IFERROR(VLOOKUP(B57,'Склад ДКС'!A:C,3,0),\"\")","v":""},null,{"$f":"IFERROR(VLOOKUP(B57,'Склад ДКС'!A:C,2,0),\"\")","v":""}]
[null,null,null,{"$f":"IFERROR(VLOOKUP(B58,'Склад ДКС'!A:C,3,0),\"\")","v":""},null,{"$f":"IFERROR(VLOOKUP(B58,'Склад ДКС'!A:C,2,0),\"\")","v":""}]
[null,null,null,{"$f":"IFERROR(VLOOKUP(B59,'Склад ДКС'!A:C,3,0),\"\")","v":""},null,{"$f":"IFERROR(VLOOKUP(B59,'Склад ДКС'!A:C,2,0),\"\")","v":""}]
[null,null,null,{"$f":"IFERROR(VLOOKUP(B60,'Склад ДКС'!A:C,3,0),\"\")","v":""},null,{"$f":"IFERROR(VLOOKUP(B60,'Склад ДКС'!A:C,2,0),\"\")","v":""}]
[null,null,null,{"$f":"IFERROR(VLOOKUP(B61,'Склад ДКС'!A:C,3,0),\"\")","v":""},null,{"$f":"IFERROR(VLOOKUP(B61,'Склад ДКС'!A:C,2,0),\"\")","v":""}]
[null,null,null,{"$f":"IFERROR(VLOOKUP(B62,'Склад ДКС'!A:C,3,0),\"\")","v":""},null,{"$f":"IFERROR(VLOOKUP(B62,'Склад ДКС'!A:C,2,0),\"\")","v":""}]
[null,null,null,{"$f":"IFERROR(VLOOKUP(B63,'Склад ДКС'!A:C,3,0),\"\")","v":""},null,{"$f":"IFERROR(VLOOKUP(B63,'Склад ДКС'!A:C,2,0),\"\")","v":""}]
[null,null,null,{"$f":"IFERROR(VLOOKUP(B64,'Склад ДКС'!A:C,3,0),\"\")","v":""},null,{"$f":"IFERROR(VLOOKUP(B64,'Склад ДКС'!A:C,2,0),\"\")","v":""}]
[null,null,null,{"$f":"IFERROR(VLOOKUP(B65,'Склад ДКС'!A:C,3,0),\"\")","v":""},null,{"$f":"IFERROR(VLOOKUP(B65,'Склад ДКС'!A:C,2,0),\"\")","v":""}]
[null,null,null,{"$f":"IFERROR(VLOOKUP(B66,'Склад ДКС'!A:C,3,0),\"\")","v":""},null,{"$f":"IFERROR(VLOOKUP(B66,'Склад ДКС'!A:C,2,0),\"\")","v":""}]
[null,null,null,{"$f":"IFERROR(VLOOKUP(B67,'Склад ДКС'!A:C,3,0),\"\")","v":""},null,{"$f":"IFERROR(VLOOKUP(B67,'Склад ДКС'!A:C,2,0),\"\")","v":""}]
[null,null,null,{"$f":"IFERROR(VLOOKUP(B68,'Склад ДКС'!A:C,3,0),\"\")","v":""},null,{"$f":"IFERROR(VLOOKUP(B68,'Склад ДКС'!A:C,2,0),\"\")","v":""}]
[null,null,null,{"$f":"IFERROR(VLOOKUP(B69,'Склад ДКС'!A:C,3,0),\"\")","v":""},null,{"$f":"IFERROR(VLOOKUP(B69,'Склад ДКС'!A:C,2,0),\"\")","v":""}]
[null,null,null,{"$f":"IFERROR(VLOOKUP(B70,'Склад ДКС'!A:C,3,0),\"\")","v":""},null,{"$f":"IFERROR(VLOOKUP(B70,'Склад ДКС'!A:C,2,0),\"\")","v":""}]
[null,null,null,{"$f":"IFERROR(VLOOKUP(B71,'Склад ДКС'!A:C,3,0),\"\")","v":""},null,{"$f":"IFERROR(VLOOKUP(B71,'Склад ДКС'!A:C,2,0),\"\")","v":""}]
[null,null,null,{"$f":"IFERROR(VLOOKUP(B72,'Склад ДКС'!A:C,3,0),\"\")","v":""},null,{"$f":"IFERROR(VLOOKUP(B72,'Склад ДКС'!A:C,2,0),\"\")","v":""}]
[null,null,null,{"$f":"IFERROR(VLOOKUP(B73,'Склад ДКС'!A:C,3,0),\"\")","v":""},null,{"$f":"IFERROR(VLOOKUP(B73,'Склад ДКС'!A:C,2,0),\"\")","v":""}]
[null,null,null,{"$f":"IFERROR(VLOOKUP(B74,'Склад ДКС'!A:C,3,0),\"\")","v":""},null,{"$f":"IFERROR(VLOOKUP(B74,'Склад ДКС'!A:C,2,0),\"\")","v":""}]
[null,null,null,{"$f":"IFERROR(VLOOKUP(B75,'Склад ДКС'!A:C,3,0),\"\")","v":""},null,{"$f":"IFERROR(VLOOKUP(B75,'Склад ДКС'!A:C,2,0),\"\")","v":""}]
[null,null,null,{"$f":"IFERROR(VLOOKUP(B76,'Склад ДКС'!A:C,3,0),\"\")","v":""},null,{"$f":"IFERROR(VLOOKUP(B76,'Склад ДКС'!A:C,2,0),\"\")","v":""}]
[null,null,null,{"$f":"IFERROR(VLOOKUP(B77,'Склад ДКС'!A:C,3,0),\"\")","v":""},null,{"$f":"IFERROR(VLOOKUP(B77,'Склад ДКС'!A:C,2,0),\"\")","v":""}]
[null,null,null,{"$f":"IFERROR(VLOOKUP(B78,'Склад ДКС'!A:C,3,0),\"\")","v":""},null,{"$f":"IFERROR(VLOOKUP(B78,'Склад ДКС'!A:C,2,0),\"\")","v":""}]
[null,null,null,{"$f":"IFERROR(VLOOKUP(B79,'Склад ДКС'!A:C,3,0),\"\")","v":""},null,{"$f":"IFERROR(VLOOKUP(B79,'Склад ДКС'!A:C,2,0),\"\")","v":""}]
[null,null,null,{"$f":"IFERROR(VLOOKUP(B80,'Склад ДКС'!A:C,3,0),\"\")","v":""},null,{"$f":"IFERROR(VLOOKUP(B80,'Склад ДКС'!A:C,2,0),\"\")","v":""}]
[null,null,null,{"$f":"IFERROR(VLOOKUP(B81,'Склад ДКС'!A:C,3,0),\"\")","v":""},null,{"$f":"IFERROR(VLOOKUP(B81,'Склад ДКС'!A:C,2,0),\"\")","v":""}]
[null,null,null,{"$f":"IFERROR(VLOOKUP(B82,'Склад ДКС'!A:C,3,0),\"\")","v":""},null,{"$f":"IFERROR(VLOOKUP(B82,'Склад ДКС'!A:C,2,0),\"\")","v":""}]
[null,null,null,{"$f":"IFERROR(VLOOKUP(B83,'Склад ДКС'!A:C,3,0),\"\")","v":""},null,{"$f":"IFERROR(VLOOKUP(B83,'Склад ДКС'!A:C,2,0),\"\")","v":""}]
[null,null,null,{"$f":"IFERROR(VLOOKUP(B84,'Склад ДКС'!A:C,3,0),\"\")","v":""},null,{"$f":"IFERROR(VLOOKUP(B84,'Склад ДКС'!A:C,2,0),\"\")","v":""}]
[null,null,null,{"$f":"IFERROR(VLOOKUP(B85,'Склад ДКС'!A:C,3,0),\"\")","v":""},null,{"$f":"IFERROR(VLOOKUP(B85,'Склад ДКС'!A:C,2,0),\"\")","v":""}]
[null,null,null,{"$f":"IFERROR(VLOOKUP(B86,'Склад ДКС'!A:C,3,0),\"\")","v":""},null,{"$f":"IFERROR(VLOOKUP(B86,'Склад ДКС'!A:C,2,0),\"\")","v":""}]
[null,null,null,{"$f":"IFERROR(VLOOKUP(B87,'Склад ДКС'!A:C,3,0),\"\")","v":""},null,{"$f":"IFERROR(VLOOKUP(B87,'Склад ДКС'!A:C,2,0),\"\")","v":""}]
[null,null,null,{"$f":"IFERROR(VLOOKUP(B88,'Склад ДКС'!A:C,3,0),\"\")","v":""},null,{"$f":"IFERROR(VLOOKUP(B88,'Склад ДКС'!A:C,2,0),\"\")","v":""}]
[null,null,null,{"$f":"IFERROR(VLOOKUP(B89,'Склад ДКС'!A:C,3,0),\"\")","v":""},null,{"$f":"IFERROR(VLOOKUP(B89,'Склад ДКС'!A:C,2,0),\"\")","v":""}]
[null,null,null,{"$f":"IFERROR(VLOOKUP(B90,'Склад ДКС'!A:C,3,0),\"\")","v":""},null,{"$f":"IFERROR(VLOOKUP(B90,'Склад ДКС'!A:C,2,0),\"\")","v":""}]
[null,null,null,{"$f":"IFERROR(VLOOKUP(B91,'Склад ДКС'!A:C,3,0),\"\")","v":""},null,{"$f":"IFERROR(VLOOKUP(B91,'Склад ДКС'!A:C,2,0),\"\")","v":""}]
[null,null,null,{"$f":"IFERROR(VLOOKUP(B92,'Склад ДКС'!A:C,3,0),\"\")","v":""},null,{"$f":"IFERROR(VLOOKUP(B92,'Склад ДКС'!A:C,2,0),\"\")","v":""}]
[null,null,null,{"$f":"IFERROR(VLOOKUP(B93,'Склад ДКС'!A:C,3,0),\"\")","v":""},null,{"$f":"IFERROR(VLOOKUP(B93,'Склад ДКС'!A:C,2,0),\"\")","v":""}]
[null,null,null,{"$f":"IFERROR(VLOOKUP(B94,'Склад ДКС'!A:C,3,0),\"\")","v":""},null,{"$f":"IFERROR(VLOOKUP(B94,'Склад ДКС'!A:C,2,0),\"\")","v":""}]
[null,null,null,{"$f":"IFERROR(VLOOKUP(B95,'Склад ДКС'!A:C,3,0),\"\")","v":""},null,{"$f":"IFERROR(VLOOKUP(B95,'Склад ДКС'!A:C,2,0),\"\")","v":""}]
[null,null,null,{"$f":"IFERROR(VLOOKUP(B96,'Склад ДКС'!A:C,3,0),\"\")","v":""},null,{"$f":"IFERROR(VLOOKUP(B96,'Склад ДКС'!A:C,2,0),\"\")","v":""}]
[null,null,null,{"$f":"IFERROR(VLOOKUP(B97,'Склад ДКС'!A:C,3,0),\"\")","v":""},null,{"$f":"IFERROR(VLOOKUP(B97,'Склад ДКС'!A:C,2,0),\"\")","v":""}]
[null,null,null,{"$f":"IFERROR(VLOOKUP(B98,'Склад ДКС'!A:C,3,0),\"\")","v":""},null,{"$f":"IFERROR(VLOOKUP(B98,'Склад ДКС'!A:C,2,0),\"\")","v":""}]
[null,null,null,{"$f":"IFERROR(VLOOKUP(B99,'Склад ДКС'!A:C,3,0),\"\")","v":""},null,{"$f":"IFERROR(VLOOKUP(B99,'Склад ДКС'!A:C,2,0),\"\")","v":""}]
[null,null,null,{"$f":"IFERROR(VLOOKUP(B100,'Склад ДКС'!A:C,3,0),\"\")","v":""},null,{"$f":"IFERROR(VLOOKUP(B100,'Склад ДКС'!A:C,2,0),\"\")","v":""}]
[null,null,null,{"$f":"IFERROR(VLOOKUP(B101,'Склад ДКС'!A:C,3,0),\"\")","v":""},null,{"$f":"IFERROR(VLOOKUP(B101,'Склад ДКС'!A:C,2,0),\"\")","v":""}]
[null,null,null,{"$f":"IFERROR(VLOOKUP(B102,'Склад ДКС'!A:C,3,0),\"\")","v":""},null,{"$f":"IFERROR(VLOOKUP(B102,'Склад ДКС'!A:C,2,0),\"\")","v":""}]
[null,null,null,{"$f":"IFERROR(VLOOKUP(B103,'Склад ДКС'!A:C,3,0),\"\")","v":""},null,{"$f":"IFERROR(VLOOKUP(B103,'Склад ДКС'!A:C,2,0),\"\")","v":""}]
[null,null,null,{"$f":"IFERROR(VLOOKUP(B104,'Склад ДКС'!A:C,3,0),\"\")","v":""},null,{"$f":"IFERROR(VLOOKUP(B104,'Склад ДКС'!A:C,2,0),\"\")","v":""}]
[null,null,null,{"$f":"IFERROR(VLOOKUP(B105,'Склад ДКС'!A:C,3,0),\"\")","v":""},null,{"$f":"IFERROR(VLOOKUP(B105,'Склад ДКС'!A:C,2,0),\"\")","v":""}]
[null,null,null,{"$f":"IFERROR(VLOOKUP(B106,'Склад ДКС'!A:C,3,0),\"\")","v":""},null,{"$f":"IFERROR(VLOOKUP(B106,'Склад ДКС'!A:C,2,0),\"\")","v":""}]
[null,null,null,{"$f":"IFERROR(VLOOKUP(B107,'Склад ДКС'!A:C,3,0),\"\")","v":""},null,{"$f":"IFERROR(VLOOKUP(B107,'Склад ДКС'!A:C,2,0),\"\")","v":""}]
[null,null,null,{"$f":"IFERROR(VLOOKUP(B108,'Склад ДКС'!A:C,3,0),\"\")","v":""},null,{"$f":"IFERROR(VLOOKUP(B108,'Склад ДКС'!A:C,2,0),\"\")","v":""}]
[null,null,null,{"$f":"IFERROR(VLOOKUP(B109,'Склад ДКС'!A:C,3,0),\"\")","v":""},null,{"$f":"IFERROR(VLOOKUP(B109,'Склад ДКС'!A:C,2,0),\"\")","v":""}]
[null,null,null,{"$f":"IFERROR(VLOOKUP(B110,'Склад ДКС'!A:C,3,0),\"\")","v":""},null,{"$f":"IFERROR(VLOOKUP(B110,'Склад ДКС'!A:C,2,0),\"\")","v":""}]
[null,null,null,{"$f":"IFERROR(VLOOKUP(B111,'Склад ДКС'!A:C,3,0),\"\")","v":""},null,{"$f":"IFERROR(VLOOKUP(B111,'Склад ДКС'!A:C,2,0),\"\")","v":""}]
[null,null,null,{"$f":"IFERROR(VLOOKUP(B112,'Склад ДКС'!A:C,3,0),\"\")","v":""},null,{"$f":"IFERROR(VLOOKUP(B112,'Склад ДКС'!A:C,2,0),\"\")","v":""}]
[null,null,null,{"$f":"IFERROR(VLOOKUP(B113,'Склад ДКС'!A:C,3,0),\"\")","v":""},null,{"$f":"IFERROR(VLOOKUP(B113,'Склад ДКС'!A:C,2,0),\"\")","v":""}]
[null,null,null,{"$f":"IFERROR(VLOOKUP(B114,'Склад ДКС'!A:C,3,0),\"\")","v":""},null,{"$f":"IFERROR(VLOOKUP(B114,'Склад ДКС'!A:C,2,0),\"\")","v":""}]
[null,null,null,{"$f":"IFERROR(VLOOKUP(B115,'Склад ДКС'!A:C,3,0),\"\")","v":""},null,{"$f":"IFERROR(VLOOKUP(B115,'Склад ДКС'!A:C,2,0),\"\")","v":""}]
[null,null,null,{"$f":"IFERROR(VLOOKUP(B116,'Склад ДКС'!A:C,3,0),\"\")","v":""},null,{"$f":"IFERROR(VLOOKUP(B116,'Склад ДКС'!A:C,2,0),\"\")","v":""}]
[null,null,null,{"$f":"IFERROR(VLOOKUP(B117,'Склад ДКС'!A:C,3,0),\"\")","v":""},null,{"$f":"IFERROR(VLOOKUP(B117,'Склад ДКС'!A:C,2,0),\"\")","v":""}]
[null,null,null,{"$f":"IFERROR(VLOOKUP(B118,'Склад ДКС'!A:C,3,0),\"\")","v":""},null,{"$f":"IFERROR(VLOOKUP(B118,'Склад ДКС'!A:C,2,0),\"\")","v":""}]
[null,null,null,{"$f":"IFERROR(VLOOKUP(B119,'Склад ДКС'!A:C,3,0),\"\")","v":""},null,{"$f":"IFERROR(VLOOKUP(B119,'Склад ДКС'!A:C,2,0),\"\")","v":""}]
[null,null,null,{"$f":"IFERROR(VLOOKUP(B120,'Склад ДКС'!A:C,3,0),\"\")","v":""},null,{"$f":"IFERROR(VLOOKUP(B120,'Склад ДКС'!A:C,2,0),\"\")","v":""}]
[null,null,null,{"$f":"IFERROR(VLOOKUP(B121,'Склад ДКС'!A:C,3,0),\"\")","v":""},null,{"$f":"IFERROR(VLOOKUP(B121,'Склад ДКС'!A:C,2,0),\"\")","v":""}]
[null,null,null,{"$f":"IFERROR(VLOOKUP(B122,'Склад ДКС'!A:C,3,0),\"\")","v":""},null,{"$f":"IFERROR(VLOOKUP(B122,'Склад ДКС'!A:C,2,0),\"\")","v":""}]
[null,null,null,{"$f":"IFERROR(VLOOKUP(B123,'Склад ДКС'!A:C,3,0),\"\")","v":""},null,{"$f":"IFERROR(VLOOKUP(B123,'Склад ДКС'!A:C,2,0),\"\")","v":""}]
[null,null,null,{"$f":"IFERROR(VLOOKUP(B124,'Склад ДКС'!A:C,3,0),\"\")","v":""},null,{"$f":"IFERROR(VLOOKUP(B124,'Склад ДКС'!A:C,2,0),\"\")","v":""}]
[null,null,null,{"$f":"IFERROR(VLOOKUP(B125,'Склад ДКС'!A:C,3,0),\"\")","v":""},null,{"$f":"IFERROR(VLOOKUP(B125,'Склад ДКС'!A:C,2,0),\"\")","v":""}]
[null,null,null,{"$f":"IFERROR(VLOOKUP(B126,'Склад ДКС'!A:C,3,0),\"\")","v":""},null,{"$f":"IFERROR(VLOOKUP(B126,'Склад ДКС'!A:C,2,0),\"\")","v":""}]
[null,null,null,{"$f":"IFERROR(VLOOKUP(B127,'Склад ДКС'!A:C,3,0),\"\")","v":""},null,{"$f":"IFERROR(VLOOKUP(B127,'Склад ДКС'!A:C,2,0),\"\")","v":""}]
[null,null,null,{"$f":"IFERROR(VLOOKUP(B128,'Склад ДКС'!A:C,3,0),\"\")","v":""},null,{"$f":"IFERROR(VLOOKUP(B128,'Склад ДКС'!A:C,2,0),\"\")","v":""}]
[null,null,null,{"$f":"IFERROR(VLOOKUP(B129,'Склад ДКС'!A:C,3,0),\"\")","v":""},null,{"$f":"IFERROR(VLOOKUP(B129,'Склад ДКС'!A:C,2,0),\"\")","v":""}]
[null,null,null,{"$f":"IFERROR(VLOOKUP(B130,'Склад ДКС'!A:C,3,0),\"\")","v":""},null,{"$f":"IFERROR(VLOOKUP(B130,'Склад ДКС'!A:C,2,0),\"\")","v":""}]
[null,null,null,{"$f":"IFERROR(VLOOKUP(B131,'Склад ДКС'!A:C,3,0),\"\")","v":""},null,{"$f":"IFERROR(VLOOKUP(B131,'Склад ДКС'!A:C,2,0),\"\")","v":""}]
[null,null,null,{"$f":"IFERROR(VLOOKUP(B132,'Склад ДКС'!A:C,3,0),\"\")","v":""},null,{"$f":"IFERROR(VLOOKUP(B132,'Склад ДКС'!A:C,2,0),\"\")","v":""}]
[null,null,null,{"$f":"IFERROR(VLOOKUP(B133,'Склад ДКС'!A:C,3,0),\"\")","v":""},null,{"$f":"IFERROR(VLOOKUP(B133,'Склад ДКС'!A:C,2,0),\"\")","v":""}]
[null,null,null,{"$f":"IFERROR(VLOOKUP(B134,'Склад ДКС'!A:C,3,0),\"\")","v":""},null,{"$f":"IFERROR(VLOOKUP(B134,'Склад ДКС'!A:C,2,0),\"\")","v":""}]
[null,null,null,{"$f":"IFERROR(VLOOKUP(B135,'Склад ДКС'!A:C,3,0),\"\")","v":""},null,{"$f":"IFERROR(VLOOKUP(B135,'Склад ДКС'!A:C,2,0),\"\")","v":""}]
[null,null,null,{"$f":"IFERROR(VLOOKUP(B136,'Склад ДКС'!A:C,3,0),\"\")","v":""},null,{"$f":"IFERROR(VLOOKUP(B136,'Склад ДКС'!A:C,2,0),\"\")","v":""}]
[null,null,null,{"$f":"IFERROR(VLOOKUP(B137,'Склад ДКС'!A:C,3,0),\"\")","v":""},null,{"$f":"IFERROR(VLOOKUP(B137,'Склад ДКС'!A:C,2,0),\"\")","v":""}]
[null,null,null,{"$f":"IFERROR(VLOOKUP(B138,'Склад ДКС'!A:C,3,0),\"\")","v":""},null,{"$f":"IFERROR(VLOOKUP(B138,'Склад ДКС'!A:C,2,0),\"\")","v":""}]
[null,null,null,{"$f":"IFERROR(VLOOKUP(B139,'Склад ДКС'!A:C,3,0),\"\")","v":""},null,{"$f":"IFERROR(VLOOKUP(B139,'Склад ДКС'!A:C,2,0),\"\")","v":""}]
[null,null,null,{"$f":"IFERROR(VLOOKUP(B140,'Склад ДКС'!A:C,3,0),\"\")","v":""},null,{"$f":"IFERROR(VLOOKUP(B140,'Склад ДКС'!A:C,2,0),\"\")","v":""}]
[null,null,null,{"$f":"IFERROR(VLOOKUP(B141,'Склад ДКС'!A:C,3,0),\"\")","v":""},null,{"$f":"IFERROR(VLOOKUP(B141,'Склад ДКС'!A:C,2,0),\"\")","v":""}]
[null,null,null,{"$f":"IFERROR(VLOOKUP(B142,'Склад ДКС'!A:C,3,0),\"\")","v":""},null,{"$f":"IFERROR(VLOOKUP(B142,'Склад ДКС'!A:C,2,0),\"\")","v":""}]
[null,null,null,{"$f":"IFERROR(VLOOKUP(B143,'Склад ДКС'!A:C,3,0),\"\")","v":""},null,{"$f":"IFERROR(VLOOKUP(B143,'Склад ДКС'!A:C,2,0),\"\")","v":""}]
[null,null,null,{"$f":"IFERROR(VLOOKUP(B144,'Склад ДКС'!A:C,3,0),\"\")","v":""},null,{"$f":"IFERROR(VLOOKUP(B144,'Склад ДКС'!A:C,2,0),\"\")","v":""}]
[null,null,null,{"$f":"IFERROR(VLOOKUP(B145,'Склад ДКС'!A:C,3,0),\"\")","v":""},null,{"$f":"IFERROR(VLOOKUP(B145,'Склад ДКС'!A:C,2,0),\"\")","v":""}]
[null,null,null,{"$f":"IFERROR(VLOOKUP(B146,'Склад ДКС'!A:C,3,0),\"\")","v":""},null,{"$f":"IFERROR(VLOOKUP(B146,'Склад ДКС'!A:C,2,0),\"\")","v":""}]
[null,null,null,{"$f":"IFERROR(VLOOKUP(B147,'Склад ДКС'!A:C,3,0),\"\")","v":""},null,{"$f":"IFERROR(VLOOKUP(B147,'Склад ДКС'!A:C,2,0),\"\")","v":""}]
[null,null,null,{"$f":"IFERROR(VLOOKUP(B148,'Склад ДКС'!A:C,3,0),\"\")","v":""},null,{"$f":"IFERROR(VLOOKUP(B148,'Склад ДКС'!A:C,2,0),\"\")","v":""}]
[null,null,null,{"$f":"IFERROR(VLOOKUP(B149,'Склад ДКС'!A:C,3,0),\"\")","v":""},null,{"$f":"IFERROR(VLOOKUP(B149,'Склад ДКС'!A:C,2,0),\"\")","v":""}]
[null,null,null,{"$f":"IFERROR(VLOOKUP(B150,'Склад ДКС'!A:C,3,0),\"\")","v":""},null,{"$f":"IFERROR(VLOOKUP(B150,'Склад ДКС'!A:C,2,0),\"\")","v":""}]
[null,null,null,{"$f":"IFERROR(VLOOKUP(B151,'Склад ДКС'!A:C,3,0),\"\")","v":""},null,{"$f":"IFERROR(VLOOKUP(B151,'Склад ДКС'!A:C,2,0),\"\")","v":""}]
[null,null,null,{"$f":"IFERROR(VLOOKUP(B152,'Склад ДКС'!A:C,3,0),\"\")","v":""},null,{"$f":"IFERROR(VLOOKUP(B152,'Склад ДКС'!A:C,2,0),\"\")","v":""}]
[null,null,null,{"$f":"IFERROR(VLOOKUP(B153,'Склад ДКС'!A:C,3,0),\"\")","v":""},null,{"$f":"IFERROR(VLOOKUP(B153,'Склад ДКС'!A:C,2,0),\"\")","v":""}]
[null,null,null,{"$f":"IFERROR(VLOOKUP(B154,'Склад ДКС'!A:C,3,0),\"\")","v":""},null,{"$f":"IFERROR(VLOOKUP(B154,'Склад ДКС'!A:C,2,0),\"\")","v":""}]
[null,null,null,{"$f":"IFERROR(VLOOKUP(B155,'Склад ДКС'!A:C,3,0),\"\")","v":""},null,{"$f":"IFERROR(VLOOKUP(B155,'Склад ДКС'!A:C,2,0),\"\")","v":""}]
[null,null,null,{"$f":"IFERROR(VLOOKUP(B156,'Склад ДКС'!A:C,3,0),\"\")","v":""},null,{"$f":"IFERROR(VLOOKUP(B156,'Склад ДКС'!A:C,2,0),\"\")","v":""}]
[null,null,null,{"$f":"IFERROR(VLOOKUP(B157,'Склад ДКС'!A:C,3,0),\"\")","v":""},null,{"$f":"IFERROR(VLOOKUP(B157,'Склад ДКС'!A:C,2,0),\"\")","v":""}]
[null,null,null,{"$f":"IFERROR(VLOOKUP(B158,'Склад ДКС'!A:C,3,0),\"\")","v":""},null,{"$f":"IFERROR(VLOOKUP(B158,'Склад ДКС'!A:C,2,0),\"\")","v":""}]
[null,null,null,{"$f":"IFERROR(VLOOKUP(B159,'Склад ДКС'!A:C,3,0),\"\")","v":""},null,{"$f":"IFERROR(VLOOKUP(B159,'Склад ДКС'!A:C,2,0),\"\")","v":""}]
[null,null,null,{"$f":"IFERROR(VLOOKUP(B160,'Склад ДКС'!A:C,3,0),\"\")","v":""},null,{"$f":"IFERROR(VLOOKUP(B160,'Склад ДКС'!A:C,2,0),\"\")","v":""}]
[null,null,null,{"$f":"IFERROR(VLOOKUP(B161,'Склад ДКС'!A:C,3,0),\"\")","v":""},null,{"$f":"IFERROR(VLOOKUP(B161,'Склад ДКС'!A:C,2,0),\"\")","v":""}]
[null,null,null,{"$f":"IFERROR(VLOOKUP(B162,'Склад ДКС'!A:C,3,0),\"\")","v":""},null,{"$f":"IFERROR(VLOOKUP(B162,'Склад ДКС'!A:C,2,0),\"\")","v":""}]
[null,null,null,{"$f":"IFERROR(VLOOKUP(B163,'Склад ДКС'!A:C,3,0),\"\")","v":""},null,{"$f":"IFERROR(VLOOKUP(B163,'Склад ДКС'!A:C,2,0),\"\")","v":""}]
[null,null,null,{"$f":"IFERROR(VLOOKUP(B164,'Склад ДКС'!A:C,3,0),\"\")","v":""},null,{"$f":"IFERROR(VLOOKUP(B164,'Склад ДКС'!A:C,2,0),\"\")","v":""}]
[null,null,null,{"$f":"IFERROR(VLOOKUP(B165,'Склад ДКС'!A:C,3,0),\"\")","v":""},null,{"$f":"IFERROR(VLOOKUP(B165,'Склад ДКС'!A:C,2,0),\"\")","v":""}]
[null,null,null,{"$f":"IFERROR(VLOOKUP(B166,'Склад ДКС'!A:C,3,0),\"\")","v":""},null,{"$f":"IFERROR(VLOOKUP(B166,'Склад ДКС'!A:C,2,0),\"\")","v":""}]
[null,null,null,{"$f":"IFERROR(VLOOKUP(B167,'Склад ДКС'!A:C,3,0),\"\")","v":""},null,{"$f":"IFERROR(VLOOKUP(B167,'Склад ДКС'!A:C,2,0),\"\")","v":""}]
[null,null,null,{"$f":"IFERROR(VLOOKUP(B168,'Склад ДКС'!A:C,3,0),\"\")","v":""},null,{"$f":"IFERROR(VLOOKUP(B168,'Склад ДКС'!A:C,2,0),\"\")","v":""}]
[null,null,null,{"$f":"IFERROR(VLOOKUP(B169,'Склад ДКС'!A:C,3,0),\"\")","v":""},null,{"$f":"IFERROR(VLOOKUP(B169,'Склад ДКС'!A:C,2,0),\"\")","v":""}]
[null,null,null,{"$f":"IFERROR(VLOOKUP(B170,'Склад ДКС'!A:C,3,0),\"\")","v":""},null,{"$f":"IFERROR(VLOOKUP(B170,'Склад ДКС'!A:C,2,0),\"\")","v":""}]
[null,null,null,{"$f":"IFERROR(VLOOKUP(B171,'Склад ДКС'!A:C,3,0),\"\")","v":""},null,{"$f":"IFERROR(VLOOKUP(B171,'Склад ДКС'!A:C,2,0),\"\")","v":""}]
[null,null,null,{"$f":"IFERROR(VLOOKUP(B172,'Склад ДКС'!A:C,3,0),\"\")","v":""},null,{"$f":"IFERROR(VLOOKUP(B172,'Склад ДКС'!A:C,2,0),\"\")","v":""}]
[null,null,null,{"$f":"IFERROR(VLOOKUP(B173,'Склад ДКС'!A:C,3,0),\"\")","v":""},null,{"$f":"IFERROR(VLOOKUP(B173,'Склад ДКС'!A:C,2,0),\"\")","v":""}]
[null,null,null,{"$f":"IFERROR(VLOOKUP(B174,'Склад ДКС'!A:C,3,0),\"\")","v":""},null,{"$f":"IFERROR(VLOOKUP(B174,'Склад ДКС'!A:C,2,0),\"\")","v":""}]
[null,null,null,{"$f":"IFERROR(VLOOKUP(B175,'Склад ДКС'!A:C,3,0),\"\")","v":""},null,{"$f":"IFERROR(VLOOKUP(B175,'Склад ДКС'!A:C,2,0),\"\")","v":""}]
[null,null,null,{"$f":"IFERROR(VLOOKUP(B176,'Склад ДКС'!A:C,3,0),\"\")","v":""},null,{"$f":"IFERROR(VLOOKUP(B176,'Склад ДКС'!A:C,2,0),\"\")","v":""}]
[null,null,null,{"$f":"IFERROR(VLOOKUP(B177,'Склад ДКС'!A:C,3,0),\"\")","v":""},null,{"$f":"IFERROR(VLOOKUP(B177,'Склад ДКС'!A:C,2,0),\"\")","v":""}]
[null,null,null,{"$f":"IFERROR(VLOOKUP(B178,'Склад ДКС'!A:C,3,0),\"\")","v":""},null,{"$f":"IFERROR(VLOOKUP(B178,'Склад ДКС'!A:C,2,0),\"\")","v":""}]
[null,null,null,{"$f":"IFERROR(VLOOKUP(B179,'Склад ДКС'!A:C,3,0),\"\")","v":""},null,{"$f":"IFERROR(VLOOKUP(B179,'Склад ДКС'!A:C,2,0),\"\")","v":""}]
[null,null,null,{"$f":"IFERROR(VLOOKUP(B180,'Склад ДКС'!A:C,3,0),\"\")","v":""},null,{"$f":"IFERROR(VLOOKUP(B180,'Склад ДКС'!A:C,2,0),\"\")","v":""}]
[null,null,null,{"$f":"IFERROR(VLOOKUP(B181,'Склад ДКС'!A:C,3,0),\"\")","v":""},null,{"$f":"IFERROR(VLOOKUP(B181,'Склад ДКС'!A:C,2,0),\"\")","v":""}]
[null,null,null,{"$f":"IFERROR(VLOOKUP(B182,'Склад ДКС'!A:C,3,0),\"\")","v":""},null,{"$f":"IFERROR(VLOOKUP(B182,'Склад ДКС'!A:C,2,0),\"\")","v":""}]
[null,null,null,{"$f":"IFERROR(VLOOKUP(B183,'Склад ДКС'!A:C,3,0),\"\")","v":""},null,{"$f":"IFERROR(VLOOKUP(B183,'Склад ДКС'!A:C,2,0),\"\")","v":""}]
[null,null,null,{"$f":"IFERROR(VLOOKUP(B184,'Склад ДКС'!A:C,3,0),\"\")","v":""},null,{"$f":"IFERROR(VLOOKUP(B184,'Склад ДКС'!A:C,2,0),\"\")","v":""}]
[null,null,null,{"$f":"IFERROR(VLOOKUP(B185,'Склад ДКС'!A:C,3,0),\"\")","v":""},null,{"$f":"IFERROR(VLOOKUP(B185,'Склад ДКС'!A:C,2,0),\"\")","v":""}]
[null,null,null,{"$f":"IFERROR(VLOOKUP(B186,'Склад ДКС'!A:C,3,0),\"\")","v":""},null,{"$f":"IFERROR(VLOOKUP(B186,'Склад ДКС'!A:C,2,0),\"\")","v":""}]
[null,null,null,{"$f":"IFERROR(VLOOKUP(B187,'Склад ДКС'!A:C,3,0),\"\")","v":""},null,{"$f":"IFERROR(VLOOKUP(B187,'Склад ДКС'!A:C,2,0),\"\")","v":""}]
[null,null,null,{"$f":"IFERROR(VLOOKUP(B188,'Склад ДКС'!A:C,3,0),\"\")","v":""},null,{"$f":"IFERROR(VLOOKUP(B188,'Склад ДКС'!A:C,2,0),\"\")","v":""}]
[null,null,null,{"$f":"IFERROR(VLOOKUP(B189,'Склад ДКС'!A:C,3,0),\"\")","v":""},null,{"$f":"IFERROR(VLOOKUP(B189,'Склад ДКС'!A:C,2,0),\"\")","v":""}]
[null,null,null,{"$f":"IFERROR(VLOOKUP(B190,'Склад ДКС'!A:C,3,0),\"\")","v":""},null,{"$f":"IFERROR(VLOOKUP(B190,'Склад ДКС'!A:C,2,0),\"\")","v":""}]
[null,null,null,{"$f":"IFERROR(VLOOKUP(B191,'Склад ДКС'!A:C,3,0),\"\")","v":""},null,{"$f":"IFERROR(VLOOKUP(B191,'Склад ДКС'!A:C,2,0),\"\")","v":""}]
[null,null,null,{"$f":"IFERROR(VLOOKUP(B192,'Склад ДКС'!A:C,3,0),\"\")","v":""},null,{"$f":"IFERROR(VLOOKUP(B192,'Склад ДКС'!A:C,2,0),\"\")","v":""}]
[null,null,null,{"$f":"IFERROR(VLOOKUP(B193,'Склад ДКС'!A:C,3,0),\"\")","v":""},null,{"$f":"IFERROR(VLOOKUP(B193,'Склад ДКС'!A:C,2,0),\"\")","v":""}]
[null,null,null,{"$f":"IFERROR(VLOOKUP(B194,'Склад ДКС'!A:C,3,0),\"\")","v":""},null,{"$f":"IFERROR(VLOOKUP(B194,'Склад ДКС'!A:C,2,0),\"\")","v":""}]
[null,null,null,{"$f":"IFERROR(VLOOKUP(B195,'Склад ДКС'!A:C,3,0),\"\")","v":""},null,{"$f":"IFERROR(VLOOKUP(B195,'Склад ДКС'!A:C,2,0),\"\")","v":""}]
[null,null,null,{"$f":"IFERROR(VLOOKUP(B196,'Склад ДКС'!A:C,3,0),\"\")","v":""},null,{"$f":"IFERROR(VLOOKUP(B196,'Склад ДКС'!A:C,2,0),\"\")","v":""}]
[null,null,null,{"$f":"IFERROR(VLOOKUP(B197,'Склад ДКС'!A:C,3,0),\"\")","v":""},null,{"$f":"IFERROR(VLOOKUP(B197,'Склад ДКС'!A:C,2,0),\"\")","v":""}]
[null,null,null,{"$f":"IFERROR(VLOOKUP(B198,'Склад ДКС'!A:C,3,0),\"\")","v":""},null,{"$f":"IFERROR(VLOOKUP(B198,'Склад ДКС'!A:C,2,0),\"\")","v":""}]
[null,null,null,{"$f":"IFERROR(VLOOKUP(B199,'Склад ДКС'!A:C,3,0),\"\")","v":""},null,{"$f":"IFERROR(VLOOKUP(B199,'Склад ДКС'!A:C,2,0),\"\")","v":""}]
[null,null,null,{"$f":"IFERROR(VLOOKUP(B200,'Склад ДКС'!A:C,3,0),\"\")","v":""},null,{"$f":"IFERROR(VLOOKUP(B200,'Склад ДКС'!A:C,2,0),\"\")","v":""}]
[null,null,null,{"$f":"IFERROR(VLOOKUP(B201,'Склад ДКС'!A:C,3,0),\"\")","v":""},null,{"$f":"IFERROR(VLOOKUP(B201,'Склад ДКС'!A:C,2,0),\"\")","v":""}]
[null,null,null,{"$f":"IFERROR(VLOOKUP(B202,'Склад ДКС'!A:C,3,0),\"\")","v":""},null,{"$f":"IFERROR(VLOOKUP(B202,'Склад ДКС'!A:C,2,0),\"\")","v":""}]
[null,null,null,{"$f":"IFERROR(VLOOKUP(B203,'Склад ДКС'!A:C,3,0),\"\")","v":""},null,{"$f":"IFERROR(VLOOKUP(B203,'Склад ДКС'!A:C,2,0),\"\")","v":""}]
[null,null,null,{"$f":"IFERROR(VLOOKUP(B204,'Склад ДКС'!A:C,3,0),\"\")","v":""},null,{"$f":"IFERROR(VLOOKUP(B204,'Склад ДКС'!A:C,2,0),\"\")","v":""}]
[null,null,null,{"$f":"IFERROR(VLOOKUP(B205,'Склад ДКС'!A:C,3,0),\"\")","v":""},null,{"$f":"IFERROR(VLOOKUP(B205,'Склад ДКС'!A:C,2,0),\"\")","v":""}]
[null,null,null,{"$f":"IFERROR(VLOOKUP(B206,'Склад ДКС'!A:C,3,0),\"\")","v":""},null,{"$f":"IFERROR(VLOOKUP(B206,'Склад ДКС'!A:C,2,0),\"\")","v":""}]
[null,null,null,{"$f":"IFERROR(VLOOKUP(B207,'Склад ДКС'!A:C,3,0),\"\")","v":""},null,{"$f":"IFERROR(VLOOKUP(B207,'Склад ДКС'!A:C,2,0),\"\")","v":""}]
[null,null,null,{"$f":"IFERROR(VLOOKUP(B208,'Склад ДКС'!A:C,3,0),\"\")","v":""},null,{"$f":"IFERROR(VLOOKUP(B208,'Склад ДКС'!A:C,2,0),\"\")","v":""}]
[null,null,null,{"$f":"IFERROR(VLOOKUP(B209,'Склад ДКС'!A:C,3,0),\"\")","v":""},null,{"$f":"IFERROR(VLOOKUP(B209,'Склад ДКС'!A:C,2,0),\"\")","v":""}]
[null,null,null,{"$f":"IFERROR(VLOOKUP(B210,'Склад ДКС'!A:C,3,0),\"\")","v":""},null,{"$f":"IFERROR(VLOOKUP(B210,'Склад ДКС'!A:C,2,0),\"\")","v":""}]
[null,null,null,{"$f":"IFERROR(VLOOKUP(B211,'Склад ДКС'!A:C,3,0),\"\")","v":""},null,{"$f":"IFERROR(VLOOKUP(B211,'Склад ДКС'!A:C,2,0),\"\")","v":""}]
[null,null,null,{"$f":"IFERROR(VLOOKUP(B212,'Склад ДКС'!A:C,3,0),\"\")","v":""},null,{"$f":"IFERROR(VLOOKUP(B212,'Склад ДКС'!A:C,2,0),\"\")","v":""}]
[null,null,null,{"$f":"IFERROR(VLOOKUP(B213,'Склад ДКС'!A:C,3,0),\"\")","v":""},null,{"$f":"IFERROR(VLOOKUP(B213,'Склад ДКС'!A:C,2,0),\"\")","v":""}]
[null,null,null,{"$f":"IFERROR(VLOOKUP(B214,'Склад ДКС'!A:C,3,0),\"\")","v":""},null,{"$f":"IFERROR(VLOOKUP(B214,'Склад ДКС'!A:C,2,0),\"\")","v":""}]
[null,null,null,{"$f":"IFERROR(VLOOKUP(B215,'Склад ДКС'!A:C,3,0),\"\")","v":""},null,{"$f":"IFERROR(VLOOKUP(B215,'Склад ДКС'!A:C,2,0),\"\")","v":""}]
[null,null,null,{"$f":"IFERROR(VLOOKUP(B216,'Склад ДКС'!A:C,3,0),\"\")","v":""},null,{"$f":"IFERROR(VLOOKUP(B216,'Склад ДКС'!A:C,2,0),\"\")","v":""}]
[null,null,null,{"$f":"IFERROR(VLOOKUP(B217,'Склад ДКС'!A:C,3,0),\"\")","v":""},null,{"$f":"IFERROR(VLOOKUP(B217,'Склад ДКС'!A:C,2,0),\"\")","v":""}]
[null,null,null,{"$f":"IFERROR(VLOOKUP(B218,'Склад ДКС'!A:C,3,0),\"\")","v":""},null,{"$f":"IFERROR(VLOOKUP(B218,'Склад ДКС'!A:C,2,0),\"\")","v":""}]
[null,null,null,{"$f":"IFERROR(VLOOKUP(B219,'Склад ДКС'!A:C,3,0),\"\")","v":""},null,{"$f":"IFERROR(VLOOKUP(B219,'Склад ДКС'!A:C,2,0),\"\")","v":""}]
[null,null,null,{"$f":"IFERROR(VLOOKUP(B220,'Склад ДКС'!A:C,3,0),\"\")","v":""},null,{"$f":"IFERROR(VLOOKUP(B220,'Склад ДКС'!A:C,2,0),\"\")","v":""}]
[null,null,null,{"$f":"IFERROR(VLOOKUP(B221,'Склад ДКС'!A:C,3,0),\"\")","v":""},null,{"$f":"IFERROR(VLOOKUP(B221,'Склад ДКС'!A:C,2,0),\"\")","v":""}]
[null,null,null,{"$f":"IFERROR(VLOOKUP(B222,'Склад ДКС'!A:C,3,0),\"\")","v":""},null,{"$f":"IFERROR(VLOOKUP(B222,'Склад ДКС'!A:C,2,0),\"\")","v":""}]
[null,null,null,{"$f":"IFERROR(VLOOKUP(B223,'Склад ДКС'!A:C,3,0),\"\")","v":""},null,{"$f":"IFERROR(VLOOKUP(B223,'Склад ДКС'!A:C,2,0),\"\")","v":""}]
[null,null,null,{"$f":"IFERROR(VLOOKUP(B224,'Склад ДКС'!A:C,3,0),\"\")","v":""},null,{"$f":"IFERROR(VLOOKUP(B224,'Склад ДКС'!A:C,2,0),\"\")","v":""}]
[null,null,null,{"$f":"IFERROR(VLOOKUP(B225,'Склад ДКС'!A:C,3,0),\"\")","v":""},null,{"$f":"IFERROR(VLOOKUP(B225,'Склад ДКС'!A:C,2,0),\"\")","v":""}]
[null,null,null,{"$f":"IFERROR(VLOOKUP(B226,'Склад ДКС'!A:C,3,0),\"\")","v":""},null,{"$f":"IFERROR(VLOOKUP(B226,'Склад ДКС'!A:C,2,0),\"\")","v":""}]
[null,null,null,{"$f":"IFERROR(VLOOKUP(B227,'Склад ДКС'!A:C,3,0),\"\")","v":""},null,{"$f":"IFERROR(VLOOKUP(B227,'Склад ДКС'!A:C,2,0),\"\")","v":""}]
[null,null,null,{"$f":"IFERROR(VLOOKUP(B228,'Склад ДКС'!A:C,3,0),\"\")","v":""},null,{"$f":"IFERROR(VLOOKUP(B228,'Склад ДКС'!A:C,2,0),\"\")","v":""}]
[null,null,null,{"$f":"IFERROR(VLOOKUP(B229,'Склад ДКС'!A:C,3,0),\"\")","v":""},null,{"$f":"IFERROR(VLOOKUP(B229,'Склад ДКС'!A:C,2,0),\"\")","v":""}]
[null,null,null,{"$f":"IFERROR(VLOOKUP(B230,'Склад ДКС'!A:C,3,0),\"\")","v":""},null,{"$f":"IFERROR(VLOOKUP(B230,'Склад ДКС'!A:C,2,0),\"\")","v":""}]
[null,null,null,{"$f":"IFERROR(VLOOKUP(B231,'Склад ДКС'!A:C,3,0),\"\")","v":""},null,{"$f":"IFERROR(VLOOKUP(B231,'Склад ДКС'!A:C,2,0),\"\")","v":""}]
[null,null,null,{"$f":"IFERROR(VLOOKUP(B232,'Склад ДКС'!A:C,3,0),\"\")","v":""},null,{"$f":"IFERROR(VLOOKUP(B232,'Склад ДКС'!A:C,2,0),\"\")","v":""}]
[null,null,null,{"$f":"IFERROR(VLOOKUP(B233,'Склад ДКС'!A:C,3,0),\"\")","v":""},null,{"$f":"IFERROR(VLOOKUP(B233,'Склад ДКС'!A:C,2,0),\"\")","v":""}]
[null,null,null,{"$f":"IFERROR(VLOOKUP(B234,'Склад ДКС'!A:C,3,0),\"\")","v":""},null,{"$f":"IFERROR(VLOOKUP(B234,'Склад ДКС'!A:C,2,0),\"\")","v":""}]
[null,null,null,{"$f":"IFERROR(VLOOKUP(B235,'Склад ДКС'!A:C,3,0),\"\")","v":""},null,{"$f":"IFERROR(VLOOKUP(B235,'Склад ДКС'!A:C,2,0),\"\")","v":""}]
[null,null,null,{"$f":"IFERROR(VLOOKUP(B236,'Склад ДКС'!A:C,3,0),\"\")","v":""},null,{"$f":"IFERROR(VLOOKUP(B236,'Склад ДКС'!A:C,2,0),\"\")","v":""}]
[null,null,null,{"$f":"IFERROR(VLOOKUP(B237,'Склад ДКС'!A:C,3,0),\"\")","v":""},null,{"$f":"IFERROR(VLOOKUP(B237,'Склад ДКС'!A:C,2,0),\"\")","v":""}]
[null,null,null,{"$f":"IFERROR(VLOOKUP(B238,'Склад ДКС'!A:C,3,0),\"\")","v":""},null,{"$f":"IFERROR(VLOOKUP(B238,'Склад ДКС'!A:C,2,0),\"\")","v":""}]
[null,null,null,{"$f":"IFERROR(VLOOKUP(B239,'Склад ДКС'!A:C,3,0),\"\")","v":""},null,{"$f":"IFERROR(VLOOKUP(B239,'Склад ДКС'!A:C,2,0),\"\")","v":""}]
[null,null,null,{"$f":"IFERROR(VLOOKUP(B240,'Склад ДКС'!A:C,3,0),\"\")","v":""},null,{"$f":"IFERROR(VLOOKUP(B240,'Склад ДКС'!A:C,2,0),\"\")","v":""}]
[null,null,null,{"$f":"IFERROR(VLOOKUP(B241,'Склад ДКС'!A:C,3,0),\"\")","v":""},null,{"$f":"IFERROR(VLOOKUP(B241,'Склад ДКС'!A:C,2,0),\"\")","v":""}]
[null,null,null,{"$f":"IFERROR(VLOOKUP(B242,'Склад ДКС'!A:C,3,0),\"\")","v":""},null,{"$f":"IFERROR(VLOOKUP(B242,'Склад ДКС'!A:C,2,0),\"\")","v":""}]
[null,null,null,{"$f":"IFERROR(VLOOKUP(B243,'Склад ДКС'!A:C,3,0),\"\")","v":""},null,{"$f":"IFERROR(VLOOKUP(B243,'Склад ДКС'!A:C,2,0),\"\")","v":""}]
[null,null,null,{"$f":"IFERROR(VLOOKUP(B244,'Склад ДКС'!A:C,3,0),\"\")","v":""},null,{"$f":"IFERROR(VLOOKUP(B244,'Склад ДКС'!A:C,2,0),\"\")","v":""}]
[null,null,null,{"$f":"IFERROR(VLOOKUP(B245,'Склад ДКС'!A:C,3,0),\"\")","v":""},null,{"$f":"IFERROR(VLOOKUP(B245,'Склад ДКС'!A:C,2,0),\"\")","v":""}]
[null,null,null,{"$f":"IFERROR(VLOOKUP(B246,'Склад ДКС'!A:C,3,0),\"\")","v":""},null,{"$f":"IFERROR(VLOOKUP(B246,'Склад ДКС'!A:C,2,0),\"\")","v":""}]
[null,null,null,{"$f":"IFERROR(VLOOKUP(B247,'Склад ДКС'!A:C,3,0),\"\")","v":""},null,{"$f":"IFERROR(VLOOKUP(B247,'Склад ДКС'!A:C,2,0),\"\")","v":""}]
[null,null,null,{"$f":"IFERROR(VLOOKUP(B248,'Склад ДКС'!A:C,3,0),\"\")","v":""},null,{"$f":"IFERROR(VLOOKUP(B248,'Склад ДКС'!A:C,2,0),\"\")","v":""}]
[null,null,null,{"$f":"IFERROR(VLOOKUP(B249,'Склад ДКС'!A:C,3,0),\"\")","v":""},null,{"$f":"IFERROR(VLOOKUP(B249,'Склад ДКС'!A:C,2,0),\"\")","v":""}]
[null,null,null,{"$f":"IFERROR(VLOOKUP(B250,'Склад ДКС'!A:C,3,0),\"\")","v":""},null,{"$f":"IFERROR(VLOOKUP(B250,'Склад ДКС'!A:C,2,0),\"\")","v":""}]
[null,null,null,{"$f":"IFERROR(VLOOKUP(B251,'Склад ДКС'!A:C,3,0),\"\")","v":""},null,{"$f":"IFERROR(VLOOKUP(B251,'Склад ДКС'!A:C,2,0),\"\")","v":""}]
[null,null,null,{"$f":"IFERROR(VLOOKUP(B252,'Склад ДКС'!A:C,3,0),\"\")","v":""},null,{"$f":"IFERROR(VLOOKUP(B252,'Склад ДКС'!A:C,2,0),\"\")","v":""}]
[null,null,null,{"$f":"IFERROR(VLOOKUP(B253,'Склад ДКС'!A:C,3,0),\"\")","v":""},null,{"$f":"IFERROR(VLOOKUP(B253,'Склад ДКС'!A:C,2,0),\"\")","v":""}]
[null,null,null,{"$f":"IFERROR(VLOOKUP(B254,'Склад ДКС'!A:C,3,0),\"\")","v":""},null,{"$f":"IFERROR(VLOOKUP(B254,'Склад ДКС'!A:C,2,0),\"\")","v":""}]
[null,null,null,{"$f":"IFERROR(VLOOKUP(B255,'Склад ДКС'!A:C,3,0),\"\")","v":""},null,{"$f":"IFERROR(VLOOKUP(B255,'Склад ДКС'!A:C,2,0),\"\")","v":""}]
[null,null,null,{"$f":"IFERROR(VLOOKUP(B256,'Склад ДКС'!A:C,3,0),\"\")","v":""},null,{"$f":"IFERROR(VLOOKUP(B256,'Склад ДКС'!A:C,2,0),\"\")","v":""}]
[null,null,null,{"$f":"IFERROR(VLOOKUP(B257,'Склад ДКС'!A:C,3,0),\"\")","v":""},null,{"$f":"IFERROR(VLOOKUP(B257,'Склад ДКС'!A:C,2,0),\"\")","v":""}]
[null,null,null,{"$f":"IFERROR(VLOOKUP(B258,'Склад ДКС'!A:C,3,0),\"\")","v":""},null,{"$f":"IFERROR(VLOOKUP(B258,'Склад ДКС'!A:C,2,0),\"\")","v":""}]
[null,null,null,{"$f":"IFERROR(VLOOKUP(B259,'Склад ДКС'!A:C,3,0),\"\")","v":""},null,{"$f":"IFERROR(VLOOKUP(B259,'Склад ДКС'!A:C,2,0),\"\")","v":""}]
[null,null,null,{"$f":"IFERROR(VLOOKUP(B260,'Склад ДКС'!A:C,3,0),\"\")","v":""},null,{"$f":"IFERROR(VLOOKUP(B260,'Склад ДКС'!A:C,2,0),\"\")","v":""}]
[null,null,null,{"$f":"IFERROR(VLOOKUP(B261,'Склад ДКС'!A:C,3,0),\"\")","v":""},null,{"$f":"IFERROR(VLOOKUP(B261,'Склад ДКС'!A:C,2,0),\"\")","v":""}]
[null,null,null,{"$f":"IFERROR(VLOOKUP(B262,'Склад ДКС'!A:C,3,0),\"\")","v":""},null,{"$f":"IFERROR(VLOOKUP(B262,'Склад ДКС'!A:C,2,0),\"\")","v":""}]
[null,null,null,{"$f":"IFERROR(VLOOKUP(B263,'Склад ДКС'!A:C,3,0),\"\")","v":""},null,{"$f":"IFERROR(VLOOKUP(B263,'Склад ДКС'!A:C,2,0),\"\")","v":""}]
[null,null,null,{"$f":"IFERROR(VLOOKUP(B264,'Склад ДКС'!A:C,3,0),\"\")","v":""},null,{"$f":"IFERROR(VLOOKUP(B264,'Склад ДКС'!A:C,2,0),\"\")","v":""}]
[null,null,null,{"$f":"IFERROR(VLOOKUP(B265,'Склад ДКС'!A:C,3,0),\"\")","v":""},null,{"$f":"IFERROR(VLOOKUP(B265,'Склад ДКС'!A:C,2,0),\"\")","v":""}]
[null,null,null,{"$f":"IFERROR(VLOOKUP(B266,'Склад ДКС'!A:C,3,0),\"\")","v":""},null,{"$f":"IFERROR(VLOOKUP(B266,'Склад ДКС'!A:C,2,0),\"\")","v":""}]
[null,null,null,{"$f":"IFERROR(VLOOKUP(B267,'Склад ДКС'!A:C,3,0),\"\")","v":""},null,{"$f":"IFERROR(VLOOKUP(B267,'Склад ДКС'!A:C,2,0),\"\")","v":""}]
[null,null,null,{"$f":"IFERROR(VLOOKUP(B268,'Склад ДКС'!A:C,3,0),\"\")","v":""},null,{"$f":"IFERROR(VLOOKUP(B268,'Склад ДКС'!A:C,2,0),\"\")","v":""}]
[null,null,null,{"$f":"IFERROR(VLOOKUP(B269,'Склад ДКС'!A:C,3,0),\"\")","v":""},null,{"$f":"IFERROR(VLOOKUP(B269,'Склад ДКС'!A:C,2,0),\"\")","v":""}]
[null,null,null,{"$f":"IFERROR(VLOOKUP(B270,'Склад ДКС'!A:C,3,0),\"\")","v":""},null,{"$f":"IFERROR(VLOOKUP(B270,'Склад ДКС'!A:C,2,0),\"\")","v":""}]
[null,null,null,{"$f":"IFERROR(VLOOKUP(B271,'Склад ДКС'!A:C,3,0),\"\")","v":""},null,{"$f":"IFERROR(VLOOKUP(B271,'Склад ДКС'!A:C,2,0),\"\")","v":""}]
[null,null,null,{"$f":"IFERROR(VLOOKUP(B272,'Склад ДКС'!A:C,3,0),\"\")","v":""},null,{"$f":"IFERROR(VLOOKUP(B272,'Склад ДКС'!A:C,2,0),\"\")","v":""}]
[null,null,null,{"$f":"IFERROR(VLOOKUP(B273,'Склад ДКС'!A:C,3,0),\"\")","v":""},null,{"$f":"IFERROR(VLOOKUP(B273,'Склад ДКС'!A:C,2,0),\"\")","v":""}]
[null,null,null,{"$f":"IFERROR(VLOOKUP(B274,'Склад ДКС'!A:C,3,0),\"\")","v":""},null,{"$f":"IFERROR(VLOOKUP(B274,'Склад ДКС'!A:C,2,0),\"\")","v":""}]
[null,null,null,{"$f":"IFERROR(VLOOKUP(B275,'Склад ДКС'!A:C,3,0),\"\")","v":""},null,{"$f":"IFERROR(VLOOKUP(B275,'Склад ДКС'!A:C,2,0),\"\")","v":""}]
[null,null,null,{"$f":"IFERROR(VLOOKUP(B276,'Склад ДКС'!A:C,3,0),\"\")","v":""},null,{"$f":"IFERROR(VLOOKUP(B276,'Склад ДКС'!A:C,2,0),\"\")","v":""}]
[null,null,null,{"$f":"IFERROR(VLOOKUP(B277,'Склад ДКС'!A:C,3,0),\"\")","v":""},null,{"$f":"IFERROR(VLOOKUP(B277,'Склад ДКС'!A:C,2,0),\"\")","v":""}]
[null,null,null,{"$f":"IFERROR(VLOOKUP(B278,'Склад ДКС'!A:C,3,0),\"\")","v":""},null,{"$f":"IFERROR(VLOOKUP(B278,'Склад ДКС'!A:C,2,0),\"\")","v":""}]
[null,null,null,{"$f":"IFERROR(VLOOKUP(B279,'Склад ДКС'!A:C,3,0),\"\")","v":""},null,{"$f":"IFERROR(VLOOKUP(B279,'Склад ДКС'!A:C,2,0),\"\")","v":""}]
[null,null,null,{"$f":"IFERROR(VLOOKUP(B280,'Склад ДКС'!A:C,3,0),\"\")","v":""},null,{"$f":"IFERROR(VLOOKUP(B280,'Склад ДКС'!A:C,2,0),\"\")","v":""}]
[null,null,null,{"$f":"IFERROR(VLOOKUP(B281,'Склад ДКС'!A:C,3,0),\"\")","v":""},null,{"$f":"IFERROR(VLOOKUP(B281,'Склад ДКС'!A:C,2,0),\"\")","v":""}]
[null,null,null,{"$f":"IFERROR(VLOOKUP(B282,'Склад ДКС'!A:C,3,0),\"\")","v":""},null,{"$f":"IFERROR(VLOOKUP(B282,'Склад ДКС'!A:C,2,0),\"\")","v":""}]
[null,null,null,{"$f":"IFERROR(VLOOKUP(B283,'Склад ДКС'!A:C,3,0),\"\")","v":""},null,{"$f":"IFERROR(VLOOKUP(B283,'Склад ДКС'!A:C,2,0),\"\")","v":""}]
[null,null,null,{"$f":"IFERROR(VLOOKUP(B284,'Склад ДКС'!A:C,3,0),\"\")","v":""},null,{"$f":"IFERROR(VLOOKUP(B284,'Склад ДКС'!A:C,2,0),\"\")","v":""}]
[null,null,null,{"$f":"IFERROR(VLOOKUP(B285,'Склад ДКС'!A:C,3,0),\"\")","v":""},null,{"$f":"IFERROR(VLOOKUP(B285,'Склад ДКС'!A:C,2,0),\"\")","v":""}]
[null,null,null,{"$f":"IFERROR(VLOOKUP(B286,'Склад ДКС'!A:C,3,0),\"\")","v":""},null,{"$f":"IFERROR(VLOOKUP(B286,'Склад ДКС'!A:C,2,0),\"\")","v":""}]
[null,null,null,{"$f":"IFERROR(VLOOKUP(B287,'Склад ДКС'!A:C,3,0),\"\")","v":""},null,{"$f":"IFERROR(VLOOKUP(B287,'Склад ДКС'!A:C,2,0),\"\")","v":""}]
[null,null,null,{"$f":"IFERROR(VLOOKUP(B288,'Склад ДКС'!A:C,3,0),\"\")","v":""},null,{"$f":"IFERROR(VLOOKUP(B288,'Склад ДКС'!A:C,2,0),\"\")","v":""}]
[null,null,null,{"$f":"IFERROR(VLOOKUP(B289,'Склад ДКС'!A:C,3,0),\"\")","v":""},null,{"$f":"IFERROR(VLOOKUP(B289,'Склад ДКС'!A:C,2,0),\"\")","v":""}]
[null,null,null,{"$f":"IFERROR(VLOOKUP(B290,'Склад ДКС'!A:C,3,0),\"\")","v":""},null,{"$f":"IFERROR(VLOOKUP(B290,'Склад ДКС'!A:C,2,0),\"\")","v":""}]
[null,null,null,{"$f":"IFERROR(VLOOKUP(B291,'Склад ДКС'!A:C,3,0),\"\")","v":""},null,{"$f":"IFERROR(VLOOKUP(B291,'Склад ДКС'!A:C,2,0),\"\")","v":""}]
[null,null,null,{"$f":"IFERROR(VLOOKUP(B292,'Склад ДКС'!A:C,3,0),\"\")","v":""},null,{"$f":"IFERROR(VLOOKUP(B292,'Склад ДКС'!A:C,2,0),\"\")","v":""}]
[null,null,null,{"$f":"IFERROR(VLOOKUP(B293,'Склад ДКС'!A:C,3,0),\"\")","v":""},null,{"$f":"IFERROR(VLOOKUP(B293,'Склад ДКС'!A:C,2,0),\"\")","v":""}]
[null,null,null,{"$f":"IFERROR(VLOOKUP(B294,'Склад ДКС'!A:C,3,0),\"\")","v":""},null,{"$f":"IFERROR(VLOOKUP(B294,'Склад ДКС'!A:C,2,0),\"\")","v":""}]
[null,null,null,{"$f":"IFERROR(VLOOKUP(B295,'Склад ДКС'!A:C,3,0),\"\")","v":""},null,{"$f":"IFERROR(VLOOKUP(B295,'Склад ДКС'!A:C,2,0),\"\")","v":""}]
[null,null,null,{"$f":"IFERROR(VLOOKUP(B296,'Склад ДКС'!A:C,3,0),\"\")","v":""},null,{"$f":"IFERROR(VLOOKUP(B296,'Склад ДКС'!A:C,2,0),\"\")","v":""}]
[null,null,null,{"$f":"IFERROR(VLOOKUP(B297,'Склад ДКС'!A:C,3,0),\"\")","v":""},null,{"$f":"IFERROR(VLOOKUP(B297,'Склад ДКС'!A:C,2,0),\"\")","v":""}]
[null,null,null,{"$f":"IFERROR(VLOOKUP(B298,'Склад ДКС'!A:C,3,0),\"\")","v":""},null,{"$f":"IFERROR(VLOOKUP(B298,'Склад ДКС'!A:C,2,0),\"\")","v":""}]
[null,null,null,{"$f":"IFERROR(VLOOKUP(B299,'Склад ДКС'!A:C,3,0),\"\")","v":""},null,{"$f":"IFERROR(VLOOKUP(B299,'Склад ДКС'!A:C,2,0),\"\")","v":""}]
[null,null,null,{"$f":"IFERROR(VLOOKUP(B300,'Склад ДКС'!A:C,3,0),\"\")","v":""},null,{"$f":"IFERROR(VLOOKUP(B300,'Склад ДКС'!A:C,2,0),\"\")","v":""}]
[null,null,null,{"$f":"IFERROR(VLOOKUP(B301,'Склад ДКС'!A:C,3,0),\"\")","v":""},null,{"$f":"IFERROR(VLOOKUP(B301,'Склад ДКС'!A:C,2,0),\"\")","v":""}]
[null,null,null,{"$f":"IFERROR(VLOOKUP(B302,'Склад ДКС'!A:C,3,0),\"\")","v":""},null,{"$f":"IFERROR(VLOOKUP(B302,'Склад ДКС'!A:C,2,0),\"\")","v":""}]
[null,null,null,{"$f":"IFERROR(VLOOKUP(B303,'Склад ДКС'!A:C,3,0),\"\")","v":""},null,{"$f":"IFERROR(VLOOKUP(B303,'Склад ДКС'!A:C,2,0),\"\")","v":""}]
[null,null,null,{"$f":"IFERROR(VLOOKUP(B304,'Склад ДКС'!A:C,3,0),\"\")","v":""},null,{"$f":"IFERROR(VLOOKUP(B304,'Склад ДКС'!A:C,2,0),\"\")","v":""}]
[null,null,null,{"$f":"IFERROR(VLOOKUP(B305,'Склад ДКС'!A:C,3,0),\"\")","v":""},null,{"$f":"IFERROR(VLOOKUP(B305,'Склад ДКС'!A:C,2,0),\"\")","v":""}]
[null,null,null,{"$f":"IFERROR(VLOOKUP(B306,'Склад ДКС'!A:C,3,0),\"\")","v":""},null,{"$f":"IFERROR(VLOOKUP(B306,'Склад ДКС'!A:C,2,0),\"\")","v":""}]
[null,null,null,{"$f":"IFERROR(VLOOKUP(B307,'Склад ДКС'!A:C,3,0),\"\")","v":""},null,{"$f":"IFERROR(VLOOKUP(B307,'Склад ДКС'!A:C,2,0),\"\")","v":""}]
[null,null,null,{"$f":"IFERROR(VLOOKUP(B308,'Склад ДКС'!A:C,3,0),\"\")","v":""},null,{"$f":"IFERROR(VLOOKUP(B308,'Склад ДКС'!A:C,2,0),\"\")","v":""}]
[null,null,null,{"$f":"IFERROR(VLOOKUP(B309,'Склад ДКС'!A:C,3,0),\"\")","v":""},null,{"$f":"IFERROR(VLOOKUP(B309,'Склад ДКС'!A:C,2,0),\"\")","v":""}]
[null,null,null,{"$f":"IFERROR(VLOOKUP(B310,'Склад ДКС'!A:C,3,0),\"\")","v":""},null,{"$f":"IFERROR(VLOOKUP(B310,'Склад ДКС'!A:C,2,0),\"\")","v":""}]
[null,null,null,{"$f":"IFERROR(VLOOKUP(B311,'Склад ДКС'!A:C,3,0),\"\")","v":""},null,{"$f":"IFERROR(VLOOKUP(B311,'Склад ДКС'!A:C,2,0),\"\")","v":""}]
[null,null,null,{"$f":"IFERROR(VLOOKUP(B312,'Склад ДКС'!A:C,3,0),\"\")","v":""},null,{"$f":"IFERROR(VLOOKUP(B312,'Склад ДКС'!A:C,2,0),\"\")","v":""}]
[null,null,null,{"$f":"IFERROR(VLOOKUP(B313,'Склад ДКС'!A:C,3,0),\"\")","v":""},null,{"$f":"IFERROR(VLOOKUP(B313,'Склад ДКС'!A:C,2,0),\"\")","v":""}]
[null,null,null,{"$f":"IFERROR(VLOOKUP(B314,'Склад ДКС'!A:C,3,0),\"\")","v":""},null,{"$f":"IFERROR(VLOOKUP(B314,'Склад ДКС'!A:C,2,0),\"\")","v":""}]
[null,null,null,{"$f":"IFERROR(VLOOKUP(B315,'Склад ДКС'!A:C,3,0),\"\")","v":""},null,{"$f":"IFERROR(VLOOKUP(B315,'Склад ДКС'!A:C,2,0),\"\")","v":""}]
[null,null,null,{"$f":"IFERROR(VLOOKUP(B316,'Склад ДКС'!A:C,3,0),\"\")","v":""},null,{"$f":"IFERROR(VLOOKUP(B316,'Склад ДКС'!A:C,2,0),\"\")","v":""}]
[null,null,null,{"$f":"IFERROR(VLOOKUP(B317,'Склад ДКС'!A:C,3,0),\"\")","v":""},null,{"$f":"IFERROR(VLOOKUP(B317,'Склад ДКС'!A:C,2,0),\"\")","v":""}]
[null,null,null,{"$f":"IFERROR(VLOOKUP(B318,'Склад ДКС'!A:C,3,0),\"\")","v":""},null,{"$f":"IFERROR(VLOOKUP(B318,'Склад ДКС'!A:C,2,0),\"\")","v":""}]
[null,null,null,{"$f":"IFERROR(VLOOKUP(B319,'Склад ДКС'!A:C,3,0),\"\")","v":""},null,{"$f":"IFERROR(VLOOKUP(B319,'Склад ДКС'!A:C,2,0),\"\")","v":""}]
[null,null,null,{"$f":"IFERROR(VLOOKUP(B320,'Склад ДКС'!A:C,3,0),\"\")","v":""},null,{"$f":"IFERROR(VLOOKUP(B320,'Склад ДКС'!A:C,2,0),\"\")","v":""}]
[null,null,null,{"$f":"IFERROR(VLOOKUP(B321,'Склад ДКС'!A:C,3,0),\"\")","v":""},null,{"$f":"IFERROR(VLOOKUP(B321,'Склад ДКС'!A:C,2,0),\"\")","v":""}]
[null,null,null,{"$f":"IFERROR(VLOOKUP(B322,'Склад ДКС'!A:C,3,0),\"\")","v":""},null,{"$f":"IFERROR(VLOOKUP(B322,'Склад ДКС'!A:C,2,0),\"\")","v":""}]
[null,null,null,{"$f":"IFERROR(VLOOKUP(B323,'Склад ДКС'!A:C,3,0),\"\")","v":""},null,{"$f":"IFERROR(VLOOKUP(B323,'Склад ДКС'!A:C,2,0),\"\")","v":""}]
[null,null,null,{"$f":"IFERROR(VLOOKUP(B324,'Склад ДКС'!A:C,3,0),\"\")","v":""},null,{"$f":"IFERROR(VLOOKUP(B324,'Склад ДКС'!A:C,2,0),\"\")","v":""}]
[null,null,null,{"$f":"IFERROR(VLOOKUP(B325,'Склад ДКС'!A:C,3,0),\"\")","v":""},null,{"$f":"IFERROR(VLOOKUP(B325,'Склад ДКС'!A:C,2,0),\"\")","v":""}]
[null,null,null,{"$f":"IFERROR(VLOOKUP(B326,'Склад ДКС'!A:C,3,0),\"\")","v":""},null,{"$f":"IFERROR(VLOOKUP(B326,'Склад ДКС'!A:C,2,0),\"\")","v":""}]
[null,null,null,{"$f":"IFERROR(VLOOKUP(B327,'Склад ДКС'!A:C,3,0),\"\")","v":""},null,{"$f":"IFERROR(VLOOKUP(B327,'Склад ДКС'!A:C,2,0),\"\")","v":""}]
[null,null,null,{"$f":"IFERROR(VLOOKUP(B328,'Склад ДКС'!A:C,3,0),\"\")","v":""},null,{"$f":"IFERROR(VLOOKUP(B328,'Склад ДКС'!A:C,2,0),\"\")","v":""}]
[null,null,null,{"$f":"IFERROR(VLOOKUP(B329,'Склад ДКС'!A:C,3,0),\"\")","v":""},null,{"$f":"IFERROR(VLOOKUP(B329,'Склад ДКС'!A:C,2,0),\"\")","v":""}]
[null,null,null,{"$f":"IFERROR(VLOOKUP(B330,'Склад ДКС'!A:C,3,0),\"\")","v":""},null,{"$f":"IFERROR(VLOOKUP(B330,'Склад ДКС'!A:C,2,0),\"\")","v":""}]
[null,null,null,{"$f":"IFERROR(VLOOKUP(B331,'Склад ДКС'!A:C,3,0),\"\")","v":""},null,{"$f":"IFERROR(VLOOKUP(B331,'Склад ДКС'!A:C,2,0),\"\")","v":""}]
[null,null,null,{"$f":"IFERROR(VLOOKUP(B332,'Склад ДКС'!A:C,3,0),\"\")","v":""},null,{"$f":"IFERROR(VLOOKUP(B332,'Склад ДКС'!A:C,2,0),\"\")","v":""}]
[null,null,null,{"$f":"IFERROR(VLOOKUP(B333,'Склад ДКС'!A:C,3,0),\"\")","v":""},null,{"$f":"IFERROR(VLOOKUP(B333,'Склад ДКС'!A:C,2,0),\"\")","v":""}]
[null,null,null,{"$f":"IFERROR(VLOOKUP(B334,'Склад ДКС'!A:C,3,0),\"\")","v":""},null,{"$f":"IFERROR(VLOOKUP(B334,'Склад ДКС'!A:C,2,0),\"\")","v":""}]
[null,null,null,{"$f":"IFERROR(VLOOKUP(B335,'Склад ДКС'!A:C,3,0),\"\")","v":""},null,{"$f":"IFERROR(VLOOKUP(B335,'Склад ДКС'!A:C,2,0),\"\")","v":""}]
[null,null,null,{"$f":"IFERROR(VLOOKUP(B336,'Склад ДКС'!A:C,3,0),\"\")","v":""},null,{"$f":"IFERROR(VLOOKUP(B336,'Склад ДКС'!A:C,2,0),\"\")","v":""}]
[null,null,null,{"$f":"IFERROR(VLOOKUP(B337,'Склад ДКС'!A:C,3,0),\"\")","v":""},null,{"$f":"IFERROR(VLOOKUP(B337,'Склад ДКС'!A:C,2,0),\"\")","v":""}]
[null,null,null,{"$f":"IFERROR(VLOOKUP(B338,'Склад ДКС'!A:C,3,0),\"\")","v":""},null,{"$f":"IFERROR(VLOOKUP(B338,'Склад ДКС'!A:C,2,0),\"\")","v":""}]
[null,null,null,{"$f":"IFERROR(VLOOKUP(B339,'Склад ДКС'!A:C,3,0),\"\")","v":""},null,{"$f":"IFERROR(VLOOKUP(B339,'Склад ДКС'!A:C,2,0),\"\")","v":""}]
[null,null,null,{"$f":"IFERROR(VLOOKUP(B340,'Склад ДКС'!A:C,3,0),\"\")","v":""},null,{"$f":"IFERROR(VLOOKUP(B340,'Склад ДКС'!A:C,2,0),\"\")","v":""}]
[null,null,null,{"$f":"IFERROR(VLOOKUP(B341,'Склад ДКС'!A:C,3,0),\"\")","v":""},null,{"$f":"IFERROR(VLOOKUP(B341,'Склад ДКС'!A:C,2,0),\"\")","v":""}]
[null,null,null,{"$f":"IFERROR(VLOOKUP(B342,'Склад ДКС'!A:C,3,0),\"\")","v":""},null,{"$f":"IFERROR(VLOOKUP(B342,'Склад ДКС'!A:C,2,0),\"\")","v":""}]
[null,null,null,{"$f":"IFERROR(VLOOKUP(B343,'Склад ДКС'!A:C,3,0),\"\")","v":""},null,{"$f":"IFERROR(VLOOKUP(B343,'Склад ДКС'!A:C,2,0),\"\")","v":""}]
[null,null,null,{"$f":"IFERROR(VLOOKUP(B344,'Склад ДКС'!A:C,3,0),\"\")","v":""},null,{"$f":"IFERROR(VLOOKUP(B344,'Склад ДКС'!A:C,2,0),\"\")","v":""}]
[null,null,null,{"$f":"IFERROR(VLOOKUP(B345,'Склад ДКС'!A:C,3,0),\"\")","v":""},null,{"$f":"IFERROR(VLOOKUP(B345,'Склад ДКС'!A:C,2,0),\"\")","v":""}]
[null,null,null,{"$f":"IFERROR(VLOOKUP(B346,'Склад ДКС'!A:C,3,0),\"\")","v":""},null,{"$f":"IFERROR(VLOOKUP(B346,'Склад ДКС'!A:C,2,0),\"\")","v":""}]
[null,null,null,{"$f":"IFERROR(VLOOKUP(B347,'Склад ДКС'!A:C,3,0),\"\")","v":""},null,{"$f":"IFERROR(VLOOKUP(B347,'Склад ДКС'!A:C,2,0),\"\")","v":""}]
[null,null,null,{"$f":"IFERROR(VLOOKUP(B348,'Склад ДКС'!A:C,3,0),\"\")","v":""},null,{"$f":"IFERROR(VLOOKUP(B348,'Склад ДКС'!A:C,2,0),\"\")","v":""}]
[null,null,null,{"$f":"IFERROR(VLOOKUP(B349,'Склад ДКС'!A:C,3,0),\"\")","v":""},null,{"$f":"IFERROR(VLOOKUP(B349,'Склад ДКС'!A:C,2,0),\"\")","v":""}]
[null,null,null,{"$f":"IFERROR(VLOOKUP(B350,'Склад ДКС'!A:C,3,0),\"\")","v":""},null,{"$f":"IFERROR(VLOOKUP(B350,'Склад ДКС'!A:C,2,0),\"\")","v":""}]
[null,null,null,{"$f":"IFERROR(VLOOKUP(B351,'Склад ДКС'!A:C,3,0),\"\")","v":""},null,{"$f":"IFERROR(VLOOKUP(B351,'Склад ДКС'!A:C,2,0),\"\")","v":""}]
[null,null,null,{"$f":"IFERROR(VLOOKUP(B352,'Склад ДКС'!A:C,3,0),\"\")","v":""},null,{"$f":"IFERROR(VLOOKUP(B352,'Склад ДКС'!A:C,2,0),\"\")","v":""}]
[null,null,null,{"$f":"IFERROR(VLOOKUP(B353,'Склад ДКС'!A:C,3,0),\"\")","v":""},null,{"$f":"IFERROR(VLOOKUP(B353,'Склад ДКС'!A:C,2,0),\"\")","v":""}]
[null,null,null,{"$f":"IFERROR(VLOOKUP(B354,'Склад ДКС'!A:C,3,0),\"\")","v":""},null,{"$f":"IFERROR(VLOOKUP(B354,'Склад ДКС'!A:C,2,0),\"\")","v":""}]
[null,null,null,{"$f":"IFERROR(VLOOKUP(B355,'Склад ДКС'!A:C,3,0),\"\")","v":""},null,{"$f":"IFERROR(VLOOKUP(B355,'Склад ДКС'!A:C,2,0),\"\")","v":""}]
[null,null,null,{"$f":"IFERROR(VLOOKUP(B356,'Склад ДКС'!A:C,3,0),\"\")","v":""},null,{"$f":"IFERROR(VLOOKUP(B356,'Склад ДКС'!A:C,2,0),\"\")","v":""}]
[null,null,null,{"$f":"IFERROR(VLOOKUP(B357,'Склад ДКС'!A:C,3,0),\"\")","v":""},null,{"$f":"IFERROR(VLOOKUP(B357,'Склад ДКС'!A:C,2,0),\"\")","v":""}]
[null,null,null,{"$f":"IFERROR(VLOOKUP(B358,'Склад ДКС'!A:C,3,0),\"\")","v":""},null,{"$f":"IFERROR(VLOOKUP(B358,'Склад ДКС'!A:C,2,0),\"\")","v":""}]
[null,null,null,{"$f":"IFERROR(VLOOKUP(B359,'Склад ДКС'!A:C,3,0),\"\")","v":""},null,{"$f":"IFERROR(VLOOKUP(B359,'Склад ДКС'!A:C,2,0),\"\")","v":""}]
[null,null,null,{"$f":"IFERROR(VLOOKUP(B360,'Склад ДКС'!A:C,3,0),\"\")","v":""},null,{"$f":"IFERROR(VLOOKUP(B360,'Склад ДКС'!A:C,2,0),\"\")","v":""}]
[null,null,null,{"$f":"IFERROR(VLOOKUP(B361,'Склад ДКС'!A:C,3,0),\"\")","v":""},null,{"$f":"IFERROR(VLOOKUP(B361,'Склад ДКС'!A:C,2,0),\"\")","v":""}]
[null,null,null,{"$f":"IFERROR(VLOOKUP(B362,'Склад ДКС'!A:C,3,0),\"\")","v":""},null,{"$f":"IFERROR(VLOOKUP(B362,'Склад ДКС'!A:C,2,0),\"\")","v":""}]
[null,null,null,{"$f":"IFERROR(VLOOKUP(B363,'Склад ДКС'!A:C,3,0),\"\")","v":""},null,{"$f":"IFERROR(VLOOKUP(B363,'Склад ДКС'!A:C,2,0),\"\")","v":""}]
[null,null,null,{"$f":"IFERROR(VLOOKUP(B364,'Склад ДКС'!A:C,3,0),\"\")","v":""},null,{"$f":"IFERROR(VLOOKUP(B364,'Склад ДКС'!A:C,2,0),\"\")","v":""}]
[null,null,null,{"$f":"IFERROR(VLOOKUP(B365,'Склад ДКС'!A:C,3,0),\"\")","v":""},null,{"$f":"IFERROR(VLOOKUP(B365,'Склад ДКС'!A:C,2,0),\"\")","v":""}]
[null,null,null,{"$f":"IFERROR(VLOOKUP(B366,'Склад ДКС'!A:C,3,0),\"\")","v":""},null,{"$f":"IFERROR(VLOOKUP(B366,'Склад ДКС'!A:C,2,0),\"\")","v":""}]
[null,null,null,{"$f":"IFERROR(VLOOKUP(B367,'Склад ДКС'!A:C,3,0),\"\")","v":""},null,{"$f":"IFERROR(VLOOKUP(B367,'Склад ДКС'!A:C,2,0),\"\")","v":""}]
[null,null,null,{"$f":"IFERROR(VLOOKUP(B368,'Склад ДКС'!A:C,3,0),\"\")","v":""},null,{"$f":"IFERROR(VLOOKUP(B368,'Склад ДКС'!A:C,2,0),\"\")","v":""}]
[null,null,null,{"$f":"IFERROR(VLOOKUP(B369,'Склад ДКС'!A:C,3,0),\"\")","v":""},null,{"$f":"IFERROR(VLOOKUP(B369,'Склад ДКС'!A:C,2,0),\"\")","v":""}]
[null,null,null,{"$f":"IFERROR(VLOOKUP(B370,'Склад ДКС'!A:C,3,0),\"\")","v":""},null,{"$f":"IFERROR(VLOOKUP(B370,'Склад ДКС'!A:C,2,0),\"\")","v":""}]
[null,null,null,{"$f":"IFERROR(VLOOKUP(B371,'Склад ДКС'!A:C,3,0),\"\")","v":""},null,{"$f":"IFERROR(VLOOKUP(B371,'Склад ДКС'!A:C,2,0),\"\")","v":""}]
[null,null,null,{"$f":"IFERROR(VLOOKUP(B372,'Склад ДКС'!A:C,3,0),\"\")","v":""},null,{"$f":"IFERROR(VLOOKUP(B372,'Склад ДКС'!A:C,2,0),\"\")","v":""}]
[null,null,null,{"$f":"IFERROR(VLOOKUP(B373,'Склад ДКС'!A:C,3,0),\"\")","v":""},null,{"$f":"IFERROR(VLOOKUP(B373,'Склад ДКС'!A:C,2,0),\"\")","v":""}]
[null,null,null,{"$f":"IFERROR(VLOOKUP(B374,'Склад ДКС'!A:C,3,0),\"\")","v":""},null,{"$f":"IFERROR(VLOOKUP(B374,'Склад ДКС'!A:C,2,0),\"\")","v":""}]
[null,null,null,{"$f":"IFERROR(VLOOKUP(B375,'Склад ДКС'!A:C,3,0),\"\")","v":""},null,{"$f":"IFERROR(VLOOKUP(B375,'Склад ДКС'!A:C,2,0),\"\")","v":""}]
[null,null,null,{"$f":"IFERROR(VLOOKUP(B376,'Склад ДКС'!A:C,3,0),\"\")","v":""},null,{"$f":"IFERROR(VLOOKUP(B376,'Склад ДКС'!A:C,2,0),\"\")","v":""}]
[null,null,null,{"$f":"IFERROR(VLOOKUP(B377,'Склад ДКС'!A:C,3,0),\"\")","v":""},null,{"$f":"IFERROR(VLOOKUP(B377,'Склад ДКС'!A:C,2,0),\"\")","v":""}]
[null,null,null,{"$f":"IFERROR(VLOOKUP(B378,'Склад ДКС'!A:C,3,0),\"\")","v":""},null,{"$f":"IFERROR(VLOOKUP(B378,'Склад ДКС'!A:C,2,0),\"\")","v":""}]
[null,null,null,{"$f":"IFERROR(VLOOKUP(B379,'Склад ДКС'!A:C,3,0),\"\")","v":""},null,{"$f":"IFERROR(VLOOKUP(B379,'Склад ДКС'!A:C,2,0),\"\")","v":""}]
[null,null,null,{"$f":"IFERROR(VLOOKUP(B380,'Склад ДКС'!A:C,3,0),\"\")","v":""},null,{"$f":"IFERROR(VLOOKUP(B380,'Склад ДКС'!A:C,2,0),\"\")","v":""}]
[null,null,null,{"$f":"IFERROR(VLOOKUP(B381,'Склад ДКС'!A:C,3,0),\"\")","v":""},null,{"$f":"IFERROR(VLOOKUP(B381,'Склад ДКС'!A:C,2,0),\"\")","v":""}]
[null,null,null,{"$f":"IFERROR(VLOOKUP(B382,'Склад ДКС'!A:C,3,0),\"\")","v":""},null,{"$f":"IFERROR(VLOOKUP(B382,'Склад ДКС'!A:C,2,0),\"\")","v":""}]
[null,null,null,{"$f":"IFERROR(VLOOKUP(B383,'Склад ДКС'!A:C,3,0),\"\")","v":""},null,{"$f":"IFERROR(VLOOKUP(B383,'Склад ДКС'!A:C,2,0),\"\")","v":""}]
[null,null,null,{"$f":"IFERROR(VLOOKUP(B384,'Склад ДКС'!A:C,3,0),\"\")","v":""},null,{"$f":"IFERROR(VLOOKUP(B384,'Склад ДКС'!A:C,2,0),\"\")","v":""}]
[null,null,null,{"$f":"IFERROR(VLOOKUP(B385,'Склад ДКС'!A:C,3,0),\"\")","v":""},null,{"$f":"IFERROR(VLOOKUP(B385,'Склад ДКС'!A:C,2,0),\"\")","v":""}]
[null,null,null,{"$f":"IFERROR(VLOOKUP(B386,'Склад ДКС'!A:C,3,0),\"\")","v":""},null,{"$f":"IFERROR(VLOOKUP(B386,'Склад ДКС'!A:C,2,0),\"\")","v":""}]
[null,null,null,{"$f":"IFERROR(VLOOKUP(B387,'Склад ДКС'!A:C,3,0),\"\")","v":""},null,{"$f":"IFERROR(VLOOKUP(B387,'Склад ДКС'!A:C,2,0),\"\")","v":""}]
[null,null,null,{"$f":"IFERROR(VLOOKUP(B388,'Склад ДКС'!A:C,3,0),\"\")","v":""},null,{"$f":"IFERROR(VLOOKUP(B388,'Склад ДКС'!A:C,2,0),\"\")","v":""}]
[null,null,null,{"$f":"IFERROR(VLOOKUP(B389,'Склад ДКС'!A:C,3,0),\"\")","v":""},null,{"$f":"IFERROR(VLOOKUP(B389,'Склад ДКС'!A:C,2,0),\"\")","v":""}]
[null,null,null,{"$f":"IFERROR(VLOOKUP(B390,'Склад ДКС'!A:C,3,0),\"\")","v":""},null,{"$f":"IFERROR(VLOOKUP(B390,'Склад ДКС'!A:C,2,0),\"\")","v":""}]
[null,null,null,{"$f":"IFERROR(VLOOKUP(B391,'Склад ДКС'!A:C,3,0),\"\")","v":""},null,{"$f":"IFERROR(VLOOKUP(B391,'Склад ДКС'!A:C,2,0),\"\")","v":""}]
[null,null,null,{"$f":"IFERROR(VLOOKUP(B392,'Склад ДКС'!A:C,3,0),\"\")","v":""},null,{"$f":"IFERROR(VLOOKUP(B392,'Склад ДКС'!A:C,2,0),\"\")","v":""}]
[null,null,null,{"$f":"IFERROR(VLOOKUP(B393,'Склад ДКС'!A:C,3,0),\"\")","v":""},null,{"$f":"IFERROR(VLOOKUP(B393,'Склад ДКС'!A:C,2,0),\"\")","v":""}]
[null,null,null,{"$f":"IFERROR(VLOOKUP(B394,'Склад ДКС'!A:C,3,0),\"\")","v":""},null,{"$f":"IFERROR(VLOOKUP(B394,'Склад ДКС'!A:C,2,0),\"\")","v":""}]
[null,null,null,{"$f":"IFERROR(VLOOKUP(B395,'Склад ДКС'!A:C,3,0),\"\")","v":""},null,{"$f":"IFERROR(VLOOKUP(B395,'Склад ДКС'!A:C,2,0),\"\")","v":""}]
[null,null,null,{"$f":"IFERROR(VLOOKUP(B396,'Склад ДКС'!A:C,3,0),\"\")","v":""},null,{"$f":"IFERROR(VLOOKUP(B396,'Склад ДКС'!A:C,2,0),\"\")","v":""}]
[null,null,null,{"$f":"IFERROR(VLOOKUP(B397,'Склад ДКС'!A:C,3,0),\"\")","v":""},null,{"$f":"IFERROR(VLOOKUP(B397,'Склад ДКС'!A:C,2,0),\"\")","v":""}]
[null,null,null,{"$f":"IFERROR(VLOOKUP(B398,'Склад ДКС'!A:C,3,0),\"\")","v":""},null,{"$f":"IFERROR(VLOOKUP(B398,'Склад ДКС'!A:C,2,0),\"\")","v":""}]
[null,null,null,{"$f":"IFERROR(VLOOKUP(B399,'Склад ДКС'!A:C,3,0),\"\")","v":""},null,{"$f":"IFERROR(VLOOKUP(B399,'Склад ДКС'!A:C,2,0),\"\")","v":""}]
[null,null,null,{"$f":"IFERROR(VLOOKUP(B400,'Склад ДКС'!A:C,3,0),\"\")","v":""},null,{"$f":"IFERROR(VLOOKUP(B400,'Склад ДКС'!A:C,2,0),\"\")","v":""}]
[null,null,null,{"$f":"IFERROR(VLOOKUP(B401,'Склад ДКС'!A:C,3,0),\"\")","v":""},null,{"$f":"IFERROR(VLOOKUP(B401,'Склад ДКС'!A:C,2,0),\"\")","v":""}]
[null,null,null,{"$f":"IFERROR(VLOOKUP(B402,'Склад ДКС'!A:C,3,0),\"\")","v":""},null,{"$f":"IFERROR(VLOOKUP(B402,'Склад ДКС'!A:C,2,0),\"\")","v":""}]
[null,null,null,{"$f":"IFERROR(VLOOKUP(B403,'Склад ДКС'!A:C,3,0),\"\")","v":""},null,{"$f":"IFERROR(VLOOKUP(B403,'Склад ДКС'!A:C,2,0),\"\")","v":""}]
[null,null,null,{"$f":"IFERROR(VLOOKUP(B404,'Склад ДКС'!A:C,3,0),\"\")","v":""},null,{"$f":"IFERROR(VLOOKUP(B404,'Склад ДКС'!A:C,2,0),\"\")","v":""}]
[null,null,null,{"$f":"IFERROR(VLOOKUP(B405,'Склад ДКС'!A:C,3,0),\"\")","v":""},null,{"$f":"IFERROR(VLOOKUP(B405,'Склад ДКС'!A:C,2,0),\"\")","v":""}]
[null,null,null,{"$f":"IFERROR(VLOOKUP(B406,'Склад ДКС'!A:C,3,0),\"\")","v":""},null,{"$f":"IFERROR(VLOOKUP(B406,'Склад ДКС'!A:C,2,0),\"\")","v":""}]
[null,null,null,{"$f":"IFERROR(VLOOKUP(B407,'Склад ДКС'!A:C,3,0),\"\")","v":""},null,{"$f":"IFERROR(VLOOKUP(B407,'Склад ДКС'!A:C,2,0),\"\")","v":""}]
[null,null,null,{"$f":"IFERROR(VLOOKUP(B408,'Склад ДКС'!A:C,3,0),\"\")","v":""},null,{"$f":"IFERROR(VLOOKUP(B408,'Склад ДКС'!A:C,2,0),\"\")","v":""}]
[null,null,null,{"$f":"IFERROR(VLOOKUP(B409,'Склад ДКС'!A:C,3,0),\"\")","v":""},null,{"$f":"IFERROR(VLOOKUP(B409,'Склад ДКС'!A:C,2,0),\"\")","v":""}]
[null,null,null,{"$f":"IFERROR(VLOOKUP(B410,'Склад ДКС'!A:C,3,0),\"\")","v":""},null,{"$f":"IFERROR(VLOOKUP(B410,'Склад ДКС'!A:C,2,0),\"\")","v":""}]
[null,null,null,{"$f":"IFERROR(VLOOKUP(B411,'Склад ДКС'!A:C,3,0),\"\")","v":""},null,{"$f":"IFERROR(VLOOKUP(B411,'Склад ДКС'!A:C,2,0),\"\")","v":""}]
[null,null,null,{"$f":"IFERROR(VLOOKUP(B412,'Склад ДКС'!A:C,3,0),\"\")","v":""},null,{"$f":"IFERROR(VLOOKUP(B412,'Склад ДКС'!A:C,2,0),\"\")","v":""}]
[null,null,null,{"$f":"IFERROR(VLOOKUP(B413,'Склад ДКС'!A:C,3,0),\"\")","v":""},null,{"$f":"IFERROR(VLOOKUP(B413,'Склад ДКС'!A:C,2,0),\"\")","v":""}]
[null,null,null,{"$f":"IFERROR(VLOOKUP(B414,'Склад ДКС'!A:C,3,0),\"\")","v":""},null,{"$f":"IFERROR(VLOOKUP(B414,'Склад ДКС'!A:C,2,0),\"\")","v":""}]
[null,null,null,{"$f":"IFERROR(VLOOKUP(B415,'Склад ДКС'!A:C,3,0),\"\")","v":""},null,{"$f":"IFERROR(VLOOKUP(B415,'Склад ДКС'!A:C,2,0),\"\")","v":""}]
[null,null,null,{"$f":"IFERROR(VLOOKUP(B416,'Склад ДКС'!A:C,3,0),\"\")","v":""},null,{"$f":"IFERROR(VLOOKUP(B416,'Склад ДКС'!A:C,2,0),\"\")","v":""}]
[null,null,null,{"$f":"IFERROR(VLOOKUP(B417,'Склад ДКС'!A:C,3,0),\"\")","v":""},null,{"$f":"IFERROR(VLOOKUP(B417,'Склад ДКС'!A:C,2,0),\"\")","v":""}]
[null,null,null,{"$f":"IFERROR(VLOOKUP(B418,'Склад ДКС'!A:C,3,0),\"\")","v":""},null,{"$f":"IFERROR(VLOOKUP(B418,'Склад ДКС'!A:C,2,0),\"\")","v":""}]
[null,null,null,{"$f":"IFERROR(VLOOKUP(B419,'Склад ДКС'!A:C,3,0),\"\")","v":""},null,{"$f":"IFERROR(VLOOKUP(B419,'Склад ДКС'!A:C,2,0),\"\")","v":""}]
[null,null,null,{"$f":"IFERROR(VLOOKUP(B420,'Склад ДКС'!A:C,3,0),\"\")","v":""},null,{"$f":"IFERROR(VLOOKUP(B420,'Склад ДКС'!A:C,2,0),\"\")","v":""}]
[null,null,null,{"$f":"IFERROR(VLOOKUP(B421,'Склад ДКС'!A:C,3,0),\"\")","v":""},null,{"$f":"IFERROR(VLOOKUP(B421,'Склад ДКС'!A:C,2,0),\"\")","v":""}]
[null,null,null,{"$f":"IFERROR(VLOOKUP(B422,'Склад ДКС'!A:C,3,0),\"\")","v":""},null,{"$f":"IFERROR(VLOOKUP(B422,'Склад ДКС'!A:C,2,0),\"\")","v":""}]
[null,null,null,{"$f":"IFERROR(VLOOKUP(B423,'Склад ДКС'!A:C,3,0),\"\")","v":""},null,{"$f":"IFERROR(VLOOKUP(B423,'Склад ДКС'!A:C,2,0),\"\")","v":""}]
[null,null,null,{"$f":"IFERROR(VLOOKUP(B424,'Склад ДКС'!A:C,3,0),\"\")","v":""},null,{"$f":"IFERROR(VLOOKUP(B424,'Склад ДКС'!A:C,2,0),\"\")","v":""}]
[null,null,null,{"$f":"IFERROR(VLOOKUP(B425,'Склад ДКС'!A:C,3,0),\"\")","v":""},null,{"$f":"IFERROR(VLOOKUP(B425,'Склад ДКС'!A:C,2,0),\"\")","v":""}]
[null,null,null,{"$f":"IFERROR(VLOOKUP(B426,'Склад ДКС'!A:C,3,0),\"\")","v":""},null,{"$f":"IFERROR(VLOOKUP(B426,'Склад ДКС'!A:C,2,0),\"\")","v":""}]
[null,null,null,{"$f":"IFERROR(VLOOKUP(B427,'Склад ДКС'!A:C,3,0),\"\")","v":""},null,{"$f":"IFERROR(VLOOKUP(B427,'Склад ДКС'!A:C,2,0),\"\")","v":""}]
[null,null,null,{"$f":"IFERROR(VLOOKUP(B428,'Склад ДКС'!A:C,3,0),\"\")","v":""},null,{"$f":"IFERROR(VLOOKUP(B428,'Склад ДКС'!A:C,2,0),\"\")","v":""}]
[null,null,null,{"$f":"IFERROR(VLOOKUP(B429,'Склад ДКС'!A:C,3,0),\"\")","v":""},null,{"$f":"IFERROR(VLOOKUP(B429,'Склад ДКС'!A:C,2,0),\"\")","v":""}]
[null,null,null,{"$f":"IFERROR(VLOOKUP(B430,'Склад ДКС'!A:C,3,0),\"\")","v":""},null,{"$f":"IFERROR(VLOOKUP(B430,'Склад ДКС'!A:C,2,0),\"\")","v":""}]
[null,null,null,{"$f":"IFERROR(VLOOKUP(B431,'Склад ДКС'!A:C,3,0),\"\")","v":""},null,{"$f":"IFERROR(VLOOKUP(B431,'Склад ДКС'!A:C,2,0),\"\")","v":""}]
[null,null,null,{"$f":"IFERROR(VLOOKUP(B432,'Склад ДКС'!A:C,3,0),\"\")","v":""},null,{"$f":"IFERROR(VLOOKUP(B432,'Склад ДКС'!A:C,2,0),\"\")","v":""}]
[null,null,null,{"$f":"IFERROR(VLOOKUP(B433,'Склад ДКС'!A:C,3,0),\"\")","v":""},null,{"$f":"IFERROR(VLOOKUP(B433,'Склад ДКС'!A:C,2,0),\"\")","v":""}]
[null,null,null,{"$f":"IFERROR(VLOOKUP(B434,'Склад ДКС'!A:C,3,0),\"\")","v":""},null,{"$f":"IFERROR(VLOOKUP(B434,'Склад ДКС'!A:C,2,0),\"\")","v":""}]
[null,null,null,{"$f":"IFERROR(VLOOKUP(B435,'Склад ДКС'!A:C,3,0),\"\")","v":""},null,{"$f":"IFERROR(VLOOKUP(B435,'Склад ДКС'!A:C,2,0),\"\")","v":""}]
[null,null,null,{"$f":"IFERROR(VLOOKUP(B436,'Склад ДКС'!A:C,3,0),\"\")","v":""},null,{"$f":"IFERROR(VLOOKUP(B436,'Склад ДКС'!A:C,2,0),\"\")","v":""}]
[null,null,null,{"$f":"IFERROR(VLOOKUP(B437,'Склад ДКС'!A:C,3,0),\"\")","v":""},null,{"$f":"IFERROR(VLOOKUP(B437,'Склад ДКС'!A:C,2,0),\"\")","v":""}]
[null,null,null,{"$f":"IFERROR(VLOOKUP(B438,'Склад ДКС'!A:C,3,0),\"\")","v":""},null,{"$f":"IFERROR(VLOOKUP(B438,'Склад ДКС'!A:C,2,0),\"\")","v":""}]
[null,null,null,{"$f":"IFERROR(VLOOKUP(B439,'Склад ДКС'!A:C,3,0),\"\")","v":""},null,{"$f":"IFERROR(VLOOKUP(B439,'Склад ДКС'!A:C,2,0),\"\")","v":""}]
[null,null,null,{"$f":"IFERROR(VLOOKUP(B440,'Склад ДКС'!A:C,3,0),\"\")","v":""},null,{"$f":"IFERROR(VLOOKUP(B440,'Склад ДКС'!A:C,2,0),\"\")","v":""}]
[null,null,null,{"$f":"IFERROR(VLOOKUP(B441,'Склад ДКС'!A:C,3,0),\"\")","v":""},null,{"$f":"IFERROR(VLOOKUP(B441,'Склад ДКС'!A:C,2,0),\"\")","v":""}]
[null,null,null,{"$f":"IFERROR(VLOOKUP(B442,'Склад ДКС'!A:C,3,0),\"\")","v":""},null,{"$f":"IFERROR(VLOOKUP(B442,'Склад ДКС'!A:C,2,0),\"\")","v":""}]
[null,null,null,{"$f":"IFERROR(VLOOKUP(B443,'Склад ДКС'!A:C,3,0),\"\")","v":""},null,{"$f":"IFERROR(VLOOKUP(B443,'Склад ДКС'!A:C,2,0),\"\")","v":""}]
[null,null,null,{"$f":"IFERROR(VLOOKUP(B444,'Склад ДКС'!A:C,3,0),\"\")","v":""},null,{"$f":"IFERROR(VLOOKUP(B444,'Склад ДКС'!A:C,2,0),\"\")","v":""}]
[null,null,null,{"$f":"IFERROR(VLOOKUP(B445,'Склад ДКС'!A:C,3,0),\"\")","v":""},null,{"$f":"IFERROR(VLOOKUP(B445,'Склад ДКС'!A:C,2,0),\"\")","v":""}]
[null,null,null,{"$f":"IFERROR(VLOOKUP(B446,'Склад ДКС'!A:C,3,0),\"\")","v":""},null,{"$f":"IFERROR(VLOOKUP(B446,'Склад ДКС'!A:C,2,0),\"\")","v":""}]
[null,null,null,{"$f":"IFERROR(VLOOKUP(B447,'Склад ДКС'!A:C,3,0),\"\")","v":""},null,{"$f":"IFERROR(VLOOKUP(B447,'Склад ДКС'!A:C,2,0),\"\")","v":""}]
[null,null,null,{"$f":"IFERROR(VLOOKUP(B448,'Склад ДКС'!A:C,3,0),\"\")","v":""},null,{"$f":"IFERROR(VLOOKUP(B448,'Склад ДКС'!A:C,2,0),\"\")","v":""}]
[null,null,null,{"$f":"IFERROR(VLOOKUP(B449,'Склад ДКС'!A:C,3,0),\"\")","v":""},null,{"$f":"IFERROR(VLOOKUP(B449,'Склад ДКС'!A:C,2,0),\"\")","v":""}]
[null,null,null,{"$f":"IFERROR(VLOOKUP(B450,'Склад ДКС'!A:C,3,0),\"\")","v":""},null,{"$f":"IFERROR(VLOOKUP(B450,'Склад ДКС'!A:C,2,0),\"\")","v":""}]
[null,null,null,{"$f":"IFERROR(VLOOKUP(B451,'Склад ДКС'!A:C,3,0),\"\")","v":""},null,{"$f":"IFERROR(VLOOKUP(B451,'Склад ДКС'!A:C,2,0),\"\")","v":""}]
[null,null,null,{"$f":"IFERROR(VLOOKUP(B452,'Склад ДКС'!A:C,3,0),\"\")","v":""},null,{"$f":"IFERROR(VLOOKUP(B452,'Склад ДКС'!A:C,2,0),\"\")","v":""}]
[null,null,null,{"$f":"IFERROR(VLOOKUP(B453,'Склад ДКС'!A:C,3,0),\"\")","v":""},null,{"$f":"IFERROR(VLOOKUP(B453,'Склад ДКС'!A:C,2,0),\"\")","v":""}]
[null,null,null,{"$f":"IFERROR(VLOOKUP(B454,'Склад ДКС'!A:C,3,0),\"\")","v":""},null,{"$f":"IFERROR(VLOOKUP(B454,'Склад ДКС'!A:C,2,0),\"\")","v":""}]
[null,null,null,{"$f":"IFERROR(VLOOKUP(B455,'Склад ДКС'!A:C,3,0),\"\")","v":""},null,{"$f":"IFERROR(VLOOKUP(B455,'Склад ДКС'!A:C,2,0),\"\")","v":""}]
[null,null,null,{"$f":"IFERROR(VLOOKUP(B456,'Склад ДКС'!A:C,3,0),\"\")","v":""},null,{"$f":"IFERROR(VLOOKUP(B456,'Склад ДКС'!A:C,2,0),\"\")","v":""}]
[null,null,null,{"$f":"IFERROR(VLOOKUP(B457,'Склад ДКС'!A:C,3,0),\"\")","v":""},null,{"$f":"IFERROR(VLOOKUP(B457,'Склад ДКС'!A:C,2,0),\"\")","v":""}]
[null,null,null,{"$f":"IFERROR(VLOOKUP(B458,'Склад ДКС'!A:C,3,0),\"\")","v":""},null,{"$f":"IFERROR(VLOOKUP(B458,'Склад ДКС'!A:C,2,0),\"\")","v":""}]
[null,null,null,{"$f":"IFERROR(VLOOKUP(B459,'Склад ДКС'!A:C,3,0),\"\")","v":""},null,{"$f":"IFERROR(VLOOKUP(B459,'Склад ДКС'!A:C,2,0),\"\")","v":""}]
[null,null,null,{"$f":"IFERROR(VLOOKUP(B460,'Склад ДКС'!A:C,3,0),\"\")","v":""},null,{"$f":"IFERROR(VLOOKUP(B460,'Склад ДКС'!A:C,2,0),\"\")","v":""}]
[null,null,null,{"$f":"IFERROR(VLOOKUP(B461,'Склад ДКС'!A:C,3,0),\"\")","v":""},null,{"$f":"IFERROR(VLOOKUP(B461,'Склад ДКС'!A:C,2,0),\"\")","v":""}]
[null,null,null,{"$f":"IFERROR(VLOOKUP(B462,'Склад ДКС'!A:C,3,0),\"\")","v":""},null,{"$f":"IFERROR(VLOOKUP(B462,'Склад ДКС'!A:C,2,0),\"\")","v":""}]
[null,null,null,{"$f":"IFERROR(VLOOKUP(B463,'Склад ДКС'!A:C,3,0),\"\")","v":""},null,{"$f":"IFERROR(VLOOKUP(B463,'Склад ДКС'!A:C,2,0),\"\")","v":""}]
[null,null,null,{"$f":"IFERROR(VLOOKUP(B464,'Склад ДКС'!A:C,3,0),\"\")","v":""},null,{"$f":"IFERROR(VLOOKUP(B464,'Склад ДКС'!A:C,2,0),\"\")","v":""}]
[null,null,null,{"$f":"IFERROR(VLOOKUP(B465,'Склад ДКС'!A:C,3,0),\"\")","v":""},null,{"$f":"IFERROR(VLOOKUP(B465,'Склад ДКС'!A:C,2,0),\"\")","v":""}]
[null,null,null,{"$f":"IFERROR(VLOOKUP(B466,'Склад ДКС'!A:C,3,0),\"\")","v":""},null,{"$f":"IFERROR(VLOOKUP(B466,'Склад ДКС'!A:C,2,0),\"\")","v":""}]
[null,null,null,{"$f":"IFERROR(VLOOKUP(B467,'Склад ДКС'!A:C,3,0),\"\")","v":""},null,{"$f":"IFERROR(VLOOKUP(B467,'Склад ДКС'!A:C,2,0),\"\")","v":""}]
[null,null,null,{"$f":"IFERROR(VLOOKUP(B468,'Склад ДКС'!A:C,3,0),\"\")","v":""},null,{"$f":"IFERROR(VLOOKUP(B468,'Склад ДКС'!A:C,2,0),\"\")","v":""}]
[null,null,null,{"$f":"IFERROR(VLOOKUP(B469,'Склад ДКС'!A:C,3,0),\"\")","v":""},null,{"$f":"IFERROR(VLOOKUP(B469,'Склад ДКС'!A:C,2,0),\"\")","v":""}]
[null,null,null,{"$f":"IFERROR(VLOOKUP(B470,'Склад ДКС'!A:C,3,0),\"\")","v":""},null,{"$f":"IFERROR(VLOOKUP(B470,'Склад ДКС'!A:C,2,0),\"\")","v":""}]
[null,null,null,{"$f":"IFERROR(VLOOKUP(B471,'Склад ДКС'!A:C,3,0),\"\")","v":""},null,{"$f":"IFERROR(VLOOKUP(B471,'Склад ДКС'!A:C,2,0),\"\")","v":""}]
[null,null,null,{"$f":"IFERROR(VLOOKUP(B472,'Склад ДКС'!A:C,3,0),\"\")","v":""},null,{"$f":"IFERROR(VLOOKUP(B472,'Склад ДКС'!A:C,2,0),\"\")","v":""}]
[null,null,null,{"$f":"IFERROR(VLOOKUP(B473,'Склад ДКС'!A:C,3,0),\"\")","v":""},null,{"$f":"IFERROR(VLOOKUP(B473,'Склад ДКС'!A:C,2,0),\"\")","v":""}]
[null,null,null,{"$f":"IFERROR(VLOOKUP(B474,'Склад ДКС'!A:C,3,0),\"\")","v":""},null,{"$f":"IFERROR(VLOOKUP(B474,'Склад ДКС'!A:C,2,0),\"\")","v":""}]
[null,null,null,{"$f":"IFERROR(VLOOKUP(B475,'Склад ДКС'!A:C,3,0),\"\")","v":""},null,{"$f":"IFERROR(VLOOKUP(B475,'Склад ДКС'!A:C,2,0),\"\")","v":""}]
[null,null,null,{"$f":"IFERROR(VLOOKUP(B476,'Склад ДКС'!A:C,3,0),\"\")","v":""},null,{"$f":"IFERROR(VLOOKUP(B476,'Склад ДКС'!A:C,2,0),\"\")","v":""}]
[null,null,null,{"$f":"IFERROR(VLOOKUP(B477,'Склад ДКС'!A:C,3,0),\"\")","v":""},null,{"$f":"IFERROR(VLOOKUP(B477,'Склад ДКС'!A:C,2,0),\"\")","v":""}]
[null,null,null,{"$f":"IFERROR(VLOOKUP(B478,'Склад ДКС'!A:C,3,0),\"\")","v":""},null,{"$f":"IFERROR(VLOOKUP(B478,'Склад ДКС'!A:C,2,0),\"\")","v":""}]
[null,null,null,{"$f":"IFERROR(VLOOKUP(B479,'Склад ДКС'!A:C,3,0),\"\")","v":""},null,{"$f":"IFERROR(VLOOKUP(B479,'Склад ДКС'!A:C,2,0),\"\")","v":""}]
[null,null,null,{"$f":"IFERROR(VLOOKUP(B480,'Склад ДКС'!A:C,3,0),\"\")","v":""},null,{"$f":"IFERROR(VLOOKUP(B480,'Склад ДКС'!A:C,2,0),\"\")","v":""}]
[null,null,null,{"$f":"IFERROR(VLOOKUP(B481,'Склад ДКС'!A:C,3,0),\"\")","v":""},null,{"$f":"IFERROR(VLOOKUP(B481,'Склад ДКС'!A:C,2,0),\"\")","v":""}]
[null,null,null,{"$f":"IFERROR(VLOOKUP(B482,'Склад ДКС'!A:C,3,0),\"\")","v":""},null,{"$f":"IFERROR(VLOOKUP(B482,'Склад ДКС'!A:C,2,0),\"\")","v":""}]
[null,null,null,{"$f":"IFERROR(VLOOKUP(B483,'Склад ДКС'!A:C,3,0),\"\")","v":""},null,{"$f":"IFERROR(VLOOKUP(B483,'Склад ДКС'!A:C,2,0),\"\")","v":""}]
[null,null,null,{"$f":"IFERROR(VLOOKUP(B484,'Склад ДКС'!A:C,3,0),\"\")","v":""},null,{"$f":"IFERROR(VLOOKUP(B484,'Склад ДКС'!A:C,2,0),\"\")","v":""}]
[null,null,null,{"$f":"IFERROR(VLOOKUP(B485,'Склад ДКС'!A:C,3,0),\"\")","v":""},null,{"$f":"IFERROR(VLOOKUP(B485,'Склад ДКС'!A:C,2,0),\"\")","v":""}]
[null,null,null,{"$f":"IFERROR(VLOOKUP(B486,'Склад ДКС'!A:C,3,0),\"\")","v":""},null,{"$f":"IFERROR(VLOOKUP(B486,'Склад ДКС'!A:C,2,0),\"\")","v":""}]
[null,null,null,{"$f":"IFERROR(VLOOKUP(B487,'Склад ДКС'!A:C,3,0),\"\")","v":""},null,{"$f":"IFERROR(VLOOKUP(B487,'Склад ДКС'!A:C,2,0),\"\")","v":""}]
[null,null,null,{"$f":"IFERROR(VLOOKUP(B488,'Склад ДКС'!A:C,3,0),\"\")","v":""},null,{"$f":"IFERROR(VLOOKUP(B488,'Склад ДКС'!A:C,2,0),\"\")","v":""}]
[null,null,null,{"$f":"IFERROR(VLOOKUP(B489,'Склад ДКС'!A:C,3,0),\"\")","v":""},null,{"$f":"IFERROR(VLOOKUP(B489,'Склад ДКС'!A:C,2,0),\"\")","v":""}]
[null,null,null,{"$f":"IFERROR(VLOOKUP(B490,'Склад ДКС'!A:C,3,0),\"\")","v":""},null,{"$f":"IFERROR(VLOOKUP(B490,'Склад ДКС'!A:C,2,0),\"\")","v":""}]
[null,null,null,{"$f":"IFERROR(VLOOKUP(B491,'Склад ДКС'!A:C,3,0),\"\")","v":""},null,{"$f":"IFERROR(VLOOKUP(B491,'Склад ДКС'!A:C,2,0),\"\")","v":""}]
[null,null,null,{"$f":"IFERROR(VLOOKUP(B492,'Склад ДКС'!A:C,3,0),\"\")","v":""},null,{"$f":"IFERROR(VLOOKUP(B492,'Склад ДКС'!A:C,2,0),\"\")","v":""}]
[null,null,null,{"$f":"IFERROR(VLOOKUP(B493,'Склад ДКС'!A:C,3,0),\"\")","v":""},null,{"$f":"IFERROR(VLOOKUP(B493,'Склад ДКС'!A:C,2,0),\"\")","v":""}]
[null,null,null,{"$f":"IFERROR(VLOOKUP(B494,'Склад ДКС'!A:C,3,0),\"\")","v":""},null,{"$f":"IFERROR(VLOOKUP(B494,'Склад ДКС'!A:C,2,0),\"\")","v":""}]
[null,null,null,{"$f":"IFERROR(VLOOKUP(B495,'Склад ДКС'!A:C,3,0),\"\")","v":""},null,{"$f":"IFERROR(VLOOKUP(B495,'Склад ДКС'!A:C,2,0),\"\")","v":""}]
[null,null,null,{"$f":"IFERROR(VLOOKUP(B496,'Склад ДКС'!A:C,3,0),\"\")","v":""},null,{"$f":"IFERROR(VLOOKUP(B496,'Склад ДКС'!A:C,2,0),\"\")","v":""}]
[null,null,null,{"$f":"IFERROR(VLOOKUP(B497,'Склад ДКС'!A:C,3,0),\"\")","v":""},null,{"$f":"IFERROR(VLOOKUP(B497,'Склад ДКС'!A:C,2,0),\"\")","v":""}]
[null,null,null,{"$f":"IFERROR(VLOOKUP(B498,'Склад ДКС'!A:C,3,0),\"\")","v":""},null,{"$f":"IFERROR(VLOOKUP(B498,'Склад ДКС'!A:C,2,0),\"\")","v":""}]
[null,null,null,{"$f":"IFERROR(VLOOKUP(B499,'Склад ДКС'!A:C,3,0),\"\")","v":""},null,{"$f":"IFERROR(VLOOKUP(B499,'Склад ДКС'!A:C,2,0),\"\")","v":""}]
[null,null,null,{"$f":"IFERROR(VLOOKUP(B500,'Склад ДКС'!A:C,3,0),\"\")","v":""},null,{"$f":"IFERROR(VLOOKUP(B500,'Склад ДКС'!A:C,2,0),\"\")","v":""}]
[null,null,null,{"$f":"IFERROR(VLOOKUP(B501,'Склад ДКС'!A:C,3,0),\"\")","v":""},null,{"$f":"IFERROR(VLOOKUP(B501,'Склад ДКС'!A:C,2,0),\"\")","v":""}]
[null,null,null,{"$f":"IFERROR(VLOOKUP(B502,'Склад ДКС'!A:C,3,0),\"\")","v":""},null,{"$f":"IFERROR(VLOOKUP(B502,'Склад ДКС'!A:C,2,0),\"\")","v":""}]
[null,null,null,{"$f":"IFERROR(VLOOKUP(B503,'Склад ДКС'!A:C,3,0),\"\")","v":""},null,{"$f":"IFERROR(VLOOKUP(B503,'Склад ДКС'!A:C,2,0),\"\")","v":""}]
[null,null,null,{"$f":"IFERROR(VLOOKUP(B504,'Склад ДКС'!A:C,3,0),\"\")","v":""},null,{"$f":"IFERROR(VLOOKUP(B504,'Склад ДКС'!A:C,2,0),\"\")","v":""}]
[null,null,null,{"$f":"IFERROR(VLOOKUP(B505,'Склад ДКС'!A:C,3,0),\"\")","v":""},null,{"$f":"IFERROR(VLOOKUP(B505,'Склад ДКС'!A:C,2,0),\"\")","v":""}]
[null,null,null,{"$f":"IFERROR(VLOOKUP(B506,'Склад ДКС'!A:C,3,0),\"\")","v":""},null,{"$f":"IFERROR(VLOOKUP(B506,'Склад ДКС'!A:C,2,0),\"\")","v":""}]
[null,null,null,{"$f":"IFERROR(VLOOKUP(B507,'Склад ДКС'!A:C,3,0),\"\")","v":""},null,{"$f":"IFERROR(VLOOKUP(B507,'Склад ДКС'!A:C,2,0),\"\")","v":""}]
[null,null,null,{"$f":"IFERROR(VLOOKUP(B508,'Склад ДКС'!A:C,3,0),\"\")","v":""},null,{"$f":"IFERROR(VLOOKUP(B508,'Склад ДКС'!A:C,2,0),\"\")","v":""}]
[null,null,null,{"$f":"IFERROR(VLOOKUP(B509,'Склад ДКС'!A:C,3,0),\"\")","v":""},null,{"$f":"IFERROR(VLOOKUP(B509,'Склад ДКС'!A:C,2,0),\"\")","v":""}]
[null,null,null,{"$f":"IFERROR(VLOOKUP(B510,'Склад ДКС'!A:C,3,0),\"\")","v":""},null,{"$f":"IFERROR(VLOOKUP(B510,'Склад ДКС'!A:C,2,0),\"\")","v":""}]
[null,null,null,{"$f":"IFERROR(VLOOKUP(B511,'Склад ДКС'!A:C,3,0),\"\")","v":""},null,{"$f":"IFERROR(VLOOKUP(B511,'Склад ДКС'!A:C,2,0),\"\")","v":""}]
[null,null,null,{"$f":"IFERROR(VLOOKUP(B512,'Склад ДКС'!A:C,3,0),\"\")","v":""},null,{"$f":"IFERROR(VLOOKUP(B512,'Склад ДКС'!A:C,2,0),\"\")","v":""}]
[null,null,null,{"$f":"IFERROR(VLOOKUP(B513,'Склад ДКС'!A:C,3,0),\"\")","v":""},null,{"$f":"IFERROR(VLOOKUP(B513,'Склад ДКС'!A:C,2,0),\"\")","v":""}]
[null,null,null,{"$f":"IFERROR(VLOOKUP(B514,'Склад ДКС'!A:C,3,0),\"\")","v":""},null,{"$f":"IFERROR(VLOOKUP(B514,'Склад ДКС'!A:C,2,0),\"\")","v":""}]
[null,null,null,{"$f":"IFERROR(VLOOKUP(B515,'Склад ДКС'!A:C,3,0),\"\")","v":""},null,{"$f":"IFERROR(VLOOKUP(B515,'Склад ДКС'!A:C,2,0),\"\")","v":""}]
[null,null,null,{"$f":"IFERROR(VLOOKUP(B516,'Склад ДКС'!A:C,3,0),\"\")","v":""},null,{"$f":"IFERROR(VLOOKUP(B516,'Склад ДКС'!A:C,2,0),\"\")","v":""}]
[null,null,null,{"$f":"IFERROR(VLOOKUP(B517,'Склад ДКС'!A:C,3,0),\"\")","v":""},null,{"$f":"IFERROR(VLOOKUP(B517,'Склад ДКС'!A:C,2,0),\"\")","v":""}]
[null,null,null,{"$f":"IFERROR(VLOOKUP(B518,'Склад ДКС'!A:C,3,0),\"\")","v":""},null,{"$f":"IFERROR(VLOOKUP(B518,'Склад ДКС'!A:C,2,0),\"\")","v":""}]
[null,null,null,{"$f":"IFERROR(VLOOKUP(B519,'Склад ДКС'!A:C,3,0),\"\")","v":""},null,{"$f":"IFERROR(VLOOKUP(B519,'Склад ДКС'!A:C,2,0),\"\")","v":""}]
[null,null,null,{"$f":"IFERROR(VLOOKUP(B520,'Склад ДКС'!A:C,3,0),\"\")","v":""},null,{"$f":"IFERROR(VLOOKUP(B520,'Склад ДКС'!A:C,2,0),\"\")","v":""}]
[null,null,null,{"$f":"IFERROR(VLOOKUP(B521,'Склад ДКС'!A:C,3,0),\"\")","v":""},null,{"$f":"IFERROR(VLOOKUP(B521,'Склад ДКС'!A:C,2,0),\"\")","v":""}]
[null,null,null,{"$f":"IFERROR(VLOOKUP(B522,'Склад ДКС'!A:C,3,0),\"\")","v":""},null,{"$f":"IFERROR(VLOOKUP(B522,'Склад ДКС'!A:C,2,0),\"\")","v":""}]
[null,null,null,{"$f":"IFERROR(VLOOKUP(B523,'Склад ДКС'!A:C,3,0),\"\")","v":""},null,{"$f":"IFERROR(VLOOKUP(B523,'Склад ДКС'!A:C,2,0),\"\")","v":""}]
[null,null,null,{"$f":"IFERROR(VLOOKUP(B524,'Склад ДКС'!A:C,3,0),\"\")","v":""},null,{"$f":"IFERROR(VLOOKUP(B524,'Склад ДКС'!A:C,2,0),\"\")","v":""}]
[null,null,null,{"$f":"IFERROR(VLOOKUP(B525,'Склад ДКС'!A:C,3,0),\"\")","v":""},null,{"$f":"IFERROR(VLOOKUP(B525,'Склад ДКС'!A:C,2,0),\"\")","v":""}]
[null,null,null,{"$f":"IFERROR(VLOOKUP(B526,'Склад ДКС'!A:C,3,0),\"\")","v":""},null,{"$f":"IFERROR(VLOOKUP(B526,'Склад ДКС'!A:C,2,0),\"\")","v":""}]
[null,null,null,{"$f":"IFERROR(VLOOKUP(B527,'Склад ДКС'!A:C,3,0),\"\")","v":""},null,{"$f":"IFERROR(VLOOKUP(B527,'Склад ДКС'!A:C,2,0),\"\")","v":""}]
[null,null,null,{"$f":"IFERROR(VLOOKUP(B528,'Склад ДКС'!A:C,3,0),\"\")","v":""},null,{"$f":"IFERROR(VLOOKUP(B528,'Склад ДКС'!A:C,2,0),\"\")","v":""}]
[null,null,null,{"$f":"IFERROR(VLOOKUP(B529,'Склад ДКС'!A:C,3,0),\"\")","v":""},null,{"$f":"IFERROR(VLOOKUP(B529,'Склад ДКС'!A:C,2,0),\"\")","v":""}]
[null,null,null,{"$f":"IFERROR(VLOOKUP(B530,'Склад ДКС'!A:C,3,0),\"\")","v":""},null,{"$f":"IFERROR(VLOOKUP(B530,'Склад ДКС'!A:C,2,0),\"\")","v":""}]
[null,null,null,{"$f":"IFERROR(VLOOKUP(B531,'Склад ДКС'!A:C,3,0),\"\")","v":""},null,{"$f":"IFERROR(VLOOKUP(B531,'Склад ДКС'!A:C,2,0),\"\")","v":""}]
[null,null,null,{"$f":"IFERROR(VLOOKUP(B532,'Склад ДКС'!A:C,3,0),\"\")","v":""},null,{"$f":"IFERROR(VLOOKUP(B532,'Склад ДКС'!A:C,2,0),\"\")","v":""}]
[null,null,null,{"$f":"IFERROR(VLOOKUP(B533,'Склад ДКС'!A:C,3,0),\"\")","v":""},null,{"$f":"IFERROR(VLOOKUP(B533,'Склад ДКС'!A:C,2,0),\"\")","v":""}]
[null,null,null,{"$f":"IFERROR(VLOOKUP(B534,'Склад ДКС'!A:C,3,0),\"\")","v":""},null,{"$f":"IFERROR(VLOOKUP(B534,'Склад ДКС'!A:C,2,0),\"\")","v":""}]
[null,null,null,{"$f":"IFERROR(VLOOKUP(B535,'Склад ДКС'!A:C,3,0),\"\")","v":""},null,{"$f":"IFERROR(VLOOKUP(B535,'Склад ДКС'!A:C,2,0),\"\")","v":""}]
[null,null,null,{"$f":"IFERROR(VLOOKUP(B536,'Склад ДКС'!A:C,3,0),\"\")","v":""},null,{"$f":"IFERROR(VLOOKUP(B536,'Склад ДКС'!A:C,2,0),\"\")","v":""}]
[null,null,null,{"$f":"IFERROR(VLOOKUP(B537,'Склад ДКС'!A:C,3,0),\"\")","v":""},null,{"$f":"IFERROR(VLOOKUP(B537,'Склад ДКС'!A:C,2,0),\"\")","v":""}]
[null,null,null,{"$f":"IFERROR(VLOOKUP(B538,'Склад ДКС'!A:C,3,0),\"\")","v":""},null,{"$f":"IFERROR(VLOOKUP(B538,'Склад ДКС'!A:C,2,0),\"\")","v":""}]
[null,null,null,{"$f":"IFERROR(VLOOKUP(B539,'Склад ДКС'!A:C,3,0),\"\")","v":""},null,{"$f":"IFERROR(VLOOKUP(B539,'Склад ДКС'!A:C,2,0),\"\")","v":""}]
[null,null,null,{"$f":"IFERROR(VLOOKUP(B540,'Склад ДКС'!A:C,3,0),\"\")","v":""},null,{"$f":"IFERROR(VLOOKUP(B540,'Склад ДКС'!A:C,2,0),\"\")","v":""}]
[null,null,null,{"$f":"IFERROR(VLOOKUP(B541,'Склад ДКС'!A:C,3,0),\"\")","v":""},null,{"$f":"IFERROR(VLOOKUP(B541,'Склад ДКС'!A:C,2,0),\"\")","v":""}]
[null,null,null,{"$f":"IFERROR(VLOOKUP(B542,'Склад ДКС'!A:C,3,0),\"\")","v":""},null,{"$f":"IFERROR(VLOOKUP(B542,'Склад ДКС'!A:C,2,0),\"\")","v":""}]
[null,null,null,{"$f":"IFERROR(VLOOKUP(B543,'Склад ДКС'!A:C,3,0),\"\")","v":""},null,{"$f":"IFERROR(VLOOKUP(B543,'Склад ДКС'!A:C,2,0),\"\")","v":""}]
[null,null,null,{"$f":"IFERROR(VLOOKUP(B544,'Склад ДКС'!A:C,3,0),\"\")","v":""},null,{"$f":"IFERROR(VLOOKUP(B544,'Склад ДКС'!A:C,2,0),\"\")","v":""}]
[null,null,null,{"$f":"IFERROR(VLOOKUP(B545,'Склад ДКС'!A:C,3,0),\"\")","v":""},null,{"$f":"IFERROR(VLOOKUP(B545,'Склад ДКС'!A:C,2,0),\"\")","v":""}]
[null,null,null,{"$f":"IFERROR(VLOOKUP(B546,'Склад ДКС'!A:C,3,0),\"\")","v":""},null,{"$f":"IFERROR(VLOOKUP(B546,'Склад ДКС'!A:C,2,0),\"\")","v":""}]
[null,null,null,{"$f":"IFERROR(VLOOKUP(B547,'Склад ДКС'!A:C,3,0),\"\")","v":""},null,{"$f":"IFERROR(VLOOKUP(B547,'Склад ДКС'!A:C,2,0),\"\")","v":""}]
[null,null,null,{"$f":"IFERROR(VLOOKUP(B548,'Склад ДКС'!A:C,3,0),\"\")","v":""},null,{"$f":"IFERROR(VLOOKUP(B548,'Склад ДКС'!A:C,2,0),\"\")","v":""}]
[null,null,null,{"$f":"IFERROR(VLOOKUP(B549,'Склад ДКС'!A:C,3,0),\"\")","v":""},null,{"$f":"IFERROR(VLOOKUP(B549,'Склад ДКС'!A:C,2,0),\"\")","v":""}]
[null,null,null,{"$f":"IFERROR(VLOOKUP(B550,'Склад ДКС'!A:C,3,0),\"\")","v":""},null,{"$f":"IFERROR(VLOOKUP(B550,'Склад ДКС'!A:C,2,0),\"\")","v":""}]
[null,null,null,{"$f":"IFERROR(VLOOKUP(B551,'Склад ДКС'!A:C,3,0),\"\")","v":""},null,{"$f":"IFERROR(VLOOKUP(B551,'Склад ДКС'!A:C,2,0),\"\")","v":""}]
[null,null,null,{"$f":"IFERROR(VLOOKUP(B552,'Склад ДКС'!A:C,3,0),\"\")","v":""},null,{"$f":"IFERROR(VLOOKUP(B552,'Склад ДКС'!A:C,2,0),\"\")","v":""}]
[null,null,null,{"$f":"IFERROR(VLOOKUP(B553,'Склад ДКС'!A:C,3,0),\"\")","v":""},null,{"$f":"IFERROR(VLOOKUP(B553,'Склад ДКС'!A:C,2,0),\"\")","v":""}]
[null,null,null,{"$f":"IFERROR(VLOOKUP(B554,'Склад ДКС'!A:C,3,0),\"\")","v":""},null,{"$f":"IFERROR(VLOOKUP(B554,'Склад ДКС'!A:C,2,0),\"\")","v":""}]
[null,null,null,{"$f":"IFERROR(VLOOKUP(B555,'Склад ДКС'!A:C,3,0),\"\")","v":""},null,{"$f":"IFERROR(VLOOKUP(B555,'Склад ДКС'!A:C,2,0),\"\")","v":""}]
[null,null,null,{"$f":"IFERROR(VLOOKUP(B556,'Склад ДКС'!A:C,3,0),\"\")","v":""},null,{"$f":"IFERROR(VLOOKUP(B556,'Склад ДКС'!A:C,2,0),\"\")","v":""}]
[null,null,null,{"$f":"IFERROR(VLOOKUP(B557,'Склад ДКС'!A:C,3,0),\"\")","v":""},null,{"$f":"IFERROR(VLOOKUP(B557,'Склад ДКС'!A:C,2,0),\"\")","v":""}]
[null,null,null,{"$f":"IFERROR(VLOOKUP(B558,'Склад ДКС'!A:C,3,0),\"\")","v":""},null,{"$f":"IFERROR(VLOOKUP(B558,'Склад ДКС'!A:C,2,0),\"\")","v":""}]
[null,null,null,{"$f":"IFERROR(VLOOKUP(B559,'Склад ДКС'!A:C,3,0),\"\")","v":""},null,{"$f":"IFERROR(VLOOKUP(B559,'Склад ДКС'!A:C,2,0),\"\")","v":""}]
[null,null,null,{"$f":"IFERROR(VLOOKUP(B560,'Склад ДКС'!A:C,3,0),\"\")","v":""},null,{"$f":"IFERROR(VLOOKUP(B560,'Склад ДКС'!A:C,2,0),\"\")","v":""}]
[null,null,null,{"$f":"IFERROR(VLOOKUP(B561,'Склад ДКС'!A:C,3,0),\"\")","v":""},null,{"$f":"IFERROR(VLOOKUP(B561,'Склад ДКС'!A:C,2,0),\"\")","v":""}]
[null,null,null,{"$f":"IFERROR(VLOOKUP(B562,'Склад ДКС'!A:C,3,0),\"\")","v":""},null,{"$f":"IFERROR(VLOOKUP(B562,'Склад ДКС'!A:C,2,0),\"\")","v":""}]
[null,null,null,{"$f":"IFERROR(VLOOKUP(B563,'Склад ДКС'!A:C,3,0),\"\")","v":""},null,{"$f":"IFERROR(VLOOKUP(B563,'Склад ДКС'!A:C,2,0),\"\")","v":""}]
[null,null,null,{"$f":"IFERROR(VLOOKUP(B564,'Склад ДКС'!A:C,3,0),\"\")","v":""},null,{"$f":"IFERROR(VLOOKUP(B564,'Склад ДКС'!A:C,2,0),\"\")","v":""}]
[null,null,null,{"$f":"IFERROR(VLOOKUP(B565,'Склад ДКС'!A:C,3,0),\"\")","v":""},null,{"$f":"IFERROR(VLOOKUP(B565,'Склад ДКС'!A:C,2,0),\"\")","v":""}]
[null,null,null,{"$f":"IFERROR(VLOOKUP(B566,'Склад ДКС'!A:C,3,0),\"\")","v":""},null,{"$f":"IFERROR(VLOOKUP(B566,'Склад ДКС'!A:C,2,0),\"\")","v":""}]
[null,null,null,{"$f":"IFERROR(VLOOKUP(B567,'Склад ДКС'!A:C,3,0),\"\")","v":""},null,{"$f":"IFERROR(VLOOKUP(B567,'Склад ДКС'!A:C,2,0),\"\")","v":""}]
[null,null,null,{"$f":"IFERROR(VLOOKUP(B568,'Склад ДКС'!A:C,3,0),\"\")","v":""},null,{"$f":"IFERROR(VLOOKUP(B568,'Склад ДКС'!A:C,2,0),\"\")","v":""}]
[null,null,null,{"$f":"IFERROR(VLOOKUP(B569,'Склад ДКС'!A:C,3,0),\"\")","v":""},null,{"$f":"IFERROR(VLOOKUP(B569,'Склад ДКС'!A:C,2,0),\"\")","v":""}]
[null,null,null,{"$f":"IFERROR(VLOOKUP(B570,'Склад ДКС'!A:C,3,0),\"\")","v":""},null,{"$f":"IFERROR(VLOOKUP(B570,'Склад ДКС'!A:C,2,0),\"\")","v":""}]
[null,null,null,{"$f":"IFERROR(VLOOKUP(B571,'Склад ДКС'!A:C,3,0),\"\")","v":""},null,{"$f":"IFERROR(VLOOKUP(B571,'Склад ДКС'!A:C,2,0),\"\")","v":""}]
[null,null,null,{"$f":"IFERROR(VLOOKUP(B572,'Склад ДКС'!A:C,3,0),\"\")","v":""},null,{"$f":"IFERROR(VLOOKUP(B572,'Склад ДКС'!A:C,2,0),\"\")","v":""}]
[null,null,null,{"$f":"IFERROR(VLOOKUP(B573,'Склад ДКС'!A:C,3,0),\"\")","v":""},null,{"$f":"IFERROR(VLOOKUP(B573,'Склад ДКС'!A:C,2,0),\"\")","v":""}]
[null,null,null,{"$f":"IFERROR(VLOOKUP(B574,'Склад ДКС'!A:C,3,0),\"\")","v":""},null,{"$f":"IFERROR(VLOOKUP(B574,'Склад ДКС'!A:C,2,0),\"\")","v":""}]
[null,null,null,{"$f":"IFERROR(VLOOKUP(B575,'Склад ДКС'!A:C,3,0),\"\")","v":""},null,{"$f":"IFERROR(VLOOKUP(B575,'Склад ДКС'!A:C,2,0),\"\")","v":""}]
[null,null,null,{"$f":"IFERROR(VLOOKUP(B576,'Склад ДКС'!A:C,3,0),\"\")","v":""},null,{"$f":"IFERROR(VLOOKUP(B576,'Склад ДКС'!A:C,2,0),\"\")","v":""}]
[null,null,null,{"$f":"IFERROR(VLOOKUP(B577,'Склад ДКС'!A:C,3,0),\"\")","v":""},null,{"$f":"IFERROR(VLOOKUP(B577,'Склад ДКС'!A:C,2,0),\"\")","v":""}]
[null,null,null,{"$f":"IFERROR(VLOOKUP(B578,'Склад ДКС'!A:C,3,0),\"\")","v":""},null,{"$f":"IFERROR(VLOOKUP(B578,'Склад ДКС'!A:C,2,0),\"\")","v":""}]
[null,null,null,{"$f":"IFERROR(VLOOKUP(B579,'Склад ДКС'!A:C,3,0),\"\")","v":""},null,{"$f":"IFERROR(VLOOKUP(B579,'Склад ДКС'!A:C,2,0),\"\")","v":""}]
[null,null,null,{"$f":"IFERROR(VLOOKUP(B580,'Склад ДКС'!A:C,3,0),\"\")","v":""},null,{"$f":"IFERROR(VLOOKUP(B580,'Склад ДКС'!A:C,2,0),\"\")","v":""}]
[null,null,null,{"$f":"IFERROR(VLOOKUP(B581,'Склад ДКС'!A:C,3,0),\"\")","v":""},null,{"$f":"IFERROR(VLOOKUP(B581,'Склад ДКС'!A:C,2,0),\"\")","v":""}]
[null,null,null,{"$f":"IFERROR(VLOOKUP(B582,'Склад ДКС'!A:C,3,0),\"\")","v":""},null,{"$f":"IFERROR(VLOOKUP(B582,'Склад ДКС'!A:C,2,0),\"\")","v":""}]
[null,null,null,{"$f":"IFERROR(VLOOKUP(B583,'Склад ДКС'!A:C,3,0),\"\")","v":""},null,{"$f":"IFERROR(VLOOKUP(B583,'Склад ДКС'!A:C,2,0),\"\")","v":""}]
[null,null,null,{"$f":"IFERROR(VLOOKUP(B584,'Склад ДКС'!A:C,3,0),\"\")","v":""},null,{"$f":"IFERROR(VLOOKUP(B584,'Склад ДКС'!A:C,2,0),\"\")","v":""}]
[null,null,null,{"$f":"IFERROR(VLOOKUP(B585,'Склад ДКС'!A:C,3,0),\"\")","v":""},null,{"$f":"IFERROR(VLOOKUP(B585,'Склад ДКС'!A:C,2,0),\"\")","v":""}]
[null,null,null,{"$f":"IFERROR(VLOOKUP(B586,'Склад ДКС'!A:C,3,0),\"\")","v":""},null,{"$f":"IFERROR(VLOOKUP(B586,'Склад ДКС'!A:C,2,0),\"\")","v":""}]
[null,null,null,{"$f":"IFERROR(VLOOKUP(B587,'Склад ДКС'!A:C,3,0),\"\")","v":""},null,{"$f":"IFERROR(VLOOKUP(B587,'Склад ДКС'!A:C,2,0),\"\")","v":""}]
[null,null,null,{"$f":"IFERROR(VLOOKUP(B588,'Склад ДКС'!A:C,3,0),\"\")","v":""},null,{"$f":"IFERROR(VLOOKUP(B588,'Склад ДКС'!A:C,2,0),\"\")","v":""}]
[null,null,null,{"$f":"IFERROR(VLOOKUP(B589,'Склад ДКС'!A:C,3,0),\"\")","v":""},null,{"$f":"IFERROR(VLOOKUP(B589,'Склад ДКС'!A:C,2,0),\"\")","v":""}]
[null,null,null,{"$f":"IFERROR(VLOOKUP(B590,'Склад ДКС'!A:C,3,0),\"\")","v":""},null,{"$f":"IFERROR(VLOOKUP(B590,'Склад ДКС'!A:C,2,0),\"\")","v":""}]
[null,null,null,{"$f":"IFERROR(VLOOKUP(B591,'Склад ДКС'!A:C,3,0),\"\")","v":""},null,{"$f":"IFERROR(VLOOKUP(B591,'Склад ДКС'!A:C,2,0),\"\")","v":""}]
[null,null,null,{"$f":"IFERROR(VLOOKUP(B592,'Склад ДКС'!A:C,3,0),\"\")","v":""},null,{"$f":"IFERROR(VLOOKUP(B592,'Склад ДКС'!A:C,2,0),\"\")","v":""}]
[null,null,null,{"$f":"IFERROR(VLOOKUP(B593,'Склад ДКС'!A:C,3,0),\"\")","v":""},null,{"$f":"IFERROR(VLOOKUP(B593,'Склад ДКС'!A:C,2,0),\"\")","v":""}]
[null,null,null,{"$f":"IFERROR(VLOOKUP(B594,'Склад ДКС'!A:C,3,0),\"\")","v":""},null,{"$f":"IFERROR(VLOOKUP(B594,'Склад ДКС'!A:C,2,0),\"\")","v":""}]
[null,null,null,{"$f":"IFERROR(VLOOKUP(B595,'Склад ДКС'!A:C,3,0),\"\")","v":""},null,{"$f":"IFERROR(VLOOKUP(B595,'Склад ДКС'!A:C,2,0),\"\")","v":""}]
[null,null,null,{"$f":"IFERROR(VLOOKUP(B596,'Склад ДКС'!A:C,3,0),\"\")","v":""},null,{"$f":"IFERROR(VLOOKUP(B596,'Склад ДКС'!A:C,2,0),\"\")","v":""}]
[null,null,null,{"$f":"IFERROR(VLOOKUP(B597,'Склад ДКС'!A:C,3,0),\"\")","v":""},null,{"$f":"IFERROR(VLOOKUP(B597,'Склад ДКС'!A:C,2,0),\"\")","v":""}]
[null,null,null,{"$f":"IFERROR(VLOOKUP(B598,'Склад ДКС'!A:C,3,0),\"\")","v":""},null,{"$f":"IFERROR(VLOOKUP(B598,'Склад ДКС'!A:C,2,0),\"\")","v":""}]
[null,null,null,{"$f":"IFERROR(VLOOKUP(B599,'Склад ДКС'!A:C,3,0),\"\")","v":""},null,{"$f":"IFERROR(VLOOKUP(B599,'Склад ДКС'!A:C,2,0),\"\")","v":""}]
[null,null,null,{"$f":"IFERROR(VLOOKUP(B600,'Склад ДКС'!A:C,3,0),\"\")","v":""},null,{"$f":"IFERROR(VLOOKUP(B600,'Склад ДКС'!A:C,2,0),\"\")","v":""}]
[null,null,null,{"$f":"IFERROR(VLOOKUP(B601,'Склад ДКС'!A:C,3,0),\"\")","v":""},null,{"$f":"IFERROR(VLOOKUP(B601,'Склад ДКС'!A:C,2,0),\"\")","v":""}]
[null,null,null,{"$f":"IFERROR(VLOOKUP(B602,'Склад ДКС'!A:C,3,0),\"\")","v":""},null,{"$f":"IFERROR(VLOOKUP(B602,'Склад ДКС'!A:C,2,0),\"\")","v":""}]
[null,null,null,{"$f":"IFERROR(VLOOKUP(B603,'Склад ДКС'!A:C,3,0),\"\")","v":""},null,{"$f":"IFERROR(VLOOKUP(B603,'Склад ДКС'!A:C,2,0),\"\")","v":""}]
[null,null,null,{"$f":"IFERROR(VLOOKUP(B604,'Склад ДКС'!A:C,3,0),\"\")","v":""},null,{"$f":"IFERROR(VLOOKUP(B604,'Склад ДКС'!A:C,2,0),\"\")","v":""}]
[null,null,null,{"$f":"IFERROR(VLOOKUP(B605,'Склад ДКС'!A:C,3,0),\"\")","v":""},null,{"$f":"IFERROR(VLOOKUP(B605,'Склад ДКС'!A:C,2,0),\"\")","v":""}]
[null,null,null,{"$f":"IFERROR(VLOOKUP(B606,'Склад ДКС'!A:C,3,0),\"\")","v":""},null,{"$f":"IFERROR(VLOOKUP(B606,'Склад ДКС'!A:C,2,0),\"\")","v":""}]
[null,null,null,{"$f":"IFERROR(VLOOKUP(B607,'Склад ДКС'!A:C,3,0),\"\")","v":""},null,{"$f":"IFERROR(VLOOKUP(B607,'Склад ДКС'!A:C,2,0),\"\")","v":""}]
[null,null,null,{"$f":"IFERROR(VLOOKUP(B608,'Склад ДКС'!A:C,3,0),\"\")","v":""},null,{"$f":"IFERROR(VLOOKUP(B608,'Склад ДКС'!A:C,2,0),\"\")","v":""}]
[null,null,null,{"$f":"IFERROR(VLOOKUP(B609,'Склад ДКС'!A:C,3,0),\"\")","v":""},null,{"$f":"IFERROR(VLOOKUP(B609,'Склад ДКС'!A:C,2,0),\"\")","v":""}]
[null,null,null,{"$f":"IFERROR(VLOOKUP(B610,'Склад ДКС'!A:C,3,0),\"\")","v":""},null,{"$f":"IFERROR(VLOOKUP(B610,'Склад ДКС'!A:C,2,0),\"\")","v":""}]
[null,null,null,{"$f":"IFERROR(VLOOKUP(B611,'Склад ДКС'!A:C,3,0),\"\")","v":""},null,{"$f":"IFERROR(VLOOKUP(B611,'Склад ДКС'!A:C,2,0),\"\")","v":""}]
[null,null,null,{"$f":"IFERROR(VLOOKUP(B612,'Склад ДКС'!A:C,3,0),\"\")","v":""},null,{"$f":"IFERROR(VLOOKUP(B612,'Склад ДКС'!A:C,2,0),\"\")","v":""}]
[null,null,null,{"$f":"IFERROR(VLOOKUP(B613,'Склад ДКС'!A:C,3,0),\"\")","v":""},null,{"$f":"IFERROR(VLOOKUP(B613,'Склад ДКС'!A:C,2,0),\"\")","v":""}]
[null,null,null,{"$f":"IFERROR(VLOOKUP(B614,'Склад ДКС'!A:C,3,0),\"\")","v":""},null,{"$f":"IFERROR(VLOOKUP(B614,'Склад ДКС'!A:C,2,0),\"\")","v":""}]
[null,null,null,{"$f":"IFERROR(VLOOKUP(B615,'Склад ДКС'!A:C,3,0),\"\")","v":""},null,{"$f":"IFERROR(VLOOKUP(B615,'Склад ДКС'!A:C,2,0),\"\")","v":""}]
[null,null,null,{"$f":"IFERROR(VLOOKUP(B616,'Склад ДКС'!A:C,3,0),\"\")","v":""},null,{"$f":"IFERROR(VLOOKUP(B616,'Склад ДКС'!A:C,2,0),\"\")","v":""}]
[null,null,null,{"$f":"IFERROR(VLOOKUP(B617,'Склад ДКС'!A:C,3,0),\"\")","v":""},null,{"$f":"IFERROR(VLOOKUP(B617,'Склад ДКС'!A:C,2,0),\"\")","v":""}]
[null,null,null,{"$f":"IFERROR(VLOOKUP(B618,'Склад ДКС'!A:C,3,0),\"\")","v":""},null,{"$f":"IFERROR(VLOOKUP(B618,'Склад ДКС'!A:C,2,0),\"\")","v":""}]
[null,null,null,{"$f":"IFERROR(VLOOKUP(B619,'Склад ДКС'!A:C,3,0),\"\")","v":""},null,{"$f":"IFERROR(VLOOKUP(B619,'Склад ДКС'!A:C,2,0),\"\")","v":""}]
[null,null,null,{"$f":"IFERROR(VLOOKUP(B620,'Склад ДКС'!A:C,3,0),\"\")","v":""},null,{"$f":"IFERROR(VLOOKUP(B620,'Склад ДКС'!A:C,2,0),\"\")","v":""}]
[null,null,null,{"$f":"IFERROR(VLOOKUP(B621,'Склад ДКС'!A:C,3,0),\"\")","v":""},null,{"$f":"IFERROR(VLOOKUP(B621,'Склад ДКС'!A:C,2,0),\"\")","v":""}]
[null,null,null,{"$f":"IFERROR(VLOOKUP(B622,'Склад ДКС'!A:C,3,0),\"\")","v":""},null,{"$f":"IFERROR(VLOOKUP(B622,'Склад ДКС'!A:C,2,0),\"\")","v":""}]
[null,null,null,{"$f":"IFERROR(VLOOKUP(B623,'Склад ДКС'!A:C,3,0),\"\")","v":""},null,{"$f":"IFERROR(VLOOKUP(B623,'Склад ДКС'!A:C,2,0),\"\")","v":""}]
[null,null,null,{"$f":"IFERROR(VLOOKUP(B624,'Склад ДКС'!A:C,3,0),\"\")","v":""},null,{"$f":"IFERROR(VLOOKUP(B624,'Склад ДКС'!A:C,2,0),\"\")","v":""}]
[null,null,null,{"$f":"IFERROR(VLOOKUP(B625,'Склад ДКС'!A:C,3,0),\"\")","v":""},null,{"$f":"IFERROR(VLOOKUP(B625,'Склад ДКС'!A:C,2,0),\"\")","v":""}]
[null,null,null,{"$f":"IFERROR(VLOOKUP(B626,'Склад ДКС'!A:C,3,0),\"\")","v":""},null,{"$f":"IFERROR(VLOOKUP(B626,'Склад ДКС'!A:C,2,0),\"\")","v":""}]
[null,null,null,{"$f":"IFERROR(VLOOKUP(B627,'Склад ДКС'!A:C,3,0),\"\")","v":""},null,{"$f":"IFERROR(VLOOKUP(B627,'Склад ДКС'!A:C,2,0),\"\")","v":""}]
[null,null,null,{"$f":"IFERROR(VLOOKUP(B628,'Склад ДКС'!A:C,3,0),\"\")","v":""},null,{"$f":"IFERROR(VLOOKUP(B628,'Склад ДКС'!A:C,2,0),\"\")","v":""}]
[null,null,null,{"$f":"IFERROR(VLOOKUP(B629,'Склад ДКС'!A:C,3,0),\"\")","v":""},null,{"$f":"IFERROR(VLOOKUP(B629,'Склад ДКС'!A:C,2,0),\"\")","v":""}]
[null,null,null,{"$f":"IFERROR(VLOOKUP(B630,'Склад ДКС'!A:C,3,0),\"\")","v":""},null,{"$f":"IFERROR(VLOOKUP(B630,'Склад ДКС'!A:C,2,0),\"\")","v":""}]
[null,null,null,{"$f":"IFERROR(VLOOKUP(B631,'Склад ДКС'!A:C,3,0),\"\")","v":""},null,{"$f":"IFERROR(VLOOKUP(B631,'Склад ДКС'!A:C,2,0),\"\")","v":""}]
[null,null,null,{"$f":"IFERROR(VLOOKUP(B632,'Склад ДКС'!A:C,3,0),\"\")","v":""},null,{"$f":"IFERROR(VLOOKUP(B632,'Склад ДКС'!A:C,2,0),\"\")","v":""}]
[null,null,null,{"$f":"IFERROR(VLOOKUP(B633,'Склад ДКС'!A:C,3,0),\"\")","v":""},null,{"$f":"IFERROR(VLOOKUP(B633,'Склад ДКС'!A:C,2,0),\"\")","v":""}]
[null,null,null,{"$f":"IFERROR(VLOOKUP(B634,'Склад ДКС'!A:C,3,0),\"\")","v":""},null,{"$f":"IFERROR(VLOOKUP(B634,'Склад ДКС'!A:C,2,0),\"\")","v":""}]
[null,null,null,{"$f":"IFERROR(VLOOKUP(B635,'Склад ДКС'!A:C,3,0),\"\")","v":""},null,{"$f":"IFERROR(VLOOKUP(B635,'Склад ДКС'!A:C,2,0),\"\")","v":""}]
[null,null,null,{"$f":"IFERROR(VLOOKUP(B636,'Склад ДКС'!A:C,3,0),\"\")","v":""},null,{"$f":"IFERROR(VLOOKUP(B636,'Склад ДКС'!A:C,2,0),\"\")","v":""}]
[null,null,null,{"$f":"IFERROR(VLOOKUP(B637,'Склад ДКС'!A:C,3,0),\"\")","v":""},null,{"$f":"IFERROR(VLOOKUP(B637,'Склад ДКС'!A:C,2,0),\"\")","v":""}]
[null,null,null,{"$f":"IFERROR(VLOOKUP(B638,'Склад ДКС'!A:C,3,0),\"\")","v":""},null,{"$f":"IFERROR(VLOOKUP(B638,'Склад ДКС'!A:C,2,0),\"\")","v":""}]
[null,null,null,{"$f":"IFERROR(VLOOKUP(B639,'Склад ДКС'!A:C,3,0),\"\")","v":""},null,{"$f":"IFERROR(VLOOKUP(B639,'Склад ДКС'!A:C,2,0),\"\")","v":""}]
[null,null,null,{"$f":"IFERROR(VLOOKUP(B640,'Склад ДКС'!A:C,3,0),\"\")","v":""},null,{"$f":"IFERROR(VLOOKUP(B640,'Склад ДКС'!A:C,2,0),\"\")","v":""}]
[null,null,null,{"$f":"IFERROR(VLOOKUP(B641,'Склад ДКС'!A:C,3,0),\"\")","v":""},null,{"$f":"IFERROR(VLOOKUP(B641,'Склад ДКС'!A:C,2,0),\"\")","v":""}]
[null,null,null,{"$f":"IFERROR(VLOOKUP(B642,'Склад ДКС'!A:C,3,0),\"\")","v":""},null,{"$f":"IFERROR(VLOOKUP(B642,'Склад ДКС'!A:C,2,0),\"\")","v":""}]
[null,null,null,{"$f":"IFERROR(VLOOKUP(B643,'Склад ДКС'!A:C,3,0),\"\")","v":""},null,{"$f":"IFERROR(VLOOKUP(B643,'Склад ДКС'!A:C,2,0),\"\")","v":""}]
[null,null,null,{"$f":"IFERROR(VLOOKUP(B644,'Склад ДКС'!A:C,3,0),\"\")","v":""},null,{"$f":"IFERROR(VLOOKUP(B644,'Склад ДКС'!A:C,2,0),\"\")","v":""}]
[null,null,null,{"$f":"IFERROR(VLOOKUP(B645,'Склад ДКС'!A:C,3,0),\"\")","v":""},null,{"$f":"IFERROR(VLOOKUP(B645,'Склад ДКС'!A:C,2,0),\"\")","v":""}]
[null,null,null,{"$f":"IFERROR(VLOOKUP(B646,'Склад ДКС'!A:C,3,0),\"\")","v":""},null,{"$f":"IFERROR(VLOOKUP(B646,'Склад ДКС'!A:C,2,0),\"\")","v":""}]
[null,null,null,{"$f":"IFERROR(VLOOKUP(B647,'Склад ДКС'!A:C,3,0),\"\")","v":""},null,{"$f":"IFERROR(VLOOKUP(B647,'Склад ДКС'!A:C,2,0),\"\")","v":""}]
[null,null,null,{"$f":"IFERROR(VLOOKUP(B648,'Склад ДКС'!A:C,3,0),\"\")","v":""},null,{"$f":"IFERROR(VLOOKUP(B648,'Склад ДКС'!A:C,2,0),\"\")","v":""}]
[null,null,null,{"$f":"IFERROR(VLOOKUP(B649,'Склад ДКС'!A:C,3,0),\"\")","v":""},null,{"$f":"IFERROR(VLOOKUP(B649,'Склад ДКС'!A:C,2,0),\"\")","v":""}]
[null,null,null,{"$f":"IFERROR(VLOOKUP(B650,'Склад ДКС'!A:C,3,0),\"\")","v":""},null,{"$f":"IFERROR(VLOOKUP(B650,'Склад ДКС'!A:C,2,0),\"\")","v":""}]
[null,null,null,{"$f":"IFERROR(VLOOKUP(B651,'Склад ДКС'!A:C,3,0),\"\")","v":""},null,{"$f":"IFERROR(VLOOKUP(B651,'Склад ДКС'!A:C,2,0),\"\")","v":""}]
[null,null,null,{"$f":"IFERROR(VLOOKUP(B652,'Склад ДКС'!A:C,3,0),\"\")","v":""},null,{"$f":"IFERROR(VLOOKUP(B652,'Склад ДКС'!A:C,2,0),\"\")","v":""}]
[null,null,null,{"$f":"IFERROR(VLOOKUP(B653,'Склад ДКС'!A:C,3,0),\"\")","v":""},null,{"$f":"IFERROR(VLOOKUP(B653,'Склад ДКС'!A:C,2,0),\"\")","v":""}]
[null,null,null,{"$f":"IFERROR(VLOOKUP(B654,'Склад ДКС'!A:C,3,0),\"\")","v":""},null,{"$f":"IFERROR(VLOOKUP(B654,'Склад ДКС'!A:C,2,0),\"\")","v":""}]
[null,null,null,{"$f":"IFERROR(VLOOKUP(B655,'Склад ДКС'!A:C,3,0),\"\")","v":""},null,{"$f":"IFERROR(VLOOKUP(B655,'Склад ДКС'!A:C,2,0),\"\")","v":""}]
[null,null,null,{"$f":"IFERROR(VLOOKUP(B656,'Склад ДКС'!A:C,3,0),\"\")","v":""},null,{"$f":"IFERROR(VLOOKUP(B656,'Склад ДКС'!A:C,2,0),\"\")","v":""}]
[null,null,null,{"$f":"IFERROR(VLOOKUP(B657,'Склад ДКС'!A:C,3,0),\"\")","v":""},null,{"$f":"IFERROR(VLOOKUP(B657,'Склад ДКС'!A:C,2,0),\"\")","v":""}]
[null,null,null,{"$f":"IFERROR(VLOOKUP(B658,'Склад ДКС'!A:C,3,0),\"\")","v":""},null,{"$f":"IFERROR(VLOOKUP(B658,'Склад ДКС'!A:C,2,0),\"\")","v":""}]
[null,null,null,{"$f":"IFERROR(VLOOKUP(B659,'Склад ДКС'!A:C,3,0),\"\")","v":""},null,{"$f":"IFERROR(VLOOKUP(B659,'Склад ДКС'!A:C,2,0),\"\")","v":""}]
[null,null,null,{"$f":"IFERROR(VLOOKUP(B660,'Склад ДКС'!A:C,3,0),\"\")","v":""},null,{"$f":"IFERROR(VLOOKUP(B660,'Склад ДКС'!A:C,2,0),\"\")","v":""}]
[null,null,null,{"$f":"IFERROR(VLOOKUP(B661,'Склад ДКС'!A:C,3,0),\"\")","v":""},null,{"$f":"IFERROR(VLOOKUP(B661,'Склад ДКС'!A:C,2,0),\"\")","v":""}]
[null,null,null,{"$f":"IFERROR(VLOOKUP(B662,'Склад ДКС'!A:C,3,0),\"\")","v":""},null,{"$f":"IFERROR(VLOOKUP(B662,'Склад ДКС'!A:C,2,0),\"\")","v":""}]
[null,null,null,{"$f":"IFERROR(VLOOKUP(B663,'Склад ДКС'!A:C,3,0),\"\")","v":""},null,{"$f":"IFERROR(VLOOKUP(B663,'Склад ДКС'!A:C,2,0),\"\")","v":""}]
[null,null,null,{"$f":"IFERROR(VLOOKUP(B664,'Склад ДКС'!A:C,3,0),\"\")","v":""},null,{"$f":"IFERROR(VLOOKUP(B664,'Склад ДКС'!A:C,2,0),\"\")","v":""}]
[null,null,null,{"$f":"IFERROR(VLOOKUP(B665,'Склад ДКС'!A:C,3,0),\"\")","v":""},null,{"$f":"IFERROR(VLOOKUP(B665,'Склад ДКС'!A:C,2,0),\"\")","v":""}]
[null,null,null,{"$f":"IFERROR(VLOOKUP(B666,'Склад ДКС'!A:C,3,0),\"\")","v":""},null,{"$f":"IFERROR(VLOOKUP(B666,'Склад ДКС'!A:C,2,0),\"\")","v":""}]
[null,null,null,{"$f":"IFERROR(VLOOKUP(B667,'Склад ДКС'!A:C,3,0),\"\")","v":""},null,{"$f":"IFERROR(VLOOKUP(B667,'Склад ДКС'!A:C,2,0),\"\")","v":""}]
[null,null,null,{"$f":"IFERROR(VLOOKUP(B668,'Склад ДКС'!A:C,3,0),\"\")","v":""},null,{"$f":"IFERROR(VLOOKUP(B668,'Склад ДКС'!A:C,2,0),\"\")","v":""}]
[null,null,null,{"$f":"IFERROR(VLOOKUP(B669,'Склад ДКС'!A:C,3,0),\"\")","v":""},null,{"$f":"IFERROR(VLOOKUP(B669,'Склад ДКС'!A:C,2,0),\"\")","v":""}]
[null,null,null,{"$f":"IFERROR(VLOOKUP(B670,'Склад ДКС'!A:C,3,0),\"\")","v":""},null,{"$f":"IFERROR(VLOOKUP(B670,'Склад ДКС'!A:C,2,0),\"\")","v":""}]
[null,null,null,{"$f":"IFERROR(VLOOKUP(B671,'Склад ДКС'!A:C,3,0),\"\")","v":""},null,{"$f":"IFERROR(VLOOKUP(B671,'Склад ДКС'!A:C,2,0),\"\")","v":""}]
[null,null,null,{"$f":"IFERROR(VLOOKUP(B672,'Склад ДКС'!A:C,3,0),\"\")","v":""},null,{"$f":"IFERROR(VLOOKUP(B672,'Склад ДКС'!A:C,2,0),\"\")","v":""}]
[null,null,null,{"$f":"IFERROR(VLOOKUP(B673,'Склад ДКС'!A:C,3,0),\"\")","v":""},null,{"$f":"IFERROR(VLOOKUP(B673,'Склад ДКС'!A:C,2,0),\"\")","v":""}]
[null,null,null,{"$f":"IFERROR(VLOOKUP(B674,'Склад ДКС'!A:C,3,0),\"\")","v":""},null,{"$f":"IFERROR(VLOOKUP(B674,'Склад ДКС'!A:C,2,0),\"\")","v":""}]
[null,null,null,{"$f":"IFERROR(VLOOKUP(B675,'Склад ДКС'!A:C,3,0),\"\")","v":""},null,{"$f":"IFERROR(VLOOKUP(B675,'Склад ДКС'!A:C,2,0),\"\")","v":""}]
[null,null,null,{"$f":"IFERROR(VLOOKUP(B676,'Склад ДКС'!A:C,3,0),\"\")","v":""},null,{"$f":"IFERROR(VLOOKUP(B676,'Склад ДКС'!A:C,2,0),\"\")","v":""}]
[null,null,null,{"$f":"IFERROR(VLOOKUP(B677,'Склад ДКС'!A:C,3,0),\"\")","v":""},null,{"$f":"IFERROR(VLOOKUP(B677,'Склад ДКС'!A:C,2,0),\"\")","v":""}]
[null,null,null,{"$f":"IFERROR(VLOOKUP(B678,'Склад ДКС'!A:C,3,0),\"\")","v":""},null,{"$f":"IFERROR(VLOOKUP(B678,'Склад ДКС'!A:C,2,0),\"\")","v":""}]
[null,null,null,{"$f":"IFERROR(VLOOKUP(B679,'Склад ДКС'!A:C,3,0),\"\")","v":""},null,{"$f":"IFERROR(VLOOKUP(B679,'Склад ДКС'!A:C,2,0),\"\")","v":""}]
[null,null,null,{"$f":"IFERROR(VLOOKUP(B680,'Склад ДКС'!A:C,3,0),\"\")","v":""},null,{"$f":"IFERROR(VLOOKUP(B680,'Склад ДКС'!A:C,2,0),\"\")","v":""}]
[null,null,null,{"$f":"IFERROR(VLOOKUP(B681,'Склад ДКС'!A:C,3,0),\"\")","v":""},null,{"$f":"IFERROR(VLOOKUP(B681,'Склад ДКС'!A:C,2,0),\"\")","v":""}]
[null,null,null,{"$f":"IFERROR(VLOOKUP(B682,'Склад ДКС'!A:C,3,0),\"\")","v":""},null,{"$f":"IFERROR(VLOOKUP(B682,'Склад ДКС'!A:C,2,0),\"\")","v":""}]
[null,null,null,{"$f":"IFERROR(VLOOKUP(B683,'Склад ДКС'!A:C,3,0),\"\")","v":""},null,{"$f":"IFERROR(VLOOKUP(B683,'Склад ДКС'!A:C,2,0),\"\")","v":""}]
[null,null,null,{"$f":"IFERROR(VLOOKUP(B684,'Склад ДКС'!A:C,3,0),\"\")","v":""},null,{"$f":"IFERROR(VLOOKUP(B684,'Склад ДКС'!A:C,2,0),\"\")","v":""}]
[null,null,null,{"$f":"IFERROR(VLOOKUP(B685,'Склад ДКС'!A:C,3,0),\"\")","v":""},null,{"$f":"IFERROR(VLOOKUP(B685,'Склад ДКС'!A:C,2,0),\"\")","v":""}]
[null,null,null,{"$f":"IFERROR(VLOOKUP(B686,'Склад ДКС'!A:C,3,0),\"\")","v":""},null,{"$f":"IFERROR(VLOOKUP(B686,'Склад ДКС'!A:C,2,0),\"\")","v":""}]
[null,null,null,{"$f":"IFERROR(VLOOKUP(B687,'Склад ДКС'!A:C,3,0),\"\")","v":""},null,{"$f":"IFERROR(VLOOKUP(B687,'Склад ДКС'!A:C,2,0),\"\")","v":""}]
[null,null,null,{"$f":"IFERROR(VLOOKUP(B688,'Склад ДКС'!A:C,3,0),\"\")","v":""},null,{"$f":"IFERROR(VLOOKUP(B688,'Склад ДКС'!A:C,2,0),\"\")","v":""}]
[null,null,null,{"$f":"IFERROR(VLOOKUP(B689,'Склад ДКС'!A:C,3,0),\"\")","v":""},null,{"$f":"IFERROR(VLOOKUP(B689,'Склад ДКС'!A:C,2,0),\"\")","v":""}]
[null,null,null,{"$f":"IFERROR(VLOOKUP(B690,'Склад ДКС'!A:C,3,0),\"\")","v":""},null,{"$f":"IFERROR(VLOOKUP(B690,'Склад ДКС'!A:C,2,0),\"\")","v":""}]
[null,null,null,{"$f":"IFERROR(VLOOKUP(B691,'Склад ДКС'!A:C,3,0),\"\")","v":""},null,{"$f":"IFERROR(VLOOKUP(B691,'Склад ДКС'!A:C,2,0),\"\")","v":""}]
[null,null,null,{"$f":"IFERROR(VLOOKUP(B692,'Склад ДКС'!A:C,3,0),\"\")","v":""},null,{"$f":"IFERROR(VLOOKUP(B692,'Склад ДКС'!A:C,2,0),\"\")","v":""}]
[null,null,null,{"$f":"IFERROR(VLOOKUP(B693,'Склад ДКС'!A:C,3,0),\"\")","v":""},null,{"$f":"IFERROR(VLOOKUP(B693,'Склад ДКС'!A:C,2,0),\"\")","v":""}]
[null,null,null,{"$f":"IFERROR(VLOOKUP(B694,'Склад ДКС'!A:C,3,0),\"\")","v":""},null,{"$f":"IFERROR(VLOOKUP(B694,'Склад ДКС'!A:C,2,0),\"\")","v":""}]
[null,null,null,{"$f":"IFERROR(VLOOKUP(B695,'Склад ДКС'!A:C,3,0),\"\")","v":""},null,{"$f":"IFERROR(VLOOKUP(B695,'Склад ДКС'!A:C,2,0),\"\")","v":""}]
[null,null,null,{"$f":"IFERROR(VLOOKUP(B696,'Склад ДКС'!A:C,3,0),\"\")","v":""},null,{"$f":"IFERROR(VLOOKUP(B696,'Склад ДКС'!A:C,2,0),\"\")","v":""}]
[null,null,null,{"$f":"IFERROR(VLOOKUP(B697,'Склад ДКС'!A:C,3,0),\"\")","v":""},null,{"$f":"IFERROR(VLOOKUP(B697,'Склад ДКС'!A:C,2,0),\"\")","v":""}]
[null,null,null,{"$f":"IFERROR(VLOOKUP(B698,'Склад ДКС'!A:C,3,0),\"\")","v":""},null,{"$f":"IFERROR(VLOOKUP(B698,'Склад ДКС'!A:C,2,0),\"\")","v":""}]
[null,null,null,{"$f":"IFERROR(VLOOKUP(B699,'Склад ДКС'!A:C,3,0),\"\")","v":""},null,{"$f":"IFERROR(VLOOKUP(B699,'Склад ДКС'!A:C,2,0),\"\")","v":""}]
[null,null,null,{"$f":"IFERROR(VLOOKUP(B700,'Склад ДКС'!A:C,3,0),\"\")","v":""},null,{"$f":"IFERROR(VLOOKUP(B700,'Склад ДКС'!A:C,2,0),\"\")","v":""}]
[null,null,null,{"$f":"IFERROR(VLOOKUP(B701,'Склад ДКС'!A:C,3,0),\"\")","v":""},null,{"$f":"IFERROR(VLOOKUP(B701,'Склад ДКС'!A:C,2,0),\"\")","v":""}]
[null,null,null,{"$f":"IFERROR(VLOOKUP(B702,'Склад ДКС'!A:C,3,0),\"\")","v":""},null,{"$f":"IFERROR(VLOOKUP(B702,'Склад ДКС'!A:C,2,0),\"\")","v":""}]
[null,null,null,{"$f":"IFERROR(VLOOKUP(B703,'Склад ДКС'!A:C,3,0),\"\")","v":""},null,{"$f":"IFERROR(VLOOKUP(B703,'Склад ДКС'!A:C,2,0),\"\")","v":""}]
[null,null,null,{"$f":"IFERROR(VLOOKUP(B704,'Склад ДКС'!A:C,3,0),\"\")","v":""},null,{"$f":"IFERROR(VLOOKUP(B704,'Склад ДКС'!A:C,2,0),\"\")","v":""}]
[null,null,null,{"$f":"IFERROR(VLOOKUP(B705,'Склад ДКС'!A:C,3,0),\"\")","v":""},null,{"$f":"IFERROR(VLOOKUP(B705,'Склад ДКС'!A:C,2,0),\"\")","v":""}]
[null,null,null,{"$f":"IFERROR(VLOOKUP(B706,'Склад ДКС'!A:C,3,0),\"\")","v":""},null,{"$f":"IFERROR(VLOOKUP(B706,'Склад ДКС'!A:C,2,0),\"\")","v":""}]
[null,null,null,{"$f":"IFERROR(VLOOKUP(B707,'Склад ДКС'!A:C,3,0),\"\")","v":""},null,{"$f":"IFERROR(VLOOKUP(B707,'Склад ДКС'!A:C,2,0),\"\")","v":""}]
[null,null,null,{"$f":"IFERROR(VLOOKUP(B708,'Склад ДКС'!A:C,3,0),\"\")","v":""},null,{"$f":"IFERROR(VLOOKUP(B708,'Склад ДКС'!A:C,2,0),\"\")","v":""}]
[null,null,null,{"$f":"IFERROR(VLOOKUP(B709,'Склад ДКС'!A:C,3,0),\"\")","v":""},null,{"$f":"IFERROR(VLOOKUP(B709,'Склад ДКС'!A:C,2,0),\"\")","v":""}]
[null,null,null,{"$f":"IFERROR(VLOOKUP(B710,'Склад ДКС'!A:C,3,0),\"\")","v":""},null,{"$f":"IFERROR(VLOOKUP(B710,'Склад ДКС'!A:C,2,0),\"\")","v":""}]
[null,null,null,{"$f":"IFERROR(VLOOKUP(B711,'Склад ДКС'!A:C,3,0),\"\")","v":""},null,{"$f":"IFERROR(VLOOKUP(B711,'Склад ДКС'!A:C,2,0),\"\")","v":""}]
[null,null,null,{"$f":"IFERROR(VLOOKUP(B712,'Склад ДКС'!A:C,3,0),\"\")","v":""},null,{"$f":"IFERROR(VLOOKUP(B712,'Склад ДКС'!A:C,2,0),\"\")","v":""}]
[null,null,null,{"$f":"IFERROR(VLOOKUP(B713,'Склад ДКС'!A:C,3,0),\"\")","v":""},null,{"$f":"IFERROR(VLOOKUP(B713,'Склад ДКС'!A:C,2,0),\"\")","v":""}]
[null,null,null,{"$f":"IFERROR(VLOOKUP(B714,'Склад ДКС'!A:C,3,0),\"\")","v":""},null,{"$f":"IFERROR(VLOOKUP(B714,'Склад ДКС'!A:C,2,0),\"\")","v":""}]
[null,null,null,{"$f":"IFERROR(VLOOKUP(B715,'Склад ДКС'!A:C,3,0),\"\")","v":""},null,{"$f":"IFERROR(VLOOKUP(B715,'Склад ДКС'!A:C,2,0),\"\")","v":""}]
[null,null,null,{"$f":"IFERROR(VLOOKUP(B716,'Склад ДКС'!A:C,3,0),\"\")","v":""},null,{"$f":"IFERROR(VLOOKUP(B716,'Склад ДКС'!A:C,2,0),\"\")","v":""}]
[null,null,null,{"$f":"IFERROR(VLOOKUP(B717,'Склад ДКС'!A:C,3,0),\"\")","v":""},null,{"$f":"IFERROR(VLOOKUP(B717,'Склад ДКС'!A:C,2,0),\"\")","v":""}]
[null,null,null,{"$f":"IFERROR(VLOOKUP(B718,'Склад ДКС'!A:C,3,0),\"\")","v":""},null,{"$f":"IFERROR(VLOOKUP(B718,'Склад ДКС'!A:C,2,0),\"\")","v":""}]
[null,null,null,{"$f":"IFERROR(VLOOKUP(B719,'Склад ДКС'!A:C,3,0),\"\")","v":""},null,{"$f":"IFERROR(VLOOKUP(B719,'Склад ДКС'!A:C,2,0),\"\")","v":""}]
[null,null,null,{"$f":"IFERROR(VLOOKUP(B720,'Склад ДКС'!A:C,3,0),\"\")","v":""},null,{"$f":"IFERROR(VLOOKUP(B720,'Склад ДКС'!A:C,2,0),\"\")","v":""}]
[null,null,null,{"$f":"IFERROR(VLOOKUP(B721,'Склад ДКС'!A:C,3,0),\"\")","v":""},null,{"$f":"IFERROR(VLOOKUP(B721,'Склад ДКС'!A:C,2,0),\"\")","v":""}]
[null,null,null,{"$f":"IFERROR(VLOOKUP(B722,'Склад ДКС'!A:C,3,0),\"\")","v":""},null,{"$f":"IFERROR(VLOOKUP(B722,'Склад ДКС'!A:C,2,0),\"\")","v":""}]
[null,null,null,{"$f":"IFERROR(VLOOKUP(B723,'Склад ДКС'!A:C,3,0),\"\")","v":""},null,{"$f":"IFERROR(VLOOKUP(B723,'Склад ДКС'!A:C,2,0),\"\")","v":""}]
[null,null,null,{"$f":"IFERROR(VLOOKUP(B724,'Склад ДКС'!A:C,3,0),\"\")","v":""},null,{"$f":"IFERROR(VLOOKUP(B724,'Склад ДКС'!A:C,2,0),\"\")","v":""}]
[null,null,null,{"$f":"IFERROR(VLOOKUP(B725,'Склад ДКС'!A:C,3,0),\"\")","v":""},null,{"$f":"IFERROR(VLOOKUP(B725,'Склад ДКС'!A:C,2,0),\"\")","v":""}]
[null,null,null,{"$f":"IFERROR(VLOOKUP(B726,'Склад ДКС'!A:C,3,0),\"\")","v":""},null,{"$f":"IFERROR(VLOOKUP(B726,'Склад ДКС'!A:C,2,0),\"\")","v":""}]
[null,null,null,{"$f":"IFERROR(VLOOKUP(B727,'Склад ДКС'!A:C,3,0),\"\")","v":""},null,{"$f":"IFERROR(VLOOKUP(B727,'Склад ДКС'!A:C,2,0),\"\")","v":""}]
[null,null,null,{"$f":"IFERROR(VLOOKUP(B728,'Склад ДКС'!A:C,3,0),\"\")","v":""},null,{"$f":"IFERROR(VLOOKUP(B728,'Склад ДКС'!A:C,2,0),\"\")","v":""}]
[null,null,null,{"$f":"IFERROR(VLOOKUP(B729,'Склад ДКС'!A:C,3,0),\"\")","v":""},null,{"$f":"IFERROR(VLOOKUP(B729,'Склад ДКС'!A:C,2,0),\"\")","v":""}]
[null,null,null,{"$f":"IFERROR(VLOOKUP(B730,'Склад ДКС'!A:C,3,0),\"\")","v":""},null,{"$f":"IFERROR(VLOOKUP(B730,'Склад ДКС'!A:C,2,0),\"\")","v":""}]
[null,null,null,{"$f":"IFERROR(VLOOKUP(B731,'Склад ДКС'!A:C,3,0),\"\")","v":""},null,{"$f":"IFERROR(VLOOKUP(B731,'Склад ДКС'!A:C,2,0),\"\")","v":""}]
[null,null,null,{"$f":"IFERROR(VLOOKUP(B732,'Склад ДКС'!A:C,3,0),\"\")","v":""},null,{"$f":"IFERROR(VLOOKUP(B732,'Склад ДКС'!A:C,2,0),\"\")","v":""}]
[null,null,null,{"$f":"IFERROR(VLOOKUP(B733,'Склад ДКС'!A:C,3,0),\"\")","v":""},null,{"$f":"IFERROR(VLOOKUP(B733,'Склад ДКС'!A:C,2,0),\"\")","v":""}]
[null,null,null,{"$f":"IFERROR(VLOOKUP(B734,'Склад ДКС'!A:C,3,0),\"\")","v":""},null,{"$f":"IFERROR(VLOOKUP(B734,'Склад ДКС'!A:C,2,0),\"\")","v":""}]
[null,null,null,{"$f":"IFERROR(VLOOKUP(B735,'Склад ДКС'!A:C,3,0),\"\")","v":""},null,{"$f":"IFERROR(VLOOKUP(B735,'Склад ДКС'!A:C,2,0),\"\")","v":""}]
[null,null,null,{"$f":"IFERROR(VLOOKUP(B736,'Склад ДКС'!A:C,3,0),\"\")","v":""},null,{"$f":"IFERROR(VLOOKUP(B736,'Склад ДКС'!A:C,2,0),\"\")","v":""}]
[null,null,null,{"$f":"IFERROR(VLOOKUP(B737,'Склад ДКС'!A:C,3,0),\"\")","v":""},null,{"$f":"IFERROR(VLOOKUP(B737,'Склад ДКС'!A:C,2,0),\"\")","v":""}]
[null,null,null,{"$f":"IFERROR(VLOOKUP(B738,'Склад ДКС'!A:C,3,0),\"\")","v":""}]
[null,null,null,{"$f":"IFERROR(VLOOKUP(B739,'Склад ДКС'!A:C,3,0),\"\")","v":""}]
[null,null,null,{"$f":"IFERROR(VLOOKUP(B740,'Склад ДКС'!A:C,3,0),\"\")","v":""}]
[null,null,null,{"$f":"IFERROR(VLOOKUP(B741,'Склад ДКС'!A:C,3,0),\"\")","v":""}]
[null,null,null,{"$f":"IFERROR(VLOOKUP(B742,'Склад ДКС'!A:C,3,0),\"\")","v":""}]
[null,null,null,{"$f":"IFERROR(VLOOKUP(B743,'Склад ДКС'!A:C,3,0),\"\")","v":""}]
[null,null,null,{"$f":"IFERROR(VLOOKUP(B744,'Склад ДКС'!A:C,3,0),\"\")","v":""}]
[null,null,null,{"$f":"IFERROR(VLOOKUP(B745,'Склад ДКС'!A:C,3,0),\"\")","v":""}]
[null,null,null,{"$f":"IFERROR(VLOOKUP(B746,'Склад ДКС'!A:C,3,0),\"\")","v":""}]
[null,null,null,{"$f":"IFERROR(VLOOKUP(B747,'Склад ДКС'!A:C,3,0),\"\")","v":""}]
[null,null,null,{"$f":"IFERROR(VLOOKUP(B748,'Склад ДКС'!A:C,3,0),\"\")","v":""}]

{"sheet":"Склад ДКС","index":2,"n_rows":1672,"n_cols":3,"rows_kept":1672,"cut":false,"hidden":true,"merged":[]}
["Код","Описание","Б.ЕдИзм"]
[]
[]
["R5CQE1866A","Шкаф напольный CQE собранный с дверью и задней панелью ВхШхГ 1800x600x600 мм","Штука"]
["R5CQE1884A","Шкаф напольный CQE собранный с дверью и задней панелью ВхШхГ 1800x800x400 мм","Штука"]
["R5CQE1886A","Шкаф напольный CQE собранный с дверью и задней панелью ВхШхГ 1800x800x600 мм","Штука"]
["R5CQE20104A","Шкаф напольный CQE собранный с дверью и задней панелью ВхШхГ 2000x1000x400 мм","Штука"]
["R5CQE20106A","Шкаф напольный CQE собранный с дверью и задней панелью ВхШхГ 2000x1000x600 мм","Штука"]
["R5CQE2066A","Шкаф напольный CQE собранный с дверью и задней панелью ВхШхГ 2000x600x600 мм","Штука"]
["R5CQE2084A","Шкаф напольный CQE собранный с дверью и задней панелью ВхШхГ 2000x800x400 мм","Штука"]
["R5CQE2086A","Шкаф напольный CQE собранный с дверью и задней панелью ВхШхГ 2000x800x600 мм","Штука"]
[]
["R5KTB1010","Комплект, крыша и основание, для шкафов CQE, 1000 x 1000 мм","Штука"]
["R5KTB1012","Комплект, крыша и основание, для шкафов CQE, 1000 x 1200 мм","Штука"]
["R5KTB104","Комплект, крыша и основание, для шкафов CQE, 1000 x 400 мм","Штука"]
["R5KTB105","Комплект, крыша и основание, для шкафов CQE, 1000 x 500 мм","Штука"]
["R5KTB106","Комплект, крыша и основание, для шкафов CQE, 1000 x 600 мм","Штука"]
["R5KTB108","Комплект, крыша и основание, для шкафов CQE, 1000 x 800 мм","Штука"]
["R5KTB124","Комплект, крыша и основание, для шкафов CQE, 1200 x 400 мм","Штука"]
["R5KTB125","Комплект, крыша и основание, для шкафов CQE, 1200 x 500 мм","Штука"]
["R5KTB126","Комплект, крыша и основание, для шкафов CQE, 1200 x 600 мм","Штука"]
["R5KTB128","Комплект, крыша и основание, для шкафов CQE, 1200 x 800 мм","Штука"]
["R5KTB144","Комплект, крыша и основание, для шкафов CQE, 1400 x 400 мм","Штука"]
["R5KTB145","Комплект, крыша и основание, для шкафов CQE, 1400 x 500 мм","Штука"]
["R5KTB146","Комплект, крыша и основание, для шкафов CQE, 1400 x 600 мм","Штука"]
["R5KTB148","Комплект, крыша и основание, для шкафов CQE, 1400 x 800 мм","Штука"]
["R5KTB164","Комплект, крыша и основание, для шкафов CQE, 1600 x 400 мм","Штука"]
["R5KTB165","Комплект, крыша и основание, для шкафов CQE, 1600 x 500 мм","Штука"]
["R5KTB166","Комплект, крыша и основание, для шкафов CQE, 1600 x 600 мм","Штука"]
["R5KTB168","Комплект, крыша и основание, для шкафов CQE, 1600 x 800 мм","Штука"]
["R5KTB310","Комплект, крыша и основание, для шкафов CQE, 300 x 1000 мм","Штука"]
["R5KTB312","Комплект, крыша и основание, для шкафов CQE, 300 x 1200 мм","Штука"]
["R5KTB34","Комплект, крыша и основание, для шкафов CQE, 300 x 400 мм","Штука"]
["R5KTB35","Комплект, крыша и основание, для шкафов CQE, 300 x 500 мм","Штука"]
["R5KTB36","Комплект, крыша и основание, для шкафов CQE, 300 x 600 мм","Штука"]
["R5KTB38","Комплект, крыша и основание, для шкафов CQE, 300 x 800 мм","Штука"]
["R5KTB410","Комплект, крыша и основание, для шкафов CQE, 400 x 1000 мм","Штука"]
["R5KTB412","Комплект, крыша и основание, для шкафов CQE, 400 x 1200 мм","Штука"]
["R5KTB44","Комплект, крыша и основание, для шкафов CQE, 400 x 400 мм","Штука"]
["R5KTB45","Комплект, крыша и основание, для шкафов CQE, 400 x 500 мм","Штука"]
["R5KTB46","Комплект, крыша и основание, для шкафов CQE, 400 x 600 мм","Штука"]
["R5KTB48","Комплект, крыша и основание, для шкафов CQE, 400 x 800 мм","Штука"]
["R5KTB610","Комплект, крыша и основание, для шкафов CQE, 600х1000 мм","Штука"]
["R5KTB612","Комплект, крыша и основание, для шкафов CQE, 600х1200 мм","Штука"]
["R5KTB64","Комплект, крыша и основание, для шкафов CQE, 600 x 400 мм","Штука"]
["R5KTB65","Комплект, крыша и основание, для шкафов CQE, 600 x 500 мм","Штука"]
["R5KTB66","Комплект, крыша и основание, для шкафов CQE, 600 x 600 мм","Штука"]
["R5KTB68","Комплект, крыша и основание, для шкафов CQE, 600 x 800 мм","Штука"]
["R5KTB810","Комплект, крыша и основание, для шкафов CQE, 800х1000 мм","Штука"]
["R5KTB812","Комплект, крыша и основание, для шкафов CQE, 800х1200 мм","Штука"]
["R5KTB84","Комплект, крыша и основание, для шкафов CQE, 800 x 400 мм","Штука"]
["R5KTB85","Комплект, крыша и основание, для шкафов CQE, 800 x 500 мм","Штука"]
["R5KTB86","Комплект, крыша и основание, для шкафов CQE, 800 x 600 мм","Штука"]
["R5KTB88","Комплект, крыша и основание, для шкафов CQE, 800 x 800 мм","Штука"]
[]
["R5KMN10","Стойки вертикальные, В=1000мм, без дополнительных креплений, 4шт RAL7035","Упаковка"]
["R5KMN12","Стойки вертикальные, В=1200мм, без дополнительных креплений, 4шт RAL7035","Упаковка"]
["R5KMN14","Стойки вертикальные, В=1400мм, без дополнительных креплений, 1 упаковка - 4шт.","Упаковка"]
["R5KMN16","Стойки вертикальные, В=1600мм, без дополнительных креплений, 1 упаковка - 4шт.","Упаковка"]
["R5KMN18","Стойки вертикальные, В=1800мм, без дополнительных креплений, 4шт RAL7035","Упаковка"]
["R5KMN20","Стойки вертикальные, В=2000мм, без дополнительных креплений, 4шт RAL7035","Упаковка"]
["R5KMN22","Стойки вертикальные, В=2200мм, без дополнительных креплений, 4шт RAL7035","Упаковка"]
[]
["R5CQE1464X","Комплект шкафа CQE, застеклённая дверь и задняя панель, 1400x600x400мм","Штука"]
["R5CQE1465X","Комплект шкафа CQE, застеклённая дверь и задняя панель, 1400x600x500мм","Штука"]
["R5CQE1484X","Комплект шкафа CQE, застеклённая дверь и задняя панель, 1400x800x400мм","Штука"]
["R5CQE1485X","Комплект шкафа CQE, застеклённая дверь и задняя панель, 1400x800x500мм","Штука"]
["R5CQE16104X","Комплект шкафа CQE, застеклённая дверь и задняя панель, 1600x1000x400мм","Штука"]
["R5CQE16105X","Комплект шкафа CQE, застеклённая дверь и задняя панель, 1600x1000x500мм","Штука"]
["R5CQE16106X","Комплект шкафа CQE, застеклённая дверь и задняя панель, 1600x1000x600мм","Штука"]
["R5CQE1664X","Комплект шкафа CQE, застеклённая дверь и задняя панель, 1600x600x400мм","Штука"]
["R5CQE1665X","Комплект шкафа CQE, застеклённая дверь и задняя панель, 1600x600x500мм","Штука"]
["R5CQE1666X","Комплект шкафа CQE, застеклённая дверь и задняя панель, 1600x600x600мм","Штука"]
["R5CQE1684X","Комплект шкафа CQE, застеклённая дверь и задняя панель, 1600x800x400мм","Штука"]
["R5CQE1685X","Комплект шкафа CQE, застеклённая дверь и задняя панель, 1600x800x500мм","Штука"]
["R5CQE1686X","Комплект шкафа CQE, застеклённая дверь и задняя панель, 1600x800x600мм","Штука"]
["R5CQE18104X","Комплект шкафа CQE, застеклённая дверь и задняя панель, 1800x1000x400мм","Штука"]
["R5CQE18105X","Комплект шкафа CQE, застеклённая дверь и задняя панель, 1800x1000x500мм","Штука"]
["R5CQE18106X","Комплект шкафа CQE, застеклённая дверь и задняя панель, 1800x1000x600мм","Штука"]
["R5CQE18108X","Комплект шкафа CQE, застеклённая дверь и задняя панель, 1800x1000x800мм","Штука"]
["R5CQE1864X","Комплект шкафа CQE, застеклённая дверь и задняя панель, 1800x600x400мм","Штука"]
["R5CQE1865X","Комплект шкафа CQE, застеклённая дверь и задняя панель, 1800x600x500мм","Штука"]
["R5CQE1866X","Комплект шкафа CQE, застеклённая дверь и задняя панель, 1800x600x600мм","Штука"]
["R5CQE1868X","Комплект шкафа CQE, застеклённая дверь и задняя панель, 1800x600x800мм","Штука"]
["R5CQE1884X","Комплект шкафа CQE, застеклённая дверь и задняя панель, 1800x800x400мм","Штука"]
["R5CQE1885X","Комплект шкафа CQE, застеклённая дверь и задняя панель, 1800x800x500мм","Штука"]
["R5CQE1886X","Комплект шкафа CQE, застеклённая дверь и задняя панель, 1800x800x600мм","Штука"]
["R5CQE1888X","Комплект шкафа CQE, застеклённая дверь и задняя панель, 1800x800x800мм","Штука"]
["R5CQE20104X","Комплект шкафа CQE, застеклённая дверь и задняя панель, 2000x1000x400мм","Штука"]
["R5CQE20105X","Комплект шкафа CQE, застеклённая дверь и задняя панель, 2000x1000x500мм","Штука"]
["R5CQE20106X","Комплект шкафа CQE, застеклённая дверь и задняя панель, 2000x1000x600мм","Штука"]
["R5CQE20108X","Комплект шкафа CQE, застеклённая дверь и задняя панель, 2000x1000x800мм","Штука"]
["R5CQE2064X","Комплект шкафа CQE, застеклённая дверь и задняя панель, 2000x600x400мм","Штука"]
["R5CQE2065X","Комплект шкафа CQE, застеклённая дверь и задняя панель, 2000x600x500мм","Штука"]
["R5CQE2066X","Комплект шкафа CQE, застеклённая дверь и задняя панель, 2000x600x600мм","Штука"]
["R5CQE2068X","Комплект шкафа CQE, застеклённая дверь и задняя панель, 2000x600x800мм","Штука"]
["R5CQE2084X","Комплект шкафа CQE, застеклённая дверь и задняя панель, 2000x800x400мм","Штука"]
["R5CQE2085X","Комплект шкафа CQE, застеклённая дверь и задняя панель, 2000x800x500мм","Штука"]
["R5CQE2086X","Комплект шкафа CQE, застеклённая дверь и задняя панель, 2000x800x600мм","Штука"]
["R5CQE2088X","Комплект шкафа CQE, застеклённая дверь и задняя панель, 2000x800x800мм","Штука"]
["R5CQE22105X","Комплект шкафа CQE, застеклённая дверь и задняя панель, 2200x1000x500мм","Штука"]
["R5CQE22106X","Комплект шкафа CQE, застеклённая дверь и задняя панель, 2200x1000x600мм","Штука"]
["R5CQE22108X","Комплект шкафа CQE, застеклённая дверь и задняя панель, 2200x1000x800мм","Штука"]
["R5CQE2265X","Комплект шкафа CQE, застеклённая дверь и задняя панель, 2200x600x500мм","Штука"]
["R5CQE2266X","Комплект шкафа CQE, застеклённая дверь и задняя панель, 2200x600x600мм","Штука"]
["R5CQE2268X","Комплект шкафа CQE, застеклённая дверь и задняя панель, 2200x600x800мм","Штука"]
["R5CQE2285X","Комплект шкафа CQE, застеклённая дверь и задняя панель, 2200x800x500мм","Штука"]
["R5CQE2286X","Комплект шкафа CQE, застеклённая дверь и задняя панель, 2200x800x600мм","Штука"]
["R5CQE2288X","Комплект шкафа CQE, застеклённая дверь и задняя панель, 2200x800x800мм","Штука"]
[]
["R5CQE14124","Комплект шкафа CQE, с дверью и задней панелью, 1400 x 1200 x 400 мм","Штука"]
["R5CQE14125","Комплект шкафа CQE, с дверью и задней панелью, 1400 x 1200 x 500 мм","Штука"]
["R5CQE14164","Комплект шкафа CQE, с дверью и задней панелью, 1400 x 1600 x 400 мм","Штука"]
["R5CQE14165","Комплект шкафа CQE, с дверью и задней панелью, 1400 x 1600 x 500 мм","Штука"]
["R5CQE1464","Комплект шкафа CQE, с дверью и задней панелью, 1400 x 600 x 400 мм","Штука"]
["R5CQE1465","Комплект шкафа CQE, с дверью и задней панелью, 1400 x 600 x 500 мм","Штука"]
["R5CQE1484","Комплект шкафа CQE, с дверью и задней панелью, 1400 x 800 x 400 мм","Штука"]
["R5CQE1485","Комплект шкафа CQE, с дверью и задней панелью, 1400 x 800 x 500 мм","Штука"]
["R5CQE16104","Комплект шкафа CQE, с дверью и задней панелью, 1600 x 1000 x 400 мм","Штука"]
["R5CQE16105","Комплект шкафа CQE, с дверью и задней панелью, 1600 x 1000 x 500 мм","Штука"]
["R5CQE16106","Комплект шкафа CQE, с дверью и задней панелью, 1600 x 1000 x 600 мм","Штука"]
["R5CQE16124","Комплект шкафа CQE, с дверью и задней панелью, 1600 x 1200 x 400 мм","Штука"]
["R5CQE16125","Комплект шкафа CQE, с дверью и задней панелью, 1600 x 1200 x 500 мм","Штука"]
["R5CQE16126","Комплект шкафа CQE, с дверью и задней панелью, 1600 x 1200 x 600 мм","Штука"]
["R5CQE1644","Комплект шкафа CQE, с дверью и задней панелью, 1600 x 400 x 400 мм","Штука"]
["R5CQE1645","Комплект шкафа CQE, с дверью и задней панелью, 1600 x 400 x 500 мм","Штука"]
["R5CQE1646","Комплект шкафа CQE, с дверью и задней панелью, 1600 x 400 x 600 мм","Штука"]
["R5CQE1664","Комплект шкафа CQE, с дверью и задней панелью, 1600 x 600 x 400 мм","Штука"]
["R5CQE1665","Комплект шкафа CQE, с дверью и задней панелью, 1600 x 600 x 500 мм","Штука"]
["R5CQE1666","Комплект шкафа CQE, с дверью и задней панелью, 1600 x 600 x 600 мм","Штука"]
["R5CQE1684","Комплект шкафа CQE, с дверью и задней панелью, 1600 x 800 x 400 мм","Штука"]
["R5CQE1685","Комплект шкафа CQE, с дверью и задней панелью, 1600 x 800 x 500 мм","Штука"]
["R5CQE1686","Комплект шкафа CQE, с дверью и задней панелью, 1600 x 800 x 600 мм","Штука"]
["R5CQE18104","Комплект шкафа CQE, с дверью и задней панелью, 1800 x 1000 x 400 мм","Штука"]
["R5CQE18105","Комплект шкафа CQE, с дверью и задней панелью, 1800 x 1000 x 500 мм","Штука"]
["R5CQE18106","Комплект шкафа CQE, с дверью и задней панелью, 1800 x 1000 x 600 мм","Штука"]
["R5CQE18108","Комплект шкафа CQE, с дверью и задней панелью, 1800 x 1000 x 800 мм","Штука"]
["R5CQE18124","Комплект шкафа CQE, с дверью и задней панелью, 1800 x 1200 x 400 мм","Штука"]
["R5CQE18125","Комплект шкафа CQE, с дверью и задней панелью, 1800 x 1200 x 500 мм","Штука"]
["R5CQE18126","Комплект шкафа CQE, с дверью и задней панелью, 1800 x 1200 x 600 мм","Штука"]
["R5CQE18128","Комплект шкафа CQE, с дверью и задней панелью, 1800 x 1200 x 800 мм","Штука"]
["R5CQE1844","Комплект шкафа CQE, с дверью и задней панелью, 1800 x 400 x 400 мм","Штука"]
["R5CQE1845","Комплект шкафа CQE, с дверью и задней панелью, 1800 x 400 x 500 мм","Штука"]
["R5CQE1846","Комплект шкафа CQE, с дверью и задней панелью, 1800 x 400 x 600 мм","Штука"]
["R5CQE1848","Комплект шкафа CQE, с дверью и задней панелью, 1800 x 400 x 800 мм","Штука"]
["R5CQE1864","Комплект шкафа CQE, с дверью и задней панелью, 1800 x 600 x 400 мм","Штука"]
["R5CQE1865","Комплект шкафа CQE, с дверью и задней панелью, 1800 x 600 x 500 мм","Штука"]
["R5CQE1866","Комплект шкафа CQE, с дверью и задней панелью, 1800 x 600 x 600 мм","Штука"]
["R5CQE1868","Комплект шкафа CQE, с дверью и задней панелью, 1800 x 600 x 800 мм","Штука"]
["R5CQE1884","Комплект шкафа CQE, с дверью и задней панелью, 1800 x 800 x 400 мм","Штука"]
["R5CQE1885","Комплект шкафа CQE, с дверью и задней панелью, 1800 x 800 x 500 мм","Штука"]
["R5CQE1886","Комплект шкафа CQE, с дверью и задней панелью, 1800 x 800 x 600 мм","Штука"]
["R5CQE1888","Комплект шкафа CQE, с дверью и задней панелью, 1800 x 800 x 800 мм","Штука"]
["R5CQE20104","Комплект шкафа CQE, с дверью и задней панелью, 2000 x 1000 x 400 мм","Штука"]
["R5CQE20105","Комплект шкафа CQE, с дверью и задней панелью, 2000 x 1000 x 500 мм","Штука"]
["R5CQE20106","Комплект шкафа CQE, с дверью и задней панелью, 2000 x 1000 x 600 мм","Штука"]
["R5CQE20108","Комплект шкафа CQE, с дверью и задней панелью, 2000 x 1000 x 800 мм","Штука"]
["R5CQE20124","Комплект шкафа CQE, с дверью и задней панелью, 2000 x 1200 x 400 мм","Штука"]
["R5CQE20125","Комплект шкафа CQE, с дверью и задней панелью, 2000 x 1200 x 500 мм","Штука"]
["R5CQE20126","Комплект шкафа CQE, с дверью и задней панелью, 2000 x 1200 x 600 мм","Штука"]
["R5CQE20128","Комплект шкафа CQE, с дверью и задней панелью, 2000 x 1200 x 800 мм","Штука"]
["R5CQE20144","Комплект шкафа CQE, с дверью и задней панелью, 2000 x 1400 x 400 мм","Штука"]
["R5CQE20145","Комплект шкафа CQE, с дверью и задней панелью, 2000 x 1400 x 500 мм","Штука"]
["R5CQE20146","Комплект шкафа CQE, с дверью и задней панелью, 2000 x 1400 x 600 мм","Штука"]
["R5CQE20148","Комплект шкафа CQE, с дверью и задней панелью, 2000 x 1400 x 800 мм","Штука"]
["R5CQE20164","Комплект шкафа CQE, с дверью и задней панелью, 2000 x 1600 x 400 мм","Штука"]
["R5CQE20165","Комплект шкафа CQE, с дверью и задней панелью, 2000 x 1600 x 500 мм","Штука"]
["R5CQE20166","Комплект шкафа CQE, с дверью и задней панелью, 2000 x 1600 x 600 мм","Штука"]
["R5CQE20168","Комплект шкафа CQE, с дверью и задней панелью, 2000 x 1600 x 800 мм","Штука"]
["R5CQE2044","Комплект шкафа CQE, с дверью и задней панелью, 2000 x 400 x 400 мм","Штука"]
["R5CQE2045","Комплект шкафа CQE, с дверью и задней панелью, 2000 x 400 x 500 мм","Штука"]
["R5CQE2046","Комплект шкафа CQE, с дверью и задней панелью, 2000 x 400 x 600 мм","Штука"]
["R5CQE2048","Комплект шкафа CQE, с дверью и задней панелью, 2000 x 400 x 800 мм","Штука"]
["R5CQE2064","Комплект шкафа CQE, с дверью и задней панелью, 2000 x 600 x 400 мм","Штука"]
["R5CQE2065","Комплект шкафа CQE, с дверью и задней панелью, 2000 x 600 x 500 мм","Штука"]
["R5CQE2066","Комплект шкафа CQE, с дверью и задней панелью, 2000 x 600 x 600 мм","Штука"]
["R5CQE2068","Комплект шкафа CQE, с дверью и задней панелью, 2000 x 600 x 800 мм","Штука"]
["R5CQE2084","Комплект шкафа CQE, с дверью и задней панелью, 2000 x 800 x 400 мм","Штука"]
["R5CQE2085","Комплект шкафа CQE, с дверью и задней панелью, 2000 x 800 x 500 мм","Штука"]
["R5CQE2086","Комплект шкафа CQE, с дверью и задней панелью, 2000 x 800 x 600 мм","Штука"]
["R5CQE2088","Комплект шкафа CQE, с дверью и задней панелью, 2000 x 800 x 800 мм","Штука"]
["R5CQE22105","Комплект шкафа CQE, с дверью и задней панелью, 2200 x 1000 x 500 мм","Штука"]
["R5CQE22106","Комплект шкафа CQE, с дверью и задней панелью, 2200 x 1000 x 600 мм","Штука"]
["R5CQE22108","Комплект шкафа CQE, с дверью и задней панелью, 2200 x 1000 x 800 мм","Штука"]
["R5CQE22125","Комплект шкафа CQE, с дверью и задней панелью, 2200 x 1200 x 500 мм","Штука"]
["R5CQE22126","Комплект шкафа CQE, с дверью и задней панелью, 2200 x 1200 x 600 мм","Штука"]
["R5CQE22128","Комплект шкафа CQE, с дверью и задней панелью, 2200 x 1200 x 800 мм","Штука"]
["R5CQE2245","Комплект шкафа CQE, с дверью и задней панелью, 2200 x 400 x 500 мм","Штука"]
["R5CQE2246","Комплект шкафа CQE, с дверью и задней панелью, 2200 x 400 x 600 мм","Штука"]
["R5CQE2248","Комплект шкафа CQE, с дверью и задней панелью, 2200 x 400 x 800 мм","Штука"]
["R5CQE2265","Комплект шкафа CQE, с дверью и задней панелью, 2200 x 600 x 500 мм","Штука"]
["R5CQE2266","Комплект шкафа CQE, с дверью и задней панелью, 2200 x 600 x 600 мм","Штука"]
["R5CQE2268","Комплект шкафа CQE, с дверью и задней панелью, 2200 x 600 x 800 мм","Штука"]
["R5CQE2285","Комплект шкафа CQE, с дверью и задней панелью, 2200 x 800 x 500 мм","Штука"]
["R5CQE2286","Комплект шкафа CQE, с дверью и задней панелью, 2200 x 800 x 600 мм","Штука"]
["R5CQE2288","Комплект шкафа CQE, с дверью и задней панелью, 2200 x 800 x 800 мм","Штука"]
[]
[]
["R5DL1030","Комплект, боковые панели, для шкафов DAE, ВхГ: 1000 x 300 мм","Штука"]
["R5DL1040","Комплект, боковые панели, для шкафов DAE, ВхГ: 1000 x 400 мм","Штука"]
["R5DL1230","Комплект, боковые панели, для шкафов DAE, ВхГ: 1200 x 300 мм","Штука"]
["R5DL1240","Комплект, боковые панели, для шкафов DAE, ВхГ: 1200 x 400 мм","Штука"]
["R5DL1430","Комплект, боковые панели, для шкафов DAE, ВхГ: 1400 x 300 мм","Штука"]
["R5DL1440","Комплект, боковые панели, для шкафов DAE, ВхГ: 1400 x 400 мм","Штука"]
["R5DL1630","Комплект, боковые панели, для шкафов DAE, ВхГ: 1600 x 300 мм","Штука"]
["R5DL1640","Комплект, боковые панели, для шкафов DAE, ВхГ: 1600 x 400 мм","Штука"]
["R5DL1830","Комплект, боковые панели, для шкафов DAE, ВхГ: 1800 x 300 мм","Штука"]
["R5DL1840","Комплект, боковые панели, для шкафов DAE, ВхГ: 1800 x 400 мм","Штука"]
["R5DL1850","Комплект, боковые панели, для шкафов DAE, ВхГ: 1800 x 500 мм","Штука"]
["R5DL1860","Комплект, боковые панели, для шкафов DAE, ВхГ: 1800 x 600 мм","Штука"]
["R5DL2030","Комплект, боковые панели, для шкафов DAE, ВхГ: 2000 x 300 мм","Штука"]
["R5DL2040","Комплект, боковые панели, для шкафов DAE, ВхГ: 2000 x 400 мм","Штука"]
["R5DL2050","Комплект, боковые панели, для шкафов DAE, ВхГ: 2000 x 500 мм","Штука"]
["R5DL2060","Комплект, боковые панели, для шкафов DAE, ВхГ: 2000 x 600 мм","Штука"]
["R5DTB103","Комплект, крыша и основание, для шкафов DAE, ШхГ: 1000 x 300 мм","Штука"]
["R5DTB104","Комплект, крыша и основание, для шкафов DAE, ШхГ: 1000 x 400 мм","Штука"]
["R5DTB105","Комплект, крыша и основание, для шкафов DAE, ШхГ: 1000 x 500 мм","Штука"]
["R5DTB106","Комплект, крыша и основание, для шкафов DAE, ШхГ: 1000 x 600 мм","Штука"]
["R5DTB124","Комплект, крыша и основание, для шкафов DAE, ШхГ: 1200 x 400 мм","Штука"]
["R5DTB125","Комплект, крыша и основание, для шкафов DAE, ШхГ: 1200 x 500 мм","Штука"]
["R5DTB126","Комплект, крыша и основание, для шкафов DAE, ШхГ: 1200 x 600 мм","Штука"]
["R5DTB63","Комплект, крыша и основание, для шкафов DAE, ШхГ: 600 x 300 мм","Штука"]
["R5DTB64","Комплект, крыша и основание, для шкафов DAE, ШхГ: 600 x 400 мм","Штука"]
["R5DTB65","Комплект, крыша и основание, для шкафов DAE, ШхГ: 600 x 500 мм","Штука"]
["R5DTB66","Комплект, крыша и основание, для шкафов DAE, ШхГ: 600 x 600 мм","Штука"]
["R5DTB83","Комплект, крыша и основание, для шкафов DAE, ШхГ: 800 x 300 мм","Штука"]
["R5DTB84","Комплект, крыша и основание, для шкафов DAE, ШхГ: 800 x 400 мм","Штука"]
["R5DTB85","Комплект, крыша и основание, для шкафов DAE, ШхГ: 800 x 500 мм","Штука"]
["R5DTB86","Комплект, крыша и основание, для шкафов DAE, ШхГ: 800 x 600 мм","Штука"]
[]
["R5SFP30","Угол для крепления шкафа DAE к стене, Г=300мм, 1 упаковка -  2шт.","Упаковка"]
["R5SFP40","Угол для крепления шкафа DAE к стене, Г=400мм, 1 упаковка -  2шт.","Упаковка"]
[]
["R5CQEC1666","Сборный напольный шкаф CQEC для установки ПК, 1600 x 600 x 600 мм","Штука"]
["R5CQEC1668","Сборный напольный шкаф CQEC для установки ПК, 1600 x 600 x 800 мм","Штука"]
["R5CQEC1866","Сборный напольный шкаф CQEC для установки ПК, 1800 x 600 x 600 мм","Штука"]
["R5CQEC1868","Сборный напольный шкаф CQEC для установки ПК, 1800 x 600 x 800 мм","Штука"]
["R5CQEC1886","Сборный напольный шкаф CQEC для установки ПК, 1800 x 800 x 600 мм","Штука"]
["R5CQEC1888","Сборный напольный шкаф CQEC для установки ПК, 1800 x 800 x 800 мм","Штука"]
["R5CQEC2066","Сборный напольный шкаф CQEC для установки ПК, 2000 x 600 x 600 мм","Штука"]
["R5CQEC2068","Сборный напольный шкаф CQEC для установки ПК, 2000 x 600 x 800 мм","Штука"]
["R5CQEC2086","Сборный напольный шкаф CQEC для установки ПК, 2000 x 800 x 600 мм","Штука"]
["R5CQEC2088","Сборный напольный шкаф CQEC для установки ПК, 2000 x 800 x 800 мм","Штука"]
[]
[]
["R5CQEA1855","Угловая секция CQE, с двумя задними панелями, 1800 x 500 x 500мм","Штука"]
["R5CQEA2055","Угловая секция CQE, с двумя задними панелями, 2000 x 500 x 500мм","Штука"]
["R5CQEA2088","Угловая секция CQE, с двумя задними панелями, 2000 x 800 x 800мм","Штука"]
[]
["R5RE640","Полка выдвижная, Г = 400 мм, для шкафов DAE/CQE шириной 600 мм","Штука"]
["R5RE650","Полка выдвижная, Г = 500 мм, для шкафов DAE/CQE шириной 600 мм","Штука"]
["R5RE840","Полка выдвижная, Г = 400 мм, для шкафов DAE/CQE шириной 800 мм","Штука"]
["R5RE850","Полка выдвижная, Г = 500 мм, для шкафов DAE/CQE шириной 800 мм","Штука"]
["R5RF1040","Полка фиксированная, Г = 400 мм, для шкафов DAE/CQE шириной 1000 мм","Штука"]
["R5RF1050","Полка фиксированная, Г = 500 мм, для шкафов DAE/CQE шириной 1000 мм","Штука"]
["R5RF1060","Полка фиксированная, Г = 600 мм, для шкафов DAE/CQE шириной 1000 мм","Штука"]
["R5RF1080","Полка фиксированная, Г = 800 мм, для шкафов DAE/CQE шириной 1000 мм","Штука"]
["R5RF440","Полка фиксированная, Г = 400 мм, для шкафов DAE/CQE шириной 400 мм","Штука"]
["R5RF450","Полка фиксированная, Г = 500 мм, для шкафов DAE/CQE шириной 400 мм","Штука"]
["R5RF460","Полка фиксированная, Г = 600 мм, для шкафов DAE/CQE шириной 400 мм","Штука"]
["R5RF480","Полка фиксированная, Г = 800 мм, для шкафов DAE/CQE шириной 400 мм","Штука"]
["R5RF640","Полка фиксированная, Г = 400 мм, для шкафов DAE/CQE шириной 600 мм","Штука"]
["R5RF650","Полка фиксированная, Г = 500 мм, для шкафов DAE/CQE шириной 600 мм","Штука"]
["R5RF840","Полка фиксированная, Г = 400 мм, для шкафов DAE/CQE шириной 800 мм","Штука"]
["R5RF850","Полка фиксированная, Г = 500 мм, для шкафов DAE/CQE шириной 800 мм","Штука"]
[]
["R5CPLE1850","Дверь боковая, для шкафов CQE 1800 x 500 мм","Штука"]
["R5CPLE1860","Дверь боковая, для шкафов CQE 1800 x 600 мм","Штука"]
["R5CPLE1880","Дверь боковая, для шкафов CQE 1800 x 800 мм","Штука"]
["R5CPLE2050","Дверь боковая, для шкафов CQE 2000 x 500 мм","Штука"]
["R5CPLE2060","Дверь боковая, для шкафов CQE 2000 x 600 мм","Штука"]
["R5CPLE2080","Дверь боковая, для шкафов CQE 2000 x 800 мм","Штука"]
["R5CPLE2250","Дверь боковая, для шкафов CQE 2200 x 500 мм","Штука"]
["R5CPLE2260","Дверь боковая, для шкафов CQE 2200 x 600 мм","Штука"]
["R5CPLE2280","Дверь боковая, для шкафов CQE 2200 x 800 мм","Штука"]
[]
["R5PIE10100","Дверь внутренняя, для шкафов DAE/CQE 1000 x 1000 мм","Штука"]
["R5PIE1060","Дверь внутренняя, для шкафов DAE/CQE 1000 x 600 мм","Штука"]
["R5PIE1080","Дверь внутренняя, для шкафов DAE/CQE 1000 x 800 мм","Штука"]
["R5PIE12100","Дверь внутренняя, для шкафов DAE/CQE 1200 x 1000 мм","Штука"]
["R5PIE1260","Дверь внутренняя, для шкафов DAE/CQE 1200 x 600 мм","Штука"]
["R5PIE1280","Дверь внутренняя, для шкафов DAE/CQE 1200 x 800 мм","Штука"]
["R5PIE14100","Дверь внутренняя, для шкафов DAE/CQE 1400 x 1000 мм","Штука"]
["R5PIE1460","Дверь внутренняя, для шкафов DAE/CQE 1400 x 600 мм","Штука"]
["R5PIE1480","Дверь внутренняя, для шкафов DAE/CQE 1400 x 800 мм","Штука"]
["R5PIE16100","Дверь внутренняя, для шкафов DAE/CQE 1600 x 1000 мм","Штука"]
["R5PIE1660","Дверь внутренняя, для шкафов DAE/CQE 1600 x 600 мм","Штука"]
["R5PIE1680","Дверь внутренняя, для шкафов DAE/CQE 1600 x 800 мм","Штука"]
["R5PIE18100","Дверь внутренняя, для шкафов DAE/CQE 1800 x 1000 мм","Штука"]
["R5PIE1860","Дверь внутренняя, для шкафов DAE/CQE 1800 x 600 мм","Штука"]
["R5PIE1880","Дверь внутренняя, для шкафов DAE/CQE 1800 x 800 мм","Штука"]
["R5PIE20100","Дверь внутренняя, для шкафов DAE/CQE 2000 x 1000 мм","Штука"]
["R5PIE2060","Дверь внутренняя, для шкафов DAE/CQE 2000 x 600 мм","Штука"]
["R5PIE2080","Дверь внутренняя, для шкафов DAE/CQE 2000 x 800 мм","Штука"]
["R5PIE22100","Дверь внутренняя, для шкафов DAE/CQE 2200 x 1000 мм","Штука"]
["R5PIE2260","Дверь внутренняя, для шкафов DAE/CQE 2200 x 600 мм","Штука"]
["R5PIE2280","Дверь внутренняя, для шкафов DAE/CQE 2200 x 800 мм","Штука"]
[]
["R5CPTE10100","Дверь с ударопрочным стеклом, для шкафов DAE/CQE 1000 x 1000 мм","Штука"]
["R5CPTE1060","Дверь с ударопрочным стеклом, для шкафов DAE/CQE 1000 x 600 мм","Штука"]
["R5CPTE1080","Дверь с ударопрочным стеклом, для шкафов DAE/CQE 1000 x 800 мм","Штука"]
["R5CPTE12100","Дверь с ударопрочным стеклом, для шкафов DAE/CQE 1200 x 1000 мм","Штука"]
["R5CPTE1260","Дверь с ударопрочным стеклом, для шкафов DAE/CQE 1200 x 600 мм","Штука"]
["R5CPTE1280","Дверь с ударопрочным стеклом, для шкафов DAE/CQE 1200 x 800 мм","Штука"]
["R5CPTE14100","Дверь с ударопрочным стеклом, для шкафов DAE/CQE 1400 x 1000 мм","Штука"]
["R5CPTE1460","Дверь с ударопрочным стеклом, для шкафов DAE/CQE 1400 x 600 мм","Штука"]
["R5CPTE1480","Дверь с ударопрочным стеклом, для шкафов DAE/CQE 1400 x 800 мм","Штука"]
["R5CPTE16100","Дверь с ударопрочным стеклом, для шкафов DAE/CQE 1600 x 1000 мм","Штука"]
["R5CPTE1660","Дверь с ударопрочным стеклом, для шкафов DAE/CQE 1600 x 600 мм","Штука"]
["R5CPTE1680","Дверь с ударопрочным стеклом, для шкафов DAE/CQE 1600 x 800 мм","Штука"]
["R5CPTE18100","Дверь с ударопрочным стеклом, для шкафов DAE/CQE 1800 x 1000 мм","Штука"]
["R5CPTE1860","Дверь с ударопрочным стеклом, для шкафов DAE/CQE 1800 x 600 мм","Штука"]
["R5CPTE1880","Дверь с ударопрочным стеклом, для шкафов DAE/CQE 1800 x 800 мм","Штука"]
["R5CPTE20100","Дверь с ударопрочным стеклом, для шкафов DAE/CQE 2000 x 1000 мм","Штука"]
["R5CPTE2060","Дверь с ударопрочным стеклом, для шкафов DAE/CQE 2000 x 600 мм","Штука"]
["R5CPTE2080","Дверь с ударопрочным стеклом, для шкафов DAE/CQE 2000 x 800 мм","Штука"]
["R5CPTE22100","Дверь с ударопрочным стеклом, для шкафов DAE/CQE 2200 x 1000 мм","Штука"]
["R5CPTE2260","Дверь с ударопрочным стеклом, для шкафов DAE/CQE 2200 x 600 мм","Штука"]
["R5CPTE2280","Дверь с ударопрочным стеклом, для шкафов DAE/CQE 2200 x 800 мм","Штука"]
[]
["R5CPE10100-RAL3020","Дверь сплошная RAL3020 для шкафов CQE/DAE ВхШ 1000x1000 мм","Комплект"]
["R5CPE1060-RAL3020","Дверь сплошная RAL3020 для шкафов CQE/DAE ВхШ 1000x600 мм","Комплект"]
["R5CPE1080-RAL3020","Дверь сплошная RAL3020 для шкафов CQE/DAE ВхШ 1000x800 мм","Комплект"]
["R5CPE12100-RAL3020","Дверь сплошная RAL3020 для шкафов CQE/DAE ВхШ 1200x1000 мм","Комплект"]
["R5CPE1260-RAL3020","Дверь сплошная RAL3020 для шкафов CQE/DAE ВхШ 1200x600 мм","Комплект"]
["R5CPE1280-RAL3020","Дверь сплошная RAL3020 для шкафов CQE/DAE ВхШ 1200x800 мм","Комплект"]
["R5CPE1460-RAL3020","Дверь сплошная RAL3020 для шкафов CQE/DAE ВхШ 1400x600 мм","Комплект"]
["R5CPE1480-RAL3020","Дверь сплошная RAL3020 для шкафов CQE/DAE ВхШ 1400x800 мм","Комплект"]
["R5CPE16100-RAL3020","Дверь сплошная RAL3020 для шкафов CQE/DAE ВхШ 1600x1000 мм","Комплект"]
["R5CPE1640-RAL3020","Дверь сплошная RAL3020 для шкафов CQE/DAE ВхШ 1600x400 мм","Комплект"]
["R5CPE1660-RAL3020","Дверь сплошная RAL3020 для шкафов CQE/DAE ВхШ 1600x600 мм","Комплект"]
["R5CPE1680-RAL3020","Дверь сплошная RAL3020 для шкафов CQE/DAE ВхШ 1600x800 мм","Комплект"]
["R5CPE18100-RAL3020","Дверь сплошная RAL3020 для шкафов CQE/DAE ВхШ 1800x1000 мм","Комплект"]
["R5CPE1830-RAL3020","Дверь сплошная RAL3020 для шкафов CQE/DAE ВхШ 1800x300 мм","Комплект"]
["R5CPE1840-RAL3020","Дверь сплошная RAL3020 для шкафов CQE/DAE ВхШ 1800x400 мм","Комплект"]
["R5CPE1860-RAL3020","Дверь сплошная RAL3020 для шкафов CQE/DAE ВхШ 1800x600 мм","Комплект"]
["R5CPE1880-RAL3020","Дверь сплошная RAL3020 для шкафов CQE/DAE ВхШ 1800x800 мм","Комплект"]
["R5CPE20100-RAL3020","Дверь сплошная RAL3020 для шкафов CQE/DAE ВхШ 2000x1000 мм","Комплект"]
["R5CPE2030-RAL3020","Дверь сплошная RAL3020 для шкафов CQE/DAE ВхШ 2000x300 мм","Комплект"]
["R5CPE2040-RAL3020","Дверь сплошная RAL3020 для шкафов CQE/DAE ВхШ 2000x400 мм","Комплект"]
["R5CPE2060-RAL3020","Дверь сплошная RAL3020 для шкафов CQE/DAE ВхШ 2000x600 мм","Комплект"]
["R5CPE2080-RAL3020","Дверь сплошная RAL3020 для шкафов CQE/DAE ВхШ 2000x800 мм","Комплект"]
["R5CPE22100-RAL3020","Дверь сплошная RAL3020 для шкафов CQE/DAE ВхШ 2200x1000 мм","Комплект"]
["R5CPE2230-RAL3020","Дверь сплошная RAL3020 для шкафов CQE/DAE ВхШ 2200x300 мм","Комплект"]
["R5CPE2240-RAL3020","Дверь сплошная RAL3020 для шкафов CQE/DAE ВхШ 2200x400 мм","Комплект"]
["R5CPE2260-RAL3020","Дверь сплошная RAL3020 для шкафов CQE/DAE ВхШ 2200x600 мм","Комплект"]
["R5CPE2280-RAL3020","Дверь сплошная RAL3020 для шкафов CQE/DAE ВхШ 2200x800 мм","Комплект"]
["R5CPE18100FP","Дверь сплошная RAL 3000, для шкафов CQE/DAE, 1800 x 1000 мм","Штука"]
["R5CPE1860FP","Дверь сплошная RAL 3000, для шкафов CQE/DAE, 1800 x 600 мм","Штука"]
["R5CPE1880FP","Дверь сплошная RAL 3000, для шкафов CQE/DAE, 1800 x 800 мм","Штука"]
["R5CPE2060FP","Дверь сплошная RAL 3000, для шкафов CQE/DAE, 2000 x 600 мм","Штука"]
["R5CPE2080FP","Дверь сплошная RAL 3000, для шкафов CQE/DAE, 2000 x 800 мм","Штука"]
["R5CPE10100","Дверь сплошная для шкафов CQE/DAE ВхШ 1000х1000 мм","Штука"]
["R5CPE1060","Дверь сплошная для шкафов CQE/DAE ВхШ 1000х600 мм","Штука"]
["R5CPE1080","Дверь сплошная для шкафов CQE/DAE ВхШ 1000х800 мм","Штука"]
["R5CPE12100","Дверь сплошная для шкафов CQE/DAE ВхШ 1200х1000 мм","Штука"]
["R5CPE1260","Дверь сплошная для шкафов CQE/DAE ВхШ 1200х600 мм","Штука"]
["R5CPE1280","Дверь сплошная для шкафов CQE/DAE ВхШ 1200х800 мм","Штука"]
["R5CPE14100","Дверь сплошная для шкафов CQE/DAE ВхШ 1400х1000 мм","Штука"]
["R5CPE1460","Дверь сплошная для шкафов CQE/DAE ВхШ 1400х600 мм","Штука"]
["R5CPE1480","Дверь сплошная для шкафов CQE/DAE ВхШ 1400х800 мм","Штука"]
["R5CPE16100","Дверь сплошная для шкафов CQE/DAE ВхШ 1600х1000 мм","Штука"]
["R5CPE1640","Дверь сплошная для шкафов CQE/DAE ВхШ 1600х400 мм","Штука"]
["R5CPE1660","Дверь сплошная для шкафов CQE/DAE ВхШ 1600х600 мм","Штука"]
["R5CPE1680","Дверь сплошная для шкафов CQE/DAE ВхШ 1600х800 мм","Штука"]
["R5CPE18100","Дверь сплошная для шкафов CQE/DAE ВхШ 1800х1000 мм","Штука"]
["R5CPE1830","Дверь сплошная для шкафов CQE/DAE ВхШ 1800х300 мм","Штука"]
["R5CPE1840","Дверь сплошная для шкафов CQE/DAE ВхШ 1800х400 мм","Штука"]
["R5CPE1860","Дверь сплошная для шкафов CQE/DAE ВхШ 1800х600 мм","Штука"]
["R5CPE1880","Дверь сплошная для шкафов CQE/DAE ВхШ 1800х800 мм","Штука"]
["R5CPE20100","Дверь сплошная для шкафов CQE/DAE ВхШ 2000х1000 мм","Штука"]
["R5CPE2030","Дверь сплошная для шкафов CQE/DAE ВхШ 2000х300 мм","Штука"]
["R5CPE2040","Дверь сплошная для шкафов CQE/DAE ВхШ 2000х400 мм","Штука"]
["R5CPE2060","Дверь сплошная для шкафов CQE/DAE ВхШ 2000х600 мм","Штука"]
["R5CPE2080","Дверь сплошная для шкафов CQE/DAE ВхШ 2000х800 мм","Штука"]
["R5CPE22100","Дверь сплошная для шкафов CQE/DAE ВхШ 2200х1000 мм","Штука"]
["R5CPE2230","Дверь сплошная для шкафов CQE/DAE ВхШ 2200х300 мм","Штука"]
["R5CPE2240","Дверь сплошная для шкафов CQE/DAE ВхШ 2200х400 мм","Штука"]
["R5CPE2260","Дверь сплошная для шкафов CQE/DAE ВхШ 2200х600 мм","Штука"]
["R5CPE2280","Дверь сплошная для шкафов CQE/DAE ВхШ 2200х800 мм","Штука"]
[]
["R5CPE14120","Дверь сплошная двустворчатая для шкафов CQE/DAE ВхШ 1400х1200 мм","Штука"]
["R5CPE14160","Дверь сплошная двустворчатая для шкафов CQE/DAE ВхШ 1400х1600 мм","Штука"]
["R5CPE16120","Дверь сплошная двустворчатая для шкафов CQE/DAE ВхШ 1600х1200 мм","Штука"]
["R5CPE18120","Дверь сплошная двустворчатая для шкафов CQE/DAE ВхШ 1800х1200 мм","Штука"]
["R5CPE20120","Дверь сплошная двустворчатая для шкафов CQE/DAE ВхШ 2000х1200 мм","Штука"]
["R5CPE20140","Дверь сплошная двустворчатая для шкафов CQE/DAE ВхШ 2000х1400 мм","Штука"]
["R5CPE20160","Дверь сплошная двустворчатая для шкафов CQE/DAE ВхШ 2000х1600 мм","Штука"]
["R5CPE22120","Дверь сплошная двустворчатая для шкафов CQE/DAE ВхШ 2200х1200 мм","Штука"]
["R5CPE10120","Дверь сплошная двустворчатая для шкафов CQE/DAE ВхШ 1000х1200 мм","Штука"]
["R5CPE10140","Дверь сплошная двустворчатая для шкафов CQE/DAE ВхШ 1000х1400 мм","Штука"]
["R5CPE10160","Дверь сплошная двустворчатая для шкафов CQE/DAE ВхШ 1000х1600 мм","Штука"]
["R5CPE1481","Дверь сплошная двустворчатая для шкафов CQE/DAE ВхШ 1400х800 мм","Штука"]
["R5CPE16101","Дверь сплошная двустворчатая для шкафов CQE/DAE ВхШ 1600х1000 мм","Штука"]
["R5CPE1681","Дверь сплошная двустворчатая для шкафов CQE/DAE ВхШ 1600х800 мм","Штука"]
["R5CPE18101","Дверь сплошная двустворчатая для шкафов CQE/DAE ВхШ 1800х1000 мм","Штука"]
["R5CPE1881","Дверь сплошная двустворчатая для шкафов CQE/DAE ВхШ 1800х800 мм","Штука"]
["R5CPE20101","Дверь сплошная двустворчатая для шкафов CQE/DAE ВхШ 2000х1000 мм","Штука"]
["R5CPE2081","Дверь сплошная двустворчатая для шкафов CQE/DAE ВхШ 2000х800 мм","Штука"]
["R5CPE22101","Дверь сплошная двустворчатая для шкафов CQE/DAE ВхШ 2200х1000 мм","Штука"]
["R5CPE2281","Дверь сплошная двустворчатая для шкафов CQE/DAE ВхШ 2200х800 мм","Штука"]
[]
["R5RMH40","Поручень для дверей CQE шириной 400 мм","Штука"]
["R5RMH60","Поручень для дверей CQE шириной 600 мм","Штука"]
["R5RMH80","Поручень для дверей CQE шириной 800 мм","Штука"]
["R5CE200","Комплект замка (малая ручка, цилиндр с двойной бородкой 3мм)","Штука"]
["R5CE201","Комплект замка для DAE/CQE, поворотная ручка, цилиндрическая личинка","Штука"]
["R5CE202","Комплект замка, для DAE/CQE, большая ручка, двойная бородка 3мм","Штука"]
["R5CE204","Комплект замка для секционных дверей, двойная бородка 3мм","Штука"]
["R5CE205","Комплект замка для пультов и шкафов CE, двойная бородка 3мм","Штука"]
["R5CE207","Комплект замка, для DAE/CQE, поворотная ручка, двойная бородка 3мм","Штука"]
["R5CE209","Комплект замка для пультов, двойная бородка 3мм","Штука"]
["R5CE211","Личинка замка, для малой ручки, под ключ квадратного профиля 7мм","Штука"]
["R5CE212","Личинка замка, для малой ручки, под ключ квадратного профиля 8мм","Штука"]
["R5CE213","Личинка замка, для малой ручки, под ключ треугольного профиля 7мм","Штука"]
["R5CE214","Личинка замка, для малой ручки, под ключ треугольного профиля 8мм","Штука"]
["R5CE219","Личинка замка, для малой ручки, под ключ с двойной бородкой 3мм","Штука"]
["R5CE221","Личинка замка, для вкладыша, под ключ квадратного профиля 7мм","Штука"]
["R5CE223","Личинка замка, для вкладыша, под ключ треугольного профиля 7мм","Штука"]
["R5CE224","Личинка замка, для вкладыша, под ключ треугольного профиля 8мм","Штука"]
["R5CE226","Личинка замка, для вкладыша, под ключ типа FIAT","Штука"]
["R5CE230","Металлический ключ с двойной бородкой 3мм","Штука"]
["R5CE233","Металлический ключ квадратного профиля 7мм","Штука"]
["R5CE234","Металлический ключ квадратного профиля 8мм","Штука"]
["R5CE235","Металлический ключ треугольного профиля 7мм","Штука"]
["R5CE236","Металлический ключ треугольного профиля 8мм","Штука"]
["R5CE237","Металлический ключ типа FIAT","Штука"]
["R5CE240","Пластиковый ключ/ручка с двойной бородкой 3мм","Штука"]
["R5CE243","Пластиковый ключ/ручка квадратного профиля 7мм","Штука"]
["R5CE245","Пластиковый ключ/ручка треугольного профиля 7мм","Штука"]
["R5CE246","Пластиковый ключ/ручка треугольного профиля 8мм","Штука"]
["R5CE261","Личинка замка, для вкладыша, под ключ с двойной бородкой 3мм","Штука"]
["R5CE262","Личинка замка, для поворотной ручки, замка под ключ типа FIAT","Штука"]
["R5CE270","Улучшенная ручка с замком под индивидуальный ключ","Штука"]
[]
["R5NTE100","Карман для документации, металлический, для дверей шириной 1000 мм","Комплект"]
["R5NTE40","Карман для документации, металлический, для дверей шириной 400 мм","Комплект"]
["R5NTE50","Карман для документации, металлический, для дверей шириной 500 мм","Комплект"]
["R5NTE60","Карман для документации, металлический, для дверей шириной 600 мм","Комплект"]
["R5NTE70","Карман для документации, металлический, для дверей шириной 700 мм","Комплект"]
["R5NTE80","Карман для документации, металлический, для дверей шириной 800 мм","Комплект"]
["R5A32","Карман для документации, пластиковый","Штука"]
["R5TE100","Карман для документации, металлический, для дверей шириной 1000 мм","Штука"]
["R5TE50","Карман для документации, металлический, для дверей шириной 500 мм","Штука"]
["R5TE60","Карман для документации, металлический, для дверей шириной 600 мм","Штука"]
["R5TE70","Карман для документации, металлический, для дверей шириной 700 мм","Штука"]
["R5TE80","Карман для документации, металлический, для дверей шириной 800 мм","Штука"]
[]
["R5IHMP01","Держатель монтажной платы CQE для реек R5PDL***","Комплект"]
["R5AE05","Набор принадлежностей для поддержки монтажной платы","Штука"]
["R5AE06","Набор принадлежностей для глубокой установки монтажной платы","Штука"]
["R5PIE14","Монтажная плата, промежуточная, для шкафов CQE высотой 1400 мм","Штука"]
["R5PIE16","Монтажная плата, промежуточная, для шкафов CQE высотой 1600 мм","Штука"]
["R5PIE18","Монтажная плата, промежуточная, для шкафов CQE высотой 1800 мм","Штука"]
["R5PIE20","Монтажная плата, промежуточная, для шкафов CQE высотой 2000 мм","Штука"]
["R5PIE22","Монтажная плата, промежуточная, для шкафов CQE высотой 2200 мм","Штука"]
["R5RPC100","Профили усиливающие, для монтажных плат R5PCE Ш=1000мм, 1 упаковка - 2шт.","Упаковка"]
["R5RPC120","Профили усиливающие, для монтажных плат R5PCE Ш=1200мм, 1 упаковка - 2шт.","Упаковка"]
["R5RPC140","Профили усиливающие, для монтажных плат R5PCE Ш=1400мм, 1 упаковка - 2шт.","Упаковка"]
["R5RPC160","Профили усиливающие, для монтажных плат R5PCE Ш=1600мм, 1 упаковка - 2шт.","Упаковка"]
["R5RPC60","Профили усиливающие, для монтажных плат R5PCE Ш=600мм, 1 упаковка - 2шт.","Упаковка"]
["R5RPC80","Профили усиливающие, для монтажных плат R5PCE Ш=800мм, 1 упаковка - 2шт.","Упаковка"]
[]
["R5PSP18100","Монтажная плата, дополнительная, для шкафов CQE, 1800 x 1000 мм","Штука"]
["R5PSP18120","Монтажная плата, дополнительная, для шкафов CQE, 1800 x 1200 мм","Штука"]
["R5PSP1860","Монтажная плата, дополнительная, для шкафов CQE, 1800 x 600 мм","Штука"]
["R5PSP1880","Монтажная плата, дополнительная, для шкафов CQE, 1800 x 800 мм","Штука"]
["R5PSP20100","Монтажная плата, дополнительная, для шкафов CQE, 2000 x 1000 мм","Штука"]
["R5PSP20120","Монтажная плата, дополнительная, для шкафов CQE, 2000 x 1200 мм","Штука"]
["R5PSP2060","Монтажная плата, дополнительная, для шкафов CQE, 2000 x 600 мм","Штука"]
["R5PSP2080","Монтажная плата, дополнительная, для шкафов CQE, 2000 x 800 мм","Штука"]
[]
["R5PCSE16100","Монтажная плата, с боковой установкой, для шкафов 1600 x 1000мм","Штука"]
["R5PCSE16120","Монтажная плата, с боковой установкой, для шкафов 1600 x 1200мм","Штука"]
["R5PCSE1660","Монтажная плата, с боковой установкой, для шкафов  1600 x 600мм","Штука"]
["R5PCSE1680","Монтажная плата, с боковой установкой, для шкафов  1600 x 800мм","Штука"]
["R5PCSE18100","Монтажная плата, с боковой установкой, для шкафов 1800 x 1000мм","Штука"]
["R5PCSE18120","Монтажная плата, с боковой установкой, для шкафов 1800 x 1200мм","Штука"]
["R5PCSE1860","Монтажная плата, с боковой установкой, для шкафов  1800 x 600мм","Штука"]
["R5PCSE1880","Монтажная плата, с боковой установкой, для шкафов  1800 x 800мм","Штука"]
["R5PCSE20100","Монтажная плата, с боковой установкой, для шкафов 2000 x 1000мм","Штука"]
["R5PCSE20120","Монтажная плата, с боковой установкой, для шкафов 2000 x 1200мм","Штука"]
["R5PCSE20140","Монтажная плата, с боковой установкой, для шкафов 2000 x 1400мм","Штука"]
["R5PCSE20160","Монтажная плата, с боковой установкой, для шкафов 2000 x 1600мм","Штука"]
["R5PCSE2060","Монтажная плата, с боковой установкой, для шкафов  2000 x 600мм","Штука"]
["R5PCSE2080","Монтажная плата, с боковой установкой, для шкафов  2000 x 800мм","Штука"]
["R5PCSE22100","Монтажная плата, с боковой установкой, для шкафов 2200 x 1000мм","Штука"]
["R5PCSE22120","Монтажная плата, с боковой установкой, для шкафов 2200 x 1200мм","Штука"]
["R5PCSE2260","Монтажная плата, с боковой установкой, для шкафов  2200 x 600мм","Штука"]
["R5PCSE2280","Монтажная плата, с боковой установкой, для шкафов  2200 x 800мм","Штука"]
[]
["R5PCETN1860PS","МП перфорированная 1800x600 мм, ,боковая, без крепежа","Штука"]
["R5PCETN1880PF","МП перфорированная 1800x800 мм, фронтальная, без крепежа","Штука"]
["R5PCETN2060PS","МП перф. 2000x600 мм, ,боковая","Штука"]
["R5PCETN2080PF","МП перфорированная 2000x800 мм, фронтальная, без крепежа","Штука"]
["R5PCE10100","Монтажная плата, для шкафов DAE/CQE 1000 x 1000 мм","Штука"]
["R5PCE1060","Монтажная плата, для шкафов DAE/CQE 1000 x 600 мм","Штука"]
["R5PCE1080","Монтажная плата, для шкафов DAE/CQE 1000 x 800 мм","Штука"]
["R5PCE12100","Монтажная плата, для шкафов DAE/CQE 1200 x 1000 мм","Штука"]
["R5PCE1260","Монтажная плата, для шкафов DAE/CQE 1200 x 600 мм","Штука"]
["R5PCE1280","Монтажная плата, для шкафов DAE/CQE 1200 x 800 мм","Штука"]
["R5PCE14100","Монтажная плата, для шкафов DAE/CQE 1400 x 1000 мм","Штука"]
["R5PCE14120","Монтажная плата, для шкафов DAE/CQE 1400 x 1200 мм","Штука"]
["R5PCE14160","Монтажная плата, для шкафов DAE/CQE 1400 x 1600 мм","Штука"]
["R5PCE1460","Монтажная плата, для шкафов DAE/CQE 1400 x 600 мм","Штука"]
["R5PCE1480","Монтажная плата, для шкафов DAE/CQE 1400 x 800 мм","Штука"]
["R5PCE16100","Монтажная плата, для шкафов DAE/CQE 1600 x 1000 мм","Штука"]
["R5PCE16120","Монтажная плата, для шкафов DAE/CQE 1600 x 1200 мм","Штука"]
["R5PCE1640","Монтажная плата, для шкафов DAE/CQE 1600 x 400 мм","Штука"]
["R5PCE1660","Монтажная плата, для шкафов DAE/CQE 1600 x 600 мм","Штука"]
["R5PCE1680","Монтажная плата, для шкафов DAE/CQE 1600 x 800 мм","Штука"]
["R5PCE18100","Монтажная плата, для шкафов DAE/CQE 1800 x 1000 мм","Штука"]
["R5PCE18120","Монтажная плата, для шкафов DAE/CQE 1800 x 1200 мм","Штука"]
["R5PCE1830","Монтажная плата, для шкафов DAE/CQE 1800 x 300 мм","Штука"]
["R5PCE1840","Монтажная плата, для шкафов DAE/CQE 1800 x 400 мм","Штука"]
["R5PCE1860","Монтажная плата, для шкафов DAE/CQE 1800 x 600 мм","Штука"]
["R5PCE1880","Монтажная плата, для шкафов DAE/CQE 1800 x 800 мм","Штука"]
["R5PCE20100","Монтажная плата, для шкафов DAE/CQE 2000 x 1000 мм","Штука"]
["R5PCE20120","Монтажная плата, для шкафов DAE/CQE 2000 x 1200 мм","Штука"]
["R5PCE20140","Монтажная плата, для шкафов DAE/CQE 2000 x 1400 мм","Штука"]
["R5PCE20160","Монтажная плата, для шкафов DAE/CQE 2000 x 1600 мм","Штука"]
["R5PCE2030","Монтажная плата, для шкафов DAE/CQE 2000 x 300 мм","Штука"]
["R5PCE2040","Монтажная плата, для шкафов DAE/CQE 2000 x 400 мм","Штука"]
["R5PCE2060","Монтажная плата, для шкафов DAE/CQE 2000 x 600 мм","Штука"]
["R5PCE2080","Монтажная плата, для шкафов DAE/CQE 2000 x 800 мм","Штука"]
["R5PCE22100","Монтажная плата, для шкафов DAE/CQE 2200 x 1000 мм","Штука"]
["R5PCE22120","Монтажная плата, для шкафов DAE/CQE 2200 x 1200 мм","Штука"]
["R5PCE2230","Монтажная плата, для шкафов DAE/CQE 2200 x 300 мм","Штука"]
["R5PCE2240","Монтажная плата, для шкафов DAE/CQE 2200 x 400 мм","Штука"]
["R5PCE2260","Монтажная плата, для шкафов DAE/CQE 2200 x 600 мм","Штука"]
["R5PCE2280","Монтажная плата, для шкафов DAE/CQE 2200 x 800 мм","Штука"]
[]
["R5LSC50","Панели боковые, для надстроечных модулей R5SCC, 500мм, 1 упаковка - 2шт.","Упаковка"]
["R5LSC60","Панели боковые, для надстроечных модулей R5SCC, 600мм, 1 упаковка - 2шт.","Упаковка"]
["R5LSC80","Панели боковые, для надстроечных модулей R5SCC, 800мм, 1 упаковка - 2шт.","Упаковка"]
["R5LSE50","Панели боковые, для надстроечных модулей R5SCE, 500мм, 1 упаковка - 2шт.","Упаковка"]
["R5LSE60","Панели боковые, для надстроечных модулей R5SCE, 600мм, 1 упаковка - 2шт.","Упаковка"]
["R5PDS105","Пластина для разделения шкафа и модуля R5SCE, 1000 x 500 мм","Штука"]
["R5PDS106","Пластина для разделения шкафа и модуля R5SCE, 1000 x 600 мм","Штука"]
["R5PDS125","Пластина для разделения шкафа и модуля R5SCE, 1200 x 500 мм","Штука"]
["R5PDS126","Пластина для разделения шкафа и модуля R5SCE, 1200 x 600 мм","Штука"]
["R5PDS45","Пластина для разделения шкафа и модуля R5SCE, 400 x 500 мм","Штука"]
["R5PDS46","Пластина для разделения шкафа и модуля R5SCE, 400 x 600 мм","Штука"]
["R5PDS65","Пластина для разделения шкафа и модуля R5SCE, 600 x 500 мм","Штука"]
["R5PDS66","Пластина для разделения шкафа и модуля R5SCE, 600 x 600 мм","Штука"]
["R5PDS85","Пластина для разделения шкафа и модуля R5SCE, 800 x 500 мм","Штука"]
["R5PDS86","Пластина для разделения шкафа и модуля R5SCE, 800 x 600 мм","Штука"]
["R5SCE105","Надстроечный модуль R5SCE, 1000 x 500 мм, для шкафов CQE","Штука"]
["R5SCE106","Надстроечный модуль R5SCE, 1000 x 600 мм, для шкафов CQE","Штука"]
["R5SCE125","Надстроечный модуль R5SCE, 1200 x 500 мм, для шкафов CQE","Штука"]
["R5SCE126","Надстроечный модуль R5SCE, 1200 x 600 мм, для шкафов CQE","Штука"]
["R5SCE45","Надстроечный модуль R5SCE, 400 x 500 мм, для шкафов CQE","Штука"]
["R5SCE46","Надстроечный модуль R5SCE, 400 x 600 мм, для шкафов CQE","Штука"]
["R5SCE65","Надстроечный модуль R5SCE, 600 x 500 мм, для шкафов CQE","Штука"]
["R5SCE66","Надстроечный модуль R5SCE, 600 x 600 мм, для шкафов CQE","Штука"]
["R5SCE85","Надстроечный модуль R5SCE, 800 x 500 мм, для шкафов CQE","Штука"]
["R5SCE86","Надстроечный модуль R5SCE, 800 x 600 мм, для шкафов CQE","Штука"]
[]
["R5CVCE20250","Кабельный отсек CQE с боковой дверью, 2000 x 200 x 500 мм","Штука"]
["R5CVCE20280","Кабельный отсек CQE с боковой дверью, 2000 x 200 x 800 мм","Штука"]
["R5KE65","Комплект для соединения шкафов CQE","Штука"]
["R5KFRE20100","Набор для объединения шкафов спинами, 2000 x 1000 мм","Штука"]
["R5KFRE2030","Набор для объединения шкафов спинами, 2000 x 300 мм","Штука"]
["R5KFRE2040","Набор для объединения шкафов спинами, 2000 x 400 мм","Штука"]
["R5KFRE2080","Набор для объединения шкафов спинами, 2000 x 800 мм","Штука"]
["R5KFRE2260","Набор для объединения шкафов спинами, 2200 x 600 мм","Штука"]
["R5KRE65","Прямой соединитель, для тяжёлых шкафов CQE, 1 упаковка - 4шт.","Упаковка"]
["R5KSRE65","Угловой соединитель, для тяжёлых шкафов CQE, 1 упаковка - 4шт.","Упаковка"]
[]
["R5LE1042","Панели боковые, для шкафов CQE 1000 x 400мм, 1 упаковка - 2шт.","Упаковка"]
["R5LE1052","Панели боковые, для шкафов CQE 1000 x 500мм, 1 упаковка - 2шт.","Упаковка"]
["R5LE1062","Панели боковые, для шкафов CQE 1000 x 600мм, 1 упаковка - 2шт.","Упаковка"]
["R5LE1082","Панели боковые, для шкафов CQE 1000 x 800мм, 1 упаковка - 2шт.","Упаковка"]
["R5LE1242","Панели боковые, для шкафов CQE 1200x400 мм, 1 упаковка - 2шт.","Упаковка"]
["R5LE1252","Панели боковые, для шкафов CQE 1200x500 мм, 1 упаковка - 2шт.","Упаковка"]
["R5LE1262","Панели боковые, для шкафов CQE 1200x600 мм, 1 упаковка - 2шт.","Упаковка"]
["R5LE1282","Панели боковые, для шкафов CQE 1200x800 мм, 1 упаковка - 2шт.","Упаковка"]
["R5LE2242","Панели боковые, для шкафов CQE 2200 x 400мм, 1 упаковка - 2шт.","Упаковка"]
["R5LE1442","Панели боковые, для шкафов CQE 1400 x 400мм, 1 упаковка - 2шт.","Упаковка"]
["R5LE1452","Панели боковые, для шкафов CQE 1400 x 500мм, 1 упаковка - 2шт.","Упаковка"]
["R5LE1642","Панели боковые, для шкафов CQE 1600 x 400мм, 1 упаковка - 2шт.","Упаковка"]
["R5LE1652","Панели боковые, для шкафов CQE 1600 x 500мм, 1 упаковка - 2шт.","Упаковка"]
["R5LE1662","Панели боковые, для шкафов CQE 1600 x 600мм, 1 упаковка - 2шт.","Упаковка"]
["R5LE1682","Панели боковые, для шкафов CQE 1600 x 800мм, 1 упаковка - 2шт.","Упаковка"]
["R5LE18102","Панели боковые для шкафов CQE 1800х1000 мм, 1 упаковка - 2 шт.","Упаковка"]
["R5LE18122","Панели боковые для шкафов CQE 1800х1200 мм, 1 упаковка - 2 шт.","Упаковка"]
["R5LE1842","Панели боковые, для шкафов CQE 1800 x 400мм, 1 упаковка - 2шт.","Упаковка"]
["R5LE1852","Панели боковые, для шкафов CQE 1800 x 500мм, 1 упаковка - 2шт.","Упаковка"]
["R5LE1862","Панели боковые, для шкафов CQE 1800 x 600мм, 1 упаковка - 2шт.","Упаковка"]
["R5LE1882","Панели боковые, для шкафов CQE 1800 x 800мм, 1 упаковка - 2шт.","Упаковка"]
["R5LE20102","Панели боковые для шкафов CQE 2000х1000 мм, 1 упаковка - 2 шт.","Упаковка"]
["R5LE20122","Панели боковые для шкафов CQE 2000х1200 мм, 1 упаковка - 2 шт.","Упаковка"]
["R5LE2042","Панели боковые, для шкафов CQE 2000 x 400мм, 1 упаковка - 2шт.","Упаковка"]
["R5LE2052","Панели боковые, для шкафов CQE 2000 x 500мм, 1 упаковка - 2шт.","Упаковка"]
["R5LE2062","Панели боковые, для шкафов CQE 2000 x 600мм, 1 упаковка - 2шт.","Упаковка"]
["R5LE2082","Панели боковые, для шкафов CQE 2000 x 800мм, 1 упаковка - 2шт.","Упаковка"]
["R5LE22102","Панели боковые для шкафов CQE 2200х1000 мм, 1 упаковка - 2 шт.","Упаковка"]
["R5LE22122","Панели боковые для шкафов CQE 2200х1200 мм, 1 упаковка - 2 шт.","Упаковка"]
["R5LE2252","Панели боковые, для шкафов CQE 2200 x 500мм, 1 упаковка - 2шт.","Упаковка"]
["R5LE2262","Панели боковые, для шкафов CQE 2200 x 600мм, 1 упаковка - 2шт.","Упаковка"]
["R5LE2282","Панели боковые, для шкафов CQE 2200 x 800мм, 1 упаковка - 2шт.","Упаковка"]
[]
["R5AD2400","Заглушки для пром. панелей, сплошные, 1 упаковка - 4шт.","Упаковка"]
["R5AD2406","Заглушки для пром. панелей, переходник 24/6, 1 упаковка - 4шт.","Упаковка"]
["R5AD2410","Заглушки для пром. панелей, переходник 24/10, 1 упаковка - 4шт.","Упаковка"]
["R5AD2416","Заглушки для пром. панелей, переходник 24/16, 1 упаковка - 4шт.","Упаковка"]
["R5PCDE1840","Панель под промышленные разъёмы, 24 (3 x 8) разъёмов, 1800 x 400мм","Штука"]
["R5PCDE1850","Панель под промышленные разъёмы, 32 (4 x 8) разъёмов, 1800 x 500мм","Штука"]
["R5PCDE1860","Панель под промышленные разъёмы, 40 (5 x 8) разъёмов, 1800 x 600мм","Штука"]
["R5PCDE1880","Панель под промышленные разъёмы, 56 (7 x 8) разъёмов, 1800 x 800мм","Штука"]
["R5PCDE2040","Панель под промышленные разъёмы, 27 (3 x 9) разъёмов, 2000 x 400мм","Штука"]
["R5PCDE2050","Панель под промышленные разъёмы, 36 (4 x 9) разъёмов, 2000 x 500мм","Штука"]
["R5PCDE2060","Панель под промышленные разъёмы, 45 (5 x 9) разъёмов, 2000 x 600мм","Штука"]
["R5PCDE2080","Панель под промышленные разъёмы, 63 (7 x 9) разъёмов, 2000 x 800мм","Штука"]
[]
["R5CRE10100","Панель задняя, для шкафов DAE/CQE, 1000 x 1000 мм","Штука"]
["R5CRE1060","Панель задняя, для шкафов DAE/CQE, 1000 x 600 мм","Штука"]
["R5CRE1080","Панель задняя, для шкафов DAE/CQE, 1000 x 800 мм","Штука"]
["R5CRE12100","Панель задняя, для шкафов DAE/CQE, 1200 x 1000 мм","Штука"]
["R5CRE1260","Панель задняя, для шкафов DAE/CQE, 1200 x 600 мм","Штука"]
["R5CRE1280","Панель задняя, для шкафов DAE/CQE, 1200 x 800 мм","Штука"]
["R5CRE14100","Панель задняя, для шкафов DAE/CQE, 1400 x 1000 мм","Штука"]
["R5CRE14120","Панель задняя, для шкафов DAE/CQE, 1400 x 1200 мм","Штука"]
["R5CRE14160","Панель задняя, для шкафов DAE/CQE, 1400 x 1600 мм","Штука"]
["R5CRE1460","Панель задняя, для шкафов DAE/CQE, 1400 x 600 мм","Штука"]
["R5CRE1480","Панель задняя, для шкафов DAE/CQE, 1400 x 800 мм","Штука"]
["R5CRE16100","Панель задняя, для шкафов DAE/CQE, 1600 x 1000 мм","Штука"]
["R5CRE16120","Панель задняя, для шкафов DAE/CQE, 1600 x 1200 мм","Штука"]
["R5CRE1640","Панель задняя, для шкафов DAE/CQE, 1600 x 400 мм","Штука"]
["R5CRE1660","Панель задняя, для шкафов DAE/CQE, 1600 x 600 мм","Штука"]
["R5CRE1680","Панель задняя, для шкафов DAE/CQE, 1600 x 800 мм","Штука"]
["R5CRE18100","Панель задняя, для шкафов DAE/CQE, 1800 x 1000 мм","Штука"]
["R5CRE18120","Панель задняя, для шкафов DAE/CQE, 1800 x 1200 мм","Штука"]
["R5CRE1830","Панель задняя, для шкафов DAE/CQE, 1800 x 300 мм","Штука"]
["R5CRE1840","Панель задняя, для шкафов DAE/CQE, 1800 x 400 мм","Штука"]
["R5CRE1860","Панель задняя,для шкафов DAE/CQE.1800x600мм","Штука"]
["R5CRE1880","Панель задняя, для шкафов DAE/CQE, 1800 x 800 мм","Штука"]
["R5CRE20100","Панель задняя, для шкафов DAE/CQE, 2000 x 1000 мм","Штука"]
["R5CRE20120","Панель задняя, для шкафов DAE/CQE, 2000 x 1200 мм","Штука"]
["R5CRE20140","Панель задняя, для шкафов DAE/CQE, 2000 x 1400 мм","Штука"]
["R5CRE20160","Панель задняя, для шкафов DAE/CQE, 2000 x 1600 мм","Штука"]
["R5CRE2030","Панель задняя, для шкафов DAE/CQE, 2000 x 300 мм","Штука"]
["R5CRE2040","Панель задняя, для шкафов DAE/CQE, 2000 x 400 мм","Штука"]
["R5CRE2060","Панель задняя, для шкафов DAE/CQE, 2000 x 600 мм","Штука"]
["R5CRE2080","Панель задняя, для шкафов DAE/CQE, 2000 x 800 мм","Штука"]
["R5CRE22100","Панель задняя, для шкафов DAE/CQE, 2200 x 1000 мм","Штука"]
["R5CRE22120","Панель задняя, для шкафов DAE/CQE, 2200 x 1200 мм","Штука"]
["R5CRE2230","Панель задняя, для шкафов DAE/CQE, 2200 x 300 мм","Штука"]
["R5CRE2240","Панель задняя, для шкафов DAE/CQE, 2200 x 400 мм","Штука"]
["R5CRE2260","Панель задняя, для шкафов DAE/CQE, 2200 x 600 мм","Штука"]
["R5CRE2280","Панель задняя, для шкафов DAE/CQE, 2200 x 800 мм","Штука"]
[]
["R5RE3E610","Полка усиленная выдвижная, 3 сегмента,  Г = 1000 мм, для шкафов DAE/CQE шириной 600 мм","Штука"]
["R5RE5E610","Полка усиленная выдвижная, 5 сегментов,  Г = 1000 мм, для шкафов DAE/CQE шириной 600 мм","Штука"]
["R5RFE106","Полка усиленная фиксированная, Г = 600 мм, для шкафов DAE/CQE шириной 1000 мм","Штука"]
["R5RFE108","Полка усиленная фиксированная, Г = 800 мм, для шкафов DAE/CQE шириной 1000 мм","Штука"]
["R5RFE610","Полка усиленная фиксированная, Г = 1000 мм, для шкафов DAE/CQE шириной 600 мм","Штука"]
["R5RFE66","Полка усиленная фиксированная, Г = 600 мм, для шкафов DAE/CQE шириной 600 мм","Штука"]
["R5RFE810","Полка усиленная фиксированная, Г = 1000 мм, для шкафов DAE/CQE шириной 800 мм","Штука"]
["R5RFE86","Полка усиленная фиксированная, Г = 600 мм, для шкафов DAE/CQE шириной 800 мм","Штука"]
["R5RFE88","Полка усиленная фиксированная, Г = 800 мм, для шкафов DAE/CQE шириной 800 мм","Штука"]
["R5LE1000","Консоль для шкафов CQE шириной 1000 мм","Штука"]
["R5LE1200","Консоль для шкафов CQE шириной 1200 мм","Штука"]
["R5LE600","Консоль для шкафов CQE шириной 600 мм","Штука"]
["R5LE800","Консоль для шкафов CQE шириной 800 мм","Штука"]
["R5RE660","Полка выдвижная, Г = 600 мм, для шкафов DAE/CQE шириной 600 мм","Штука"]
["R5RE680","Полка выдвижная, Г = 800 мм, для шкафов DAE/CQE шириной 600 мм","Штука"]
["R5RE860","Полка выдвижная, Г = 600 мм, для шкафов DAE/CQE шириной 800 мм","Штука"]
["R5RE880","Полка выдвижная, Г = 800 мм, для шкафов DAE/CQE шириной 800 мм","Штука"]
["R5RF660","Полка фиксированная, Г = 600 мм, для шкафов DAE/CQE шириной 600 мм","Штука"]
["R5RF680","Полка фиксированная, Г = 800 мм, для шкафов DAE/CQE шириной 600 мм","Штука"]
["R5RF860","Полка фиксированная, Г = 600 мм, для шкафов DAE/CQE шириной 800 мм","Штука"]
["R5RF880","Полка фиксированная, Г = 800 мм, для шкафов DAE/CQE шириной 800 мм","Штука"]
["R5RL1000","Полка дверная, для шкафов DAE/CQE шириной 1000 мм","Штука"]
["R5RL600","Полка дверная, для шкафов DAE/CQE шириной 600 мм","Штука"]
["R5RL800","Полка дверная, для шкафов DAE/CQE шириной 800 мм","Штука"]
[]
["R5AE14","Кронштейны для крепления CQE к стене, 1 комплект - 2 шт.","Комплект"]
["R5AE24","Кронштейн для крепления к стене сборки из 2 шкафов CQE , 1 шт.","Комплект"]
["R5AS01","Ограничитель угла открытия секционной внешней двери, 90 градусов","Штука"]
["R5ES01","Комплект кабелей заземления CQE","Комплект"]
["R5KFP02","Фиксаторы для цоколя 100 мм, 1 комплект - 4 шт.","Комплект"]
["R5KFP03","Фиксаторы для цоколя 200 мм, 1 комплект - 4 шт.","Комплект"]
["R5PACBP","Пакет метизов для цоколя R5BP.","Упаковка"]
["R5STUBP","Пластиковые заглушки для цоколя R5BP 1уп - 4 шт.","Упаковка"]
["R5WTP821","Дверь внешняя прозрачная из оргстекла 548 x 213 x 55 мм","Штука"]
["R5WTP835","Дверь внешняя прозрачная из оргстекла 548 x 346 x 55 мм","Штука"]
["R5WTP848","Дверь внешняя прозрачная из оргстекла 548 x 479 x 55мм","Штука"]
["R5A05","Углы крепёжные, вырез - вырез, 1 упаковка - 10 шт.","Упаковка"]
["R5A06","Углы крепёжные, вырез - резьба М8, 1 упаковка - 10 шт.","Упаковка"]
["R5A07","Винты самонарезающие, М4.8x12, 1 упаковка - 50 шт.","Упаковка"]
["R5A21","Баллончик распылитель с краской, RAL 7032","Штука"]
["R5A24","Баллончик распылитель с краской, RAL 7035","Штука"]
["R5A33","Рым-болты, М12, 1 упаковка - 4 шт.","Упаковка"]
["R5A51","Гайки специальные, М6, 1 упаковка - 50 шт.","Упаковка"]
["R5A52","Гайки специальные, М8, 1 упаковка - 50 шт.","Упаковка"]
["R5A54","Баллончик распылитель с краской, RAL 7011","Штука"]
["R5AE01","Устройство взаимной блокировки последовательных дверей","Штука"]
["R5AE02","Ограничитель угла открытия двери, 90 градусов","Штука"]
["R5AE04","Комплект кронштейнов для крепления к стене, 1 упаковка - 4 шт.","Упаковка"]
["R5AE09","Ограничитель угла открытия двери, 90 гр., для прозрачных дверей Ш=800,1000мм","Штука"]
["R5AEL01","Устройство взаимной блокировки примыкающих дверей","Штука"]
["R5BC0512"," Шинная клемма для кабеля, сечение шины 5 мм, кабель 70-120 мм","Штука"]
["R5BC0516"," Шинная клемма для кабеля, сечение шины 5 мм, кабель 1,5-16 мм","Штука"]
["R5BC0535"," Шинная клемма для кабеля, сечение шины 5 мм, кабель 16-35 мм","Штука"]
["R5BC0570"," Шинная клемма для кабеля, сечение шины 5 мм, кабель 35-70 мм","Штука"]
["R5BC1012","Шинная клемма для кабеля, сечение шины 10 мм, кабель 70-120 мм","Штука"]
["R5BC1016"," Шинная клемма для кабеля, сечение шины 10 мм, кабель 1,5-16 мм","Штука"]
["R5BC1035"," Шинная клемма для кабеля, сечение шины 10 мм, кабель 16-35 мм","Штука"]
["R5BC1070"," Шинная клемма для кабеля, сечение шины 10 мм, кабель 35-70 мм","Штука"]
["R5CE248","Петли 180 градусов, 1 упаковка - 4шт.","Упаковка"]
["R5DGR100","Регулируемая DIN рейка, для шкафов шириной 1000мм","Штука"]
["R5DGR40","Регулируемая DIN рейка, для шкафов шириной 400мм","Штука"]
["R5DGR60","Регулируемая DIN рейка, для шкафов шириной 600мм","Штука"]
["R5DGR80","Регулируемая DIN рейка, для шкафов шириной 800мм","Штука"]
["R5DPC22","Комплект держателей перфокороба, для отверстия 22мм, 1 упаковка - 50 шт.","Упаковка"]
["R5DPC30","Комплект держателей перфокороба, для отверстия 30мм, 1 упаковка - 30 шт.","Упаковка"]
["R5DPC72","Комплект держателей перфокороба, для отверстия 72x72мм, 1 упаковка - 10 шт.","Упаковка"]
["R5DPC96","Комплект держателей перфокороба, для отверстия 96x96мм, 1 упаковка - 10 шт.","Упаковка"]
["R5DSF01","Комплект держателей перфокороба, задних, 1 упаковка - 4 шт","Упаковка"]
["R5DSF02","Комплект держателей перфокороба, фронтальных, 1 упаковка - 4 шт","Упаковка"]
["R5KFP01","Комплект пластин для УСТАРЕВШИХ цоколей R5ZE к полу, 1 упаковка - 4шт.","Упаковка"]
["R5PP01","П-образный профиль для защиты кромок, для дверей и панелей","Метр"]
["R5SRP01","Регулируемые кронштейны, 75 - 125мм, 1 упаковка - 2шт.","Упаковка"]
["R5SRP02","Регулируемые кронштейны, 150 - 200мм, 1 упаковка - 2шт.","Упаковка"]
["R5TH01","Комплект для изменения перфорации на внутренней стороне стойки R5KM**, 1 упаковка - 8 шт","Упаковка"]
["R5TSE02","Соединительный углы для подъёма шкафной сборки, 1 упаковка - 2шт.","Упаковка"]
[]
["R5DTF1000","Рейка для шинодержателей, установка по ширине, Ш=1000мм, 1 упаковка - 4шт.","Упаковка"]
["R5DTF1200","Рейка для шинодержателей, установка по ширине, Ш=1200мм, 1 упаковка - 4шт.","Упаковка"]
["R5DTF400","Рейка для шинодержателей, установка по ширине, Ш=400мм, 1 упаковка - 4шт.","Упаковка"]
["R5DTF600","Рейка для шинодержателей, установка по ширине, Ш=600мм, 1 упаковка - 4шт.","Упаковка"]
["R5DTF800","Рейка для шинодержателей, установка по ширине, Ш=800мм, 1 упаковка - 4шт.","Упаковка"]
["R5PAC100","Рейки для фиксации кабеля, для шкафов DAE/CQE Ш=1000мм, 1 упаковка - 2шт.","Упаковка"]
["R5PAC120","Рейки для фиксации кабеля, для шкафов DAE/CQE Ш=1200мм, 1 упаковка - 2шт.","Упаковка"]
["R5PAC140","Рейки для фиксации кабеля, для шкафов DAE/CQE Ш=1400мм, 1 упаковка - 2шт.","Упаковка"]
["R5PAC160","Рейки для фиксации кабеля, для шкафов DAE/CQE Ш=1600мм, 1 упаковка - 2шт.","Упаковка"]
["R5PAC40","Рейки для фиксации кабеля, для шкафов DAE/CQE Ш=400мм, 1 упаковка - 2шт.","Упаковка"]
["R5PAC60","Рейки для фиксации кабеля, для шкафов DAE/CQE Ш=600мм, 1 упаковка - 2шт.","Упаковка"]
["R5PAC80","Рейки для фиксации кабеля, для шкафов DAE/CQE Ш=800мм, 1 упаковка - 2шт.","Упаковка"]
["R5PDF1000","Рейки поперечные, широкая, для шкафов CQE Ш=1000мм, 1 упаковка - 4шт.","Упаковка"]
["R5PDF1200","Рейки поперечные, широкая, для шкафов CQE Ш=1200мм, 1 упаковка - 4шт.","Упаковка"]
["R5PDF1400","Рейки поперечные, широкая, для шкафов CQE Ш=1400мм, 1 упаковка - 4шт.","Упаковка"]
["R5PDF1600","Рейки поперечные, широкая, для шкафов CQE Ш=1600мм, 1 упаковка - 4шт.","Упаковка"]
["R5PDF400","Рейки поперечные, широкая, для шкафов CQE Ш=400мм, 1 упаковка - 4шт.","Упаковка"]
["R5PDF600","Рейки поперечные, широкая, для шкафов CQE Ш=600мм, 1 упаковка - 4шт.","Упаковка"]
["R5PDF800","Рейки поперечные, широкая, для шкафов CQE Ш=800мм, 1 упаковка - 4шт.","Упаковка"]
["R5PDL400","Рейка боковая, широкая, для шкафов CQE глубиной 400 мм, 1 упаковка -4шт.","Упаковка"]
["R5PDL600","Рейка боковая, широкая, для шкафов CQE глубиной 600 мм, 1 упаковка -4шт.","Упаковка"]
["R5PDL800","Рейка боковая, широкая, для шкафов CQE глубиной 800 мм, 1 упаковка -4шт.","Упаковка"]
["R5PDL1000","Рейка боковая, широкая, для шкафов CQE глубиной 1000 мм, 1 упаковка -4шт.","Упаковка"]
["R5PDL1200","Рейка боковая, широкая, для шкафов CQE глубиной 1200 мм, 1 упаковка -4шт.","Упаковка"]
["R5PDL500","Рейка боковая, широкая, для шкафов CQE глубиной 500 мм, 1 упаковка -4шт.","Упаковка"]
["R5PDV14","Рейки вертикальные, широкая, для шкафов CQE В=1400мм, 1 упаковка - 2шт.","Упаковка"]
["R5PDV16","Рейки вертикальные, широкая, для шкафов CQE В=1600мм, 1 упаковка - 2шт.","Упаковка"]
["R5PDV18","Рейки вертикальные, широкая, для шкафов CQE В=1800мм, 1 упаковка - 2шт.","Упаковка"]
["R5PDV20","Рейки вертикальные, широкая, для шкафов CQE В=2000мм, 1 упаковка - 2шт.","Упаковка"]
["R5PDV22","Рейки вертикальные, широкая, для шкафов CQE В=2200мм, 1 упаковка - 2шт.","Упаковка"]
["R5PLE1000","Рейки боковые, специальная, для шкафов CQE глубиной 1000мм, 1 упаковка - 4шт.","Штука"]
["R5PLE400","Рейки боковые, специальная, для шкафов CQE глубиной 400мм, 1 упаковка - 4шт.","Упаковка"]
["R5PLE500","Рейки боковые, специальная, для шкафов CQE глубиной 500мм, 1 упаковка - 4шт.","Упаковка"]
["R5PLE600","Рейки боковые, специальная, для шкафов CQE глубиной 600мм, 1 упаковка - 4шт.","Упаковка"]
["R5PLE800","Рейки боковые, специальная, для шкафов CQE глубиной 800мм, 1 упаковка - 4шт.","Упаковка"]
["R5TFE1000","Рейки поперечные, для шкафов CQE Ш=1000мм, 1 упаковка - 4шт.","Упаковка"]
["R5TFE1200","Рейки поперечные, для шкафов CQE Ш=1200мм, 1 упаковка - 4шт.","Упаковка"]
["R5TFE1400","Рейки поперечные, для шкафов CQE Ш=1400мм, 1 упаковка - 4шт.","Упаковка"]
["R5TFE1600","Рейки поперечные, для шкафов CQE Ш=1600мм, 1 упаковка - 4шт.","Упаковка"]
["R5TFE400","Рейки поперечные, для шкафов CQE Ш=400мм, 1 упаковка - 4шт.","Упаковка"]
["R5TFE600","Рейки поперечные, для шкафов CQE Ш=600мм, 1 упаковка - 4шт.","Упаковка"]
["R5TFE800","Рейки поперечные, для шкафов CQE Ш=800мм, 1 упаковка - 4шт.","Упаковка"]
["R5TLE1000","Рейки боковые, для шкафов CQE глубиной 1000мм, 1 упаковка - 4шт.","Упаковка"]
["R5TLE1200","Рейки боковые, для шкафов CQE глубиной 1200мм, 1 упаковка - 4шт.","Упаковка"]
["R5TLE400","Рейки боковые, для шкафов CQE глубиной 400мм, 1 упаковка - 4шт.","Упаковка"]
["R5TLE500","Рейки боковые, для шкафов CQE глубиной 500мм, 1 упаковка - 4шт.","Упаковка"]
["R5TLE600","Рейки боковые, для шкафов CQE глубиной 600мм, 1 упаковка - 4шт.","Упаковка"]
["R5TLE800","Рейки боковые, для шкафов CQE глубиной 800мм, 1 упаковка - 4шт.","Упаковка"]
["R5TPE100","Рейки горизонтальные, дверная, для шкафов CQE Ш=1000мм, 1 упаковка - 10 шт.","Упаковка"]
["R5TPE50","Рейки горизонтальные, дверная, для шкафов CQE Ш=500мм, 1 упаковка - 10 шт.","Упаковка"]
["R5TPE60","Рейки горизонтальные, дверная, для шкафов CQE Ш=600мм, 1 упаковка - 10 шт.","Упаковка"]
["R5TPE70","Рейки горизонтальные, дверная, для шкафов CQE Ш=700мм, 1 упаковка - 10 шт.","Упаковка"]
["R5TPE80","Рейки горизонтальные, дверная, для шкафов CQE Ш=800мм, 1 упаковка - 10 шт.","Упаковка"]
["R5TTE1000","Рейки усиленная, для тяжёлого оборудования Ш=1000мм, 1 упаковка - 2шт.","Упаковка"]
["R5TTE1200","Рейки усиленная, для тяжёлого оборудования Ш=1200мм, 1 упаковка - 2шт.","Упаковка"]
["R5TTE1400","Рейки усиленная, для тяжёлого оборудования Ш=1400мм, 1 упаковка - 2шт.","Упаковка"]
["R5TTE1600","Рейки усиленная, для тяжёлого оборудования Ш=1600мм, 1 упаковка - 2шт.","Упаковка"]
["R5TTE600","Рейки усиленная, для тяжёлого оборудования Ш=600мм, 1 упаковка - 2шт.","Упаковка"]
["R5TTE800","Рейки усиленная, для тяжёлого оборудования Ш=800мм, 1 упаковка - 2шт.","Упаковка"]
[]
["R5CPME101000","Дверь секционная, сплошная, В=1000мм, Ш=1000мм","Штука"]
["R5CPME101200","Дверь секционная сплошная В=1200мм Ш=1000мм","Штука"]
["R5CPME101400","Дверь секционная сплошная В=1400мм Ш=1000мм","Штука"]
["R5CPME101600","Дверь секционная сплошная В=1600мм Ш=1000мм","Штука"]
["R5CPME101800","Дверьсекционная сплошная В=1800мм Ш=1000мм","Штука"]
["R5CPME10201","Дверь секционная, для модулей, 46 (1x46) модулей, В=200мм, Ш=1000мм","Штука"]
["R5CPME10300","Дверь секционная, сплошная, В=300мм, Ш=1000мм","Штука"]
["R5CPME10400","Дверь секционная, сплошная, В=400мм, Ш=1000мм","Штука"]
["R5CPME10401","Дверь секционная, для модулей, 92 (2x46) модулей, В=400мм, Ш=1000мм","Штука"]
["R5CPME10500","Дверь секционная, сплошная, В=500мм, Ш=1000мм","Штука"]
["R5CPME10600","Дверь секционная, сплошная, В=600мм, Ш=1000мм","Штука"]
["R5CPME10800","Дверь секционная, сплошная, В=800мм, Ш=1000мм","Штука"]
["R5CPME10900","Дверь секционная, сплошная, В=900мм, Ш=1000мм","Штука"]
["R5CPME41000","Дверь секционная, сплошная, В=1000мм, Ш=400мм","Штука"]
["R5CPME41200","Дверь секционная сплошная В=1200мм Ш=400мм","Штука"]
["R5CPME41400","Дверь секционная сплошная В=1400мм Ш=400мм","Штука"]
["R5CPME41600","Дверь секционная сплошная В=1600мм Ш=400мм","Штука"]
["R5CPME41800","Дверьсекционная сплошная В=1800мм Ш=400мм","Штука"]
["R5CPME4200","Дверь секционная, сплошная, В=200мм, Ш=400мм","Штука"]
["R5CPME4201","Дверь секционная, для модулей, 16 (1x16) модулей, В=200мм, Ш=400мм","Штука"]
["R5CPME4300","Дверь секционная, сплошная, В=300мм, Ш=400мм","Штука"]
["R5CPME4400","Дверь секционная, сплошная, В=400мм, Ш=400мм","Штука"]
["R5CPME4401","Дверь секционная, для модулей, 32 (2x16) модулей, В=400мм, Ш=400мм","Штука"]
["R5CPME4500","Дверь секционная, сплошная, В=500мм, Ш=400мм","Штука"]
["R5CPME4600","Дверь секционная, сплошная, В=600мм, Ш=400мм","Штука"]
["R5CPME4800","Дверь секционная, сплошная, В=800мм, Ш=400мм","Штука"]
["R5CPME4900","Дверь секционная, сплошная, В=900мм, Ш=400мм","Штука"]
["R5CPME61000","Дверь секционная, сплошная, В=1000мм, Ш=600мм","Штука"]
["R5CPME61200","Дверь секционная сплошная В=1200мм Ш=600мм","Штука"]
["R5CPME61400","Дверь секционная сплошная В=1400мм Ш=600мм","Штука"]
["R5CPME61600","Дверь секционная сплошная В=1600мм Ш=600мм","Штука"]
["R5CPME61800","Дверь секционная сплошная В=1800мм Ш=600мм","Штука"]
["R5CPME6200","Дверь секционная, сплошная, В=200мм, Ш=600мм","Штука"]
["R5CPME6201","Дверь секционная, для модулей, 26 (1x26) модулей, В=200мм, Ш=600мм","Штука"]
["R5CPME6300","Дверь секционная, сплошная, В=300мм, Ш=600мм","Штука"]
["R5CPME6400","Дверь секционная, сплошная, В=400мм, Ш=600мм","Штука"]
["R5CPME6401","Дверь секционная, для модулей, 52 (2x26) модуля, В=400мм, Ш=600мм","Штука"]
["R5CPME6500","Дверь секционная, сплошная, В=500мм, Ш=600мм","Штука"]
["R5CPME6600","Дверь секционная, сплошная, В=600мм, Ш=600мм","Штука"]
["R5CPME6800","Дверь секционная, сплошная, В=800мм, Ш=600мм","Штука"]
["R5CPME6900","Дверь секционная, сплошная, В=900мм, Ш=600мм","Штука"]
["R5CPME81000","Дверь секционная, сплошная, В=1000мм, Ш=800мм","Штука"]
["R5CPME81200","Дверь секционная сплошная В=1200мм Ш=800мм","Штука"]
["R5CPME81400","Дверьсекционная сплошная В=1400мм Ш=800мм","Штука"]
["R5CPME81600","Дверь секционная сплошная В=1600мм Ш=800мм","Штука"]
["R5CPME81800","Дверь секционная сплошная В=1800мм Ш=800мм","Штука"]
["R5CPME8200","Дверь секционная, сплошная, В=200мм, Ш=800мм","Штука"]
["R5CPME8201","Дверь секционная, для модулей, 36 (1x36) модулей, В=200мм, Ш=800мм","Штука"]
["R5CPME8300","Дверь секционная, сплошная, В=300мм, Ш=800мм","Штука"]
["R5CPME8400","Дверь секционная, сплошная, В=400мм, Ш=800мм","Штука"]
["R5CPME8401","Дверь секционная, для модулей, 72 (2x36) модуля, В=400мм, Ш=800мм","Штука"]
["R5CPME8500","Дверь секционная, сплошная, В=500мм, Ш=800мм","Штука"]
["R5CPME8600","Дверь секционная, сплошная, В=600мм, Ш=800мм","Штука"]
["R5CPME8800","Дверь секционная, сплошная, В=800мм, Ш=800мм","Штука"]
["R5CPME8900","Дверь секционная, сплошная, В=900мм, Ш=800мм","Штука"]
["R5CPMIE6400","Дверь секционная, внутренняя, В=400мм Ш=600мм","Штука"]
["R5CPMIE6600","Дверь секционная, внутренняя, В=600мм Ш=600мм","Штука"]
["R5CPMIE6800","Дверь секционная, внутренняя, В=800мм Ш=600мм","Штука"]
["R5CPMIE8400","Дверь секционная, внутренняя, В=400мм Ш=800мм","Штука"]
["R5CPMIE8600","Дверь секционная, внутренняя, В=600мм Ш=800мм","Штука"]
["R5CPMIE8800","Дверь секционная, внутренняя, В=800мм Ш=800мм","Штука"]
["R5CPMTE6400","Дверь секционная, с пластиковым окном, В=400мм, Ш=600мм","Штука"]
["R5CPMTE6600","Дверь секционная, с пластиковым окном, В=600мм, Ш=600мм","Штука"]
["R5CPMTE6800","Дверь секционная, с пластиковым окном, В=800мм, Ш=600мм","Штука"]
["R5CPMTE8400","Дверь секционная, с пластиковым окном, В=400мм, Ш=800мм","Штука"]
["R5CPMTE8600","Дверь секционная, с пластиковым окном, В=600мм, Ш=800мм","Штука"]
["R5CPMTE8800","Дверь секционная, с пластиковым окном, В=800мм, Ш=800мм","Штука"]
["R5TOE100","Притвор для секционной двери, для шкафов DAE/CQE Ш=1000мм","Штука"]
["R5TOE40","Притвор для секционной двери, для шкафов DAE/CQE Ш=400мм","Штука"]
["R5TOE60","Притвор для секционной двери, для шкафов DAE/CQE Ш=600мм","Штука"]
["R5TOE80","Притвор для секционной двери, для шкафов DAE/CQE Ш=800мм","Штука"]
[]
["R5BPE100","Притвор для внутренней секционной панели, для шкафов DAE/CQE Ш=1000мм","Штука"]
["R5BPE40","Притвор для внутренней секционной панели, для шкафов DAE/CQE Ш=400мм","Штука"]
["R5BPE60","Притвор для внутренней секционной панели, для шкафов DAE/CQE Ш=600мм","Штука"]
["R5BPE80","Притвор для внутренней секционной панели, для шкафов DAE/CQE Ш=800мм","Штука"]
["R5PA6040","Секционная панель, углублённая, В=400мм, Ш=600мм","Штука"]
["R5PA6060","Секционная панель, углублённая, В=600мм, Ш=600мм","Штука"]
["R5PA8040","Секционная панель, углублённая, В=400мм, Ш=800мм","Штука"]
["R5PA8060","Секционная панель, углублённая, В=600мм, Ш=800мм","Штука"]
["R5PI3100","Секционная панель, сплошная, В=1000мм, Ш=400мм","Штука"]
["R5PI3151","Секционная панель, для модулей, 12 (1x12) модуля, В=150мм, Ш=400мм","Штука"]
["R5PI320","Секционная панель, сплошная, В=200мм, Ш=400мм","Штука"]
["R5PI321","Секционная панель, для модулей, 12 (1x12) модуля, В=200мм, Ш=400мм","Штука"]
["R5PI330","Секционная панель, сплошная, В=300мм, Ш=400мм","Штука"]
["R5PI331","Секционная панель, для модулей, 12 (1x12) модуля, В=300мм, Ш=400мм","Штука"]
["R5PI340","Секционная панель, сплошная, В=400мм, Ш=400мм","Штука"]
["R5PI341","Секционная панель, для модулей, 24 (2x12) модулей, В=400мм, Ш=400мм","Штука"]
["R5PI360","Секционная панель, сплошная, В=600мм, Ш=400мм","Штука"]
["R5PI361","Секционная панель, для модулей, 36 (3x12) модулей, В=600мм, Ш=400мм","Штука"]
["R5PI380","Секционная панель, сплошная, В=800мм, Ш=400мм","Штука"]
["R5PI5100","Секционная панель, сплошная, В=1000мм, Ш=600мм","Штука"]
["R5PI5151","Секционная панель, для модулей, 24 (1x24) модуля, В=150мм, Ш=600мм","Штука"]
["R5PI520","Секционная панель, сплошная, В=200мм, Ш=600мм","Штука"]
["R5PI521","Секционная панель, для модулей, 24 (1x24) модуля, В=200мм, Ш=600мм","Штука"]
["R5PI522","Секционная панель, 2 x 68x68мм, В=200мм, Ш=600мм","Штука"]
["R5PI524","Секционная панель 4 x 68x68мм + O10мм В=200мм Ш=600мм","Штука"]
["R5PI530","Секционная панель, сплошная, В=300мм, Ш=600мм","Штука"]
["R5PI531","Секционная панель, для модулей, 24 (1x24) модуля, В=300мм, Ш=600мм","Штука"]
["R5PI540","Секционная панель, сплошная, В=400мм, Ш=600мм","Штука"]
["R5PI541","Секционная панель, для модулей, 48 (2x24) модулей, В=400мм, Ш=600мм","Штука"]
["R5PI560","Секционная панель, сплошная, В=600мм, Ш=600мм","Штука"]
["R5PI561","Секционная панель, для модулей, 72 (3x24) модулей, В=600мм, Ш=600мм","Штука"]
["R5PI580","Секционная панель, сплошная, В=800мм, Ш=600мм","Штука"]
["R5PI7100","Секционная панель, сплошная, В=1000мм, Ш=800мм","Штука"]
["R5PI7151","Секционная панель, для модулей, 34 (1x34) модуля, В=150мм, Ш=800мм","Штука"]
["R5PI720","Секционная панель, сплошная, В=200мм, Ш=800мм","Штука"]
["R5PI721","Секционная панель, для модулей, 34 (1x34) модуля, В=200мм, Ш=800мм","Штука"]
["R5PI722","Секционная панель, 2 x 68x68мм, В=200мм, Ш=800мм","Штука"]
["R5PI724","Секционная панель, 4 x 68x68мм + O10мм, В=200мм, Ш=800мм","Штука"]
["R5PI730","Секционная панель, сплошная, В=300мм, Ш=800мм","Штука"]
["R5PI731","Секционная панель, для модулей, 34 (1x34) модуля, В=300мм, Ш=800мм","Штука"]
["R5PI740","Секционная панель, сплошная, В=400мм, Ш=800мм","Штука"]
["R5PI741","Секционная панель, для модулей, 68 (2x34) модулей, В=400мм, Ш=800мм","Штука"]
["R5PI760","Секционная панель, сплошная, В=600мм, Ш=800мм","Штука"]
["R5PI761","Секционная панель, для модулей, 102 (3x34) модулей, В=600мм, Ш=800мм","Штука"]
["R5PI780","Секционная панель, сплошная, В=800мм, Ш=800мм","Штука"]
["R5PI9100","Секционная панель, сплошная, В=1000мм, Ш=1000мм","Штука"]
["R5PI9151","Секционная панель, для модулей, 46 (1x46) модуля, В=150мм, Ш=1000мм","Штука"]
["R5PI920","Секционная панель, сплошная, В=200мм, Ш=1000мм","Штука"]
["R5PI921","Секционная панель, для модулей, 46 (1x46) модуля, В=200мм, Ш=1000мм","Штука"]
["R5PI930","Секционная панель, сплошная, В=300мм, Ш=1000мм","Штука"]
["R5PI931","Секционная панель, для модулей, 46 (1x46) модуля, В=300мм, Ш=1000мм","Штука"]
["R5PI940","Секционная панель, сплошная, В=400мм, Ш=1000мм","Штука"]
["R5PI941","Секционная панель, для модулей, 92 (2x46) модулей, В=400мм, Ш=1000мм","Штука"]
["R5PI960","Секционная панель, сплошная, В=600мм, Ш=1000мм","Штука"]
["R5PI961","Секционная панель, для модулей, 138 (3x46) модулей, В=600мм, Ш=1000мм","Штука"]
["R5PI980","Секционная панель, сплошная, В=800мм, Ш=1000мм","Штука"]
["R5TE10","Стойки вертикальные  для установки панелей, для шкафов В=1000мм,1 упаковка - 2шт.","Штука"]
["R5TE12","Стойки вертикальные  для установки панелей, для шкафов В=1200мм,1 упаковка - 2шт.","Штука"]
["R5TE14","Стойки вертикальные  для установки панелей, для шкафов В=1400мм,1 упаковка - 2шт.","Упаковка"]
["R5TE16","Стойки вертикальные  для установки панелей, для шкафов В=1600мм,1 упаковка - 2шт.","Упаковка"]
["R5TE18","Стойки вертикальные, для установки панелей, для шкафов В=1800мм, 1 упаковка - 2шт.","Упаковка"]
["R5TE20","Стойки вертикальные, для установки панелей, для шкафов В=2000мм, 1 упаковка - 2шт.","Упаковка"]
["R5TE22","Стойки вертикальные, для установки панелей, для шкафов В=2200мм, 1 упаковка - 2шт.","Упаковка"]
[]
["R5CPFA1011","Перфорированные накладные панели, высота верх=100мм низ=100мм для шкафов DAE/CQE Ш=1000мм,1 упак-2шт.","Упаковка"]
["R5CPFA1013","Перфорированные накладные панели, высота верх=100мм низ=300мм для шкафов DAE/CQE Ш=1000мм,1 упак-2шт.","Упаковка"]
["R5CPFA1031","Перфорированные накладные панели, высота верх=300мм низ=100мм для шкафов DAE/CQE Ш=1000мм,1 упак-2шт.","Упаковка"]
["R5CPFA1033","Перфорированные накладные панели, высота верх=300мм низ=300мм для шкафов DAE/CQE Ш=1000мм,1 упак-2шт.","Упаковка"]
["R5CPFA411","Перфорированные накладные панели, высота верх=100мм низ=100мм для шкафов DAE/CQE Ш=400мм,1 упак-2шт.","Упаковка"]
["R5CPFA413","Перфорированные накладные панели, высота верх=100мм низ=300мм для шкафов DAE/CQE Ш=400мм,1 упак-2шт.","Упаковка"]
["R5CPFA431","Перфорированные накладные панели, высота верх=300мм низ=100мм для шкафов DAE/CQE Ш=400мм,1 упак-2шт.","Упаковка"]
["R5CPFA433","Перфорированные накладные панели, высота верх=300мм низ=300мм для шкафовDAE/CQE Ш=400мм,1 упак-2шт.","Упаковка"]
["R5CPFA611","Перфорированные накладные панели, высота верх=100мм низ=100мм для шкафов DAE/CQE Ш=600мм,1 упак-2шт.","Упаковка"]
["R5CPFA613","Перфорированные накладные панели, высота верх=100мм низ=300мм для шкафов DAE/CQE Ш=600мм,1 упак-2шт.","Штука"]
["R5CPFA631","Перфорированная накладная панель, верх - 300 мм, низ - 100 мм","Штука"]
["R5CPFA633","Перфорированные накладные панели, высота верх=300мм низ=300мм для шкафов DAE/CQE Ш=600мм,1 упак-2шт.","Штука"]
["R5CPFA811","Перфорированные накладные панели, высота верх=100мм низ=100мм для шкафов DAE/CQE Ш=800мм,1 упак-2шт.","Упаковка"]
["R5CPFA813","Перфорированные накладные панели, высота верх=100мм низ=300мм для шкафов DAE/CQE Ш=800мм,1 упак-2шт.","Упаковка"]
["R5CPFA831","Перфорированные накладные панели, высота верх=300мм низ=100мм для шкафов DAE/CQE Ш=800мм,1 упак-2шт.","Упаковка"]
["R5CPFA833","Перфорированные накладные панели, высота верх=300мм низ=300мм для шкафов DAE/CQE Ш=800мм,1 упак-2шт.","Упаковка"]
["R5CPFE10100","Панели накладные, В=100мм для шкафов DAE/CQE Ш=1000мм, 1 упаковка - 2шт.","Штука"]
["R5CPFE4100","Панели накладные, В=100мм для шкафов DAE/CQE Ш=400мм, 1 упаковка - 2шт.","Штука"]
["R5CPFE6100","Панели накладные, В=100мм для шкафов DAE/CQE Ш=600мм, 1 упаковка - 2шт.","Упаковка"]
["R5CPFE8100","Панели накладные, В=100мм для шкафов DAE/CQE Ш=800мм, 1 упаковка - 2шт.","Упаковка"]
["R5PCD100","Панели накладные, В=50мм для шкафов DAE/CQE Ш=1000мм, 1 упаковка - 2шт.","Штука"]
["R5PCD40","Панели накладные, В=50мм для шкафов DAE/CQE Ш=400мм, 1 упаковка - 2шт.","Упаковка"]
["R5PCD60","Панели накладные, В=50мм для шкафов DAE/CQE Ш=600мм, 1 упаковка - 2шт.","Упаковка"]
["R5PCD80","Панели накладные, В=50мм для шкафов DAE/CQE Ш=800мм, 1 упаковка - 2шт.","Упаковка"]
[]
["R5PPP10003","Монтажная плата частичная перфорированная для шкафа CQE (ВхШ) 1000x300 мм","Штука"]
["R5PPP10004","Монтажная плата частичная перфорированная для шкафа CQE (ВхШ) 1000x400 мм","Штука"]
["R5PPP10006","Монтажная плата частичная перфорированная для шкафа CQE (ВхШ) 1000x600 мм","Штука"]
["R5PPP10008","Монтажная плата частичная перфорированная для шкафа CQE (ВхШ) 1000x800 мм","Штука"]
["R5PPP10010","Монтажная плата частичная перфорированная для шкафа CQE (ВхШ) 1000x1000 мм","Штука"]
["R5PPP10012","Монтажная плата частичная перфорированная для шкафа CQE (ВхШ) 1000x1200 мм","Штука"]
["R5PPP1503","Монтажная плата частичная перфорированная для шкафа CQE (ВхШ) 150x300 мм","Штука"]
["R5PPP1504","Монтажная плата частичная перфорированная для шкафа CQE (ВхШ) 150x400 мм","Штука"]
["R5PPP1506","Монтажная плата частичная перфорированная для шкафа CQE (ВхШ) 150x600 мм","Штука"]
["R5PPP1508","Монтажная плата частичная перфорированная для шкафа CQE (ВхШ) 150x800 мм","Штука"]
["R5PPP1510","Монтажная плата частичная перфорированная для шкафа CQE (ВхШ) 150x1000 мм","Штука"]
["R5PPP1512","Монтажная плата частичная перфорированная для шкафа CQE (ВхШ) 150x1200 мм","Штука"]
["R5PPP2003","Монтажная плата частичная перфорированная для шкафа CQE (ВхШ) 200x300 мм","Штука"]
["R5PPP2004","Монтажная плата частичная перфорированная для шкафа CQE (ВхШ) 200x400 мм","Штука"]
["R5PPP2006","Монтажная плата частичная перфорированная для шкафа CQE (ВхШ) 200x600 мм","Штука"]
["R5PPP2008","Монтажная плата частичная перфорированная для шкафа CQE (ВхШ) 200x800 мм","Штука"]
["R5PPP2010","Монтажная плата частичная перфорированная для шкафа CQE (ВхШ) 200x1000 мм","Штука"]
["R5PPP2012","Монтажная плата частичная перфорированная для шкафа CQE (ВхШ) 200x1200 мм","Штука"]
["R5PPP3003","Монтажная плата частичная перфорированная для шкафа CQE (ВхШ) 300x300 мм","Штука"]
["R5PPP3004","Монтажная плата частичная перфорированная для шкафа CQE (ВхШ) 300x400 мм","Штука"]
["R5PPP3006","Монтажная плата частичная перфорированная для шкафа CQE (ВхШ) 300x600 мм","Штука"]
["R5PPP3008","Монтажная плата частичная перфорированная для шкафа CQE (ВхШ) 300x800 мм","Штука"]
["R5PPP3010","Монтажная плата частичная перфорированная для шкафа CQE (ВхШ) 300x1000 мм","Штука"]
["R5PPP3012","Монтажная плата частичная перфорированная для шкафа CQE (ВхШ) 300x1200 мм","Штука"]
["R5PPP4003","Монтажная плата частичная перфорированная для шкафа CQE (ВхШ) 400x300 мм","Штука"]
["R5PPP4004","Монтажная плата частичная перфорированная для шкафа CQE (ВхШ) 400x400 мм","Штука"]
["R5PPP4006","Монтажная плата частичная перфорированная для шкафа CQE (ВхШ) 400x600 мм","Штука"]
["R5PPP4008","Монтажная плата частичная перфорированная для шкафа CQE (ВхШ) 400x800 мм","Штука"]
["R5PPP4010","Монтажная плата частичная перфорированная для шкафа CQE (ВхШ) 400x1000 мм","Штука"]
["R5PPP4012","Монтажная плата частичная перфорированная для шкафа CQE (ВхШ) 400x1200 мм","Штука"]
["R5PPP5003","Монтажная плата частичная перфорированная для шкафа CQE (ВхШ) 500x300 мм","Штука"]
["R5PPP5004","Монтажная плата частичная перфорированная для шкафа CQE (ВхШ) 500x400 мм","Штука"]
["R5PPP5006","Монтажная плата частичная перфорированная для шкафа CQE (ВхШ) 500x600 мм","Штука"]
["R5PPP5008","Монтажная плата частичная перфорированная для шкафа CQE (ВхШ) 500x800 мм","Штука"]
["R5PPP5010","Монтажная плата частичная перфорированная для шкафа CQE (ВхШ) 500x1000 мм","Штука"]
["R5PPP5012","Монтажная плата частичная перфорированная для шкафа CQE (ВхШ) 500x1200 мм","Штука"]
["R5PPP6003","Монтажная плата частичная перфорированная для шкафа CQE (ВхШ) 600x300 мм","Штука"]
["R5PPP6004","Монтажная плата частичная перфорированная для шкафа CQE (ВхШ) 600x400 мм","Штука"]
["R5PPP6006","Монтажная плата частичная перфорированная для шкафа CQE (ВхШ) 600x600 мм","Штука"]
["R5PPP6008","Монтажная плата частичная перфорированная для шкафа CQE (ВхШ) 600x800 мм","Штука"]
["R5PPP6010","Монтажная плата частичная перфорированная для шкафа CQE (ВхШ) 600x1000 мм","Штука"]
["R5PPP6012","Монтажная плата частичная перфорированная для шкафа CQE (ВхШ) 600x1200 мм","Штука"]
["R5PPP8003","Монтажная плата частичная перфорированная для шкафа CQE (ВхШ) 800x300 мм","Штука"]
["R5PPP8004","Монтажная плата частичная перфорированная для шкафа CQE (ВхШ) 800x400 мм","Штука"]
["R5PPP8006","Монтажная плата частичная перфорированная для шкафа CQE (ВхШ) 800x600 мм","Штука"]
["R5PPP8008","Монтажная плата частичная перфорированная для шкафа CQE (ВхШ) 800x800 мм","Штука"]
["R5PPP8010","Монтажная плата частичная перфорированная для шкафа CQE (ВхШ) 800x1000 мм","Штука"]
["R5PPP8012","Монтажная плата частичная перфорированная для шкафа CQE (ВхШ) 800x1200 мм","Штука"]
["R5PPP9003","Монтажная плата частичная перфорированная для шкафа CQE (ВхШ) 900x300 мм","Штука"]
["R5PPP9004","Монтажная плата частичная перфорированная для шкафа CQE (ВхШ) 900x400 мм","Штука"]
["R5PPP9006","Монтажная плата частичная перфорированная для шкафа CQE (ВхШ) 900x600 мм","Штука"]
["R5PPP9008","Монтажная плата частичная перфорированная для шкафа CQE (ВхШ) 900x800 мм","Штука"]
["R5PPP9010","Монтажная плата частичная перфорированная для шкафа CQE (ВхШ) 900x1000 мм","Штука"]
["R5PPP9012","Монтажная плата частичная перфорированная для шкафа CQE (ВхШ) 900x1200 мм","Штука"]
["R5PPS10003","Монтажная плата частичная для шкафа CQE (ВхШ) 1000x300 мм","Штука"]
["R5PPS10004","Монтажная плата частичная для шкафа CQE (ВхШ) 1000x400 мм","Штука"]
["R5PPS10006","Монтажная плата частичная для шкафа CQE (ВхШ) 1000x600 мм","Штука"]
["R5PPS10008","Монтажная плата частичная для шкафа CQE (ВхШ) 1000x800 мм","Штука"]
["R5PPS10010","Монтажная плата частичная для шкафа CQE (ВхШ) 1000x1000 мм","Штука"]
["R5PPS10012","Монтажная плата частичная для шкафа CQE (ВхШ) 1000x1200 мм","Штука"]
["R5PPS1503","Монтажная плата частичная для шкафа CQE (ВхШ) 150x300 мм","Штука"]
["R5PPS1504","Монтажная плата частичная для шкафа CQE (ВхШ) 150x400 мм","Штука"]
["R5PPS1506","Монтажная плата частичная для шкафа CQE (ВхШ) 150x600 мм","Штука"]
["R5PPS1508","Монтажная плата частичная для шкафа CQE (ВхШ) 150x800 мм","Штука"]
["R5PPS1510","Монтажная плата частичная для шкафа CQE (ВхШ) 150x1000 мм","Штука"]
["R5PPS1512","Монтажная плата частичная для шкафа CQE (ВхШ) 150x1200 мм","Штука"]
["R5PPS2003","Монтажная плата частичная для шкафа CQE (ВхШ) 200x300 мм","Штука"]
["R5PPS2004","Монтажная плата частичная для шкафа CQE (ВхШ) 200x400 мм","Штука"]
["R5PPS2006","Монтажная плата частичная для шкафа CQE (ВхШ) 200x600 мм","Штука"]
["R5PPS2008","Монтажная плата частичная для шкафа CQE (ВхШ) 200x800 мм","Штука"]
["R5PPS2010","Монтажная плата частичная для шкафа CQE (ВхШ) 200x1000 мм","Штука"]
["R5PPS2012","Монтажная плата частичная для шкафа CQE (ВхШ) 200x1200 мм","Штука"]
["R5PPS3003","Монтажная плата частичная для шкафа CQE (ВхШ) 300x300 мм","Штука"]
["R5PPS3004","Монтажная плата частичная для шкафа CQE (ВхШ) 300x400 мм","Штука"]
["R5PPS3006","Монтажная плата частичная для шкафа CQE (ВхШ) 300x600 мм","Штука"]
["R5PPS3008","Монтажная плата частичная для шкафа CQE (ВхШ) 300x800 мм","Штука"]
["R5PPS3010","Монтажная плата частичная для шкафа CQE (ВхШ) 300x1000 мм","Штука"]
["R5PPS3012","Монтажная плата частичная для шкафа CQE (ВхШ) 300x1200 мм","Штука"]
["R5PPS4003","Монтажная плата частичная для шкафа CQE (ВхШ) 400x300 мм","Штука"]
["R5PPS4004","Монтажная плата частичная для шкафа CQE (ВхШ) 400x400 мм","Штука"]
["R5PPS4006","Монтажная плата частичная для шкафа CQE (ВхШ) 400x600 мм","Штука"]
["R5PPS4008","Монтажная плата частичная для шкафа CQE (ВхШ) 400x800 мм","Штука"]
["R5PPS4010","Монтажная плата частичная для шкафа CQE (ВхШ) 400x1000 мм","Штука"]
["R5PPS4012","Монтажная плата частичная для шкафа CQE (ВхШ) 400x1200 мм","Штука"]
["R5PPS5003","Монтажная плата частичная для шкафа CQE (ВхШ) 500x300 мм","Штука"]
["R5PPS5004","Монтажная плата частичная для шкафа CQE (ВхШ) 500x400 мм","Штука"]
["R5PPS5006","Монтажная плата частичная для шкафа CQE (ВхШ) 500x600 мм","Штука"]
["R5PPS5008","Монтажная плата частичная для шкафа CQE (ВхШ) 500x800 мм","Штука"]
["R5PPS5010","Монтажная плата частичная для шкафа CQE (ВхШ) 500x1000 мм","Штука"]
["R5PPS5012","Монтажная плата частичная для шкафа CQE (ВхШ) 500x1200 мм","Штука"]
["R5PPS6003","Монтажная плата частичная для шкафа CQE (ВхШ) 600x300 мм","Штука"]
["R5PPS6004","Монтажная плата частичная для шкафа CQE (ВхШ) 600x400 мм","Штука"]
["R5PPS6006","Монтажная плата частичная для шкафа CQE (ВхШ) 600x600 мм","Штука"]
["R5PPS6008","Монтажная плата частичная для шкафа CQE (ВхШ) 600x800 мм","Штука"]
["R5PPS6010","Монтажная плата частичная для шкафа CQE (ВхШ) 600x1000 мм","Штука"]
["R5PPS6012","Монтажная плата частичная для шкафа CQE (ВхШ) 600x1200 мм","Штука"]
["R5PPS8003","Монтажная плата частичная для шкафа CQE (ВхШ) 800x300 мм","Штука"]
["R5PPS8004","Монтажная плата частичная для шкафа CQE (ВхШ) 800x400 мм","Штука"]
["R5PPS8006","Монтажная плата частичная для шкафа CQE (ВхШ) 800x600 мм","Штука"]
["R5PPS8008","Монтажная плата частичная для шкафа CQE (ВхШ) 800x800 мм","Штука"]
["R5PPS8010","Монтажная плата частичная для шкафа CQE (ВхШ) 800x1000 мм","Штука"]
["R5PPS8012","Монтажная плата частичная для шкафа CQE (ВхШ) 800x1200 мм","Штука"]
["R5PPS9003","Монтажная плата частичная для шкафа CQE (ВхШ) 900x300 мм","Штука"]
["R5PPS9004","Монтажная плата частичная для шкафа CQE (ВхШ) 900x400 мм","Штука"]
["R5PPS9006","Монтажная плата частичная для шкафа CQE (ВхШ) 900x600 мм","Штука"]
["R5PPS9008","Монтажная плата частичная для шкафа CQE (ВхШ) 900x800 мм","Штука"]
["R5PPS9010","Монтажная плата частичная для шкафа CQE (ВхШ) 900x1000 мм","Штука"]
["R5PPS9012","Монтажная плата частичная для шкафа CQE (ВхШ) 900x1200 мм","Штука"]
["R5DSL20","Боковой держатель для секционных монтажных плат, В=200мм, 1 упаковка - 2шт.","Упаковка"]
["R5DSL30","Боковой держатель для секционных монтажных плат, В=300мм, 1 упаковка - 2шт.","Упаковка"]
["R5DSL40","Боковой держатель для секционных монтажных плат, В=400мм, 1 упаковка - 2шт.","Упаковка"]
["R5PCE101000","Монтажная плата, секционная, высота1000мм, для шкафов DAE/CQE Ш=1000мм","Штука"]
["R5PCE10150","Монтажная плата, секционная, В=150 мм, для шкафов DAE/CQE Ш=1000мм","Штука"]
["R5PCE10200","Монтажная плата, секционная, В=200мм, для шкафов DAE/CQE Ш=1000мм","Штука"]
["R5PCE10300","Монтажная плата, секционная, В=300мм, для шкафов DAE/CQE Ш=1000мм","Штука"]
["R5PCE10400","Монтажная плата, секционная, В=400мм, для шкафов DAE/CQE Ш=1000мм","Штука"]
["R5PCE10500","Монтажная плата, секционная, В=500мм, для шкафов DAE/CQE Ш=1000мм","Штука"]
["R5PCE10600","Монтажная плата, секционная, В=600мм, для шкафов DAE/CQE Ш=1000мм","Штука"]
["R5PCE10800","Монтажная плата, секционная, В=800мм, для шкафов DAE/CQE Ш=1000мм","Штука"]
["R5PCE10900","Монтажная плата, секционная, В=900мм, для шкафов DAE/CQE Ш=1000мм","Штука"]
["R5PCE41000","Монтажная плата, секционная, высота1000мм, для шкафов DAE/CQE Ш=400мм","Штука"]
["R5PCE4150","Монтажная плата, секционная, В=150мм, для шкафов DAE/CQE Ш=400мм","Штука"]
["R5PCE4200","Монтажная плата, секционная, В=200мм, для шкафов DAE/CQE Ш=400мм","Штука"]
["R5PCE4300","Монтажная плата, секционная, В=300мм, для шкафов DAE/CQE Ш=400мм","Штука"]
["R5PCE4400","Монтажная плата, секционная, В=400мм, для шкафов DAE/CQE Ш=400мм","Штука"]
["R5PCE4500","Монтажная плата, секционная, В=500мм, для шкафов DAE/CQE Ш=400мм","Штука"]
["R5PCE4600","Монтажная плата, секционная, В=600мм, для шкафов DAE/CQE Ш=400мм","Штука"]
["R5PCE4800","Монтажная плата, секционная, В=800мм, для шкафов DAE/CQE Ш=400мм","Штука"]
["R5PCE4900","Монтажная плата, секционная, В=900мм, для шкафов DAE/CQE Ш=400мм","Штука"]
["R5PCE61000","Монтажная плата, секционная, высота1000мм, для шкафов DAE/CQE Ш=600мм","Штука"]
["R5PCE6150","Монтажная плата, секционная, В=150мм, для шкафов DAE/CQE Ш=600мм","Штука"]
["R5PCE6200","Монтажная плата, секционная, В=200мм, для шкафов DAE/CQE Ш=600мм","Штука"]
["R5PCE6300","Монтажная плата, секционная, В=300мм, для шкафов DAE/CQE Ш=600мм","Штука"]
["R5PCE6400","Монтажная плата, секционная, В=400мм, для шкафов DAE/CQE Ш=600мм","Штука"]
["R5PCE6500","Монтажная плата, секционная, В=500мм, для шкафов DAE/CQE Ш=600мм","Штука"]
["R5PCE6600","Монтажная плата, секционная, В=600мм, для шкафов DAE/CQE Ш=600мм","Штука"]
["R5PCE6800","Монтажная плата, секционная, В=800мм, для шкафов DAE/CQE Ш=600мм","Штука"]
["R5PCE6900","Монтажная плата, секционная, В=900мм, для шкафов DAE/CQE Ш=600мм","Штука"]
["R5PCE81000","Монтажная плата, секционная, высота 1000мм, для шкафов DAE/CQE Ш=800мм","Штука"]
["R5PCE8150","Монтажная плата, секционная, В=150 мм, для шкафов DAE/CQE Ш=800мм","Штука"]
["R5PCE8200","Монтажная плата, секционная, В=200мм, для шкафов DAE/CQE Ш=800мм","Штука"]
["R5PCE8300","Монтажная плата, секционная, В=300мм, для шкафов DAE/CQE Ш=800мм","Штука"]
["R5PCE8400","Монтажная плата, секционная, В=400мм, для шкафов DAE/CQE Ш=800мм","Штука"]
["R5PCE8500","Монтажная плата, секционная, В=500мм, для шкафов DAE/CQE Ш=800мм","Штука"]
["R5PCE8600","Монтажная плата, секционная, В=600мм, для шкафов DAE/CQE Ш=800мм","Штука"]
["R5PCE8800","Монтажная плата, секционная, В=800мм, для шкафов DAE/CQE Ш=800мм","Штука"]
["R5PCE8900","Монтажная плата, секционная, В=900мм, для шкафов DAE/CQE Ш=800мм","Штука"]
["R5PCPE1010","Монтажная плата, частичная, В=995мм, для шкафов DAE/CQE Ш=1000мм","Штука"]
["R5PCPE106","Монтажная плата, частичная, высота 995мм, для шкафов DAE/CQE Ш=600мм","Штука"]
["R5PCPE108","Монтажная плата, частичная, высота 995мм, для шкафов DAE/CQE Ш=800мм","Штука"]
["R5PCPE1210","Монтажная плата, частичная, высота 1195мм, для шкафов DAE/CQE Ш=1000мм","Штука"]
["R5PCPE126","Монтажная плата, частичная, В=1195мм, для шкафов DAE/CQE Ш=600мм","Штука"]
["R5PCPE128","Монтажная плата, частичная, В=1195мм, для шкафов DAE/CQE Ш=800мм","Штука"]
["R5PCPE610","Монтажная плата, частичная, В=595мм, для шкафов DAE/CQE Ш=1000мм","Штука"]
["R5PCPE66","Монтажная плата, частичная, высота 595мм, для шкафов DAE/CQE Ш=600мм","Штука"]
["R5PCPE68","Монтажная плата, частичная, высота 595мм, для шкафов DAE/CQE Ш=800мм","Штука"]
["R5PCPE810","Монтажная плата, частичная, В=795мм, для шкафов DAE/CQE Ш=1000мм","Штука"]
["R5PCPE86","Монтажная плата, частичная, высота 795мм, для шкафов DAE/CQE Ш=600мм","Штука"]
["R5PCPE88","Монтажная плата, частичная, высота 795мм, для шкафов DAE/CQE Ш=800мм","Штука"]
[]
["R5FCP100","Объединительные панели для секций шкафов DAE/CQE, 1000мм, 1 упаковка - 5шт.","Упаковка"]
["R5FCP40","Объединительные панели для секций шкафов DAE/CQE, 400мм, 1 упаковка - 5шт.","Упаковка"]
["R5FCP60","Объединительные панели для секций шкафов DAE/CQE, 600мм, 1 упаковка - 5шт.","Упаковка"]
["R5FCP80","Объединительные панели для секций шкафов DAE/CQE, 800мм, 1 упаковка - 5шт.","Упаковка"]
["R5PFI1840","Комплект для создания кабельного отсека, для шкафов DAE/CQE 1800 x 400","Штука"]
["R5PFI1850","Комплект для создания кабельного отсека, для шкафов DAE/CQE 1800 x 500","Штука"]
["R5PFI1860","Комплект для создания кабельного отсека, для шкафов DAE/CQE 1800 x 600","Штука"]
["R5PFI1880","Комплект для создания кабельного отсека, для шкафов DAE/CQE 1800 x 800","Штука"]
["R5PFI2040","Комплект для создания кабельного отсека, для шкафов DAE/CQE 2000 x 400","Штука"]
["R5PFI2050","Комплект для создания кабельного отсека, для шкафов DAE/CQE 2000 x 500","Штука"]
["R5PFI2060","Комплект для создания кабельного отсека, для шкафов DAE/CQE 2000 x 600","Штука"]
["R5PFI2080","Комплект для создания кабельного отсека, для шкафов DAE/CQE 2000 x 800","Штука"]
[]
["R5DOE10095","Разделитель горизонтальный, Г=95мм, Ш=1000мм","Штука"]
["R5DOE10145","Разделитель горизонтальный, Г=145мм, Ш=1000мм","Штука"]
["R5DOE10195","Разделитель горизонтальный, Г=195мм, Ш=1000мм","Штука"]
["R5DOE10245","Разделитель горизонтальный, Г=245мм, Ш=1000мм","Штука"]
["R5DOE10295","Разделитель горизонтальный, Г=345мм, Ш=1000мм","Штука"]
["R5DOE10445","Разделитель горизонтальный, Г=445мм, Ш=1000мм","Штука"]
["R5DOE10545","Разделитель горизонтальный, Г=545мм, Ш=1000мм","Штука"]
["R5DOE10645","Разделитель горизонтальный, Г=645мм, Ш=1000мм","Штука"]
["R5DOE10745","Разделитель горизонтальный, Г=745мм, Ш=1000мм","Штука"]
["R5DOE4095","Разделитель горизонтальный, Г=95мм, Ш=400мм","Штука"]
["R5DOE4145","Разделитель горизонтальный, Г=145мм, Ш=400мм","Штука"]
["R5DOE4195","Разделитель горизонтальный, Г=195мм, Ш=400мм","Штука"]
["R5DOE4245","Разделитель горизонтальный, Г=245мм, Ш=400мм","Штука"]
["R5DOE4295","Разделитель горизонтальный, Г=295мм, Ш=400мм","Штука"]
["R5DOE4345","Разделитель горизонтальный, Г=345мм, Ш=400мм","Штука"]
["R5DOE4445","Разделитель горизонтальный, Г=445мм, Ш=400мм","Штука"]
["R5DOE4545","Разделитель горизонтальный, Г=545мм, Ш=400мм","Штука"]
["R5DOE4645","Разделитель горизонтальный, Г=645мм, Ш=400мм","Штука"]
["R5DOE4745","Разделитель горизонтальный, Г=745мм, Ш=400мм","Штука"]
["R5DOE6095","Разделитель горизонтальный, Г=95мм, Ш=600мм","Штука"]
["R5DOE6145","Разделитель горизонтальный, Г=145мм, Ш=600мм","Штука"]
["R5DOE6195","Разделитель горизонтальный, Г=195мм, Ш=600мм","Штука"]
["R5DOE6245","Разделитель горизонтальный, Г=245мм, Ш=600мм","Штука"]
["R5DOE6295","Разделитель горизонтальный, Г=295мм, Ш=600мм","Штука"]
["R5DOE6345","Разделитель горизонтальный, Г=345мм, Ш=600мм","Штука"]
["R5DOE6445","Разделитель горизонтальный, Г=445мм, Ш=600мм","Штука"]
["R5DOE6545","Разделитель горизонтальный, Г=545мм, Ш=600мм","Штука"]
["R5DOE6645","Разделитель горизонтальный, Г=645мм, Ш=600мм","Штука"]
["R5DOE6745","Разделитель горизонтальный, Г=745мм, Ш=600мм","Штука"]
["R5DOE8095","Разделитель горизонтальный, Г=95мм, Ш=800мм","Штука"]
["R5DOE8145","Разделитель горизонтальный, Г=145мм, Ш=800мм","Штука"]
["R5DOE8195","Разделитель горизонтальный, Г=195мм, Ш=800мм","Штука"]
["R5DOE8245","Разделитель горизонтальный, Г=245мм, Ш=800мм","Штука"]
["R5DOE8295","Разделитель горизонтальный, Г=295мм, Ш=800мм","Штука"]
["R5DOE8345","Разделитель горизонтальный, Г=345мм, Ш=800мм","Штука"]
["R5DOE8445","Разделитель горизонтальный, Г=445мм, Ш=800мм","Штука"]
["R5DOE8545","Разделитель горизонтальный, Г=545мм, Ш=800мм","Штука"]
["R5DOE8645","Разделитель горизонтальный, Г=645мм, Ш=800мм","Штука"]
["R5DOE8745","Разделитель горизонтальный, Г=745мм, Ш=800мм","Штука"]
["R5SOE095","Направляющие, для горизонтальных разделителей, Г=95мм, 1 упаковка - 2шт.","Упаковка"]
["R5SOE145","Направляющие, для горизонтальных разделителей, Г=145мм, 1 упаковка - 2шт.","Упаковка"]
["R5SOE195","Направляющие, для горизонтальных разделителей, Г=195мм, 1 упаковка - 2шт.","Упаковка"]
["R5SOE245","Направляющие, для горизонтальных разделителей, Г=245мм, 1 упаковка - 2шт.","Упаковка"]
["R5SOE295","Направляющие, для горизонтальных разделителей, Г=295мм, 1 упаковка - 2шт.","Упаковка"]
["R5SOE345","Направляющие, для горизонтальных разделителей, Г=345мм, 1 упаковка - 2шт.","Упаковка"]
["R5SOE445","Направляющие, для горизонтальных разделителей, Г=445мм, 1 упаковка - 2шт.","Упаковка"]
["R5SOE545","Направляющие, для горизонтальных разделителей, Г=545мм, 1 упаковка - 2шт.","Упаковка"]
["R5SOE645","Направляющие, для горизонтальных разделителей, Г=645мм, 1 упаковка - 2шт.","Упаковка"]
["R5SOE745","Направляющие, для горизонтальных разделителей, Г=745мм, 1 упаковка - 2шт.","Упаковка"]
[]
["R5DVEM1004","Разделитель боковой CQE  RAL7035 IP31 ВхШ 1000x400 мм 1 комплект - 2 шт.","Комплект"]
["R5DVEM1005","Разделитель боковой CQE  RAL7035 IP31 ВхШ 1000x500 мм 1 комплект - 2 шт.","Комплект"]
["R5DVEM1006","Разделитель боковой CQE  RAL7035 IP31 ВхШ 1000x600 мм 1 комплект - 2 шт.","Комплект"]
["R5DVEM1008","Разделитель боковой CQE  RAL7035 IP31 ВхШ 1000x800 мм 1 комплект - 2 шт.","Комплект"]
["R5DVEM1204","Разделитель боковой CQE  RAL7035 IP31 ВхШ 1200x400 мм 1 комплект - 2 шт.","Комплект"]
["R5DVEM1205","Разделитель боковой CQE  RAL7035 IP31 ВхШ 1200x500 мм 1 комплект - 2 шт.","Комплект"]
["R5DVEM1206","Разделитель боковой CQE  RAL7035 IP31 ВхШ 1200x600 мм 1 комплект - 2 шт.","Комплект"]
["R5DVEM1208","Разделитель боковой CQE  RAL7035 IP31 ВхШ 1200x800 мм 1 комплект - 2 шт.","Комплект"]
["R5DVEM1404","Разделитель боковой CQE  RAL7035 IP31 ВхШ 1400x400 мм 1 комплект - 2 шт.","Комплект"]
["R5DVEM1405","Разделитель боковой CQE  RAL7035 IP31 ВхШ 1400x500 мм 1 комплект - 2 шт.","Комплект"]
["R5DVEM1406","Разделитель боковой CQE  RAL7035 IP31 ВхШ 1400x600 мм 1 комплект - 2 шт.","Комплект"]
["R5DVEM1408","Разделитель боковой CQE  RAL7035 IP31 ВхШ 1400x800 мм 1 комплект - 2 шт.","Комплект"]
["R5DVEM1604","Разделитель боковой CQE  RAL7035 IP31 ВхШ 1600x400 мм 1 комплект - 2 шт.","Комплект"]
["R5DVEM1605","Разделитель боковой CQE  RAL7035 IP31 ВхШ 1600x500 мм 1 комплект - 2 шт.","Комплект"]
["R5DVEM1606","Разделитель боковой CQE  RAL7035 IP31 ВхШ 1600x600 мм 1 комплект - 2 шт.","Комплект"]
["R5DVEM1608","Разделитель боковой CQE  RAL7035 IP31 ВхШ 1600x800 мм 1 комплект - 2 шт.","Комплект"]
["R5DVEM1804","Разделитель боковой CQE  RAL7035 IP31 ВхШ 1800x400 мм 1 комплект - 2 шт.","Комплект"]
["R5DVEM1805","Разделитель боковой CQE  RAL7035 IP31 ВхШ 1800x500 мм 1 комплект - 2 шт.","Комплект"]
["R5DVEM1806","Разделитель боковой CQE  RAL7035 IP31 ВхШ 1800x600 мм 1 комплект - 2 шт.","Комплект"]
["R5DVEM1808","Разделитель боковой CQE  RAL7035 IP31 ВхШ 1800x800 мм 1 комплект - 2 шт.","Комплект"]
["R5DVEM2004","Разделитель боковой CQE  RAL7035 IP31 ВхШ 2000x400 мм 1 комплект - 2 шт.","Комплект"]
["R5DVEM2005","Разделитель боковой CQE  RAL7035 IP31 ВхШ 2000x500 мм 1 комплект - 2 шт.","Комплект"]
["R5DVEM2006","Разделитель боковой CQE  RAL7035 IP31 ВхШ 2000x600 мм 1 комплект - 2 шт.","Комплект"]
["R5DVEM2008","Разделитель боковой CQE  RAL7035 IP31 ВхШ 2000x800 мм 1 комплект - 2 шт.","Комплект"]
["R5DVEM2204","Разделитель боковой CQE  RAL7035 IP31 ВхШ 2200x400 мм 1 комплект - 2 шт.","Комплект"]
["R5DVEM2205","Разделитель боковой CQE  RAL7035 IP31 ВхШ 2200x500 мм 1 комплект - 2 шт.","Комплект"]
["R5DVEM2206","Разделитель боковой CQE  RAL7035 IP31 ВхШ 2200x600 мм 1 комплект - 2 шт.","Комплект"]
["R5DVEM2208","Разделитель боковой CQE  RAL7035 IP31 ВхШ 2200x800 мм 1 комплект - 2 шт.","Комплект"]
["R5LPP0304","Монтажная плата перфорированная боковая для шкафа CQE (ВхГ) 300x400 мм","Штука"]
["R5LPP0305","Монтажная плата перфорированная боковая для шкафа CQE (ВхГ) 300x500 мм","Штука"]
["R5LPP0306","Монтажная плата перфорированная боковая для шкафа CQE (ВхГ) 300x600 мм","Штука"]
["R5LPP0308","Монтажная плата перфорированная боковая для шкафа CQE (ВхГ) 300x800 мм","Штука"]
["R5LPP0404","Монтажная плата перфорированная боковая для шкафа CQE (ВхГ) 400x400 мм","Штука"]
["R5LPP0405","Монтажная плата перфорированная боковая для шкафа CQE (ВхГ) 400x500 мм","Штука"]
["R5LPP0406","Монтажная плата перфорированная боковая для шкафа CQE (ВхГ) 400x600 мм","Штука"]
["R5LPP0408","Монтажная плата перфорированная боковая для шкафа CQE (ВхГ) 400x800 мм","Штука"]
["R5LPP0504","Монтажная плата перфорированная боковая для шкафа CQE (ВхГ) 500x400 мм","Штука"]
["R5LPP0505","Монтажная плата перфорированная боковая для шкафа CQE (ВхГ) 500x500 мм","Штука"]
["R5LPP0506","Монтажная плата перфорированная боковая для шкафа CQE (ВхГ) 500x600 мм","Штука"]
["R5LPP0508","Монтажная плата перфорированная боковая для шкафа CQE (ВхГ) 500x800 мм","Штука"]
["R5LPP0604","Монтажная плата перфорированная боковая для шкафа CQE (ВхГ) 600x400 мм","Штука"]
["R5LPP0605","Монтажная плата перфорированная боковая для шкафа CQE (ВхГ) 600x500 мм","Штука"]
["R5LPP0606","Монтажная плата перфорированная боковая для шкафа CQE (ВхГ) 600x600 мм","Штука"]
["R5LPP0608","Монтажная плата перфорированная боковая для шкафа CQE (ВхГ) 600x800 мм","Штука"]
["R5LPP0804","Монтажная плата перфорированная боковая для шкафа CQE (ВхГ) 800x400 мм","Штука"]
["R5LPP0805","Монтажная плата перфорированная боковая для шкафа CQE (ВхГ) 800x500 мм","Штука"]
["R5LPP0806","Монтажная плата перфорированная боковая для шкафа CQE (ВхГ) 800x600 мм","Штука"]
["R5LPP0808","Монтажная плата перфорированная боковая для шкафа CQE (ВхГ) 800x800 мм","Штука"]
["R5LPP1004","Монтажная плата перфорированная боковая для шкафа CQE (ВхГ) 1000x400 мм","Штука"]
["R5LPP1005","Монтажная плата перфорированная боковая для шкафа CQE (ВхГ) 1000x500 мм","Штука"]
["R5LPP1006","Монтажная плата перфорированная боковая для шкафа CQE (ВхГ) 1000x600 мм","Штука"]
["R5LPP1008","Монтажная плата перфорированная боковая для шкафа CQE (ВхГ) 1000x800 мм","Штука"]
["R5LPP1204","Монтажная плата перфорированная боковая для шкафа CQE (ВхГ) 1200x400 мм","Штука"]
["R5LPP1205","Монтажная плата перфорированная боковая для шкафа CQE (ВхГ) 1200x500 мм","Штука"]
["R5LPP1206","Монтажная плата перфорированная боковая для шкафа CQE (ВхГ) 1200x600 мм","Штука"]
["R5LPP1208","Монтажная плата перфорированная боковая для шкафа CQE (ВхГ) 1200x800 мм","Штука"]
["R5LPP1404","Монтажная плата перфорированная боковая для шкафа CQE (ВхГ) 1400x400 мм","Штука"]
["R5LPP1405","Монтажная плата перфорированная боковая для шкафа CQE (ВхГ) 1400x500 мм","Штука"]
["R5LPP1406","Монтажная плата перфорированная боковая для шкафа CQE (ВхГ) 1400x600 мм","Штука"]
["R5LPP1408","Монтажная плата перфорированная боковая для шкафа CQE (ВхГ) 1400x800 мм","Штука"]
["R5LPP1604","Монтажная плата перфорированная боковая для шкафа CQE (ВхГ) 1600x400 мм","Штука"]
["R5LPP1605","Монтажная плата перфорированная боковая для шкафа CQE (ВхГ) 1600x500 мм","Штука"]
["R5LPP1606","Монтажная плата перфорированная боковая для шкафа CQE (ВхГ) 1600x600 мм","Штука"]
["R5LPP1608","Монтажная плата перфорированная боковая для шкафа CQE (ВхГ) 1600x800 мм","Штука"]
["R5LPP1804","Монтажная плата перфорированная боковая для шкафа CQE (ВхГ) 1800x400 мм","Штука"]
["R5LPP1805","Монтажная плата перфорированная боковая для шкафа CQE (ВхГ) 1800x500 мм","Штука"]
["R5LPP1806","Монтажная плата перфорированная боковая для шкафа CQE (ВхГ) 1800x600 мм","Штука"]
["R5LPP1808","Монтажная плата перфорированная боковая для шкафа CQE (ВхГ) 1800x800 мм","Штука"]
["R5LPP2004","Монтажная плата перфорированная боковая для шкафа CQE (ВхГ) 2000x400 мм","Штука"]
["R5LPP2005","Монтажная плата перфорированная боковая для шкафа CQE (ВхГ) 2000x500 мм","Штука"]
["R5LPP2006","Монтажная плата перфорированная боковая для шкафа CQE (ВхГ) 2000x600 мм","Штука"]
["R5LPP2008","Монтажная плата перфорированная боковая для шкафа CQE (ВхГ) 2000x800 мм","Штука"]
["R5LPP2204","Монтажная плата перфорированная боковая для шкафа CQE (ВхГ) 2200x400 мм","Штука"]
["R5LPP2205","Монтажная плата перфорированная боковая для шкафа CQE (ВхГ) 2200x500 мм","Штука"]
["R5LPP2206","Монтажная плата перфорированная боковая для шкафа CQE (ВхГ) 2200x600 мм","Штука"]
["R5LPP2208","Монтажная плата перфорированная боковая для шкафа CQE (ВхГ) 2200x800 мм","Штука"]
["R5LPS0304","Монтажная плата боковая для шкафа CQE (ВхГ) 300x400 мм","Штука"]
["R5LPS0305","Монтажная плата боковая для шкафа CQE (ВхГ) 300x500 мм","Штука"]
["R5LPS0306","Монтажная плата боковая для шкафа CQE (ВхГ) 300x600 мм","Штука"]
["R5LPS0308","Монтажная плата боковая для шкафа CQE (ВхГ) 300x800 мм","Штука"]
["R5LPS0404","Монтажная плата боковая для шкафа CQE (ВхГ) 400x400 мм","Штука"]
["R5LPS0405","Монтажная плата боковая для шкафа CQE (ВхГ) 400x500 мм","Штука"]
["R5LPS0406","Монтажная плата боковая для шкафа CQE (ВхГ) 400x600 мм","Штука"]
["R5LPS0408","Монтажная плата боковая для шкафа CQE (ВхГ) 400x800 мм","Штука"]
["R5LPS0504","Монтажная плата боковая для шкафа CQE (ВхГ) 500x400 мм","Штука"]
["R5LPS0505","Монтажная плата боковая для шкафа CQE (ВхГ) 500x500 мм","Штука"]
["R5LPS0506","Монтажная плата боковая для шкафа CQE (ВхГ) 500x600 мм","Штука"]
["R5LPS0508","Монтажная плата боковая для шкафа CQE (ВхГ) 500x800 мм","Штука"]
["R5LPS0604","Монтажная плата боковая для шкафа CQE (ВхГ) 600x400 мм","Штука"]
["R5LPS0605","Монтажная плата боковая для шкафа CQE (ВхГ) 600x500 мм","Штука"]
["R5LPS0606","Монтажная плата боковая для шкафа CQE (ВхГ) 600x600 мм","Штука"]
["R5LPS0608","Монтажная плата боковая для шкафа CQE (ВхГ) 600x800 мм","Штука"]
["R5LPS0804","Монтажная плата боковая для шкафа CQE (ВхГ) 800x400 мм","Штука"]
["R5LPS0805","Монтажная плата боковая для шкафа CQE (ВхГ) 800x500 мм","Штука"]
["R5LPS0806","Монтажная плата боковая для шкафа CQE (ВхГ) 800x600 мм","Штука"]
["R5LPS0808","Монтажная плата боковая для шкафа CQE (ВхГ) 800x800 мм","Штука"]
["R5LPS1004","Монтажная плата боковая для шкафа CQE (ВхГ) 1000x400 мм","Штука"]
["R5LPS1005","Монтажная плата боковая для шкафа CQE (ВхГ) 1000x500 мм","Штука"]
["R5LPS1006","Монтажная плата боковая для шкафа CQE (ВхГ) 1000x600 мм","Штука"]
["R5LPS1008","Монтажная плата боковая для шкафа CQE (ВхГ) 1000x800 мм","Штука"]
["R5LPS1204","Монтажная плата боковая для шкафа CQE (ВхГ) 1200x400 мм","Штука"]
["R5LPS1205","Монтажная плата боковая для шкафа CQE (ВхГ) 1200x500 мм","Штука"]
["R5LPS1206","Монтажная плата боковая для шкафа CQE (ВхГ) 1200x600 мм","Штука"]
["R5LPS1208","Монтажная плата боковая для шкафа CQE (ВхГ) 1200x800 мм","Штука"]
["R5LPS1404","Монтажная плата боковая для шкафа CQE (ВхГ) 1400x400 мм","Штука"]
["R5LPS1405","Монтажная плата боковая для шкафа CQE (ВхГ) 1400x500 мм","Штука"]
["R5LPS1406","Монтажная плата боковая для шкафа CQE (ВхГ) 1400x600 мм","Штука"]
["R5LPS1408","Монтажная плата боковая для шкафа CQE (ВхГ) 1400x800 мм","Штука"]
["R5LPS1604","Монтажная плата боковая для шкафа CQE (ВхГ) 1600x400 мм","Штука"]
["R5LPS1605","Монтажная плата боковая для шкафа CQE (ВхГ) 1600x500 мм","Штука"]
["R5LPS1606","Монтажная плата боковая для шкафа CQE (ВхГ) 1600x600 мм","Штука"]
["R5LPS1608","Монтажная плата боковая для шкафа CQE (ВхГ) 1600x800 мм","Штука"]
["R5LPS1804","Монтажная плата боковая для шкафа CQE (ВхГ) 1800x400 мм","Штука"]
["R5LPS1805","Монтажная плата боковая для шкафа CQE (ВхГ) 1800x500 мм","Штука"]
["R5LPS1806","Монтажная плата боковая для шкафа CQE (ВхГ) 1800x600 мм","Штука"]
["R5LPS1808","Монтажная плата боковая для шкафа CQE (ВхГ) 1800x800 мм","Штука"]
["R5LPS2004","Монтажная плата боковая для шкафа CQE (ВхГ) 2000x400 мм","Штука"]
["R5LPS2005","Монтажная плата боковая для шкафа CQE (ВхГ) 2000x500 мм","Штука"]
["R5LPS2006","Монтажная плата боковая для шкафа CQE (ВхГ) 2000x600 мм","Штука"]
["R5LPS2008","Монтажная плата боковая для шкафа CQE (ВхГ) 2000x800 мм","Штука"]
["R5LPS2204","Монтажная плата боковая для шкафа CQE (ВхГ) 2200x400 мм","Штука"]
["R5LPS2205","Монтажная плата боковая для шкафа CQE (ВхГ) 2200x500 мм","Штука"]
["R5LPS2206","Монтажная плата боковая для шкафа CQE (ВхГ) 2200x600 мм","Штука"]
["R5LPS2208","Монтажная плата боковая для шкафа CQE (ВхГ) 2200x800 мм","Штука"]
["R5DVE1440","Разделитель вертикальный, полный, для шкафов 1400 x 400 мм","Штука"]
["R5DVE1450","Разделитель вертикальный, полный, для шкафов 1400 x 500 мм","Штука"]
["R5DVE1640","Разделитель вертикальный, полный, для шкафов 1600 x 400 мм","Штука"]
["R5DVE1650","Разделитель вертикальный, полный, для шкафов 1600 x 500 мм","Штука"]
["R5DVE1660","Разделитель вертикальный, полный, для шкафов 1600 x 600 мм","Штука"]
["R5DVE1840","Разделитель вертикальный, полный, для шкафов 1800 x 400 мм","Штука"]
["R5DVE1850","Разделитель вертикальный, полный, для шкафов 1800 x 500 мм","Штука"]
["R5DVE1860","Разделитель вертикальный, полный, для шкафов 1800 x 600 мм","Штука"]
["R5DVE1880","Разделитель вертикальный, полный, для шкафов 1800 x 800 мм","Штука"]
["R5DVE2040","Разделитель вертикальный, полный, для шкафов 2000 x 400 мм","Штука"]
["R5DVE2050","Разделитель вертикальный, полный, для шкафов 2000 x 500 мм","Штука"]
["R5DVE2060","Разделитель вертикальный, полный, для шкафов 2000 x 600 мм","Штука"]
["R5DVE2080","Разделитель вертикальный, полный, для шкафов 2000 x 800 мм","Штука"]
["R5DVE2250","Разделитель вертикальный, полный, для шкафов 2200 x 500 мм","Штука"]
["R5DVE2260","Разделитель вертикальный,полный, для шкафов 2200 x 600 мм","Штука"]
["R5DVE2280","Разделитель вертикальный, полный, для шкафов 2200 x 800 мм","Штука"]
["R5DVP18100","Разделитель вертикальный, частичный, Г = 100 мм, для шкафов высотой 18","Штука"]
["R5DVP18150","Разделитель вертикальный, частичный, Г = 150 мм, для шкафов высотой 18","Штука"]
["R5DVP18175","Разделитель вертикальный, частичный, Г = 175 мм, для шкафов высотой 18","Штука"]
["R5DVP18250","Разделитель вертикальный, частичный, Г = 250 мм, для шкафов высотой 18","Штука"]
["R5DVP18275","Разделитель вертикальный, частичный, Г = 275 мм, для шкафов высотой 18","Штука"]
["R5DVP18325","Разделитель вертикальный, частичный, Г = 325 мм, для шкафов высотой 18","Штука"]
["R5DVP18350","Разделитель вертикальный, частичный, Г = 350 мм, для шкафов высотой 18","Штука"]
["R5DVP20100","Разделитель вертикальный, частичный, Г = 100 мм, для шкафов высотой 20","Штука"]
["R5DVP20125","Разделитель вертикальный, частичный, Г = 125 мм, для шкафов высотой 20","Штука"]
["R5DVP20150","Разделитель вертикальный, частичный, Г = 150 мм, для шкафов высотой 20","Штука"]
["R5DVP20175","Разделитель вертикальный, частичный, Г = 175 мм, для шкафов высотой 20","Штука"]
["R5DVP20250","Разделитель вертикальный, частичный, Г = 250 мм, для шкафов высотой 20","Штука"]
["R5DVP20275","Разделитель вертикальный, частичный, Г = 275 мм, для шкафов высотой 20","Штука"]
["R5DVP20325","Разделитель вертикальный, частичный, Г = 325 мм, для шкафов высотой 20","Штука"]
["R5DVP20350","Разделитель вертикальный, частичный, Г = 350 мм, для шкафов высотой 20","Штука"]
["R5DVP22100","Разделитель вертикальный, частичный, Г = 100 мм, для шкафов высотой 22","Штука"]
["R5DVP22125","Разделитель вертикальный, частичный, Г = 125 мм, для шкафов высотой 22","Штука"]
["R5DVP22150","Разделитель вертикальный, частичный, Г = 150 мм, для шкафов высотой 22","Штука"]
["R5DVP22175","Разделитель вертикальный, частичный, Г = 175 мм, для шкафов высотой 22","Штука"]
["R5DVP22250","Разделитель вертикальный, частичный, Г = 250 мм, для шкафов высотой 22","Штука"]
["R5DVP22275","Разделитель вертикальный, частичный, Г = 275 мм, для шкафов высотой 22","Штука"]
["R5DVP22325","Разделитель вертикальный, частичный, Г = 325 мм, для шкафов высотой 22","Штука"]
["R5MVE18","Стойки вертикальные, для поддержки разделителей, В=1800мм, 1 упаковка - 2шт.","Упаковка"]
["R5MVE20","Стойки вертикальные, для поддержки разделителей, В=2000мм, 1 упаковка - 2шт.","Упаковка"]
["R5MVE22","Стойки вертикальные, для поддержки разделителей, В=2200мм, 1 упаковка - 2шт.","Упаковка"]
[]
["R5BP01","Комплект угловых элементов с пластиковыми заглушками, В =100 мм, 1 кмп =4 шт.","Комплект"]
["R5BP02","Комплект угловых элементов с пластиковыми заглушками, В =200 мм, 1 кмп =4 шт.","Комплект"]
["R5DG4","Пластина для глубины 400, глухая","Штука"]
["R5DG5","Пластина для глубины 500, глухая","Штука"]
["R5DG6","Пластина для глубины 600, глухая","Штука"]
["R5DG8","Пластина для глубины 800, глухая","Штука"]
["R5DP64","Пластина 600х400","Штука"]
["R5DP65","Пластина 600х500","Штука"]
["R5DP66","Пластина 600х600","Штука"]
["R5DP68","Пластина 600х800","Штука"]
["R5DSH4","Пластина для глубины 400, с щеткой","Штука"]
["R5DSH5","Пластина для глубины 500, с щеткой","Штука"]
["R5DSH6","Пластина для глубины 600, с щеткой","Штука"]
["R5DSH8","Пластина для глубины 800, с щеткой","Штука"]
["R5EP02","Точка заземления внешняя для CQE М8хМ6","Штука"]
["R5FCGD4","Центральный пакет глубиной 400 глухой","Штука"]
["R5FCGD5","Центральный пакет глубиной 500 глухой","Штука"]
["R5FCGD6","Центральный пакет глубиной 600 глухой","Штука"]
["R5FCGD8","Центральный пакет глубиной 800 глухой","Штука"]
["R5FCSD4","Центральный пакет глубиной 400 со щетками","Штука"]
["R5FCSD5","Центральный пакет глубиной 500 со щетками","Штука"]
["R5FCSD6","Центральный пакет глубиной 600 со щетками","Штука"]
["R5FCSD8","Центральный пакет глубиной 800 со щетками","Штука"]
["R5FG0521","Пластина глухая шириной 500, глубиной 210мм (для 1400)","Штука"]
["R5FG1021","Пластина глухая шириной 1000, глубиной 210мм","Штука"]
["R5FG621","Пластина глухая шириной 600, глубиной 210мм","Штука"]
["R5FG821","Пластина глухая шириной 800, глубиной 210мм","Штука"]
["R5FP100","Комплект панелей цоколя, Ш/Г=1000 мм, В=100 мм, 1 кмп = 2 шт.","Комплект"]
["R5FP102","Комплект панелей цоколя, Ш/Г=1000 мм, В=200 мм, 1 кмп = 2 шт.","Комплект"]
["R5FP120","Комплект панелей цоколя, Ш/Г=1200 мм, В=100 мм, 1 кмп = 2 шт.","Комплект"]
["R5FP122","Комплект панелей цоколя, Ш/Г=1200, В=200 мм, 1 кмп = 2 шт.","Комплект"]
["R5FP140","Комплект панелей цоколя, Ш/Г=1400 мм, В=100 мм, 1 кмп = 2 шт.","Комплект"]
["R5FP142","Комплект панелей цоколя, Ш/Г=1400 мм, В=200 мм, 1 кмп = 2 шт.","Комплект"]
["R5FP160","Комплект панелей цоколя, Ш/Г=1600 мм, В=100 мм, 1 кмп = 2 шт.","Комплект"]
["R5FP162","Комплект панелей цоколя, Ш/Г=1600 мм, В=200 мм, 1 кмп = 2 шт.","Комплект"]
["R5FP200","Комплект панелей цоколя для PN, CN, 1 кмп = 2 шт.","Комплект"]
["R5FP30","Комплект панелей цоколя, Ш/Г=300 мм, В=100мм, 1 кмп = 2 шт.","Комплект"]
["R5FP32","Комплект панелей цоколя, Ш/Г=300 мм, В=200 мм, 1 кмп = 2 шт.","Комплект"]
["R5FP38","Комплект панелей цоколя для PN, CN, 1 кмп = 2 шт.","Комплект"]
["R5FP40","Комплект панелей цоколя, Ш/Г=400 мм, В=100мм, 1 кмп = 2 шт.","Комплект"]
["R5FP42","Комплект панелей цоколя, Ш/Г=400 мм, В=200 мм, 1 кмп = 2 шт.","Комплект"]
["R5FP50","Комплект панелей цоколя, Ш/Г=500 мм, В=100 мм, 1 кмп = 2 шт.","Комплект"]
["R5FP52","Комплект панелей цоколя, Ш/Г=500 мм, В=200 мм, 1 кмп = 2 шт.","Комплект"]
["R5FP60","Комплект панелей цоколя, Ш/Г=600 мм, В=100мм, 1 кмп = 2 шт.","Комплект"]
["R5FP62","Комплект панелей цоколя, Ш/Г=600 мм, В=200 мм, 1 кмп = 2 шт.","Комплект"]
["R5FP80","Комплект панелей цоколя, Ш/Г=800 мм, В=100мм, 1 кмп = 2 шт.","Комплект"]
["R5FP82","Комплект панелей цоколя, Ш/Г=800 мм, В=200 мм, 1 кмп = 2 шт.","Комплект"]
["R5FSH0521","Пластина со щетками шириной 500, глубиной 210мм (для 1400)","Штука"]
["R5FSH1021","Пластина со щетками шириной 1000, глубиной 210мм","Штука"]
["R5FSH621","Пластина со щетками шириной 600, глубиной 210мм","Штука"]
["R5FSH821","Пластина со щетками шириной 800, глубиной 210мм","Штука"]
["R5FZ05172","Заглушка шириной 500, глубиной 172 мм (для 1400)","Штука"]
["R5FZ0572","Заглушка шириной 500, глубиной 72 мм (для 1400)","Штука"]
["R5FZ10172","Заглушка шириной 1000, глубиной 172 мм","Штука"]
["R5FZ1072","Заглушка шириной 1000, глубиной 72 мм","Штука"]
["R5FZ6172","Заглушка шириной 600, глубиной 172 мм","Штука"]
["R5FZ672","Заглушка шириной 600, глубиной 72 мм","Штука"]
["R5FZ8172","Заглушка шириной 800, глубиной 172 мм","Штука"]
["R5FZ872","Заглушка шириной 800, глубиной 72 мм","Штука"]
["R5NCSBP1000","Рейка соединительная компенсационная для цоколя Г = 1000 мм","Штука"]
["R5NCSBP1200","Рейка соединительная компенсационная для цоколя Г = 1200 мм","Штука"]
["R5NCSBP400","Рейка соединительная компенсационная для цоколя Г = 400 мм","Штука"]
["R5NCSBP600","Рейка соединительная компенсационная для цоколя Г = 600 мм","Штука"]
["R5NCSBP800","Рейка соединительная компенсационная для цоколя Г = 800 мм","Штука"]
["R5NFFP1000","Рейка кабельная для цоколя по ширине Ш = 1000 мм","Штука"]
["R5NFFP300","Рейка кабельная для цоколя по ширине Ш = 300 мм","Штука"]
["R5NFFP400","Рейка кабельная для цоколя по ширине Ш = 400 мм","Штука"]
["R5NFFP600","Рейка кабельная для цоколя по ширине Ш = 600 мм","Штука"]
["R5NFFP800","Рейка кабельная для цоколя по ширине Ш = 800 мм","Штука"]
["R5NFP100","Комплект панелей цоколя, Ш/Г=1000 мм, В=100 мм, 1 кмп = 2 шт.","Комплект"]
["R5NFP102","Комплект панелей цоколя, Ш/Г=1000 мм, В=200 мм, 1 кмп = 2 шт.","Комплект"]
["R5NFP120","Комплект панелей цоколя, Ш/Г=1200 мм, В=100 мм, 1 кмп = 2 шт.","Комплект"]
["R5NFP122","Комплект панелей цоколя, Ш/Г=1200 мм, В=200 мм, 1 кмп = 2 шт.","Комплект"]
["R5NFP140","Комплект панелей цоколя, Ш/Г=1400 мм, В=100 мм, 1 кмп = 2 шт.","Комплект"]
["R5NFP142","Комплект панелей цоколя, Ш/Г=1400 мм, В=200 мм, 1 кмп = 2 шт.","Комплект"]
["R5NFP160","Комплект панелей цоколя, Ш/Г=1600 мм, В=100 мм, 1 кмп = 2 шт.","Комплект"]
["R5NFP162","Комплект панелей цоколя, Ш/Г=1600 мм, В=200 мм, 1 кмп = 2 шт.","Комплект"]
["R5NFP30","Комплект панелей цоколя, Ш/Г=300 мм, В=100 мм, 1 кмп = 2 шт.","Комплект"]
["R5NFP32","Комплект панелей цоколя, Ш/Г=300 мм, В=200 мм, 1 кмп = 2 шт.","Комплект"]
["R5NFP40","Комплект панелей цоколя, Ш/Г=400 мм, В=100 мм, 1 кмп = 2 шт.","Комплект"]
["R5NFP42","Комплект панелей цоколя, Ш/Г=400 мм, В=200 мм, 1 кмп = 2 шт.","Комплект"]
["R5NFP50","Комплект панелей цоколя, Ш/Г=500 мм, В=100 мм, 1 кмп = 2 шт.","Комплект"]
["R5NFP52","Комплект панелей цоколя, Ш/Г=500 мм, В=200 мм, 1 кмп = 2 шт.","Комплект"]
["R5NFP60","Комплект панелей цоколя, Ш/Г=600 мм, В=100 мм, 1 кмп = 2 шт.","Комплект"]
["R5NFP62","Комплект панелей цоколя, Ш/Г=600 мм, В=200 мм, 1 кмп = 2 шт.","Комплект"]
["R5NFP80","Комплект панелей цоколя, Ш/Г=800 мм, В=100 мм, 1 кмп = 2 шт.","Комплект"]
["R5NFP82","Комплект панелей цоколя, Ш/Г=800 мм, В=200 мм, 1 кмп = 2 шт.","Комплект"]
["R5NLFP1000","Рейка кабельная для цоколя по глубине Г = 1000 мм","Штука"]
["R5NLFP1200","Рейка кабельная для цоколя по глубине Г = 1200 мм","Штука"]
["R5NLFP400","Рейка кабельная для цоколя по глубине Г = 400 мм","Штука"]
["R5NLFP500","Рейка кабельная для цоколя по глубине Г = 500 мм","Штука"]
["R5NLFP600","Рейка кабельная для цоколя по глубине Г = 600 мм","Штука"]
["R5NLFP800","Рейка кабельная для цоколя по глубине Г = 800 мм","Штука"]
["R5NSBP1000","Рейка соединительная для цоколя Г = 1000 мм","Штука"]
["R5NSBP1200","Рейка соединительная для цоколя Г = 1200 мм","Штука"]
["R5NSBP400","Рейка соединительная для цоколя Г = 400 мм","Штука"]
["R5NSBP500","Рейка соединительная для цоколя Г = 500 мм","Штука"]
["R5NSBP600","Рейка соединительная для цоколя Г = 600 мм","Штука"]
["R5NSBP800","Рейка соединительная для цоколя Г = 800 мм","Штука"]
["R5NSFP1000","Рейка промежуточная для цоколя Г = 1000 мм","Штука"]
["R5NSFP1200","Рейка промежуточная для цоколя Г = 1200 мм","Штука"]
["R5NSFP400","Рейка промежуточная для цоколя Г = 400 мм","Штука"]
["R5NSFP500","Рейка промежуточная для цоколя Г = 500 мм","Штука"]
["R5NSFP600","Рейка промежуточная для цоколя Г = 600 мм","Штука"]
["R5NSFP800","Рейка промежуточная для цоколя Г = 800 мм","Штука"]
["R5NSTFP100","Уголки крепежные для цоколя 1 комплект - 2 уголка","Комплект"]
["R5CABF14","Кабельный зажим для С-профиля, диаметр кабеля 6-14 мм","Штука"]
["R5CABF18","Кабельный зажим для С-профиля, диаметр кабеля 12-18 мм","Штука"]
["R5CABF22","Кабельный зажим для С-профиля, диаметр кабеля 18-22 мм","Штука"]
["R5CABF30","Кабельный зажим для С-профиля, диаметр кабеля 22-30 мм","Штука"]
["R5CABF38","Кабельный зажим для С-профиля, диаметр кабеля 30-38 мм","Штука"]
["R5CABF42","Кабельный зажим для С-профиля, диаметр кабеля 38-42 мм","Штука"]
["R5CABF50","Кабельный зажим для С-профиля, диаметр кабеля 42-50 мм","Штука"]
["R5CABF64","Кабельный зажим для С-профиля, диаметр кабеля 50-64 мм","Штука"]
["R5CABF70","Кабельный зажим для С-профиля, диаметр кабеля 64-70 мм","Штука"]
["R5FMP1000","Панель для кабельного ввода, 8-мь мест, для шкафов шириной 1000 мм, 1упаковка - 2 шт.","Упаковка"]
["R5FMP1200","Панель для кабельного ввода, 10-ть мест, для шкафов шириной 1200 мм, 1упаковка - 2 шт.","Упаковка"]
["R5FMP600","Панель для кабельного ввода, 4-е места, для шкафов шириной 600 мм, 1упаковка - 2 шт.","Упаковка"]
["R5FMP800","Панель для кабельного ввода, 6-ть мест, для шкафов шириной 800 мм, 1упаковка - 2 шт.","Упаковка"]
["R5FPC1000","Уплотнитель для ввода кабеля, для шкафов DAE/CQE шириной 1000 мм","Штука"]
["R5FPC1200","Уплотнитель для ввода кабеля, для шкафов DAE/CQE шириной 1200 мм","Штука"]
["R5FPC1400","Уплотнитель для ввода кабеля, для шкафов DAE/CQE шириной 1400 мм","Штука"]
["R5FPC1600","Уплотнитель для ввода кабеля, для шкафов DAE/CQE шириной 1600 мм","Штука"]
["R5FPC400","Уплотнитель для ввода кабеля, для шкафов DAE/CQE шириной 400 мм","Штука"]
["R5FPC600","Уплотнитель для ввода кабеля, для шкафов DAE/CQE шириной 600 мм","Штука"]
["R5FPC800","Уплотнитель для ввода кабеля, для шкафов DAE/CQE шириной 800 мм","Штука"]
["R5FUC103","Дно сплошное, для шкафов DAE/CQE 1000 x 300 мм","Штука"]
["R5FUC104","Дно сплошное, для шкафов DAE/CQE 1000 x 400 мм","Штука"]
["R5FUC105","Дно сплошное, для шкафов DAE/CQE 1000 x 500 мм","Штука"]
["R5FUC106","Дно сплошное, для шкафов DAE/CQE 1000 x 600 мм","Штука"]
["R5FUC108","Дно сплошное, для шкафов DAE/CQE 1000 x 800 мм","Штука"]
["R5FUC44","Дно сплошное, для шкафов DAE/CQE 400 x 400 мм","Штука"]
["R5FUC45","Дно сплошное, для шкафов DAE/CQE 400 x 500 мм","Штука"]
["R5FUC46","Дно сплошное, для шкафов DAE/CQE 400 x 600 мм","Штука"]
["R5FUC48","Дно сплошное, для шкафов DAE/CQE 400 x 800 мм","Штука"]
["R5FUC63","Дно сплошное, для шкафов DAE/CQE 600 x 300 мм","Штука"]
["R5FUC64","Дно сплошное, для шкафов DAE/CQE 600 x 400 мм","Штука"]
["R5FUC65","Дно сплошное, для шкафов DAE/CQE 600 x 500 мм","Штука"]
["R5FUC66","Дно сплошное, для шкафов DAE/CQE 600 x 600 мм","Штука"]
["R5FUC68","Дно сплошное, для шкафов DAE/CQE 600 x 800 мм","Штука"]
["R5FUC83","Дно сплошное, для шкафов DAE/CQE 800 x 300 мм","Штука"]
["R5FUC84","Дно сплошное, для шкафов DAE/CQE 800 x 400 мм","Штука"]
["R5FUC85","Дно сплошное, для шкафов DAE/CQE 800 x 500 мм","Штука"]
["R5FUC86","Дно сплошное, для шкафов DAE/CQE 800 x 600 мм","Штука"]
["R5FUC88","Дно сплошное, для шкафов DAE/CQE 800 x 800 мм","Штука"]
["R5MP01","Кабельный ввод  - мембранный, 1х47мм  - кол-во отверстий=1, макс. диаметр=47мм, 1 упаковка - 20 шт.","Упаковка"]
["R5MP04","Кабельный ввод  - мембранный, 4х21мм  - кол-во отверстий=4, макс. диаметр=21мм, 1 упаковка - 20 шт.","Упаковка"]
["R5MP09","Кабельный ввод  - мембранный, 9х13мм  - кол-во отверстий=9, макс. диаметр=13мм, 1 упаковка - 20 шт.","Упаковка"]
["R5ZE1062","Цоколь 1000 x 600 x 200 мм","Штука"]
["R5ZE1081","Цоколь 1000 x 800 x 100 мм","Штука"]
["R5ZE1082","Цоколь 1000 x 800 x 200 мм","Штука"]
["R5ZE1282","Цоколь 1200 x 800 x 200 мм","Штука"]
["R5ZE1461","Цоколь 1400 x 600 x 100 мм","Штука"]
["R5ZE1462","Цоколь 1400 x 600 x 200 мм","Штука"]
["R5ZE1481","Цоколь 1400 x 800 x 100 мм","Штука"]
["R5ZE1681","Цоколь 1600 x 800 x 100 мм","Штука"]
["R5ZE1841","Цоколь 1800 x 400 x 100 мм","Штука"]
["R5ZE361","Цоколь 300 x 600 x 100 мм","Штука"]
["R5ZE452","Цоколь 400 x 500 x 200 мм","Штука"]
["R5ZE831","Цоколь 800 x 300 x 100 мм","Штука"]
["R5ZE881","Цоколь 800 x 800 x 100 мм","Штука"]
["R5ZE882","Цоколь 800 x 800 x 200 мм","Штука"]
["R5ZEA551","Цоколь для угловых секций CQE,  500 x 500 x 100мм","Штука"]
["R5ZEA552","Цоколь для угловых секций CQE,  500 x 500 x 200мм","Штука"]
[]
["R5LA03-24","Светодиодный светильник 6 Вт, 24 В","Штука"]
["R5LA06-24","Светодиодный светильник 10 Вт, 24 В","Штука"]
["R5MC11","Концевой выключатель (дверной), однофазный, без кабеля исиловогоразъёма, 1 Н.О. + 1 Н.З. Контакт","Штука"]
["R5LAJMP","Силовой разъем для светильников","Штука"]
["R5MAG01N","Магнитный крепеж для R5LA08/13/21","Штука"]
["R5LA03","Светодиодный светильник 6 Вт, 220 В","Штука"]
["R5LA06","Светодиодный светильник 10 Вт, 220 В","Штука"]
["R5LA08","Люминесцентный светильник 8 Вт, 220В","Штука"]
["R5LA13","Люминесцентный светильник 13 Вт, 220В","Штука"]
["R5LA21","Люминесцентный светильник 21 Вт, 220В","Штука"]
["R5LAS08","Люминесцентный светильник 8 Вт, с 2-мя розетками, 220 В","Штука"]
["R5LAS13","Люминесцентный светильник 13 Вт, с 2-мя розетками, 220 В","Штука"]
["R5MAG02","Магнитная площадка для R5LAS08/13","Штука"]
["R5MC01","Концевой выключатель (дверной), однофазный, без кабеля и силовогоразъёма, 2 Н.З. контакта","Штука"]
["R5MC02","Концевой выключатель (дверной) трёхфазный с сигнальной лампой, без кабеля и силового разъёма","Штука"]
[]
["R5BSEV01","Профиль алюминиевый, для наборных держателей (длина - 2 метра)","Штука"]
["R5BSEV02","Изолирующая трубка","Штука"]
["R5BSEV03","Держатель профиля, для горизонтальной системы шин","Штука"]
["R5BSFVL3","Комплект шинодержателей, 3p, d?40 mm","Комплект"]
["R5BSFVLT3","Комплект шинодержателей, 3p, d=20 mm","Комплект"]
["R5BSEV04","Держатель профиля, для вертикальной системы шин","Штука"]
["R5BSFVLT4","Комплект шинодержателей, 4p, d=20 mm","Комплект"]
["R5BSFVL4","Комплект шинодержателей, 4p, d?40 mm","Комплект"]
["R5BSEV1/10T","Набор держателей, для шин толщиной 10мм, 1 шина на полюс, 3 полюса","Штука"]
["R5BSEV1/10TN","Набор держателей, для шин толщиной 10мм, 1 шина на полюс, 4 полюса","Штука"]
["R5BSEV2/10T","Набор держателей, для шин толщиной 10мм, 1-2 шины на полюс, 3 полюса","Штука"]
["R5BSEV2/10TN","Набор держателей, для шин толщиной 10мм, 1-2 шины на полюс, 4 полюса","Штука"]
["R5BSEV2/5T","Набор держателей, для шин толщиной 5мм, 1-2 шины на полюс, 3 полюса","Штука"]
["R5BSEV2/5TN","Набор держателей, для шин толщиной 5мм, 1-2 шины на полюс, 4 полюса","Штука"]
["R5BSEV3/10T","Набор держателей, для шин толщиной 10мм, 1-3 шины на полюс, 3 полюса","Штука"]
["R5BSEV3/10TN","Набор держателей, для шин толщиной 10мм, 1-3 шины на полюс, 4 полюса","Штука"]
["R5BSEV4/5T","Набор держателей, для шин толщиной 5мм, 1-4 шины на полюс, 3 полюса","Штука"]
["R5BSEV4/5TN","Набор держателей, для шин толщиной 5мм, 1-4 шины на полюс, 4 полюса","Штука"]
["R5BSFV","Профиль опорный FV, для установки шин плашмя","Штука"]
["R5BSGF250TN","Ступенчатый шинодержатель, до 250А, 4 полюса","Штука"]
["R5BSGF630TN","Ступенчатый шинодержатель, до 630А, 4 полюса","Штука"]
[]
[]
["R5PI505","Дополнительная панель высотой 50 мм, ширина шкафа 600 мм","Штука"]
["R5PI510","Дополнительная панель высотой 100 мм, ширина шкафа 600 мм","Штука"]
["R5PI515","Дополнительная панель высотой 150 мм, ширина шкафа 600 мм","Штука"]
["R5PI705","Дополнительная панель высотой 50 мм, ширина шкафа 800 мм","Штука"]
["R5PI710","Дополнительная панель высотой 100 мм, ширина шкафа 800 мм","Штука"]
["R5PI715","Дополнительная панель высотой 150 мм, ширина шкафа 800 мм","Штука"]
[]
["R5PDO0560","Комплект для горизонтальной установки автоматического выключателя Tmax1, ширина шкафа 600 мм","Штука"]
["R5PDO0660","Комплект для горизонтальной установки автоматического выключателя Tmax2, ширина шкафа 600 мм","Штука"]
["R5PDO0760","Комплект для горизонтальной установки автоматического выключателя Tmax3, ширина шкафа 600 мм","Штука"]
["R5PDO0761","Комплект для горизонтальной установки автоматического выключателя Tmax4, ширина шкафа 600 мм","Штука"]
["R5PDO0762","Комплект для горизонтальной установки автоматического выключателя Tmax5, ширина шкафа 600 мм","Штука"]
["R5PDO0860","Комплект для горизонт. установки автоматич.выключателяCompactNSX100/160/250,ширинашкафа600мм","Штука"]
["R5PDO0861","Комплект для горизонтальной установки автоматического выключателяCompactNSX400/630,ширина шкафа600мм","Штука"]
["R5PDV0560","Комплект для вертикальной установки автоматического выключателя Tmax1, ширина шкафа 600 мм","Штука"]
["R5PDV0580","Комплект для вертикальной установки автоматического выключателя Tmax1, ширина шкафа 800 мм","Штука"]
["R5PDV0660","Комплект для вертикальной установки автоматического выключателя Tmax2, ширина шкафа 600 мм","Штука"]
["R5PDV0680","Комплект для вертикальной установки автоматического выключателя Tmax2, ширина шкафа 800 мм","Штука"]
["R5PDV0760","Комплект для вертикальной установки автоматического выключателя Tmax3, ширина шкафа 600 мм","Штука"]
["R5PDV0761","Комплект для вертикальной установки автоматического выключателя Tmax4, ширина шкафа 600 мм","Штука"]
["R5PDV0762","Комплект для вертикальной установки автоматического выключателя Tmax5, ширина шкафа 600 мм","Штука"]
["R5PDV0780","Комплект для вертикальной установки автоматического выключателя Tmax3, ширина шкафа 800 мм","Штука"]
["R5PDV0781","Комплект для вертикальной установки автоматического выключателя Tmax4, ширина шкафа 800 мм","Штука"]
["R5PDV0782","Комплект для вертикальной установки автоматического выключателя Tmax5, ширина шкафа 800 мм","Штука"]
["R5PDV0860","Комп-т для верт. установки автоматического выключателя Compact NSX 100/160/250, ширина шкафа 600 мм","Штука"]
["R5PDV0861","Комплект для вертикальной установки автоматического выключателяCompactNSX400/630,ширина шкафа600мм","Штука"]
["R5PDV0880","Комплект для вертикальной установки автоматич выключателяCompactNSX100/160/250,ширина шкафа800мм","Штука"]
["R5PDV0881","Комп-т для верт. установки автоматического выключателя Compact NSX 400/630, ширина шкафа 800 мм","Штука"]
[]
["R5SK1868","Комплект усиления для шкафов CQE 1800х600х800","Штука"]
["R5SK1886","Комплект усиления для шкафов CQE 1800х800х600","Штука"]
["R5SK1888","Комплект усиления для шкафов CQE 1800х800х800","Штука"]
["R5SK2068","Комплект усиления для шкафов CQE 2000х600х800","Штука"]
["R5EP01","Внешняя точка заземления M8-M8 для УСТАРЕВШИХ цоколей R5ZE","Комплект"]
["R5SK1864","Комплект усиления для шкафов CQE 1800х600х400","Штука"]
["R5SK1866","Комплект усиления для шкафов CQE 1800х600х600","Штука"]
["R5SK1884","Комплект усиления для шкафов CQE 1800х800х400","Штука"]
["R5SK2064","Комплект усиления для шкафов CQE 2000х600х400","Штука"]
["R5SK2066","Комплект усиления для шкафов CQE 2000х600х600","Штука"]
["R5SK2084","Комплект усиления для шкафов CQE 2000х800х400","Штука"]
["R5SK2086","Комплект усиления для шкафов CQE 2000х800х600","Штука"]
["R5SK2088","Комплект усиления для шкафов CQE 2000х800х800","Штука"]
["R5ZE641SY","Сейсмоцоколь 600x400x100мм","Штука"]
["R5ZE661SY","Сейсмоцоколь 600x600x100мм","Штука"]
["R5ZE681SY","Сейсмоцоколь 600x800x100мм","Штука"]
["R5ZE841SY","Сейсмоцоколь 800x400x100мм","Штука"]
["R5ZE861SY","Сейсмоцоколь 800x600x100мм","Штука"]
["R5ZE881SY","Сейсмоцоколь 800x800x100мм","Штука"]
[]
["R5CEMC0442","Корпус навесной CE ЭМС ВхШхГ 400x400x200 мм","Штука"]
["R5CEMC0642","Корпус навесной CE ЭМС ВхШхГ 600x400x200 мм","Штука"]
["R5CEMC0669","Корпус навесной CE ЭМС ВхШхГ 600x600x250 мм","Штука"]
["R5CQEMC2066","Шкаф напольный CQE ЭМС с дверью и задней панелью ВхШхГ 2000x600x600 мм","Штука"]
["R5CQEMC2068","Шкаф напольный CQE ЭМС с дверью и задней панелью ВхШхГ 2000x600x800 мм","Штука"]
["R5CQEMC2086","Шкаф напольный CQE ЭМС с дверью и задней панелью ВхШхГ 2000x800x600 мм","Штука"]
["R5CQEMC2088","Шкаф напольный CQE ЭМС с дверью и задней панелью ВхШхГ 2000x800x800 мм","Штука"]
["R5KEMC65","Комплект для объединения шкафов CQE ЭМС","Штука"]
["R5LEMC2062","Панели боковые для шкафов CQE ЭМС ВхГ 2000x600 мм 1 комплект - 2 шт.","Упаковка"]
["R5LEMC2082","Панели боковые для шкафов CQE ЭМС ВхГ 2000x800 мм 1 комплект - 2 шт.","Упаковка"]
[]
[]
["R5PC1000","Монтажная плата, дополнительная, для оснований стоек CN/VN, В=1000мм","Штука"]
["R5PC1200","Монтажная плата, дополнительная, для оснований стоек CN/VN, В=1200мм","Штука"]
["R5PC1600","Монтажная плата, дополнительная, для оснований стоек CN/VN, В=1600мм","Штука"]
["R5PC600","Монтажная плата, дополнительная, для оснований стоек CN/VN, В=600мм","Штука"]
["R5PC800","Монтажная плата, дополнительная, для оснований стоек CN/VN, В=800мм","Штука"]
["R5PPM1000","Монтажная плата, для консолей стоек управления CN/VN, 1000 мм","Штука"]
["R5PPM1200","Монтажная плата, для консолей стоек управления CN/VN, 1200 мм","Штука"]
["R5PPM1600","Монтажная плата, для консолей стоек управления CN/VN, 1600 мм","Штука"]
["R5PPM600","Монтажная плата, для консолей стоек управления CN/VN, 600 мм","Штука"]
["R5PPM800","Монтажная плата, для консолей стоек управления CN/VN, 800 мм","Штука"]
[]
["R5A34","Рым-болты для пультов и стоек управления. 2 рым-болта в комплекте","Штука"]
["R5CC1000","Крышка для оснований CPC и консолей MPC, 1000 мм","Штука"]
["R5CC1200","Крышка для оснований CPC и консолей MPC, 1200 мм","Штука"]
["R5CC1600","Крышка для оснований CPC и консолей MPC, 1600 мм","Штука"]
["R5CC600","Крышка для оснований CPC и консолей MPC, 600 мм","Штука"]
["R5CC800","Крышка для оснований CPC и консолей MPC, 800 мм","Штука"]
["R5CV1000","Крышка для оснований CPV и консолей MPV, 1000 мм","Штука"]
["R5CV1200","Крышка для оснований CPV и консолей MPV, 1200 мм","Штука"]
["R5CV1600","Крышка для оснований CPV и консолей MPV, 1600 мм","Штука"]
["R5CV600","Крышка для оснований CPV и консолей MPV, 600 мм","Штука"]
["R5CV800","Крышка для оснований CPV и консолей MPV, 800 мм","Штука"]
["R5MPG20","Газовые упоры R5MPG20, 1 упаковка - 2шт.","Упаковка"]
["R5MPG25","Газовые упоры R5MPG25, 1 упаковка - 2шт.","Упаковка"]
["R5MPG30","Газовые упоры R5MPG30, 1 упаковка - 2шт.","Упаковка"]
["R5MPG35","Газовые упоры R5MPG35, 1 упаковка - 2шт.","Упаковка"]
["R5MPG40","Газовые упоры R5MPG40, 1 упаковка - 2шт.","Упаковка"]
["R5S01","Рейки дверные, вертикальные, для полки пульта управления PN, 1 упаковка - 2шт.","Упаковка"]
["R5S02","Рейки дверные, вертикальные, для стоек управления SN, 1 упаковка - 2шт.","Упаковка"]
[]
["R5PN1000","Пульт управления PN, ширина 1000 мм","Штука"]
["R5PN1200","Пульт управления PN, ширина 1200 мм","Штука"]
["R5PN1600","Пульт управления PN, ширина 1600 мм","Штука"]
["R5PN2000","Пульт управления PN, ширина 2000 мм","Штука"]
["R5PN600","Пульт управления PN, ширина 600 мм","Штука"]
["R5PN800","Пульт управления PN, ширина 800 мм","Штука"]
[]
["R5APC1000","Верхняя секция APC, для стоек управления серии CN, 1000 мм","Штука"]
["R5APC1200","Верхняя секция APC, для стоек управления серии CN, 1200 мм","Штука"]
["R5APC1600","Верхняя секция APC, для стоек управления серии CN, 1600 мм","Штука"]
["R5APC600","Верхняя секция APC, для стоек управления серии CN, 600 мм","Штука"]
["R5APC800","Верхняя секция APC, для стоек управления серии CN, 800 мм","Штука"]
["R5APV1000","Верхняя секция APV, для стоек управления серии VN, 1000 мм","Штука"]
["R5APV1200","Верхняя секция APV, для стоек управления серии VN, 1200 мм","Штука"]
["R5APV1600","Верхняя секция APV, для стоек управления серии VN, 1600 мм","Штука"]
["R5APV600","Верхняя секция APV, для стоек управления серии VN, 600 мм","Штука"]
["R5APV800","Верхняя секция APV, для стоек управления серии VN, 800 мм","Штука"]
["R5CPC1000","Основание CPC, для стоек управления серии CN, 1000 мм","Штука"]
["R5CPC1200","Основание CPC, для стоек управления серии CN, 1200 мм","Штука"]
["R5CPC1600","Основание CPC, для стоек управления серии CN, 1600 мм","Штука"]
["R5CPC600","Основание CPC, для стоек управления серии CN, 600 мм","Штука"]
["R5CPC800","Основание CPC, для стоек управления серии CN, 800 мм","Штука"]
["R5CPV1000","Основание CPV, для стоек управления серии VN, 1000 мм","Штука"]
["R5CPV1200","Основание CPV, для стоек управления серии VN, 1200 мм","Штука"]
["R5CPV1600","Основание CPV, для стоек управления серии VN, 1600 мм","Штука"]
["R5CPV600","Основание CPV, для стоек управления серии VN, 600 мм","Штука"]
["R5CPV800","Основание CPV, для стоек управления серии VN, 800 мм","Штука"]
["R5MPC1000","Консоль MPC, для стоек управления серии CN, 1000 мм","Штука"]
["R5MPC1200","Консоль MPC, для стоек управления серии CN, 1200 мм","Штука"]
["R5MPC1600","Консоль MPC, для стоек управления серии CN, 1600 мм","Штука"]
["R5MPC600","Консоль MPC, для стоек управления серии CN, 600 мм","Штука"]
["R5MPC800","Консоль MPC, для стоек управления серии CN, 800 мм","Штука"]
["R5MPV1000","Консоль MPV, для стоек управления серии VN, 1000 мм","Штука"]
["R5MPV1200","Консоль MPV, для стоек управления серии VN, 1200 мм","Штука"]
["R5MPV1600","Консоль MPV, для стоек управления серии VN, 1600 мм","Штука"]
["R5MPV600","Консоль MPV, для стоек управления серии VN, 600 мм","Штука"]
["R5MPV800","Консоль MPV, для стоек управления серии VN, 800 мм","Штука"]
["R5SPA01","Вентиляционные проставки для крыши KTB, высота 20 мм, 4 шт","Упаковка"]
["R5SPA02","Вентиляционные проставки для крыши KTB, высота 50 мм, 4 шт","Упаковка"]